Workbook

Sheet UserGuide
A1: User Guide
B3: Click enable content

Sheet 0-5 Dashboard
A1: The Dudley 0-5's Profile
B2: Indicator: | C2: =Calcs!A1 -> Mid-year population estimates 0-5 | J2: Demographics | K2: Year | L2: Value | M2: LCI | N2: UCI | O2: Count | P2: Dudley | Q2: Low | R2: Performance | S2: High
B3: Ward: | C3: =INDEX(MapShading!A:A,MATCH(B4,MapShading!B:B,0)) -> Sedgley | J3: Mid-year population estimates 0-5 | K3: =VLOOKUP(J3,Calcs!G:I,3,FALSE) -> 2017 | L3: =INDEX(XMLSheet!$A:$CIJ,MATCH($C$3,XMLSheet!$A:$A,0),MATCH(VLOOKUP($J3,Calcs!$G:$H,2,FALSE),XMLSheet!$2:$2,0)) -> 646 | M3: =INDEX(XMLSheet!$A:$CIJ,MATCH($C$3,XMLSheet!$A:$A,0),MATCH(VLOOKUP($J3,Calcs!$G:$H,2,FALSE),XMLSheet!$2:$2,0)+6) -> 0 | N3: =INDEX(XMLSheet!$A:$CIJ,MATCH($C$3,XMLSheet!$A:$A,0),MATCH(VLOOKUP($J3,Calcs!$G:$H,2,FALSE),XMLSheet!$2:$2,0)+8) -> 0 | O3: =INDEX(XMLSheet!$A:$CIJ,MATCH($C$3,XMLSheet!$A:$A,0),MATCH(VLOOKUP($J3,Calcs!$G:$H,2,FALSE),XMLSheet!$2:$2,0)+9) -> 646 | P3: =INDEX(XMLSheet!$A:$CIJ,MATCH($C$3,XMLSheet!$A:$A,0),MATCH(VLOOKUP($J3,Calcs!$G:$H,2,FALSE),XMLSheet!$2:$2,0)+3) -> 23457 | Q3: =MIN(OFFSET(XMLSheet!$A$6:$A$29,,MATCH(VLOOKUP($J3,Calcs!$G:$H,2,FALSE),XMLSheet!$2:$2,0)-1)) -> 596 | S3: =MAX(OFFSET(XMLSheet!$A$6:$A$29,,MATCH(VLOOKUP($J3,Calcs!$G:$H,2,FALSE),XMLSheet!$2:$2,0)-1)) -> 1540
B4: Sedgley | J4: Number of births (live births to mothers resident in Dudley) | K4: =VLOOKUP(J4,Calcs!G:I,3,FALSE) -> 2017 | L4: =INDEX(XMLSheet!$A:$CIJ,MATCH($C$3,XMLSheet!$A:$A,0),MATCH(VLOOKUP($J4,Calcs!$G:$H,2,FALSE),XMLSheet!$2:$2,0)) -> 88 | M4: =INDEX(XMLSheet!$A:$CIJ,MATCH($C$3,XMLSheet!$A:$A,0),MATCH(VLOOKUP($J4,Calcs!$G:$H,2,FALSE),XMLSheet!$2:$2,0)+6) -> 0 | N4: =INDEX(XMLSheet!$A:$CIJ,MATCH($C$3,XMLSheet!$A:$A,0),MATCH(VLOOKUP($J4,Calcs!$G:$H,2,FALSE),XMLSheet!$2:$2,0)+8) -> 0 | O4: =INDEX(XMLSheet!$A:$CIJ,MATCH($C$3,XMLSheet!$A:$A,0),MATCH(VLOOKUP($J4,Calcs!$G:$H,2,FALSE),XMLSheet!$2:$2,0)+9) -> 88 | P4: =INDEX(XMLSheet!$A:$CIJ,MATCH($C$3,XMLSheet!$A:$A,0),MATCH(VLOOKUP($J4,Calcs!$G:$H,2,FALSE),XMLSheet!$2:$2,0)+3) -> 3821 | Q4: =MIN(OFFSET(XMLSheet!$A$6:$A$29,,MATCH(VLOOKUP($J4,Calcs!$G:$H,2,FALSE),XMLSheet!$2:$2,0)-1)) -> 88 | S4: =MAX(OFFSET(XMLSheet!$A$6:$A$29,,MATCH(VLOOKUP($J4,Calcs!$G:$H,2,FALSE),XMLSheet!$2:$2,0)-1)) -> 298
G5: Key | J5: General Fertility Rate (total births per 1,000 mothers aged 15-44) | K5: =VLOOKUP(J5,Calcs!G:I,3,FALSE) -> 2017 | L5: =INDEX(XMLSheet!$A:$CIJ,MATCH($C$3,XMLSheet!$A:$A,0),MATCH(VLOOKUP($J5,Calcs!$G:$H,2,FALSE),XMLSheet!$2:$2,0)) -> 48.91606448 | M5: =INDEX(XMLSheet!$A:$CIJ,MATCH($C$3,XMLSheet!$A:$A,0),MATCH(VLOOKUP($J5,Calcs!$G:$H,2,FALSE),XMLSheet!$2:$2,0)+6) -> 39.87448962 | N5: =INDEX(XMLSheet!$A:$CIJ,MATCH($C$3,XMLSheet!$A:$A,0),MATCH(VLOOKUP($J5,Calcs!$G:$H,2,FALSE),XMLSheet!$2:$2,0)+8) -> 59.87996075 | O5: =INDEX(XMLSheet!$A:$CIJ,MATCH($C$3,XMLSheet!$A:$A,0),MATCH(VLOOKUP($J5,Calcs!$G:$H,2,FALSE),XMLSheet!$2:$2,0)+9) -> 88 | P5: =INDEX(XMLSheet!$A:$CIJ,MATCH($C$3,XMLSheet!$A:$A,0),MATCH(VLOOKUP($J5,Calcs!$G:$H,2,FALSE),XMLSheet!$2:$2,0)+3) -> 67.3209063 | Q5: =MIN(OFFSET(XMLSheet!$A$6:$A$29,,MATCH(VLOOKUP($J5,Calcs!$G:$H,2,FALSE),XMLSheet!$2:$2,0)-1)) -> 48.91606448 | S5: =MAX(OFFSET(XMLSheet!$A$6:$A$29,,MATCH(VLOOKUP($J5,Calcs!$G:$H,2,FALSE),XMLSheet!$2:$2,0)-1)) -> 95.23809524
H6: =IF(Calcs!A1="Under 18 Conception Rates (rate per 1,000)","Better",TEXT(MapShading!G1,"0.0")&"-"&TEXT(MapShading!G2,"0.0")) -> 596.0-910.7 | J6: BME Population aged 0-4 Years (%) | K6: =VLOOKUP(J6,Calcs!G:I,3,FALSE) -> 2011 | L6: =INDEX(XMLSheet!$A:$CIJ,MATCH($C$3,XMLSheet!$A:$A,0),MATCH(VLOOKUP($J6,Calcs!$G:$H,2,FALSE),XMLSheet!$2:$2,0)) -> 9.541984733 | M6: =INDEX(XMLSheet!$A:$CIJ,MATCH($C$3,XMLSheet!$A:$A,0),MATCH(VLOOKUP($J6,Calcs!$G:$H,2,FALSE),XMLSheet!$2:$2,0)+6) -> 7.312853485 | N6: =INDEX(XMLSheet!$A:$CIJ,MATCH($C$3,XMLSheet!$A:$A,0),MATCH(VLOOKUP($J6,Calcs!$G:$H,2,FALSE),XMLSheet!$2:$2,0)+8) -> 12.35999659 | O6: =INDEX(XMLSheet!$A:$CIJ,MATCH($C$3,XMLSheet!$A:$A,0),MATCH(VLOOKUP($J6,Calcs!$G:$H,2,FALSE),XMLSheet!$2:$2,0)+9) -> 50 | P6: =INDEX(XMLSheet!$A:$CIJ,MATCH($C$3,XMLSheet!$A:$A,0),MATCH(VLOOKUP($J6,Calcs!$G:$H,2,FALSE),XMLSheet!$2:$2,0)+3) -> 20.02438119 | Q6: =MIN(OFFSET(XMLSheet!$A$6:$A$29,,MATCH(VLOOKUP($J6,Calcs!$G:$H,2,FALSE),XMLSheet!$2:$2,0)-1)) -> 4.354587869 | S6: =MAX(OFFSET(XMLSheet!$A$6:$A$29,,MATCH(VLOOKUP($J6,Calcs!$G:$H,2,FALSE),XMLSheet!$2:$2,0)-1)) -> 55.49407115
H7: =IF(Calcs!A1="Under 18 Conception Rates (rate per 1,000)","Similar",TEXT(MapShading!I2,"0.0")&"-"&TEXT(MapShading!G3,"0.0")) -> 911.0-1225.3 | J7: Income Deprivation Affecting Children Index (IDACI) Decile (1= most deprived, 10= least deprived) | K7: =VLOOKUP(J7,Calcs!G:I,3,FALSE) -> 2015 | L7: =INDEX(XMLSheet!$A:$CIJ,MATCH($C$3,XMLSheet!$A:$A,0),MATCH(VLOOKUP($J7,Calcs!$G:$H,2,FALSE),XMLSheet!$2:$2,0)) -> 5 | M7: =INDEX(XMLSheet!$A:$CIJ,MATCH($C$3,XMLSheet!$A:$A,0),MATCH(VLOOKUP($J7,Calcs!$G:$H,2,FALSE),XMLSheet!$2:$2,0)+6) -> 0 | N7: =INDEX(XMLSheet!$A:$CIJ,MATCH($C$3,XMLSheet!$A:$A,0),MATCH(VLOOKUP($J7,Calcs!$G:$H,2,FALSE),XMLSheet!$2:$2,0)+8) -> 0 | O7: =INDEX(XMLSheet!$A:$CIJ,MATCH($C$3,XMLSheet!$A:$A,0),MATCH(VLOOKUP($J7,Calcs!$G:$H,2,FALSE),XMLSheet!$2:$2,0)+9) -> 0 | P7: =INDEX(XMLSheet!$A:$CIJ,MATCH($C$3,XMLSheet!$A:$A,0),MATCH(VLOOKUP($J7,Calcs!$G:$H,2,FALSE),XMLSheet!$2:$2,0)+3) -> 5 | Q7: =MIN(OFFSET(XMLSheet!$A$6:$A$29,,MATCH(VLOOKUP($J7,Calcs!$G:$H,2,FALSE),XMLSheet!$2:$2,0)-1)) -> 1 | S7: =MAX(OFFSET(XMLSheet!$A$6:$A$29,,MATCH(VLOOKUP($J7,Calcs!$G:$H,2,FALSE),XMLSheet!$2:$2,0)-1)) -> 9
H8: =IF(Calcs!A1="Under 18 conception Rates (rate per 1,000)","Worse",TEXT(MapShading!I3,"0.0")&"-"&TEXT(MapShading!G6,"0.0")) -> 1225.0-1540.0 | J8: Life Expectancy at birth (Female) | K8: =VLOOKUP(J8,Calcs!G:I,3,FALSE) -> 2015-2017 | L8: =INDEX(XMLSheet!$A:$CIJ,MATCH($C$3,XMLSheet!$A:$A,0),MATCH(VLOOKUP($J8,Calcs!$G:$H,2,FALSE),XMLSheet!$2:$2,0)) -> 85.85506809 | M8: =INDEX(XMLSheet!$A:$CIJ,MATCH($C$3,XMLSheet!$A:$A,0),MATCH(VLOOKUP($J8,Calcs!$G:$H,2,FALSE),XMLSheet!$2:$2,0)+6) -> 83.90797217 | N8: =INDEX(XMLSheet!$A:$CIJ,MATCH($C$3,XMLSheet!$A:$A,0),MATCH(VLOOKUP($J8,Calcs!$G:$H,2,FALSE),XMLSheet!$2:$2,0)+8) -> 87.80216402 | O8: =INDEX(XMLSheet!$A:$CIJ,MATCH($C$3,XMLSheet!$A:$A,0),MATCH(VLOOKUP($J8,Calcs!$G:$H,2,FALSE),XMLSheet!$2:$2,0)+9) -> 0 | P8: =INDEX(XMLSheet!$A:$CIJ,MATCH($C$3,XMLSheet!$A:$A,0),MATCH(VLOOKUP($J8,Calcs!$G:$H,2,FALSE),XMLSheet!$2:$2,0)+3) -> 83.21603064 | Q8: =MIN(OFFSET(XMLSheet!$A$6:$A$29,,MATCH(VLOOKUP($J8,Calcs!$G:$H,2,FALSE),XMLSheet!$2:$2,0)-1)) -> 78.61681267 | S8: =MAX(OFFSET(XMLSheet!$A$6:$A$29,,MATCH(VLOOKUP($J8,Calcs!$G:$H,2,FALSE),XMLSheet!$2:$2,0)-1)) -> 86.64925375
J9: Life Expectancy at birth (Male) | K9: =VLOOKUP(J9,Calcs!G:I,3,FALSE) -> 2015-2017 | L9: =INDEX(XMLSheet!$A:$CIJ,MATCH($C$3,XMLSheet!$A:$A,0),MATCH(VLOOKUP($J9,Calcs!$G:$H,2,FALSE),XMLSheet!$2:$2,0)) -> 81.14142606 | M9: =INDEX(XMLSheet!$A:$CIJ,MATCH($C$3,XMLSheet!$A:$A,0),MATCH(VLOOKUP($J9,Calcs!$G:$H,2,FALSE),XMLSheet!$2:$2,0)+6) -> 78.84516063 | N9: =INDEX(XMLSheet!$A:$CIJ,MATCH($C$3,XMLSheet!$A:$A,0),MATCH(VLOOKUP($J9,Calcs!$G:$H,2,FALSE),XMLSheet!$2:$2,0)+8) -> 83.43769149 | O9: =INDEX(XMLSheet!$A:$CIJ,MATCH($C$3,XMLSheet!$A:$A,0),MATCH(VLOOKUP($J9,Calcs!$G:$H,2,FALSE),XMLSheet!$2:$2,0)+9) -> 0 | P9: =INDEX(XMLSheet!$A:$CIJ,MATCH($C$3,XMLSheet!$A:$A,0),MATCH(VLOOKUP($J9,Calcs!$G:$H,2,FALSE),XMLSheet!$2:$2,0)+3) -> 79.04621584 | Q9: =MIN(OFFSET(XMLSheet!$A$6:$A$29,,MATCH(VLOOKUP($J9,Calcs!$G:$H,2,FALSE),XMLSheet!$2:$2,0)-1)) -> 76.12174459 | S9: =MAX(OFFSET(XMLSheet!$A$6:$A$29,,MATCH(VLOOKUP($J9,Calcs!$G:$H,2,FALSE),XMLSheet!$2:$2,0)-1)) -> 83.56022739
J10: Infant mortality (10-year rate per 1,000 live births) | K10: =VLOOKUP(J10,Calcs!G:I,3,FALSE) -> 2008-2017 | L10: =INDEX(XMLSheet!$A:$CIJ,MATCH($C$3,XMLSheet!$A:$A,0),MATCH(VLOOKUP($J10,Calcs!$G:$H,2,FALSE),XMLSheet!$2:$2,0)) -> 5.050505051 | M10: =INDEX(XMLSheet!$A:$CIJ,MATCH($C$3,XMLSheet!$A:$A,0),MATCH(VLOOKUP($J10,Calcs!$G:$H,2,FALSE),XMLSheet!$2:$2,0)+6) -> 2.159145548 | N10: =INDEX(XMLSheet!$A:$CIJ,MATCH($C$3,XMLSheet!$A:$A,0),MATCH(VLOOKUP($J10,Calcs!$G:$H,2,FALSE),XMLSheet!$2:$2,0)+8) -> 11.76808469 | O10: =INDEX(XMLSheet!$A:$CIJ,MATCH($C$3,XMLSheet!$A:$A,0),MATCH(VLOOKUP($J10,Calcs!$G:$H,2,FALSE),XMLSheet!$2:$2,0)+9) -> 5 | P10: =INDEX(XMLSheet!$A:$CIJ,MATCH($C$3,XMLSheet!$A:$A,0),MATCH(VLOOKUP($J10,Calcs!$G:$H,2,FALSE),XMLSheet!$2:$2,0)+3) -> 4.348273555 | Q10: =MIN(OFFSET(XMLSheet!$A$6:$A$29,,MATCH(VLOOKUP($J10,Calcs!$G:$H,2,FALSE),XMLSheet!$2:$2,0)-1)) -> 0 | S10: =MAX(OFFSET(XMLSheet!$A$6:$A$29,,MATCH(VLOOKUP($J10,Calcs!$G:$H,2,FALSE),XMLSheet!$2:$2,0)-1)) -> 7.338225484
J11: Maternity
J12: Caesarean Section (%) | K12: =VLOOKUP(J12,Calcs!G:I,3,FALSE) -> 2017/18 | L12: =INDEX(XMLSheet!$A:$CIJ,MATCH($C$3,XMLSheet!$A:$A,0),MATCH(VLOOKUP($J12,Calcs!$G:$H,2,FALSE),XMLSheet!$2:$2,0)) -> 34.35582822 | M12: =INDEX(XMLSheet!$A:$CIJ,MATCH($C$3,XMLSheet!$A:$A,0),MATCH(VLOOKUP($J12,Calcs!$G:$H,2,FALSE),XMLSheet!$2:$2,0)+6) -> 27.50102983 | N12: =INDEX(XMLSheet!$A:$CIJ,MATCH($C$3,XMLSheet!$A:$A,0),MATCH(VLOOKUP($J12,Calcs!$G:$H,2,FALSE),XMLSheet!$2:$2,0)+8) -> 41.93102839 | O12: =INDEX(XMLSheet!$A:$CIJ,MATCH($C$3,XMLSheet!$A:$A,0),MATCH(VLOOKUP($J12,Calcs!$G:$H,2,FALSE),XMLSheet!$2:$2,0)+9) -> 56 | P12: =INDEX(XMLSheet!$A:$CIJ,MATCH($C$3,XMLSheet!$A:$A,0),MATCH(VLOOKUP($J12,Calcs!$G:$H,2,FALSE),XMLSheet!$2:$2,0)+3) -> 32.88619645 | Q12: =MIN(OFFSET(XMLSheet!$A$6:$A$29,,MATCH(VLOOKUP($J12,Calcs!$G:$H,2,FALSE),XMLSheet!$2:$2,0)-1)) -> 19.27272727 | S12: =MAX(OFFSET(XMLSheet!$A$6:$A$29,,MATCH(VLOOKUP($J12,Calcs!$G:$H,2,FALSE),XMLSheet!$2:$2,0)-1)) -> 43.11926606
J13: Low birthweight (3 year rate) | K13: =VLOOKUP(J13,Calcs!G:I,3,FALSE) -> 2014-16 | L13: =INDEX(XMLSheet!$A:$CIJ,MATCH($C$3,XMLSheet!$A:$A,0),MATCH(VLOOKUP($J13,Calcs!$G:$H,2,FALSE),XMLSheet!$2:$2,0)) -> 7.348242812 | M13: =INDEX(XMLSheet!$A:$CIJ,MATCH($C$3,XMLSheet!$A:$A,0),MATCH(VLOOKUP($J13,Calcs!$G:$H,2,FALSE),XMLSheet!$2:$2,0)+6) -> 4.946129156 | N13: =INDEX(XMLSheet!$A:$CIJ,MATCH($C$3,XMLSheet!$A:$A,0),MATCH(VLOOKUP($J13,Calcs!$G:$H,2,FALSE),XMLSheet!$2:$2,0)+8) -> 10.78459592 | O13: =INDEX(XMLSheet!$A:$CIJ,MATCH($C$3,XMLSheet!$A:$A,0),MATCH(VLOOKUP($J13,Calcs!$G:$H,2,FALSE),XMLSheet!$2:$2,0)+9) -> 23 | P13: =INDEX(XMLSheet!$A:$CIJ,MATCH($C$3,XMLSheet!$A:$A,0),MATCH(VLOOKUP($J13,Calcs!$G:$H,2,FALSE),XMLSheet!$2:$2,0)+3) -> 8.553971487 | Q13: =MIN(OFFSET(XMLSheet!$A$6:$A$29,,MATCH(VLOOKUP($J13,Calcs!$G:$H,2,FALSE),XMLSheet!$2:$2,0)-1)) -> 3.618421053 | S13: =MAX(OFFSET(XMLSheet!$A$6:$A$29,,MATCH(VLOOKUP($J13,Calcs!$G:$H,2,FALSE),XMLSheet!$2:$2,0)-1)) -> 11.01549053
J14: Percentage initiating breastfeeding | K14: =VLOOKUP(J14,Calcs!G:I,3,FALSE) -> 2017/18 | L14: =INDEX(XMLSheet!$A:$CIJ,MATCH($C$3,XMLSheet!$A:$A,0),MATCH(VLOOKUP($J14,Calcs!$G:$H,2,FALSE),XMLSheet!$2:$2,0)) -> 61.03896104 | M14: =INDEX(XMLSheet!$A:$CIJ,MATCH($C$3,XMLSheet!$A:$A,0),MATCH(VLOOKUP($J14,Calcs!$G:$H,2,FALSE),XMLSheet!$2:$2,0)+6) -> 49.87106689 | N14: =INDEX(XMLSheet!$A:$CIJ,MATCH($C$3,XMLSheet!$A:$A,0),MATCH(VLOOKUP($J14,Calcs!$G:$H,2,FALSE),XMLSheet!$2:$2,0)+8) -> 71.15774709 | O14: =INDEX(XMLSheet!$A:$CIJ,MATCH($C$3,XMLSheet!$A:$A,0),MATCH(VLOOKUP($J14,Calcs!$G:$H,2,FALSE),XMLSheet!$2:$2,0)+9) -> 47 | P14: =INDEX(XMLSheet!$A:$CIJ,MATCH($C$3,XMLSheet!$A:$A,0),MATCH(VLOOKUP($J14,Calcs!$G:$H,2,FALSE),XMLSheet!$2:$2,0)+3) -> 53.46092504 | Q14: =MIN(OFFSET(XMLSheet!$A$6:$A$29,,MATCH(VLOOKUP($J14,Calcs!$G:$H,2,FALSE),XMLSheet!$2:$2,0)-1)) -> 28.08988764 | S14: =MAX(OFFSET(XMLSheet!$A$6:$A$29,,MATCH(VLOOKUP($J14,Calcs!$G:$H,2,FALSE),XMLSheet!$2:$2,0)-1)) -> 70.73170732
J15: Percentage totally or partially breastfed at 6 to 8 weeks | K15: =VLOOKUP(J15,Calcs!G:I,3,FALSE) -> 2015/16 | L15: =INDEX(XMLSheet!$A:$CIJ,MATCH($C$3,XMLSheet!$A:$A,0),MATCH(VLOOKUP($J15,Calcs!$G:$H,2,FALSE),XMLSheet!$2:$2,0)) -> 22.64150943 | M15: =INDEX(XMLSheet!$A:$CIJ,MATCH($C$3,XMLSheet!$A:$A,0),MATCH(VLOOKUP($J15,Calcs!$G:$H,2,FALSE),XMLSheet!$2:$2,0)+6) -> 15.71347074 | N15: =INDEX(XMLSheet!$A:$CIJ,MATCH($C$3,XMLSheet!$A:$A,0),MATCH(VLOOKUP($J15,Calcs!$G:$H,2,FALSE),XMLSheet!$2:$2,0)+8) -> 31.4831519 | O15: =INDEX(XMLSheet!$A:$CIJ,MATCH($C$3,XMLSheet!$A:$A,0),MATCH(VLOOKUP($J15,Calcs!$G:$H,2,FALSE),XMLSheet!$2:$2,0)+9) -> 24 | P15: =INDEX(XMLSheet!$A:$CIJ,MATCH($C$3,XMLSheet!$A:$A,0),MATCH(VLOOKUP($J15,Calcs!$G:$H,2,FALSE),XMLSheet!$2:$2,0)+3) -> 29.11982451 | Q15: =MIN(OFFSET(XMLSheet!$A$6:$A$29,,MATCH(VLOOKUP($J15,Calcs!$G:$H,2,FALSE),XMLSheet!$2:$2,0)-1)) -> 18.47826087 | S15: =MAX(OFFSET(XMLSheet!$A$6:$A$29,,MATCH(VLOOKUP($J15,Calcs!$G:$H,2,FALSE),XMLSheet!$2:$2,0)-1)) -> 48.62385321
B16: The Dudley Picture: | J16: Under 18 Conception Rates (rate per 1,000) | K16: =VLOOKUP(J16,Calcs!G:I,3,FALSE) -> 2013-15 | L16: =INDEX(XMLSheet!$A:$CIJ,MATCH($C$3,XMLSheet!$A:$A,0),MATCH(VLOOKUP($J16,Calcs!$G:$H,2,FALSE),XMLSheet!$2:$2,0)) -> Better | M16: =INDEX(XMLSheet!$A:$CIJ,MATCH($C$3,XMLSheet!$A:$A,0),MATCH(VLOOKUP($J16,Calcs!$G:$H,2,FALSE),XMLSheet!$2:$2,0)+6) -> 0 | N16: =INDEX(XMLSheet!$A:$CIJ,MATCH($C$3,XMLSheet!$A:$A,0),MATCH(VLOOKUP($J16,Calcs!$G:$H,2,FALSE),XMLSheet!$2:$2,0)+8) -> 0 | O16: =INDEX(XMLSheet!$A:$CIJ,MATCH($C$3,XMLSheet!$A:$A,0),MATCH(VLOOKUP($J16,Calcs!$G:$H,2,FALSE),XMLSheet!$2:$2,0)+9) -> 0 | P16: =INDEX(XMLSheet!$A:$CIJ,MATCH($C$3,XMLSheet!$A:$A,0),MATCH(VLOOKUP($J16,Calcs!$G:$H,2,FALSE),XMLSheet!$2:$2,0)+3) -> 28.2
B17: =VLOOKUP(Calcs!A1,Calcs!M:N,2,FALSE) -> In Dudley the 2017 0-5 mid-year population estimate is 23,457. The ward with the highest population is St. Thomas's (1,540) and the lowest population is seen in Kingswinford North and Wall Heath (596). The Dudley trend is increasing. | J17: Mothers Smoking at Time of Delivery (%) | K17: =VLOOKUP(J17,Calcs!G:I,3,FALSE) -> 2017/18 | L17: =INDEX(XMLSheet!$A:$CIJ,MATCH($C$3,XMLSheet!$A:$A,0),MATCH(VLOOKUP($J17,Calcs!$G:$H,2,FALSE),XMLSheet!$2:$2,0)) -> 7.792207792 | M17: =INDEX(XMLSheet!$A:$CIJ,MATCH($C$3,XMLSheet!$A:$A,0),MATCH(VLOOKUP($J17,Calcs!$G:$H,2,FALSE),XMLSheet!$2:$2,0)+6) -> 3.620095505 | N17: =INDEX(XMLSheet!$A:$CIJ,MATCH($C$3,XMLSheet!$A:$A,0),MATCH(VLOOKUP($J17,Calcs!$G:$H,2,FALSE),XMLSheet!$2:$2,0)+8) -> 15.97561572 | O17: =INDEX(XMLSheet!$A:$CIJ,MATCH($C$3,XMLSheet!$A:$A,0),MATCH(VLOOKUP($J17,Calcs!$G:$H,2,FALSE),XMLSheet!$2:$2,0)+9) -> 6 | P17: =INDEX(XMLSheet!$A:$CIJ,MATCH($C$3,XMLSheet!$A:$A,0),MATCH(VLOOKUP($J17,Calcs!$G:$H,2,FALSE),XMLSheet!$2:$2,0)+3) -> 14.89633174 | Q17: =MIN(OFFSET(XMLSheet!$A$6:$A$29,,MATCH(VLOOKUP($J17,Calcs!$G:$H,2,FALSE),XMLSheet!$2:$2,0)-1)) -> 2.43902439 | S17: =MAX(OFFSET(XMLSheet!$A$6:$A$29,,MATCH(VLOOKUP($J17,Calcs!$G:$H,2,FALSE),XMLSheet!$2:$2,0)-1)) -> 24.62311558
J18: Babies reported as living in a Smoke Free Home (%) | K18: =VLOOKUP(J18,Calcs!G:I,3,FALSE) -> 2015/16 | L18: =INDEX(XMLSheet!$A:$CIJ,MATCH($C$3,XMLSheet!$A:$A,0),MATCH(VLOOKUP($J18,Calcs!$G:$H,2,FALSE),XMLSheet!$2:$2,0)) -> 76 | M18: =INDEX(XMLSheet!$A:$CIJ,MATCH($C$3,XMLSheet!$A:$A,0),MATCH(VLOOKUP($J18,Calcs!$G:$H,2,FALSE),XMLSheet!$2:$2,0)+6) -> 66.76766365 | N18: =INDEX(XMLSheet!$A:$CIJ,MATCH($C$3,XMLSheet!$A:$A,0),MATCH(VLOOKUP($J18,Calcs!$G:$H,2,FALSE),XMLSheet!$2:$2,0)+8) -> 83.30867444 | O18: =INDEX(XMLSheet!$A:$CIJ,MATCH($C$3,XMLSheet!$A:$A,0),MATCH(VLOOKUP($J18,Calcs!$G:$H,2,FALSE),XMLSheet!$2:$2,0)+9) -> 76 | P18: =INDEX(XMLSheet!$A:$CIJ,MATCH($C$3,XMLSheet!$A:$A,0),MATCH(VLOOKUP($J18,Calcs!$G:$H,2,FALSE),XMLSheet!$2:$2,0)+3) -> 67.31789004 | Q18: =MIN(OFFSET(XMLSheet!$A$6:$A$29,,MATCH(VLOOKUP($J18,Calcs!$G:$H,2,FALSE),XMLSheet!$2:$2,0)-1)) -> 57.8125 | S18: =MAX(OFFSET(XMLSheet!$A$6:$A$29,,MATCH(VLOOKUP($J18,Calcs!$G:$H,2,FALSE),XMLSheet!$2:$2,0)-1)) -> 85.71428571
J19: Vaccinations
J20: Population vaccination coverage - MMR for one dose (2 years old) | K20: =VLOOKUP(J20,Calcs!G:I,3,FALSE) -> 2015/16 | L20: =INDEX(XMLSheet!$A:$CIJ,MATCH($C$3,XMLSheet!$A:$A,0),MATCH(VLOOKUP($J20,Calcs!$G:$H,2,FALSE),XMLSheet!$2:$2,0)) -> 100 | M20: =INDEX(XMLSheet!$A:$CIJ,MATCH($C$3,XMLSheet!$A:$A,0),MATCH(VLOOKUP($J20,Calcs!$G:$H,2,FALSE),XMLSheet!$2:$2,0)+6) -> 95.94959961 | N20: =INDEX(XMLSheet!$A:$CIJ,MATCH($C$3,XMLSheet!$A:$A,0),MATCH(VLOOKUP($J20,Calcs!$G:$H,2,FALSE),XMLSheet!$2:$2,0)+8) -> 100 | O20: =INDEX(XMLSheet!$A:$CIJ,MATCH($C$3,XMLSheet!$A:$A,0),MATCH(VLOOKUP($J20,Calcs!$G:$H,2,FALSE),XMLSheet!$2:$2,0)+9) -> 91 | P20: =INDEX(XMLSheet!$A:$CIJ,MATCH($C$3,XMLSheet!$A:$A,0),MATCH(VLOOKUP($J20,Calcs!$G:$H,2,FALSE),XMLSheet!$2:$2,0)+3) -> 97.02549575 | Q20: =MIN(OFFSET(XMLSheet!$A$6:$A$29,,MATCH(VLOOKUP($J20,Calcs!$G:$H,2,FALSE),XMLSheet!$2:$2,0)-1)) -> 94.38202247 | S20: =MAX(OFFSET(XMLSheet!$A$6:$A$29,,MATCH(VLOOKUP($J20,Calcs!$G:$H,2,FALSE),XMLSheet!$2:$2,0)-1)) -> 100
J21: Population vaccination coverage - MMR for one dose (5 years old) | K21: =VLOOKUP(J21,Calcs!G:I,3,FALSE) -> 2015/16 | L21: =INDEX(XMLSheet!$A:$CIJ,MATCH($C$3,XMLSheet!$A:$A,0),MATCH(VLOOKUP($J21,Calcs!$G:$H,2,FALSE),XMLSheet!$2:$2,0)) -> 95.6043956 | M21: =INDEX(XMLSheet!$A:$CIJ,MATCH($C$3,XMLSheet!$A:$A,0),MATCH(VLOOKUP($J21,Calcs!$G:$H,2,FALSE),XMLSheet!$2:$2,0)+6) -> 89.23690662 | N21: =INDEX(XMLSheet!$A:$CIJ,MATCH($C$3,XMLSheet!$A:$A,0),MATCH(VLOOKUP($J21,Calcs!$G:$H,2,FALSE),XMLSheet!$2:$2,0)+8) -> 98.27756336 | O21: =INDEX(XMLSheet!$A:$CIJ,MATCH($C$3,XMLSheet!$A:$A,0),MATCH(VLOOKUP($J21,Calcs!$G:$H,2,FALSE),XMLSheet!$2:$2,0)+9) -> 87 | P21: =INDEX(XMLSheet!$A:$CIJ,MATCH($C$3,XMLSheet!$A:$A,0),MATCH(VLOOKUP($J21,Calcs!$G:$H,2,FALSE),XMLSheet!$2:$2,0)+3) -> 97.00987306 | Q21: =MIN(OFFSET(XMLSheet!$A$6:$A$29,,MATCH(VLOOKUP($J21,Calcs!$G:$H,2,FALSE),XMLSheet!$2:$2,0)-1)) -> 93.45794393 | S21: =MAX(OFFSET(XMLSheet!$A$6:$A$29,,MATCH(VLOOKUP($J21,Calcs!$G:$H,2,FALSE),XMLSheet!$2:$2,0)-1)) -> 99.06976744
J22: Population vaccination coverage - MMR for two doses (5 years old) | K22: =VLOOKUP(J22,Calcs!G:I,3,FALSE) -> 2015/16 | L22: =INDEX(XMLSheet!$A:$CIJ,MATCH($C$3,XMLSheet!$A:$A,0),MATCH(VLOOKUP($J22,Calcs!$G:$H,2,FALSE),XMLSheet!$2:$2,0)) -> 93.40659341 | M22: =INDEX(XMLSheet!$A:$CIJ,MATCH($C$3,XMLSheet!$A:$A,0),MATCH(VLOOKUP($J22,Calcs!$G:$H,2,FALSE),XMLSheet!$2:$2,0)+6) -> 86.3535338 | N22: =INDEX(XMLSheet!$A:$CIJ,MATCH($C$3,XMLSheet!$A:$A,0),MATCH(VLOOKUP($J22,Calcs!$G:$H,2,FALSE),XMLSheet!$2:$2,0)+8) -> 96.94337135 | O22: =INDEX(XMLSheet!$A:$CIJ,MATCH($C$3,XMLSheet!$A:$A,0),MATCH(VLOOKUP($J22,Calcs!$G:$H,2,FALSE),XMLSheet!$2:$2,0)+9) -> 85 | P22: =INDEX(XMLSheet!$A:$CIJ,MATCH($C$3,XMLSheet!$A:$A,0),MATCH(VLOOKUP($J22,Calcs!$G:$H,2,FALSE),XMLSheet!$2:$2,0)+3) -> 92.83497884 | Q22: =MIN(OFFSET(XMLSheet!$A$6:$A$29,,MATCH(VLOOKUP($J22,Calcs!$G:$H,2,FALSE),XMLSheet!$2:$2,0)-1)) -> 84.11214953 | S22: =MAX(OFFSET(XMLSheet!$A$6:$A$29,,MATCH(VLOOKUP($J22,Calcs!$G:$H,2,FALSE),XMLSheet!$2:$2,0)-1)) -> 97.91666667
J23: Population vaccination coverage - PCV (1 year old) | K23: =VLOOKUP(J23,Calcs!G:I,3,FALSE) -> 2015/16 | L23: =INDEX(XMLSheet!$A:$CIJ,MATCH($C$3,XMLSheet!$A:$A,0),MATCH(VLOOKUP($J23,Calcs!$G:$H,2,FALSE),XMLSheet!$2:$2,0)) -> 98.98989899 | M23: =INDEX(XMLSheet!$A:$CIJ,MATCH($C$3,XMLSheet!$A:$A,0),MATCH(VLOOKUP($J23,Calcs!$G:$H,2,FALSE),XMLSheet!$2:$2,0)+6) -> 94.49846854 | N23: =INDEX(XMLSheet!$A:$CIJ,MATCH($C$3,XMLSheet!$A:$A,0),MATCH(VLOOKUP($J23,Calcs!$G:$H,2,FALSE),XMLSheet!$2:$2,0)+8) -> 99.82146927 | O23: =INDEX(XMLSheet!$A:$CIJ,MATCH($C$3,XMLSheet!$A:$A,0),MATCH(VLOOKUP($J23,Calcs!$G:$H,2,FALSE),XMLSheet!$2:$2,0)+9) -> 98 | P23: =INDEX(XMLSheet!$A:$CIJ,MATCH($C$3,XMLSheet!$A:$A,0),MATCH(VLOOKUP($J23,Calcs!$G:$H,2,FALSE),XMLSheet!$2:$2,0)+3) -> 96.33967789 | Q23: =MIN(OFFSET(XMLSheet!$A$6:$A$29,,MATCH(VLOOKUP($J23,Calcs!$G:$H,2,FALSE),XMLSheet!$2:$2,0)-1)) -> 90.10989011 | S23: =MAX(OFFSET(XMLSheet!$A$6:$A$29,,MATCH(VLOOKUP($J23,Calcs!$G:$H,2,FALSE),XMLSheet!$2:$2,0)-1)) -> 100
J24: National Child Measurement Programme
B25: Trend Chart: | J25: Prevalence of Healthy Weight, Reception Year (%), 3 year rate | K25: =VLOOKUP(J25,Calcs!G:I,3,FALSE) -> 2015/16-2017/18 | L25: =INDEX(XMLSheet!$A:$CIJ,MATCH($C$3,XMLSheet!$A:$A,0),MATCH(VLOOKUP($J25,Calcs!$G:$H,2,FALSE),XMLSheet!$2:$2,0)) -> 71.33105802 | M25: =INDEX(XMLSheet!$A:$CIJ,MATCH($C$3,XMLSheet!$A:$A,0),MATCH(VLOOKUP($J25,Calcs!$G:$H,2,FALSE),XMLSheet!$2:$2,0)+6) -> 61.98765848 | N25: =INDEX(XMLSheet!$A:$CIJ,MATCH($C$3,XMLSheet!$A:$A,0),MATCH(VLOOKUP($J25,Calcs!$G:$H,2,FALSE),XMLSheet!$2:$2,0)+8) -> 81.68517046 | O25: =INDEX(XMLSheet!$A:$CIJ,MATCH($C$3,XMLSheet!$A:$A,0),MATCH(VLOOKUP($J25,Calcs!$G:$H,2,FALSE),XMLSheet!$2:$2,0)+9) -> 209 | P25: =INDEX(XMLSheet!$A:$CIJ,MATCH($C$3,XMLSheet!$A:$A,0),MATCH(VLOOKUP($J25,Calcs!$G:$H,2,FALSE),XMLSheet!$2:$2,0)+3) -> 73.07728337 | Q25: =MIN(OFFSET(XMLSheet!$A$6:$A$29,,MATCH(VLOOKUP($J25,Calcs!$G:$H,2,FALSE),XMLSheet!$2:$2,0)-1)) -> 67.37967914 | S25: =MAX(OFFSET(XMLSheet!$A$6:$A$29,,MATCH(VLOOKUP($J25,Calcs!$G:$H,2,FALSE),XMLSheet!$2:$2,0)-1)) -> 81.42857143
J26: Prevalence of Excess Weight, Reception Year (%), 3 year rate | K26: =VLOOKUP(J26,Calcs!G:I,3,FALSE) -> 2015/16-2017/18 | L26: =INDEX(XMLSheet!$A:$CIJ,MATCH($C$3,XMLSheet!$A:$A,0),MATCH(VLOOKUP($J26,Calcs!$G:$H,2,FALSE),XMLSheet!$2:$2,0)) -> 27.64505119 | M26: =INDEX(XMLSheet!$A:$CIJ,MATCH($C$3,XMLSheet!$A:$A,0),MATCH(VLOOKUP($J26,Calcs!$G:$H,2,FALSE),XMLSheet!$2:$2,0)+6) -> 21.95416109 | N26: =INDEX(XMLSheet!$A:$CIJ,MATCH($C$3,XMLSheet!$A:$A,0),MATCH(VLOOKUP($J26,Calcs!$G:$H,2,FALSE),XMLSheet!$2:$2,0)+8) -> 34.36027446 | O26: =INDEX(XMLSheet!$A:$CIJ,MATCH($C$3,XMLSheet!$A:$A,0),MATCH(VLOOKUP($J26,Calcs!$G:$H,2,FALSE),XMLSheet!$2:$2,0)+9) -> 81 | P26: =INDEX(XMLSheet!$A:$CIJ,MATCH($C$3,XMLSheet!$A:$A,0),MATCH(VLOOKUP($J26,Calcs!$G:$H,2,FALSE),XMLSheet!$2:$2,0)+3) -> 25.59250585 | Q26: =MIN(OFFSET(XMLSheet!$A$6:$A$29,,MATCH(VLOOKUP($J26,Calcs!$G:$H,2,FALSE),XMLSheet!$2:$2,0)-1)) -> 15.71428571 | S26: =MAX(OFFSET(XMLSheet!$A$6:$A$29,,MATCH(VLOOKUP($J26,Calcs!$G:$H,2,FALSE),XMLSheet!$2:$2,0)-1)) -> 32.35294118
J27: Obesity Prevalence, Reception Year (%), 3 year rate | K27: =VLOOKUP(J27,Calcs!G:I,3,FALSE) -> 2015/16-2017/18 | L27: =INDEX(XMLSheet!$A:$CIJ,MATCH($C$3,XMLSheet!$A:$A,0),MATCH(VLOOKUP($J27,Calcs!$G:$H,2,FALSE),XMLSheet!$2:$2,0)) -> 10.23890785 | M27: =INDEX(XMLSheet!$A:$CIJ,MATCH($C$3,XMLSheet!$A:$A,0),MATCH(VLOOKUP($J27,Calcs!$G:$H,2,FALSE),XMLSheet!$2:$2,0)+6) -> 6.90814813 | N27: =INDEX(XMLSheet!$A:$CIJ,MATCH($C$3,XMLSheet!$A:$A,0),MATCH(VLOOKUP($J27,Calcs!$G:$H,2,FALSE),XMLSheet!$2:$2,0)+8) -> 14.61667761 | O27: =INDEX(XMLSheet!$A:$CIJ,MATCH($C$3,XMLSheet!$A:$A,0),MATCH(VLOOKUP($J27,Calcs!$G:$H,2,FALSE),XMLSheet!$2:$2,0)+9) -> 30 | P27: =INDEX(XMLSheet!$A:$CIJ,MATCH($C$3,XMLSheet!$A:$A,0),MATCH(VLOOKUP($J27,Calcs!$G:$H,2,FALSE),XMLSheet!$2:$2,0)+3) -> 11.30679157 | Q27: =MIN(OFFSET(XMLSheet!$A$6:$A$29,,MATCH(VLOOKUP($J27,Calcs!$G:$H,2,FALSE),XMLSheet!$2:$2,0)-1)) -> 6.571428571 | S27: =MAX(OFFSET(XMLSheet!$A$6:$A$29,,MATCH(VLOOKUP($J27,Calcs!$G:$H,2,FALSE),XMLSheet!$2:$2,0)-1)) -> 14.89361702
J28: Hospital Admissions
J29: A&E attendance rate per 1,000 population aged 0-4 years (crude rate per 1,000 population) | K29: =VLOOKUP(J29,Calcs!G:I,3,FALSE) -> 2017/18 | L29: =INDEX(XMLSheet!$A:$CIJ,MATCH($C$3,XMLSheet!$A:$A,0),MATCH(VLOOKUP($J29,Calcs!$G:$H,2,FALSE),XMLSheet!$2:$2,0)) -> 578.9473684 | M29: =INDEX(XMLSheet!$A:$CIJ,MATCH($C$3,XMLSheet!$A:$A,0),MATCH(VLOOKUP($J29,Calcs!$G:$H,2,FALSE),XMLSheet!$2:$2,0)+6) -> 516.0892769 | N29: =INDEX(XMLSheet!$A:$CIJ,MATCH($C$3,XMLSheet!$A:$A,0),MATCH(VLOOKUP($J29,Calcs!$G:$H,2,FALSE),XMLSheet!$2:$2,0)+8) -> 647.3499602 | O29: =INDEX(XMLSheet!$A:$CIJ,MATCH($C$3,XMLSheet!$A:$A,0),MATCH(VLOOKUP($J29,Calcs!$G:$H,2,FALSE),XMLSheet!$2:$2,0)+9) -> 308 | P29: =INDEX(XMLSheet!$A:$CIJ,MATCH($C$3,XMLSheet!$A:$A,0),MATCH(VLOOKUP($J29,Calcs!$G:$H,2,FALSE),XMLSheet!$2:$2,0)+3) -> 426.694151 | Q29: =MIN(OFFSET(XMLSheet!$A$6:$A$29,,MATCH(VLOOKUP($J29,Calcs!$G:$H,2,FALSE),XMLSheet!$2:$2,0)-1)) -> 291.6006339 | S29: =MAX(OFFSET(XMLSheet!$A$6:$A$29,,MATCH(VLOOKUP($J29,Calcs!$G:$H,2,FALSE),XMLSheet!$2:$2,0)-1)) -> 736.1299053
J30: Emergency admissions rate per 1,000 population aged 0-4 years (crude rate per 1,000 population) | K30: =VLOOKUP(J30,Calcs!G:I,3,FALSE) -> 2017/18 | L30: =INDEX(XMLSheet!$A:$CIJ,MATCH($C$3,XMLSheet!$A:$A,0),MATCH(VLOOKUP($J30,Calcs!$G:$H,2,FALSE),XMLSheet!$2:$2,0)) -> 129.6992481 | M30: =INDEX(XMLSheet!$A:$CIJ,MATCH($C$3,XMLSheet!$A:$A,0),MATCH(VLOOKUP($J30,Calcs!$G:$H,2,FALSE),XMLSheet!$2:$2,0)+6) -> 100.9137567 | N30: =INDEX(XMLSheet!$A:$CIJ,MATCH($C$3,XMLSheet!$A:$A,0),MATCH(VLOOKUP($J30,Calcs!$G:$H,2,FALSE),XMLSheet!$2:$2,0)+8) -> 164.1426994 | O30: =INDEX(XMLSheet!$A:$CIJ,MATCH($C$3,XMLSheet!$A:$A,0),MATCH(VLOOKUP($J30,Calcs!$G:$H,2,FALSE),XMLSheet!$2:$2,0)+9) -> 69 | P30: =INDEX(XMLSheet!$A:$CIJ,MATCH($C$3,XMLSheet!$A:$A,0),MATCH(VLOOKUP($J30,Calcs!$G:$H,2,FALSE),XMLSheet!$2:$2,0)+3) -> 148.7245555 | Q30: =MIN(OFFSET(XMLSheet!$A$6:$A$29,,MATCH(VLOOKUP($J30,Calcs!$G:$H,2,FALSE),XMLSheet!$2:$2,0)-1)) -> 86.08058608 | S30: =MAX(OFFSET(XMLSheet!$A$6:$A$29,,MATCH(VLOOKUP($J30,Calcs!$G:$H,2,FALSE),XMLSheet!$2:$2,0)-1)) -> 223.8193018
J31: Emergency admissions for unintentional injuries in children aged under five years (3 year crude rate per 10,000 population) | K31: =VLOOKUP(J31,Calcs!G:I,3,FALSE) -> 2015/16-2017/18 | L31: =INDEX(XMLSheet!$A:$CIJ,MATCH($C$3,XMLSheet!$A:$A,0),MATCH(VLOOKUP($J31,Calcs!$G:$H,2,FALSE),XMLSheet!$2:$2,0)) -> 78.50241546 | M31: =INDEX(XMLSheet!$A:$CIJ,MATCH($C$3,XMLSheet!$A:$A,0),MATCH(VLOOKUP($J31,Calcs!$G:$H,2,FALSE),XMLSheet!$2:$2,0)+6) -> 41.79923002 | N31: =INDEX(XMLSheet!$A:$CIJ,MATCH($C$3,XMLSheet!$A:$A,0),MATCH(VLOOKUP($J31,Calcs!$G:$H,2,FALSE),XMLSheet!$2:$2,0)+8) -> 134.2415212 | O31: =INDEX(XMLSheet!$A:$CIJ,MATCH($C$3,XMLSheet!$A:$A,0),MATCH(VLOOKUP($J31,Calcs!$G:$H,2,FALSE),XMLSheet!$2:$2,0)+9) -> 13 | P31: =INDEX(XMLSheet!$A:$CIJ,MATCH($C$3,XMLSheet!$A:$A,0),MATCH(VLOOKUP($J31,Calcs!$G:$H,2,FALSE),XMLSheet!$2:$2,0)+3) -> 145.1784306 | Q31: =MIN(OFFSET(XMLSheet!$A$6:$A$29,,MATCH(VLOOKUP($J31,Calcs!$G:$H,2,FALSE),XMLSheet!$2:$2,0)-1)) -> 78.50241546 | S31: =MAX(OFFSET(XMLSheet!$A$6:$A$29,,MATCH(VLOOKUP($J31,Calcs!$G:$H,2,FALSE),XMLSheet!$2:$2,0)-1)) -> 186.6081229
J32: Admissions for gastroenteritis in infants aged under one year (3 year crude rate per 10,000 population) | K32: =VLOOKUP(J32,Calcs!G:I,3,FALSE) -> 2015/16-2017/18 | L32: =INDEX(XMLSheet!$A:$CIJ,MATCH($C$3,XMLSheet!$A:$A,0),MATCH(VLOOKUP($J32,Calcs!$G:$H,2,FALSE),XMLSheet!$2:$2,0)) -> 696.2025316 | M32: =INDEX(XMLSheet!$A:$CIJ,MATCH($C$3,XMLSheet!$A:$A,0),MATCH(VLOOKUP($J32,Calcs!$G:$H,2,FALSE),XMLSheet!$2:$2,0)+6) -> 436.30642 | N32: =INDEX(XMLSheet!$A:$CIJ,MATCH($C$3,XMLSheet!$A:$A,0),MATCH(VLOOKUP($J32,Calcs!$G:$H,2,FALSE),XMLSheet!$2:$2,0)+8) -> 1054.059 | O32: =INDEX(XMLSheet!$A:$CIJ,MATCH($C$3,XMLSheet!$A:$A,0),MATCH(VLOOKUP($J32,Calcs!$G:$H,2,FALSE),XMLSheet!$2:$2,0)+9) -> 22 | P32: =INDEX(XMLSheet!$A:$CIJ,MATCH($C$3,XMLSheet!$A:$A,0),MATCH(VLOOKUP($J32,Calcs!$G:$H,2,FALSE),XMLSheet!$2:$2,0)+3) -> 305.3844093 | Q32: =MIN(OFFSET(XMLSheet!$A$6:$A$29,,MATCH(VLOOKUP($J32,Calcs!$G:$H,2,FALSE),XMLSheet!$2:$2,0)-1)) -> 90.09009009 | S32: =MAX(OFFSET(XMLSheet!$A$6:$A$29,,MATCH(VLOOKUP($J32,Calcs!$G:$H,2,FALSE),XMLSheet!$2:$2,0)-1)) -> 696.2025316
J33: Admissions for gastroenteritis in infants aged one year (3 year crude rate per 10,000 population) | K33: =VLOOKUP(J33,Calcs!G:I,3,FALSE) -> 2015/16-2017/18 | L33: =INDEX(XMLSheet!$A:$CIJ,MATCH($C$3,XMLSheet!$A:$A,0),MATCH(VLOOKUP($J33,Calcs!$G:$H,2,FALSE),XMLSheet!$2:$2,0)) -> 207.7151335 | M33: =INDEX(XMLSheet!$A:$CIJ,MATCH($C$3,XMLSheet!$A:$A,0),MATCH(VLOOKUP($J33,Calcs!$G:$H,2,FALSE),XMLSheet!$2:$2,0)+6) -> 83.51225672 | N33: =INDEX(XMLSheet!$A:$CIJ,MATCH($C$3,XMLSheet!$A:$A,0),MATCH(VLOOKUP($J33,Calcs!$G:$H,2,FALSE),XMLSheet!$2:$2,0)+8) -> 427.9725627 | O33: =INDEX(XMLSheet!$A:$CIJ,MATCH($C$3,XMLSheet!$A:$A,0),MATCH(VLOOKUP($J33,Calcs!$G:$H,2,FALSE),XMLSheet!$2:$2,0)+9) -> 7 | P33: =INDEX(XMLSheet!$A:$CIJ,MATCH($C$3,XMLSheet!$A:$A,0),MATCH(VLOOKUP($J33,Calcs!$G:$H,2,FALSE),XMLSheet!$2:$2,0)+3) -> 168.7763713 | Q33: =MIN(OFFSET(XMLSheet!$A$6:$A$29,,MATCH(VLOOKUP($J33,Calcs!$G:$H,2,FALSE),XMLSheet!$2:$2,0)-1)) -> 31.25 | S33: =MAX(OFFSET(XMLSheet!$A$6:$A$29,,MATCH(VLOOKUP($J33,Calcs!$G:$H,2,FALSE),XMLSheet!$2:$2,0)-1)) -> 314.0096618
J34: Admissions for gastroenteritis in children aged 2, 3 and 4 years (3 year crude rate per 10,000 population) | K34: =VLOOKUP(J34,Calcs!G:I,3,FALSE) -> 2015/16-2017/18 | L34: =INDEX(XMLSheet!$A:$CIJ,MATCH($C$3,XMLSheet!$A:$A,0),MATCH(VLOOKUP($J34,Calcs!$G:$H,2,FALSE),XMLSheet!$2:$2,0)) -> 49.85044865 | M34: =INDEX(XMLSheet!$A:$CIJ,MATCH($C$3,XMLSheet!$A:$A,0),MATCH(VLOOKUP($J34,Calcs!$G:$H,2,FALSE),XMLSheet!$2:$2,0)+6) -> 16.18630499 | N34: =INDEX(XMLSheet!$A:$CIJ,MATCH($C$3,XMLSheet!$A:$A,0),MATCH(VLOOKUP($J34,Calcs!$G:$H,2,FALSE),XMLSheet!$2:$2,0)+8) -> 116.3343178 | O34: =INDEX(XMLSheet!$A:$CIJ,MATCH($C$3,XMLSheet!$A:$A,0),MATCH(VLOOKUP($J34,Calcs!$G:$H,2,FALSE),XMLSheet!$2:$2,0)+9) -> 5 | P34: =INDEX(XMLSheet!$A:$CIJ,MATCH($C$3,XMLSheet!$A:$A,0),MATCH(VLOOKUP($J34,Calcs!$G:$H,2,FALSE),XMLSheet!$2:$2,0)+3) -> 69.61724495 | Q34: =MIN(OFFSET(XMLSheet!$A$6:$A$29,,MATCH(VLOOKUP($J34,Calcs!$G:$H,2,FALSE),XMLSheet!$2:$2,0)-1)) -> 22.05882353 | S34: =MAX(OFFSET(XMLSheet!$A$6:$A$29,,MATCH(VLOOKUP($J34,Calcs!$G:$H,2,FALSE),XMLSheet!$2:$2,0)-1)) -> 111.0162254
J35: Admissions for gastroenteritis in children aged under five years (3 year crude rate per 10,000 population) | K35: =VLOOKUP(J35,Calcs!G:I,3,FALSE) -> 2015/16-2017/18 | L35: =INDEX(XMLSheet!$A:$CIJ,MATCH($C$3,XMLSheet!$A:$A,0),MATCH(VLOOKUP($J35,Calcs!$G:$H,2,FALSE),XMLSheet!$2:$2,0)) -> 205.3140097 | M35: =INDEX(XMLSheet!$A:$CIJ,MATCH($C$3,XMLSheet!$A:$A,0),MATCH(VLOOKUP($J35,Calcs!$G:$H,2,FALSE),XMLSheet!$2:$2,0)+6) -> 142.1859202 | N35: =INDEX(XMLSheet!$A:$CIJ,MATCH($C$3,XMLSheet!$A:$A,0),MATCH(VLOOKUP($J35,Calcs!$G:$H,2,FALSE),XMLSheet!$2:$2,0)+8) -> 286.9057494 | O35: =INDEX(XMLSheet!$A:$CIJ,MATCH($C$3,XMLSheet!$A:$A,0),MATCH(VLOOKUP($J35,Calcs!$G:$H,2,FALSE),XMLSheet!$2:$2,0)+9) -> 34 | P35: =INDEX(XMLSheet!$A:$CIJ,MATCH($C$3,XMLSheet!$A:$A,0),MATCH(VLOOKUP($J35,Calcs!$G:$H,2,FALSE),XMLSheet!$2:$2,0)+3) -> 134.2086319 | Q35: =MIN(OFFSET(XMLSheet!$A$6:$A$29,,MATCH(VLOOKUP($J35,Calcs!$G:$H,2,FALSE),XMLSheet!$2:$2,0)-1)) -> 79.52286282 | S35: =MAX(OFFSET(XMLSheet!$A$6:$A$29,,MATCH(VLOOKUP($J35,Calcs!$G:$H,2,FALSE),XMLSheet!$2:$2,0)-1)) -> 205.3140097
B36: Bar Chart of Selected Indicator (black line is Dudley value): | J36: Admissions for respiratory tract infections in infants aged under one year (3 year crude rate per 10,000 population) | K36: =VLOOKUP(J36,Calcs!G:I,3,FALSE) -> 2015/16-2017/18 | L36: =INDEX(XMLSheet!$A:$CIJ,MATCH($C$3,XMLSheet!$A:$A,0),MATCH(VLOOKUP($J36,Calcs!$G:$H,2,FALSE),XMLSheet!$2:$2,0)) -> 1107.594937 | M36: =INDEX(XMLSheet!$A:$CIJ,MATCH($C$3,XMLSheet!$A:$A,0),MATCH(VLOOKUP($J36,Calcs!$G:$H,2,FALSE),XMLSheet!$2:$2,0)+6) -> 771.4804558 | N36: =INDEX(XMLSheet!$A:$CIJ,MATCH($C$3,XMLSheet!$A:$A,0),MATCH(VLOOKUP($J36,Calcs!$G:$H,2,FALSE),XMLSheet!$2:$2,0)+8) -> 1540.396436 | O36: =INDEX(XMLSheet!$A:$CIJ,MATCH($C$3,XMLSheet!$A:$A,0),MATCH(VLOOKUP($J36,Calcs!$G:$H,2,FALSE),XMLSheet!$2:$2,0)+9) -> 35 | P36: =INDEX(XMLSheet!$A:$CIJ,MATCH($C$3,XMLSheet!$A:$A,0),MATCH(VLOOKUP($J36,Calcs!$G:$H,2,FALSE),XMLSheet!$2:$2,0)+3) -> 942.0483972 | Q36: =MIN(OFFSET(XMLSheet!$A$6:$A$29,,MATCH(VLOOKUP($J36,Calcs!$G:$H,2,FALSE),XMLSheet!$2:$2,0)-1)) -> 570.5705706 | S36: =MAX(OFFSET(XMLSheet!$A$6:$A$29,,MATCH(VLOOKUP($J36,Calcs!$G:$H,2,FALSE),XMLSheet!$2:$2,0)-1)) -> 1349.480969
J37: Admissions for respiratory tract infections in infants aged one year (3 year crude rate per 10,000 population) | K37: =VLOOKUP(J37,Calcs!G:I,3,FALSE) -> 2015/16-2017/18 | L37: =INDEX(XMLSheet!$A:$CIJ,MATCH($C$3,XMLSheet!$A:$A,0),MATCH(VLOOKUP($J37,Calcs!$G:$H,2,FALSE),XMLSheet!$2:$2,0)) -> 89.02077151 | M37: =INDEX(XMLSheet!$A:$CIJ,MATCH($C$3,XMLSheet!$A:$A,0),MATCH(VLOOKUP($J37,Calcs!$G:$H,2,FALSE),XMLSheet!$2:$2,0)+6) -> 18.35822323 | N37: =INDEX(XMLSheet!$A:$CIJ,MATCH($C$3,XMLSheet!$A:$A,0),MATCH(VLOOKUP($J37,Calcs!$G:$H,2,FALSE),XMLSheet!$2:$2,0)+8) -> 260.1564709 | O37: =INDEX(XMLSheet!$A:$CIJ,MATCH($C$3,XMLSheet!$A:$A,0),MATCH(VLOOKUP($J37,Calcs!$G:$H,2,FALSE),XMLSheet!$2:$2,0)+9) -> 0 | P37: =INDEX(XMLSheet!$A:$CIJ,MATCH($C$3,XMLSheet!$A:$A,0),MATCH(VLOOKUP($J37,Calcs!$G:$H,2,FALSE),XMLSheet!$2:$2,0)+3) -> 124.8241913 | Q37: =MIN(OFFSET(XMLSheet!$A$6:$A$29,,MATCH(VLOOKUP($J37,Calcs!$G:$H,2,FALSE),XMLSheet!$2:$2,0)-1)) -> 19.76284585 | S37: =MAX(OFFSET(XMLSheet!$A$6:$A$29,,MATCH(VLOOKUP($J37,Calcs!$G:$H,2,FALSE),XMLSheet!$2:$2,0)-1)) -> 251.572327
J38: Admissions for respiratory tract infections in children aged 2, 3 and 4 years (3 year crude rate per 10,000 population) | K38: =VLOOKUP(J38,Calcs!G:I,3,FALSE) -> 2015/16-2017/18 | L38: =INDEX(XMLSheet!$A:$CIJ,MATCH($C$3,XMLSheet!$A:$A,0),MATCH(VLOOKUP($J38,Calcs!$G:$H,2,FALSE),XMLSheet!$2:$2,0)) -> 19.94017946 | M38: =INDEX(XMLSheet!$A:$CIJ,MATCH($C$3,XMLSheet!$A:$A,0),MATCH(VLOOKUP($J38,Calcs!$G:$H,2,FALSE),XMLSheet!$2:$2,0)+6) -> 2.414848241 | N38: =INDEX(XMLSheet!$A:$CIJ,MATCH($C$3,XMLSheet!$A:$A,0),MATCH(VLOOKUP($J38,Calcs!$G:$H,2,FALSE),XMLSheet!$2:$2,0)+8) -> 72.03078432 | O38: =INDEX(XMLSheet!$A:$CIJ,MATCH($C$3,XMLSheet!$A:$A,0),MATCH(VLOOKUP($J38,Calcs!$G:$H,2,FALSE),XMLSheet!$2:$2,0)+9) -> 0 | P38: =INDEX(XMLSheet!$A:$CIJ,MATCH($C$3,XMLSheet!$A:$A,0),MATCH(VLOOKUP($J38,Calcs!$G:$H,2,FALSE),XMLSheet!$2:$2,0)+3) -> 30.19543154 | Q38: =MIN(OFFSET(XMLSheet!$A$6:$A$29,,MATCH(VLOOKUP($J38,Calcs!$G:$H,2,FALSE),XMLSheet!$2:$2,0)-1)) -> 0 | S38: =MAX(OFFSET(XMLSheet!$A$6:$A$29,,MATCH(VLOOKUP($J38,Calcs!$G:$H,2,FALSE),XMLSheet!$2:$2,0)-1)) -> 70.92198582
J39: Admissions for respiratory tract infections in children aged under five years (3 year crude rate per 10,000 population) | K39: =VLOOKUP(J39,Calcs!G:I,3,FALSE) -> 2015/16-2017/18 | L39: =INDEX(XMLSheet!$A:$CIJ,MATCH($C$3,XMLSheet!$A:$A,0),MATCH(VLOOKUP($J39,Calcs!$G:$H,2,FALSE),XMLSheet!$2:$2,0)) -> 241.5458937 | M39: =INDEX(XMLSheet!$A:$CIJ,MATCH($C$3,XMLSheet!$A:$A,0),MATCH(VLOOKUP($J39,Calcs!$G:$H,2,FALSE),XMLSheet!$2:$2,0)+6) -> 172.5639278 | N39: =INDEX(XMLSheet!$A:$CIJ,MATCH($C$3,XMLSheet!$A:$A,0),MATCH(VLOOKUP($J39,Calcs!$G:$H,2,FALSE),XMLSheet!$2:$2,0)+8) -> 328.9169503 | O39: =INDEX(XMLSheet!$A:$CIJ,MATCH($C$3,XMLSheet!$A:$A,0),MATCH(VLOOKUP($J39,Calcs!$G:$H,2,FALSE),XMLSheet!$2:$2,0)+9) -> 40 | P39: =INDEX(XMLSheet!$A:$CIJ,MATCH($C$3,XMLSheet!$A:$A,0),MATCH(VLOOKUP($J39,Calcs!$G:$H,2,FALSE),XMLSheet!$2:$2,0)+3) -> 223.6810531 | Q39: =MIN(OFFSET(XMLSheet!$A$6:$A$29,,MATCH(VLOOKUP($J39,Calcs!$G:$H,2,FALSE),XMLSheet!$2:$2,0)-1)) -> 143.7125749 | S39: =MAX(OFFSET(XMLSheet!$A$6:$A$29,,MATCH(VLOOKUP($J39,Calcs!$G:$H,2,FALSE),XMLSheet!$2:$2,0)-1)) -> 310.3448276
J40: Oral Health
J41: 5 year olds with tooth decay experience (%) | K41: =VLOOKUP(J41,Calcs!G:I,3,FALSE) -> 2016/17 | L41: =INDEX(XMLSheet!$A:$CIJ,MATCH($C$3,XMLSheet!$A:$A,0),MATCH(VLOOKUP($J41,Calcs!$G:$H,2,FALSE),XMLSheet!$2:$2,0)) -> 60 | M41: =INDEX(XMLSheet!$A:$CIJ,MATCH($C$3,XMLSheet!$A:$A,0),MATCH(VLOOKUP($J41,Calcs!$G:$H,2,FALSE),XMLSheet!$2:$2,0)+6) -> 0 | N41: =INDEX(XMLSheet!$A:$CIJ,MATCH($C$3,XMLSheet!$A:$A,0),MATCH(VLOOKUP($J41,Calcs!$G:$H,2,FALSE),XMLSheet!$2:$2,0)+8) -> 0 | O41: =INDEX(XMLSheet!$A:$CIJ,MATCH($C$3,XMLSheet!$A:$A,0),MATCH(VLOOKUP($J41,Calcs!$G:$H,2,FALSE),XMLSheet!$2:$2,0)+9) -> 0 | P41: =INDEX(XMLSheet!$A:$CIJ,MATCH($C$3,XMLSheet!$A:$A,0),MATCH(VLOOKUP($J41,Calcs!$G:$H,2,FALSE),XMLSheet!$2:$2,0)+3) -> 22.88401254 | Q41: =MIN(OFFSET(XMLSheet!$A$6:$A$29,,MATCH(VLOOKUP($J41,Calcs!$G:$H,2,FALSE),XMLSheet!$2:$2,0)-1)) -> 0 | S41: =MAX(OFFSET(XMLSheet!$A$6:$A$29,,MATCH(VLOOKUP($J41,Calcs!$G:$H,2,FALSE),XMLSheet!$2:$2,0)-1)) -> 60
J42: Tooth decay in children aged 5 | K42: =VLOOKUP(J42,Calcs!G:I,3,FALSE) -> 2016/17 | L42: =INDEX(XMLSheet!$A:$CIJ,MATCH($C$3,XMLSheet!$A:$A,0),MATCH(VLOOKUP($J42,Calcs!$G:$H,2,FALSE),XMLSheet!$2:$2,0)) -> 3.4 | M42: =INDEX(XMLSheet!$A:$CIJ,MATCH($C$3,XMLSheet!$A:$A,0),MATCH(VLOOKUP($J42,Calcs!$G:$H,2,FALSE),XMLSheet!$2:$2,0)+6) -> 0 | N42: =INDEX(XMLSheet!$A:$CIJ,MATCH($C$3,XMLSheet!$A:$A,0),MATCH(VLOOKUP($J42,Calcs!$G:$H,2,FALSE),XMLSheet!$2:$2,0)+8) -> 0 | O42: =INDEX(XMLSheet!$A:$CIJ,MATCH($C$3,XMLSheet!$A:$A,0),MATCH(VLOOKUP($J42,Calcs!$G:$H,2,FALSE),XMLSheet!$2:$2,0)+9) -> 0 | P42: =INDEX(XMLSheet!$A:$CIJ,MATCH($C$3,XMLSheet!$A:$A,0),MATCH(VLOOKUP($J42,Calcs!$G:$H,2,FALSE),XMLSheet!$2:$2,0)+3) -> 0.5799373041 | Q42: =MIN(OFFSET(XMLSheet!$A$6:$A$29,,MATCH(VLOOKUP($J42,Calcs!$G:$H,2,FALSE),XMLSheet!$2:$2,0)-1)) -> 0 | S42: =MAX(OFFSET(XMLSheet!$A$6:$A$29,,MATCH(VLOOKUP($J42,Calcs!$G:$H,2,FALSE),XMLSheet!$2:$2,0)-1)) -> 3.4
J43: Development
J44: School Readiness: The percentage of children achieving a good level of development at the end of reception | K44: =VLOOKUP(J44,Calcs!G:I,3,FALSE) -> 2017/18 | L44: =INDEX(XMLSheet!$A:$CIJ,MATCH($C$3,XMLSheet!$A:$A,0),MATCH(VLOOKUP($J44,Calcs!$G:$H,2,FALSE),XMLSheet!$2:$2,0)) -> 69.30693069 | M44: =INDEX(XMLSheet!$A:$CIJ,MATCH($C$3,XMLSheet!$A:$A,0),MATCH(VLOOKUP($J44,Calcs!$G:$H,2,FALSE),XMLSheet!$2:$2,0)+6) -> 54.02815258 | N44: =INDEX(XMLSheet!$A:$CIJ,MATCH($C$3,XMLSheet!$A:$A,0),MATCH(VLOOKUP($J44,Calcs!$G:$H,2,FALSE),XMLSheet!$2:$2,0)+8) -> 87.56513746 | O44: =INDEX(XMLSheet!$A:$CIJ,MATCH($C$3,XMLSheet!$A:$A,0),MATCH(VLOOKUP($J44,Calcs!$G:$H,2,FALSE),XMLSheet!$2:$2,0)+9) -> 70 | P44: =INDEX(XMLSheet!$A:$CIJ,MATCH($C$3,XMLSheet!$A:$A,0),MATCH(VLOOKUP($J44,Calcs!$G:$H,2,FALSE),XMLSheet!$2:$2,0)+3) -> 66.56025539 | Q44: =MIN(OFFSET(XMLSheet!$A$6:$A$29,,MATCH(VLOOKUP($J44,Calcs!$G:$H,2,FALSE),XMLSheet!$2:$2,0)-1)) -> 57.5 | S44: =MAX(OFFSET(XMLSheet!$A$6:$A$29,,MATCH(VLOOKUP($J44,Calcs!$G:$H,2,FALSE),XMLSheet!$2:$2,0)-1)) -> 83.50515464
J45: School Readiness: The percentage of children with free school meal status achieving a good level of development at the end of reception | K45: =VLOOKUP(J45,Calcs!G:I,3,FALSE) -> 2017/18 | L45: =INDEX(XMLSheet!$A:$CIJ,MATCH($C$3,XMLSheet!$A:$A,0),MATCH(VLOOKUP($J45,Calcs!$G:$H,2,FALSE),XMLSheet!$2:$2,0)) -> 28.57142857 | M45: =INDEX(XMLSheet!$A:$CIJ,MATCH($C$3,XMLSheet!$A:$A,0),MATCH(VLOOKUP($J45,Calcs!$G:$H,2,FALSE),XMLSheet!$2:$2,0)+6) -> 3.460132551 | N45: =INDEX(XMLSheet!$A:$CIJ,MATCH($C$3,XMLSheet!$A:$A,0),MATCH(VLOOKUP($J45,Calcs!$G:$H,2,FALSE),XMLSheet!$2:$2,0)+8) -> 103.2098238 | O45: =INDEX(XMLSheet!$A:$CIJ,MATCH($C$3,XMLSheet!$A:$A,0),MATCH(VLOOKUP($J45,Calcs!$G:$H,2,FALSE),XMLSheet!$2:$2,0)+9) -> 0 | P45: =INDEX(XMLSheet!$A:$CIJ,MATCH($C$3,XMLSheet!$A:$A,0),MATCH(VLOOKUP($J45,Calcs!$G:$H,2,FALSE),XMLSheet!$2:$2,0)+3) -> 51.53153153 | Q45: =MIN(OFFSET(XMLSheet!$A$6:$A$29,,MATCH(VLOOKUP($J45,Calcs!$G:$H,2,FALSE),XMLSheet!$2:$2,0)-1)) -> 0 | S45: =MAX(OFFSET(XMLSheet!$A$6:$A$29,,MATCH(VLOOKUP($J45,Calcs!$G:$H,2,FALSE),XMLSheet!$2:$2,0)-1)) -> 66.66666667
J46: School Readiness: The percentage of Year 1 pupils achieving the expected level in the phonics screening check | K46: =VLOOKUP(J46,Calcs!G:I,3,FALSE) -> 2017/18 | L46: =INDEX(XMLSheet!$A:$CIJ,MATCH($C$3,XMLSheet!$A:$A,0),MATCH(VLOOKUP($J46,Calcs!$G:$H,2,FALSE),XMLSheet!$2:$2,0)) -> 77.98 | M46: =INDEX(XMLSheet!$A:$CIJ,MATCH($C$3,XMLSheet!$A:$A,0),MATCH(VLOOKUP($J46,Calcs!$G:$H,2,FALSE),XMLSheet!$2:$2,0)+6) -> 61.87913423 | N46: =INDEX(XMLSheet!$A:$CIJ,MATCH($C$3,XMLSheet!$A:$A,0),MATCH(VLOOKUP($J46,Calcs!$G:$H,2,FALSE),XMLSheet!$2:$2,0)+8) -> 95.9182053 | O46: =INDEX(XMLSheet!$A:$CIJ,MATCH($C$3,XMLSheet!$A:$A,0),MATCH(VLOOKUP($J46,Calcs!$G:$H,2,FALSE),XMLSheet!$2:$2,0)+9) -> 84.9982 | P46: =INDEX(XMLSheet!$A:$CIJ,MATCH($C$3,XMLSheet!$A:$A,0),MATCH(VLOOKUP($J46,Calcs!$G:$H,2,FALSE),XMLSheet!$2:$2,0)+3) -> 79.96339023 | Q46: =MIN(OFFSET(XMLSheet!$A$6:$A$29,,MATCH(VLOOKUP($J46,Calcs!$G:$H,2,FALSE),XMLSheet!$2:$2,0)-1)) -> 72.19 | S46: =MAX(OFFSET(XMLSheet!$A$6:$A$29,,MATCH(VLOOKUP($J46,Calcs!$G:$H,2,FALSE),XMLSheet!$2:$2,0)-1)) -> 90.63
J47: School Readiness: The percentage of Year 1 pupils with free school meal status achieving the expected level in the phonics screening check | K47: =VLOOKUP(J47,Calcs!G:I,3,FALSE) -> 2017/18 | L47: =INDEX(XMLSheet!$A:$CIJ,MATCH($C$3,XMLSheet!$A:$A,0),MATCH(VLOOKUP($J47,Calcs!$G:$H,2,FALSE),XMLSheet!$2:$2,0)) -> 33.33 | M47: =INDEX(XMLSheet!$A:$CIJ,MATCH($C$3,XMLSheet!$A:$A,0),MATCH(VLOOKUP($J47,Calcs!$G:$H,2,FALSE),XMLSheet!$2:$2,0)+6) -> 1.798294022 | N47: =INDEX(XMLSheet!$A:$CIJ,MATCH($C$3,XMLSheet!$A:$A,0),MATCH(VLOOKUP($J47,Calcs!$G:$H,2,FALSE),XMLSheet!$2:$2,0)+8) -> 106.9375166 | O47: =INDEX(XMLSheet!$A:$CIJ,MATCH($C$3,XMLSheet!$A:$A,0),MATCH(VLOOKUP($J47,Calcs!$G:$H,2,FALSE),XMLSheet!$2:$2,0)+9) -> 0 | P47: =INDEX(XMLSheet!$A:$CIJ,MATCH($C$3,XMLSheet!$A:$A,0),MATCH(VLOOKUP($J47,Calcs!$G:$H,2,FALSE),XMLSheet!$2:$2,0)+3) -> 69.58030252 | Q47: =MIN(OFFSET(XMLSheet!$A$6:$A$29,,MATCH(VLOOKUP($J47,Calcs!$G:$H,2,FALSE),XMLSheet!$2:$2,0)-1)) -> 33.33 | S47: =MAX(OFFSET(XMLSheet!$A$6:$A$29,,MATCH(VLOOKUP($J47,Calcs!$G:$H,2,FALSE),XMLSheet!$2:$2,0)-1)) -> 87.5
J48: Looked After Children
J49: Looked after children aged 0-5 (5 year rate per 10,000 population) | K49: =VLOOKUP(J49,Calcs!G:I,3,FALSE) -> 2013/14-2017/18 | L49: =INDEX(XMLSheet!$A:$CIJ,MATCH($C$3,XMLSheet!$A:$A,0),MATCH(VLOOKUP($J49,Calcs!$G:$H,2,FALSE),XMLSheet!$2:$2,0)) -> 0 | M49: =INDEX(XMLSheet!$A:$CIJ,MATCH($C$3,XMLSheet!$A:$A,0),MATCH(VLOOKUP($J49,Calcs!$G:$H,2,FALSE),XMLSheet!$2:$2,0)+6) -> 0 | N49: =INDEX(XMLSheet!$A:$CIJ,MATCH($C$3,XMLSheet!$A:$A,0),MATCH(VLOOKUP($J49,Calcs!$G:$H,2,FALSE),XMLSheet!$2:$2,0)+8) -> 11.19878401 | O49: =INDEX(XMLSheet!$A:$CIJ,MATCH($C$3,XMLSheet!$A:$A,0),MATCH(VLOOKUP($J49,Calcs!$G:$H,2,FALSE),XMLSheet!$2:$2,0)+9) -> 0 | P49: =INDEX(XMLSheet!$A:$CIJ,MATCH($C$3,XMLSheet!$A:$A,0),MATCH(VLOOKUP($J49,Calcs!$G:$H,2,FALSE),XMLSheet!$2:$2,0)+3) -> 36.62408119 | Q49: =MIN(OFFSET(XMLSheet!$A$6:$A$29,,MATCH(VLOOKUP($J49,Calcs!$G:$H,2,FALSE),XMLSheet!$2:$2,0)-1)) -> 0 | S49: =MAX(OFFSET(XMLSheet!$A$6:$A$29,,MATCH(VLOOKUP($J49,Calcs!$G:$H,2,FALSE),XMLSheet!$2:$2,0)-1)) -> 75.77703571
C51: Please note that small numbers have been suppressed where counts are less than 5, or where the sample size is less than 5. | J51: Spine Chart Key:
J52: Dudley Value | K52: 0-25th Percentile | N52: 25th-75th Percentile | R52: 75th-100th Percentile
J54: Not significantly different from Dudley | L54: Significantly better than Dudley | R54: Significantly worse than Dudley
J56: No significance calculated | L56: Significantly lower than Dudley | R56: Significantly higher than Dudley

Sheet Definitions
B2: Indicator | C2: =Calcs!A1 -> Mid-year population estimates 0-5
A3: 2 | B3: Definition | C3: =VLOOKUP($C$2,'Indicator Metadata'!A:S,A3,FALSE) -> The estimated resident population aged 0-5 years
A4: 3 | B4: Value type | C4: =VLOOKUP($C$2,'Indicator Metadata'!A:S,A4,FALSE) -> Count
A5: 4 | B5: Unit | C5: =VLOOKUP($C$2,'Indicator Metadata'!A:S,A5,FALSE) -> Count
A6: 6 | B6: Rationale | C6: =VLOOKUP($C$2,'Indicator Metadata'!A:S,A6,FALSE) -> Population estimates are useful for monitoring population change, differing demographics and for planning purposes.
A7: 7 | B7: Data source | C7: =VLOOKUP($C$2,'Indicator Metadata'!A:S,A7,FALSE) -> Office for National Statistics (ONS) Mid Year Population Estimates
A8: 8 | B8: Indicator source | C8: =VLOOKUP($C$2,'Indicator Metadata'!A:S,A8,FALSE) -> Office for National Statistics (ONS)
A9: 9 | B9: Indicator production | C9: =VLOOKUP($C$2,'Indicator Metadata'!A:S,A9,FALSE) -> Office of Public Health, Intelligence Team, Dudley MBC
A10: 10 | B10: Definition of numerator | C10: =VLOOKUP($C$2,'Indicator Metadata'!A:S,A10,FALSE) -> Estimated number of children aged 0-5 resident in the area
A11: 11 | B11: Source of numerator | C11: =VLOOKUP($C$2,'Indicator Metadata'!A:S,A11,FALSE) -> ONS
A12: 12 | B12: Definition of denominator | C12: =VLOOKUP($C$2,'Indicator Metadata'!A:S,A12,FALSE) -> Not applicable
A13: 13 | B13: Source of denominator | C13: =VLOOKUP($C$2,'Indicator Metadata'!A:S,A13,FALSE) -> Not applicable
A14: 14 | B14: Methodology | C14: =VLOOKUP($C$2,'Indicator Metadata'!A:S,A14,FALSE) -> These estimates are derived by taking the population measured in the most recent census; ageing this on; then adjusting for births, deaths, international migration and internal migration (that is, migration within the UK) (ONS)
A15: 16 | B15: Frequency | C15: =VLOOKUP($C$2,'Indicator Metadata'!A:S,A15,FALSE) -> Annual
A16: 17 | B16: Confidence interval details | C16: =VLOOKUP($C$2,'Indicator Metadata'!A:S,A16,FALSE) -> Not Applicable
A17: 18 | B17: Disclosure control | C17: =VLOOKUP($C$2,'Indicator Metadata'!A:S,A17,FALSE) -> Not Applicable
A18: 19 | B18: Caveats | C18: =VLOOKUP($C$2,'Indicator Metadata'!A:S,A18,FALSE) -> 0

Sheet MapShading (hidden)
A1: Amblecote | B1: Amblecote | C1: =VLOOKUP(A1,Calcs!$A$4:$B$28,2,FALSE) -> 907 | D1: =IF(C1="Worse",3,IF(C1="Similar",2,1)) -> 1 | E1: 1 | G1: =MIN($C$1:$C$24) -> 596 | H1: class0
A2: Belle Vale | B2: BelleVale | C2: =VLOOKUP(A2,Calcs!$A$4:$B$28,2,FALSE) -> 1097 | D2: =IF(C2="Worse",3,IF(C2="Similar",2,1)) -> 1 | E2: 2 | G2: =G1+G5 -> 910.6666667 | H2: class1 | I2: =TEXT(G2,"0,00") -> 911
A3: Brierley Hill | B3: BrierleyHill | C3: =VLOOKUP(A3,Calcs!$A$4:$B$28,2,FALSE) -> 1338 | D3: 1 | E3: 3 | G3: =G2+G5 -> 1225.333333 | H3: class2 | I3: =TEXT(G3,"0,00") -> 1,225
A4: Brockmoor and Pensnett | B4: BRockmoor&Pensnett | C4: =VLOOKUP(A4,Calcs!$A$4:$B$28,2,FALSE) -> 1292 | D4: 1 | F4: Range | G4: =MAX($C$1:$C$24)-MIN($C$1:$C$24) -> 944
A5: Castle and Priory | B5: Castle&Priory | C5: =VLOOKUP(A5,Calcs!$A$4:$B$28,2,FALSE) -> 1402 | D5: 1 | F5: Thirds | G5: =G4/3 -> 314.6666667
A6: Coseley East | B6: CoseleyEast | C6: =VLOOKUP(A6,Calcs!$A$4:$B$28,2,FALSE) -> 910 | D6: 1 | F6: Max | G6: =MAX(C1:C24) -> 1540
A7: Cradley and Wollescote | B7: Cradley&Wollescote | C7: =VLOOKUP(A7,Calcs!$A$4:$B$28,2,FALSE) -> 1100 | D7: 1 | F7: Min | G7: =MIN(C1:C24) -> 596
A8: Gornal | B8: Gornal | C8: =VLOOKUP(A8,Calcs!$A$4:$B$28,2,FALSE) -> 997 | D8: 1
A9: Halesowen North | B9: HalesowenNorth | C9: =VLOOKUP(A9,Calcs!$A$4:$B$28,2,FALSE) -> 930 | D9: 1
A10: Halesowen South | B10: HalesowenSouth | C10: =VLOOKUP(A10,Calcs!$A$4:$B$28,2,FALSE) -> 676 | D10: 1 | G10: Wordsley | H10: actWard
A11: Hayley Green and Cradley South | B11: HayleyGreen&CradleySouth | C11: =VLOOKUP(A11,Calcs!$A$4:$B$28,2,FALSE) -> 887 | D11: 1 | G11: =VLOOKUP(actWard,WardData,2,FALSE) -> 799 | H11: actWardValue
A12: Kingswinford North and Wall Heath | B12: KingswinfordNorth&Wallheath | C12: =VLOOKUP(A12,Calcs!$A$4:$B$28,2,FALSE) -> 596 | D12: 1 | G12: =VLOOKUP(actWardValue,clsValues,2,TRUE) -> class0 | H12: actWardCode
A13: Kingswinford South | B13: KingswinfordSouth | C13: =VLOOKUP(A13,Calcs!$A$4:$B$28,2,FALSE) -> 697 | D13: 1 | G13: =INDEX(H1:H3,VLOOKUP(actWard,B:D,3,FALSE)) -> class0 | H13: actWardCode2
A14: Lye and Stourbridge North | B14: Lye&StourbridgeNorth | C14: =VLOOKUP(A14,Calcs!$A$4:$B$28,2,FALSE) -> 958 | D14: 1
A15: Netherton, Woodside and St. Andrews | B15: NethertonWoodside&StAndrew | C15: =VLOOKUP(A15,Calcs!$A$4:$B$28,2,FALSE) -> 1241 | D15: 1
A16: Norton | B16: Norton | C16: =VLOOKUP(A16,Calcs!$A$4:$B$28,2,FALSE) -> 757 | D16: 1
A17: Pedmore and Stourbridge East | B17: Pedmore&StourbridgeEast | C17: =VLOOKUP(A17,Calcs!$A$4:$B$28,2,FALSE) -> 730 | D17: 1
A18: Quarry Bank and Dudley Wood | B18: QuarryBank&DudleyWood | C18: =VLOOKUP(A18,Calcs!$A$4:$B$28,2,FALSE) -> 1045 | D18: 1
A19: St. James's | B19: StJames's | C19: =VLOOKUP(A19,Calcs!$A$4:$B$28,2,FALSE) -> 1153 | D19: 1
A20: St. Thomas's | B20: StThomas's | C20: =VLOOKUP(A20,Calcs!$A$4:$B$28,2,FALSE) -> 1540 | D20: 1
A21: Sedgley | B21: Sedgley | C21: =VLOOKUP(A21,Calcs!$A$4:$B$28,2,FALSE) -> 646 | D21: 1
A22: Upper Gornal and Woodsetton | B22: UpperGornal&Woodsetton | C22: =VLOOKUP(A22,Calcs!$A$4:$B$28,2,FALSE) -> 944 | D22: 1
A23: Wollaston and Stourbridge Town | B23: Wollaston&StourbridgeTown | C23: =VLOOKUP(A23,Calcs!$A$4:$B$28,2,FALSE) -> 815 | D23: 1
A24: Wordsley | B24: Wordsley | C24: =VLOOKUP(A24,Calcs!$A$4:$B$28,2,FALSE) -> 799 | D24: 1
A25: Dudley | B25: Dudley | C25: =VLOOKUP(A25,Calcs!$A$4:$B$28,2,FALSE) -> 23457

Sheet Calcs (hidden)
A1: Mid-year population estimates 0-5 | H1: Latest Indicators | I1: Latest Year | M1: Indicator | N1: Comment | R1: Spine Chart | S1: Indicator | U1: Y-value | V1: Scaled Statistic | W1: Dudley Average | X1: Worst | Y1: Bottom quartile | Z1: National Average | AA1: Top quartile | AB1: Best | AC1: Min | AD1: 25Pctile | AE1: 75Pctile | AF1: Max | AI1: Significance | AQ1: Time Series Data | AS1: Dudley | AT1: 1 | AU1: 2 | AV1: 3 | AW1: 4 | AX1: 5 | AY1: 6 | AZ1: 7 | BA1: 8 | BB1: 9 | BC1: 10 | BD1: 11 | BE1: 12 | BF1: 13 | BG1: 14 | BH1: 15 | BI1: ='0-5 Dashboard'!C3 -> Sedgley | BJ1: 1 | BK1: 2 | BL1: 3 | BM1: 4 | BN1: 5 | BO1: 6 | BP1: 7 | BQ1: 8 | BR1: 9 | BS1: 10 | BT1: 11 | BU1: 12 | BV1: 13 | BW1: 14 | BX1: 15
A2: =VLOOKUP(A1,G:H,2,FALSE) -> Mid-year population estimates 0-5 2017 | G2: 5 year olds with tooth decay experience (%) | H2: 5 year olds with tooth decay experience (%) 2016/17 | I2: 2016/17 | M2: Mid-year population estimates 0-5 | N2: In Dudley the 2017 0-5 mid-year population estimate is 23,457. The ward with the highest population is St. Thomas's (1,540) and the lowest population is seen in Kingswinford North and Wall Heath (596). The Dudley trend is increasing. | S2: Demographics | T2: ='0-5 Dashboard'!$L2 -> Value | AI2: Better | AJ2: None | AK2: Worse | AL2: Not Calc | AM2: Lower | AN2: Higher | AR2: =VLOOKUP(A1,S3:AR49,26,FALSE) -> 15 | BJ2: =IF(A1="Under 18 Conception Rates (rate per 1,000)",1,"") -> 
B3: Value | C3: LCI | D3: UCI | E3: LowerLevel | F3: UpperLevel | G3: A&E attendance rate per 1,000 population aged 0-4 years (crude rate per 1,000 population) | H3: A&E attendance rate per 1,000 population aged 0-4 years (crude rate per 1,000 population) 2017/18 | I3: 2017/18 | M3: Number of births (live births to mothers resident in Dudley) | N3: In Dudley the 2017 number of births (live births to mothers resident in Dudley) is 3,821. The ward with the highest count is Brierley Hill (298) and the lowest count is seen in Sedgley (088). The Dudley trend is increasing. | S3: Mid-year population estimates 0-5 | T3: ='0-5 Dashboard'!$L3 -> 646 | U3: 0.5 | V3: =(T3-AC3)/(AF3-AC3) -> 0.05296610169 | W3: =AVERAGE(OFFSET(XMLSheet!$A$6:$A$29,,MATCH(VLOOKUP($S3,Calcs!$G:$H,2,FALSE),XMLSheet!$2:$2,0)-1)) -> 977.375 | X3: =(AC3-AC3)/(AD3-AC3) -> 0 | Y3: =(AD3-AC3)/(AF3-AC3) -> 0.2039194915 | Z3: 0.5 | AA3: =(AE3-AC3)/(AF3-AC3) -> 0.547934322 | AB3: =(AF3-AC3)/(AF3-AC3) -> 1 | AC3: =MIN(OFFSET(XMLSheet!$A$6:$A$29,,MATCH(VLOOKUP($S3,Calcs!$G:$H,2,FALSE),XMLSheet!$2:$2,0)-1)) -> 596 | AD3: =_xlfn.QUARTILE.INC(OFFSET(XMLSheet!$A$6:$A$29,,MATCH(VLOOKUP($S3,Calcs!$G:$H,2,FALSE),XMLSheet!$2:$2,0)-1),1) -> 788.5 | AE3: =_xlfn.QUARTILE.INC(OFFSET(XMLSheet!$A$6:$A$29,,MATCH(VLOOKUP($S3,Calcs!$G:$H,2,FALSE),XMLSheet!$2:$2,0)-1),3) -> 1113.25 | AF3: =MAX(OFFSET(XMLSheet!$A$6:$A$29,,MATCH(VLOOKUP($S3,Calcs!$G:$H,2,FALSE),XMLSheet!$2:$2,0)-1)) -> 1540 | AI3: =NA() ->  | AJ3: =NA() ->  | AK3: =NA() ->  | AL3: =V3 -> 0.05296610169 | AM3: =NA() ->  | AN3: =NA() ->  | AR3: 15 | AT3: =IF(AT$1<=$AR2,INDEX(XMLSheet!$A:$CIJ,MATCH("Dudley",XMLSheet!$A:$A,0),MATCH($A1,XMLSheet!$1:$1,0)),NA()) -> 20926 | AU3: =IF(AU$1<=$AR2,INDEX(XMLSheet!$A:$CIJ,MATCH("Dudley",XMLSheet!$A:$A,0),MATCH($A1,XMLSheet!$1:$1,0)+10),NA()) -> 20696 | AV3: =IF(AV$1<=$AR2,INDEX(XMLSheet!$A:$CIJ,MATCH("Dudley",XMLSheet!$A:$A,0),MATCH($A1,XMLSheet!$1:$1,0)+20),NA()) -> 20659 | AW3: =IF(AW$1<=$AR2,INDEX(XMLSheet!$A:$CIJ,MATCH("Dudley",XMLSheet!$A:$A,0),MATCH($A1,XMLSheet!$1:$1,0)+30),NA()) -> 20780 | AX3: =IF(AX$1<=$AR2,INDEX(XMLSheet!$A:$CIJ,MATCH("Dudley",XMLSheet!$A:$A,0),MATCH($A1,XMLSheet!$1:$1,0)+40),NA()) -> 21108 | AY3: =IF(AY$1<=$AR2,INDEX(XMLSheet!$A:$CIJ,MATCH("Dudley",XMLSheet!$A:$A,0),MATCH($A1,XMLSheet!$1:$1,0)+50),NA()) -> 21307 | AZ3: =IF(AZ$1<=$AR2,INDEX(XMLSheet!$A:$CIJ,MATCH("Dudley",XMLSheet!$A:$A,0),MATCH($A1,XMLSheet!$1:$1,0)+60),NA()) -> 21672 | BA3: =IF(BA$1<=$AR2,INDEX(XMLSheet!$A:$CIJ,MATCH("Dudley",XMLSheet!$A:$A,0),MATCH($A1,XMLSheet!$1:$1,0)+70),NA()) -> 21983 | BB3: =IF(BB$1<=$AR2,INDEX(XMLSheet!$A:$CIJ,MATCH("Dudley",XMLSheet!$A:$A,0),MATCH($A1,XMLSheet!$1:$1,0)+80),NA()) -> 22453 | BC3: =IF(BC$1<=$AR2,INDEX(XMLSheet!$A:$CIJ,MATCH("Dudley",XMLSheet!$A:$A,0),MATCH($A1,XMLSheet!$1:$1,0)+90),NA()) -> 22695 | BD3: =IF(BD$1<=$AR2,INDEX(XMLSheet!$A:$CIJ,MATCH("Dudley",XMLSheet!$A:$A,0),MATCH($A1,XMLSheet!$1:$1,0)+100),NA()) -> 22744 | BE3: =IF(BE$1<=$AR2,INDEX(XMLSheet!$A:$CIJ,MATCH("Dudley",XMLSheet!$A:$A,0),MATCH($A1,XMLSheet!$1:$1,0)+110),NA()) -> 23185 | BF3: =IF(BF$1<=$AR2,INDEX(XMLSheet!$A:$CIJ,MATCH("Dudley",XMLSheet!$A:$A,0),MATCH($A1,XMLSheet!$1:$1,0)+120),NA()) -> 23432 | BG3: =IF(BG$1<=$AR2,INDEX(XMLSheet!$A:$CIJ,MATCH("Dudley",XMLSheet!$A:$A,0),MATCH($A1,XMLSheet!$1:$1,0)+130),NA()) -> 23482 | BH3: =IF(BH$1<=$AR2,INDEX(XMLSheet!$A:$CIJ,MATCH("Dudley",XMLSheet!$A:$A,0),MATCH($A1,XMLSheet!$1:$1,0)+140),NA()) -> 23377 | BJ3: =IF($BJ$2=1,NA(),IF(BJ$1<=$AR2,INDEX(XMLSheet!$A:$CIJ,MATCH($BI$1,XMLSheet!$A:$A,0),MATCH($A1,XMLSheet!$1:$1,0)),NA())) -> 680 | BK3: =IF($BJ$2=1,NA(),IF(BK$1<=$AR2,INDEX(XMLSheet!$A:$CIJ,MATCH($BI$1,XMLSheet!$A:$A,0),MATCH($A1,XMLSheet!$1:$1,0)+10),NA())) -> 633 | BL3: =IF($BJ$2=1,NA(),IF(BL$1<=$AR2,INDEX(XMLSheet!$A:$CIJ,MATCH($BI$1,XMLSheet!$A:$A,0),MATCH($A1,XMLSheet!$1:$1,0)+20),NA())) -> 590 | BM3: =IF($BJ$2=1,NA(),IF(BM$1<=$AR2,INDEX(XMLSheet!$A:$CIJ,MATCH($BI$1,XMLSheet!$A:$A,0),MATCH($A1,XMLSheet!$1:$1,0)+30),NA())) -> 628 | BN3: =IF($BJ$2=1,NA(),IF(BN$1<=$AR2,INDEX(XMLSheet!$A:$CIJ,MATCH($BI$1,XMLSheet!$A:$A,0),MATCH($A1,XMLSheet!$1:$1,0)+40),NA())) -> 627 | BO3: =IF($BJ$2=1,NA(),IF(BO$1<=$AR2,INDEX(XMLSheet!$A:$CIJ,MATCH($BI$1,XMLSheet!$A:$A,0),MATCH($A1,XMLSheet!$1:$1,0)+50),NA())) -> 610 | BP3: =IF($BJ$2=1,NA(),IF(BP$1<=$AR2,INDEX(XMLSheet!$A:$CIJ,MATCH($BI$1,XMLSheet!$A:$A,0),MATCH($A1,XMLSheet!$1:$1,0)+60),NA())) -> 632 | BQ3: =IF($BJ$2=1,NA(),IF(BQ$1<=$AR2,INDEX(XMLSheet!$A:$CIJ,MATCH($BI$1,XMLSheet!$A:$A,0),MATCH($A1,XMLSheet!$1:$1,0)+70),NA())) -> 650 | BR3: =IF($BJ$2=1,NA(),IF(BR$1<=$AR2,INDEX(XMLSheet!$A:$CIJ,MATCH($BI$1,XMLSheet!$A:$A,0),MATCH($A1,XMLSheet!$1:$1,0)+80),NA())) -> 650 | BS3: =IF($BJ$2=1,NA(),IF(BS$1<=$AR2,INDEX(XMLSheet!$A:$CIJ,MATCH($BI$1,XMLSheet!$A:$A,0),MATCH($A1,XMLSheet!$1:$1,0)+90),NA())) -> 628 | BT3: =IF($BJ$2=1,NA(),IF(BT$1<=$AR2,INDEX(XMLSheet!$A:$CIJ,MATCH($BI$1,XMLSheet!$A:$A,0),MATCH($A1,XMLSheet!$1:$1,0)+100),NA())) -> 643 | BU3: =IF($BJ$2=1,NA(),IF(BU$1<=$AR2,INDEX(XMLSheet!$A:$CIJ,MATCH($BI$1,XMLSheet!$A:$A,0),MATCH($A1,XMLSheet!$1:$1,0)+110),NA())) -> 643 | BV3: =IF($BJ$2=1,NA(),IF(BV$1<=$AR2,INDEX(XMLSheet!$A:$CIJ,MATCH($BI$1,XMLSheet!$A:$A,0),MATCH($A1,XMLSheet!$1:$1,0)+120),NA())) -> 680 | BW3: =IF($BJ$2=1,NA(),IF(BW$1<=$AR2,INDEX(XMLSheet!$A:$CIJ,MATCH($BI$1,XMLSheet!$A:$A,0),MATCH($A1,XMLSheet!$1:$1,0)+130),NA())) -> 706 | BX3: =IF($BJ$2=1,NA(),IF(BX$1<=$AR2,INDEX(XMLSheet!$A:$CIJ,MATCH($BI$1,XMLSheet!$A:$A,0),MATCH($A1,XMLSheet!$1:$1,0)+140),NA())) -> 682
A4: St. Thomas's | B4: =INDEX(XMLSheet!$A:$CIJ,MATCH($A4,XMLSheet!$A:$A,0),MATCH($A$2,XMLSheet!$2:$2,0)) -> 1540 | C4: =INDEX(XMLSheet!$A:$CIJ,MATCH($A4,XMLSheet!$A:$A,0),MATCH($A$2,XMLSheet!$2:$2,0)+6) -> 0 | D4: =INDEX(XMLSheet!$A:$CIJ,MATCH($A4,XMLSheet!$A:$A,0),MATCH($A$2,XMLSheet!$2:$2,0)+8) -> 0 | E4: =IF(C4=0,"",B4-C4) ->  | F4: =IF(D4=0,"",D4-B4) ->  | G4: Admissions for gastroenteritis in children aged 2, 3 and 4 years (3 year crude rate per 10,000 population) | H4: Admissions for gastroenteritis in children aged 2, 3 and 4 years (3 year crude rate per 10,000 population) 2015/16-2017/18 | I4: 2015/16-2017/18 | M4: General Fertility Rate (total births per 1,000 mothers aged 15-44) | N4: In Dudley the 2017 General Fertility Rate (total births per 1,000 mothers aged 15-44) is 67.3 per 1,000 mothers. 5 wards were significantly lower than the Dudley average and 3 wards were significantly higher. The ward with the highest rate is Brierley Hill (95.2 per 1,000 mothers) and the lowest rate is seen in Sedgley (48.9 per 1,000 mothers). The Dudley trend is increasing. | S4: Number of births (live births to mothers resident in Dudley) | T4: ='0-5 Dashboard'!$L4 -> 88 | U4: =U3+1 -> 1.5 | V4: 0 | W4: =AVERAGE(OFFSET(XMLSheet!$A$6:$A$29,,MATCH(VLOOKUP($S4,Calcs!$G:$H,2,FALSE),XMLSheet!$2:$2,0)-1)) -> 159.2083333 | X4: 0 | Y4: 0.1357142857 | Z4: 0.5 | AA4: 0.4785714286 | AB4: 1 | AC4: =MIN(OFFSET(XMLSheet!$A$6:$A$29,,MATCH(VLOOKUP($S4,Calcs!$G:$H,2,FALSE),XMLSheet!$2:$2,0)-1)) -> 88 | AD4: =_xlfn.QUARTILE.INC(OFFSET(XMLSheet!$A$6:$A$29,,MATCH(VLOOKUP($S4,Calcs!$G:$H,2,FALSE),XMLSheet!$2:$2,0)-1),1) -> 116.5 | AE4: =_xlfn.QUARTILE.INC(OFFSET(XMLSheet!$A$6:$A$29,,MATCH(VLOOKUP($S4,Calcs!$G:$H,2,FALSE),XMLSheet!$2:$2,0)-1),3) -> 188.5 | AF4: =MAX(OFFSET(XMLSheet!$A$6:$A$29,,MATCH(VLOOKUP($S4,Calcs!$G:$H,2,FALSE),XMLSheet!$2:$2,0)-1)) -> 298 | AI4: =NA() ->  | AJ4: =NA() ->  | AK4: =NA() ->  | AL4: =V4 -> 0 | AM4: =NA() ->  | AN4: =NA() ->  | AR4: 8 | AT4: =IF(AT$1<=$AR2,INDEX(XMLSheet!$A:$CIJ,MATCH("Dudley",XMLSheet!$A:$A,0),MATCH($A1,XMLSheet!$1:$1,0)+1),NA()) -> 2002 | AU4: =IF(AU$1<=$AR2,INDEX(XMLSheet!$A:$CIJ,MATCH("Dudley",XMLSheet!$A:$A,0),MATCH($A1,XMLSheet!$1:$1,0)+11),NA()) -> 2003 | AV4: =IF(AV$1<=$AR2,INDEX(XMLSheet!$A:$CIJ,MATCH("Dudley",XMLSheet!$A:$A,0),MATCH($A1,XMLSheet!$1:$1,0)+21),NA()) -> 2004 | AW4: =IF(AW$1<=$AR2,INDEX(XMLSheet!$A:$CIJ,MATCH("Dudley",XMLSheet!$A:$A,0),MATCH($A1,XMLSheet!$1:$1,0)+31),NA()) -> 2005 | AX4: =IF(AX$1<=$AR2,INDEX(XMLSheet!$A:$CIJ,MATCH("Dudley",XMLSheet!$A:$A,0),MATCH($A1,XMLSheet!$1:$1,0)+41),NA()) -> 2006 | AY4: =IF(AY$1<=$AR2,INDEX(XMLSheet!$A:$CIJ,MATCH("Dudley",XMLSheet!$A:$A,0),MATCH($A1,XMLSheet!$1:$1,0)+51),NA()) -> 2007 | AZ4: =IF(AZ$1<=$AR2,INDEX(XMLSheet!$A:$CIJ,MATCH("Dudley",XMLSheet!$A:$A,0),MATCH($A1,XMLSheet!$1:$1,0)+61),NA()) -> 2008 | BA4: =IF(BA$1<=$AR2,INDEX(XMLSheet!$A:$CIJ,MATCH("Dudley",XMLSheet!$A:$A,0),MATCH($A1,XMLSheet!$1:$1,0)+71),NA()) -> 2009 | BB4: =IF(BB$1<=$AR2,INDEX(XMLSheet!$A:$CIJ,MATCH("Dudley",XMLSheet!$A:$A,0),MATCH($A1,XMLSheet!$1:$1,0)+81),NA()) -> 2010 | BC4: =IF(BC$1<=$AR2,INDEX(XMLSheet!$A:$CIJ,MATCH("Dudley",XMLSheet!$A:$A,0),MATCH($A1,XMLSheet!$1:$1,0)+91),NA()) -> 2011 | BD4: =IF(BD$1<=$AR2,INDEX(XMLSheet!$A:$CIJ,MATCH("Dudley",XMLSheet!$A:$A,0),MATCH($A1,XMLSheet!$1:$1,0)+101),NA()) -> 2012 | BE4: =IF(BE$1<=$AR2,INDEX(XMLSheet!$A:$CIJ,MATCH("Dudley",XMLSheet!$A:$A,0),MATCH($A1,XMLSheet!$1:$1,0)+111),NA()) -> 2013 | BF4: =IF(BF$1<=$AR2,INDEX(XMLSheet!$A:$CIJ,MATCH("Dudley",XMLSheet!$A:$A,0),MATCH($A1,XMLSheet!$1:$1,0)+121),NA()) -> 2014 | BG4: =IF(BG$1<=$AR2,INDEX(XMLSheet!$A:$CIJ,MATCH("Dudley",XMLSheet!$A:$A,0),MATCH($A1,XMLSheet!$1:$1,0)+131),NA()) -> 2015 | BH4: =IF(BH$1<=$AR2,INDEX(XMLSheet!$A:$CIJ,MATCH("Dudley",XMLSheet!$A:$A,0),MATCH($A1,XMLSheet!$1:$1,0)+141),NA()) -> 2016
A5: Castle and Priory | B5: =INDEX(XMLSheet!$A:$CIJ,MATCH($A5,XMLSheet!$A:$A,0),MATCH($A$2,XMLSheet!$2:$2,0)) -> 1402 | C5: =INDEX(XMLSheet!$A:$CIJ,MATCH($A5,XMLSheet!$A:$A,0),MATCH($A$2,XMLSheet!$2:$2,0)+6) -> 0 | D5: =INDEX(XMLSheet!$A:$CIJ,MATCH($A5,XMLSheet!$A:$A,0),MATCH($A$2,XMLSheet!$2:$2,0)+8) -> 0 | E5: =IF(C5=0,"",B5-C5) ->  | F5: =IF(D5=0,"",D5-B5) ->  | G5: Admissions for gastroenteritis in children aged under five years (3 year crude rate per 10,000 population) | H5: Admissions for gastroenteritis in children aged under five years (3 year crude rate per 10,000 population) 2015/16-2017/18 | I5: 2015/16-2017/18 | M5: BME Population aged 0-4 Years (%) | N5: In Dudley the 2011 percentage BME population is 20.0%. 13 wards were significantly lower than the Dudley average and 7 wards were significantly higher. The ward with the highest population is St. Thomas's (55.5%) and the lowest population is seen in Wordsley (4.4%). The Dudley trend is not available. | S5: General Fertility Rate (total births per 1,000 mothers aged 15-44) | T5: ='0-5 Dashboard'!$L5 -> 48.91606448 | U5: 2.5 | V5: 0 | W5: =AVERAGE(OFFSET(XMLSheet!$A$6:$A$29,,MATCH(VLOOKUP($S5,Calcs!$G:$H,2,FALSE),XMLSheet!$2:$2,0)-1)) -> 65.61951945 | X5: =(AC5-AC5)/(AD5-AC5) -> 0 | Y5: =(AD5-AC5)/(AF5-AC5) -> 0.2023778753 | Z5: 0.5 | AA5: =(AE5-AC5)/(AF5-AC5) -> 0.4653503885 | AB5: =(AF5-AC5)/(AF5-AC5) -> 1 | AC5: =MIN(OFFSET(XMLSheet!$A$6:$A$29,,MATCH(VLOOKUP($S5,Calcs!$G:$H,2,FALSE),XMLSheet!$2:$2,0)-1)) -> 48.91606448 | AD5: =_xlfn.QUARTILE.INC(OFFSET(XMLSheet!$A$6:$A$29,,MATCH(VLOOKUP($S5,Calcs!$G:$H,2,FALSE),XMLSheet!$2:$2,0)-1),1) -> 58.29061865 | AE5: =_xlfn.QUARTILE.INC(OFFSET(XMLSheet!$A$6:$A$29,,MATCH(VLOOKUP($S5,Calcs!$G:$H,2,FALSE),XMLSheet!$2:$2,0)-1),3) -> 70.47203949 | AF5: =MAX(OFFSET(XMLSheet!$A$6:$A$29,,MATCH(VLOOKUP($S5,Calcs!$G:$H,2,FALSE),XMLSheet!$2:$2,0)-1)) -> 95.23809524 | AI5: =NA() ->  | AJ5: =IF(AND(ISNA(AM5),ISNA(AN5)),V5,NA()) ->  | AK5: =NA() ->  | AL5: =NA() ->  | AM5: =IF($W5>MAX('0-5 Dashboard'!$L5:$N5),$V5,NA()) -> 0 | AN5: =IF(MIN('0-5 Dashboard'!$L5:$N5)>$W5,$V5,NA()) ->  | AO5: lower/higher | AR5: 15
A6: Brierley Hill | B6: =INDEX(XMLSheet!$A:$CIJ,MATCH($A6,XMLSheet!$A:$A,0),MATCH($A$2,XMLSheet!$2:$2,0)) -> 1338 | C6: =INDEX(XMLSheet!$A:$CIJ,MATCH($A6,XMLSheet!$A:$A,0),MATCH($A$2,XMLSheet!$2:$2,0)+6) -> 0 | D6: =INDEX(XMLSheet!$A:$CIJ,MATCH($A6,XMLSheet!$A:$A,0),MATCH($A$2,XMLSheet!$2:$2,0)+8) -> 0 | E6: =IF(C6=0,"",B6-C6) ->  | F6: =IF(D6=0,"",D6-B6) ->  | G6: Admissions for gastroenteritis in infants aged one year (3 year crude rate per 10,000 population) | H6: Admissions for gastroenteritis in infants aged one year (3 year crude rate per 10,000 population) 2015/16-2017/18 | I6: 2015/16-2017/18 | M6: Income Deprivation Affecting Children Index (IDACI) Decile (1= most deprived, 10= least deprived) | N6: For the 2015 the Income Deprivation Affecting Children Index (IDACI), where Decile 1= most deprived and 10= least deprived, 3 wards are within the 10% most deprived nationally and 17 out of the 24 wards are amongst the 50% most deprived nationally. | S6: BME Population aged 0-4 Years (%) | T6: ='0-5 Dashboard'!$L6 -> 9.541984733 | U6: 3.5 | V6: 0.1014362393 | W6: =AVERAGE(OFFSET(XMLSheet!$A$6:$A$29,,MATCH(VLOOKUP($S6,Calcs!$G:$H,2,FALSE),XMLSheet!$2:$2,0)-1)) -> 17.72754487 | X6: =(AC6-AC6)/(AD6-AC6) -> 0 | Y6: =(AD6-AC6)/(AF6-AC6) -> 0.0816629387 | Z6: 0.5 | AA6: =(AE6-AC6)/(AF6-AC6) -> 0.4195675383 | AB6: =(AF6-AC6)/(AF6-AC6) -> 1 | AC6: =MIN(OFFSET(XMLSheet!$A$6:$A$29,,MATCH(VLOOKUP($S6,Calcs!$G:$H,2,FALSE),XMLSheet!$2:$2,0)-1)) -> 4.354587869 | AD6: =_xlfn.QUARTILE.INC(OFFSET(XMLSheet!$A$6:$A$29,,MATCH(VLOOKUP($S6,Calcs!$G:$H,2,FALSE),XMLSheet!$2:$2,0)-1),1) -> 8.530788357 | AE6: =_xlfn.QUARTILE.INC(OFFSET(XMLSheet!$A$6:$A$29,,MATCH(VLOOKUP($S6,Calcs!$G:$H,2,FALSE),XMLSheet!$2:$2,0)-1),3) -> 25.81105498 | AF6: =MAX(OFFSET(XMLSheet!$A$6:$A$29,,MATCH(VLOOKUP($S6,Calcs!$G:$H,2,FALSE),XMLSheet!$2:$2,0)-1)) -> 55.49407115 | AI6: =NA() ->  | AJ6: =NA() ->  | AK6: =NA() ->  | AL6: =V6 -> 0.1014362393 | AM6: =NA() ->  | AN6: =NA() ->  | AR6: 1
A7: Brockmoor and Pensnett | B7: =INDEX(XMLSheet!$A:$CIJ,MATCH($A7,XMLSheet!$A:$A,0),MATCH($A$2,XMLSheet!$2:$2,0)) -> 1292 | C7: =INDEX(XMLSheet!$A:$CIJ,MATCH($A7,XMLSheet!$A:$A,0),MATCH($A$2,XMLSheet!$2:$2,0)+6) -> 0 | D7: =INDEX(XMLSheet!$A:$CIJ,MATCH($A7,XMLSheet!$A:$A,0),MATCH($A$2,XMLSheet!$2:$2,0)+8) -> 0 | E7: =IF(C7=0,"",B7-C7) ->  | F7: =IF(D7=0,"",D7-B7) ->  | G7: Admissions for gastroenteritis in infants aged under one year (3 year crude rate per 10,000 population) | H7: Admissions for gastroenteritis in infants aged under one year (3 year crude rate per 10,000 population) 2015/16-2017/18 | I7: 2015/16-2017/18 | M7: Life Expectancy at birth (Female) | N7: In Dudley the 2015-2017 life expectancy at birth (Female) is 83.2 years. 2 wards were significantly worse than the Dudley average and no ward was significantly better. The ward with the highest life expectancy is Norton (86.6 years) and the lowest life expectancy is seen in Castle and Priory (78.6 years). The Dudley trend is increasing. | S7: Income Deprivation Affecting Children Index (IDACI) Decile (1= most deprived, 10= least deprived) | T7: ='0-5 Dashboard'!$L7 -> 5 | U7: 4.5 | V7: 0.5 | W7: =AVERAGE(OFFSET(XMLSheet!$A$6:$A$29,,MATCH(VLOOKUP($S7,Calcs!$G:$H,2,FALSE),XMLSheet!$2:$2,0)-1)) -> 4.083333333 | X7: 0 | Y7: 0.125 | Z7: 0.5 | AA7: 0.625 | AB7: 1 | AC7: =MIN(OFFSET(XMLSheet!$A$6:$A$29,,MATCH(VLOOKUP($S7,Calcs!$G:$H,2,FALSE),XMLSheet!$2:$2,0)-1)) -> 1 | AD7: =_xlfn.QUARTILE.INC(OFFSET(XMLSheet!$A$6:$A$29,,MATCH(VLOOKUP($S7,Calcs!$G:$H,2,FALSE),XMLSheet!$2:$2,0)-1),1) -> 2 | AE7: =_xlfn.QUARTILE.INC(OFFSET(XMLSheet!$A$6:$A$29,,MATCH(VLOOKUP($S7,Calcs!$G:$H,2,FALSE),XMLSheet!$2:$2,0)-1),3) -> 6 | AF7: =MAX(OFFSET(XMLSheet!$A$6:$A$29,,MATCH(VLOOKUP($S7,Calcs!$G:$H,2,FALSE),XMLSheet!$2:$2,0)-1)) -> 9 | AR7: 1
A8: Netherton, Woodside and St. Andrews | B8: =INDEX(XMLSheet!$A:$CIJ,MATCH($A8,XMLSheet!$A:$A,0),MATCH($A$2,XMLSheet!$2:$2,0)) -> 1241 | C8: =INDEX(XMLSheet!$A:$CIJ,MATCH($A8,XMLSheet!$A:$A,0),MATCH($A$2,XMLSheet!$2:$2,0)+6) -> 0 | D8: =INDEX(XMLSheet!$A:$CIJ,MATCH($A8,XMLSheet!$A:$A,0),MATCH($A$2,XMLSheet!$2:$2,0)+8) -> 0 | E8: =IF(C8=0,"",B8-C8) ->  | F8: =IF(D8=0,"",D8-B8) ->  | G8: Admissions for respiratory tract infections in children aged 2, 3 and 4 years (3 year crude rate per 10,000 population) | H8: Admissions for respiratory tract infections in children aged 2, 3 and 4 years (3 year crude rate per 10,000 population) 2015/16-2017/18 | I8: 2015/16-2017/18 | M8: Life Expectancy at birth (Male) | N8: In Dudley the 2015-2017 life expectancy at birth (Male) is 79.0 years. No ward was significantly worse than the Dudley average and 1 ward was significantly better. The ward with the highest life expectancy is Halesowen South (83.6 years) and the lowest life expectancy is seen in Brockmoor and Pensnett (76.1 years). The Dudley trend is increasing. | S8: Life Expectancy at birth (Female) | T8: ='0-5 Dashboard'!$L8 -> 85.85506809 | U8: 5.5 | V8: 0.9011277334 | W8: =AVERAGE(OFFSET(XMLSheet!$A$6:$A$29,,MATCH(VLOOKUP($S8,Calcs!$G:$H,2,FALSE),XMLSheet!$2:$2,0)-1)) -> 83.21603064 | X8: 0 | Y8: 0.3527057075 | Z8: 0.5 | AA8: 0.7553963856 | AB8: 1 | AC8: =MIN(OFFSET(XMLSheet!$A$6:$A$29,,MATCH(VLOOKUP($S8,Calcs!$G:$H,2,FALSE),XMLSheet!$2:$2,0)-1)) -> 78.61681267 | AD8: =_xlfn.QUARTILE.INC(OFFSET(XMLSheet!$A$6:$A$29,,MATCH(VLOOKUP($S8,Calcs!$G:$H,2,FALSE),XMLSheet!$2:$2,0)-1),1) -> 81.44990049 | AE8: =_xlfn.QUARTILE.INC(OFFSET(XMLSheet!$A$6:$A$29,,MATCH(VLOOKUP($S8,Calcs!$G:$H,2,FALSE),XMLSheet!$2:$2,0)-1),3) -> 84.68448963 | AF8: =MAX(OFFSET(XMLSheet!$A$6:$A$29,,MATCH(VLOOKUP($S8,Calcs!$G:$H,2,FALSE),XMLSheet!$2:$2,0)-1)) -> 86.64925375 | AI8: =IF($W8<MIN('0-5 Dashboard'!$L8:$N8),$V8,NA()) -> 0.9011277334 | AJ8: =IF(AND(ISNA(AI8),ISNA(AK8)),V8,NA()) ->  | AK8: =IF(MAX('0-5 Dashboard'!$L8:$N8)<$W8,$V8,NA()) ->  | AL8: =NA() ->  | AM8: =NA() ->  | AN8: =NA() ->  | AO8: better/worse | AR8: 9
A9: St. James's | B9: =INDEX(XMLSheet!$A:$CIJ,MATCH($A9,XMLSheet!$A:$A,0),MATCH($A$2,XMLSheet!$2:$2,0)) -> 1153 | C9: =INDEX(XMLSheet!$A:$CIJ,MATCH($A9,XMLSheet!$A:$A,0),MATCH($A$2,XMLSheet!$2:$2,0)+6) -> 0 | D9: =INDEX(XMLSheet!$A:$CIJ,MATCH($A9,XMLSheet!$A:$A,0),MATCH($A$2,XMLSheet!$2:$2,0)+8) -> 0 | E9: =IF(C9=0,"",B9-C9) ->  | F9: =IF(D9=0,"",D9-B9) ->  | G9: Admissions for respiratory tract infections in children aged under five years (3 year crude rate per 10,000 population) | H9: Admissions for respiratory tract infections in children aged under five years (3 year crude rate per 10,000 population) 2015/16-2017/18 | I9: 2015/16-2017/18 | M9: Infant mortality (10-year rate per 1,000 live births) | N9: In Dudley the 2008-2017 infant mortality rate per 1,000 live births (10-year rate) is 4.3 per 1,000 live births. No ward was significantly worse than the Dudley average and no ward was significantly better. The ward with the highest rate is Halesowen North (7.3 deaths per 1,000 live births) and the lowest rate is seen in Halesowen South (0.0 deaths per 1,000 live births). The Dudley trend is decreasing. | S9: Life Expectancy at birth (Male) | T9: ='0-5 Dashboard'!$L9 -> 81.14142606 | U9: 6.5 | V9: 0.6748259833 | W9: =AVERAGE(OFFSET(XMLSheet!$A$6:$A$29,,MATCH(VLOOKUP($S9,Calcs!$G:$H,2,FALSE),XMLSheet!$2:$2,0)-1)) -> 79.04621584 | X9: 0 | Y9: 0.1996155867 | Z9: 0.5 | AA9: 0.5857933416 | AB9: 1 | AC9: =MIN(OFFSET(XMLSheet!$A$6:$A$29,,MATCH(VLOOKUP($S9,Calcs!$G:$H,2,FALSE),XMLSheet!$2:$2,0)-1)) -> 76.12174459 | AD9: =_xlfn.QUARTILE.INC(OFFSET(XMLSheet!$A$6:$A$29,,MATCH(VLOOKUP($S9,Calcs!$G:$H,2,FALSE),XMLSheet!$2:$2,0)-1),1) -> 77.6065817 | AE9: =_xlfn.QUARTILE.INC(OFFSET(XMLSheet!$A$6:$A$29,,MATCH(VLOOKUP($S9,Calcs!$G:$H,2,FALSE),XMLSheet!$2:$2,0)-1),3) -> 80.47915829 | AF9: =MAX(OFFSET(XMLSheet!$A$6:$A$29,,MATCH(VLOOKUP($S9,Calcs!$G:$H,2,FALSE),XMLSheet!$2:$2,0)-1)) -> 83.56022739 | AI9: =IF($W9<MIN('0-5 Dashboard'!$L9:$N9),$V9,NA()) ->  | AJ9: =IF(AND(ISNA(AI9),ISNA(AK9)),V9,NA()) -> 0.6748259833 | AK9: =IF(MAX('0-5 Dashboard'!$L9:$N9)<$W9,$V9,NA()) ->  | AL9: =NA() ->  | AM9: =NA() ->  | AN9: =NA() ->  | AO9: better/worse | AR9: 9
A10: Cradley and Wollescote | B10: =INDEX(XMLSheet!$A:$CIJ,MATCH($A10,XMLSheet!$A:$A,0),MATCH($A$2,XMLSheet!$2:$2,0)) -> 1100 | C10: =INDEX(XMLSheet!$A:$CIJ,MATCH($A10,XMLSheet!$A:$A,0),MATCH($A$2,XMLSheet!$2:$2,0)+6) -> 0 | D10: =INDEX(XMLSheet!$A:$CIJ,MATCH($A10,XMLSheet!$A:$A,0),MATCH($A$2,XMLSheet!$2:$2,0)+8) -> 0 | E10: =IF(C10=0,"",B10-C10) ->  | F10: =IF(D10=0,"",D10-B10) ->  | G10: Admissions for respiratory tract infections in infants aged one year (3 year crude rate per 10,000 population) | H10: Admissions for respiratory tract infections in infants aged one year (3 year crude rate per 10,000 population) 2015/16-2017/18 | I10: 2015/16-2017/18 | M10: Caesarean Section (%) | N10: In Dudley the 2017/18 percentage of deliveries by caesarean section is 32.9%. 2 wards were significantly lower than the Dudley average and 4 wards were significantly higher. The ward with the highest percentage is Coseley East (43.1%) and the lowest percentage is seen in Amblecote (19.3%). The Dudley trend is increasing. | S10: Infant mortality (10-year rate per 1,000 live births) | T10: ='0-5 Dashboard'!$L10 -> 5.050505051 | U10: 7.5 | V10: 0.6882460973 | W10: =AVERAGE(OFFSET(XMLSheet!$A$6:$A$29,,MATCH(VLOOKUP($S10,Calcs!$G:$H,2,FALSE),XMLSheet!$2:$2,0)-1)) -> 4.059118307 | X10: 0 | Y10: 0.3097038583 | Z10: 0.5 | AA10: 0.8435149471 | AB10: 1 | AC10: =MIN(OFFSET(XMLSheet!$A$6:$A$29,,MATCH(VLOOKUP($S10,Calcs!$G:$H,2,FALSE),XMLSheet!$2:$2,0)-1)) -> 0 | AD10: =_xlfn.QUARTILE.INC(OFFSET(XMLSheet!$A$6:$A$29,,MATCH(VLOOKUP($S10,Calcs!$G:$H,2,FALSE),XMLSheet!$2:$2,0)-1),1) -> 2.272676745 | AE10: =_xlfn.QUARTILE.INC(OFFSET(XMLSheet!$A$6:$A$29,,MATCH(VLOOKUP($S10,Calcs!$G:$H,2,FALSE),XMLSheet!$2:$2,0)-1),3) -> 6.18990288 | AF10: =MAX(OFFSET(XMLSheet!$A$6:$A$29,,MATCH(VLOOKUP($S10,Calcs!$G:$H,2,FALSE),XMLSheet!$2:$2,0)-1)) -> 7.338225484 | AI10: =IF($W10>MAX('0-5 Dashboard'!$L10:$N10),$V10,NA()) ->  | AJ10: =IF(AND(ISNA(AI10),ISNA(AK10)),V10,NA()) -> 0.6882460973 | AK10: =IF(MIN('0-5 Dashboard'!$L10:$N10)>$W10,$V10,NA()) ->  | AL10: =NA() ->  | AM10: =NA() ->  | AN10: =NA() ->  | AO10: better/worse | AR10: 3
A11: Belle Vale | B11: =INDEX(XMLSheet!$A:$CIJ,MATCH($A11,XMLSheet!$A:$A,0),MATCH($A$2,XMLSheet!$2:$2,0)) -> 1097 | C11: =INDEX(XMLSheet!$A:$CIJ,MATCH($A11,XMLSheet!$A:$A,0),MATCH($A$2,XMLSheet!$2:$2,0)+6) -> 0 | D11: =INDEX(XMLSheet!$A:$CIJ,MATCH($A11,XMLSheet!$A:$A,0),MATCH($A$2,XMLSheet!$2:$2,0)+8) -> 0 | E11: =IF(C11=0,"",B11-C11) ->  | F11: =IF(D11=0,"",D11-B11) ->  | G11: Admissions for respiratory tract infections in infants aged under one year (3 year crude rate per 10,000 population) | H11: Admissions for respiratory tract infections in infants aged under one year (3 year crude rate per 10,000 population) 2015/16-2017/18 | I11: 2015/16-2017/18 | M11: Low birthweight (3 year rate) | N11: In Dudley the 2014-16 low birthweight (3 year rate) is 8.6%. 1 ward was significantly worse than the Dudley average and no ward was significantly better. The ward with the highest percentage is St. James's (11.0%) and the lowest percentage is seen in Norton (3.6%). The Dudley trend is decreasing. | S11: Maternity | U11: 8.5 | Z11: 0.5
A12: Quarry Bank and Dudley Wood | B12: =INDEX(XMLSheet!$A:$CIJ,MATCH($A12,XMLSheet!$A:$A,0),MATCH($A$2,XMLSheet!$2:$2,0)) -> 1045 | C12: =INDEX(XMLSheet!$A:$CIJ,MATCH($A12,XMLSheet!$A:$A,0),MATCH($A$2,XMLSheet!$2:$2,0)+6) -> 0 | D12: =INDEX(XMLSheet!$A:$CIJ,MATCH($A12,XMLSheet!$A:$A,0),MATCH($A$2,XMLSheet!$2:$2,0)+8) -> 0 | E12: =IF(C12=0,"",B12-C12) ->  | F12: =IF(D12=0,"",D12-B12) ->  | G12: Babies reported as living in a Smoke Free Home (%) | H12: Babies reported as living in a Smoke Free Home (%) 2015/16 | I12: 2015/16 | M12: Percentage initiating breastfeeding | N12: In Dudley the 2017/18 percentage of mothers initiating breastfeeding is 53.5%. 3 wards were significantly worse than the Dudley average and 3 wards were significantly better. The ward with the highest percentage is Halesowen South (70.7%) and the lowest percentage is seen in Coseley East (28.1%). The Dudley trend is decreasing. | S12: Caesarean Section (%) | T12: ='0-5 Dashboard'!$L12 -> 34.35582822 | U12: 9.5 | V12: 0.6325069263 | W12: =AVERAGE(OFFSET(XMLSheet!$A$6:$A$29,,MATCH(VLOOKUP($S12,Calcs!$G:$H,2,FALSE),XMLSheet!$2:$2,0)-1)) -> 33.40105147 | X12: 0 | Y12: 0.4856934861 | Z12: 0.5 | AA12: 0.6638714235 | AB12: 1 | AC12: =MIN(OFFSET(XMLSheet!$A$6:$A$29,,MATCH(VLOOKUP($S12,Calcs!$G:$H,2,FALSE),XMLSheet!$2:$2,0)-1)) -> 19.27272727 | AD12: =_xlfn.QUARTILE.INC(OFFSET(XMLSheet!$A$6:$A$29,,MATCH(VLOOKUP($S12,Calcs!$G:$H,2,FALSE),XMLSheet!$2:$2,0)-1),1) -> 30.85483583 | AE12: =_xlfn.QUARTILE.INC(OFFSET(XMLSheet!$A$6:$A$29,,MATCH(VLOOKUP($S12,Calcs!$G:$H,2,FALSE),XMLSheet!$2:$2,0)-1),3) -> 35.10376292 | AF12: =MAX(OFFSET(XMLSheet!$A$6:$A$29,,MATCH(VLOOKUP($S12,Calcs!$G:$H,2,FALSE),XMLSheet!$2:$2,0)-1)) -> 43.11926606 | AI12: =NA() ->  | AJ12: =IF(AND(ISNA(AM12),ISNA(AN12)),V12,NA()) -> 0.6325069263 | AK12: =NA() ->  | AL12: =NA() ->  | AM12: =IF($W12>MAX('0-5 Dashboard'!$L12:$N12),$V12,NA()) ->  | AN12: =IF(MIN('0-5 Dashboard'!$L12:$N12)>$W12,$V12,NA()) ->  | AO12: lower/higher | AR12: 6
A13: Gornal | B13: =INDEX(XMLSheet!$A:$CIJ,MATCH($A13,XMLSheet!$A:$A,0),MATCH($A$2,XMLSheet!$2:$2,0)) -> 997 | C13: =INDEX(XMLSheet!$A:$CIJ,MATCH($A13,XMLSheet!$A:$A,0),MATCH($A$2,XMLSheet!$2:$2,0)+6) -> 0 | D13: =INDEX(XMLSheet!$A:$CIJ,MATCH($A13,XMLSheet!$A:$A,0),MATCH($A$2,XMLSheet!$2:$2,0)+8) -> 0 | E13: =IF(C13=0,"",B13-C13) ->  | F13: =IF(D13=0,"",D13-B13) ->  | G13: BME Population aged 0-4 Years (%) | H13: BME Population aged 0-4 Years (%) 2011 | I13: 2011 | M13: Percentage totally or partially breastfed at 6 to 8 weeks | N13: In Dudley the 2015/16 percentage totally or partially breastfed at 6 to 8 weeks is 29.1%. 2 wards were significantly worse than the Dudley average and 5 wards were significantly better. The ward with the highest percentage is Wollaston and Stourbridge Town (48.6%) and the lowest percentage is seen in Brockmoor and Pensnett (18.5%). The Dudley trend is decreasing. | S13: Low birthweight (3 year rate) | T13: ='0-5 Dashboard'!$L13 -> 7.348242812 | U13: 10.5 | V13: 0.5042296505 | W13: =AVERAGE(OFFSET(XMLSheet!$A$6:$A$29,,MATCH(VLOOKUP($S13,Calcs!$G:$H,2,FALSE),XMLSheet!$2:$2,0)-1)) -> 8.341483227 | X13: 0 | Y13: 0.5086862444 | Z13: 0.5 | AA13: 0.8056826153 | AB13: 1 | AC13: =MIN(OFFSET(XMLSheet!$A$6:$A$29,,MATCH(VLOOKUP($S13,Calcs!$G:$H,2,FALSE),XMLSheet!$2:$2,0)-1)) -> 3.618421053 | AD13: =_xlfn.QUARTILE.INC(OFFSET(XMLSheet!$A$6:$A$29,,MATCH(VLOOKUP($S13,Calcs!$G:$H,2,FALSE),XMLSheet!$2:$2,0)-1),1) -> 7.381208547 | AE13: =_xlfn.QUARTILE.INC(OFFSET(XMLSheet!$A$6:$A$29,,MATCH(VLOOKUP($S13,Calcs!$G:$H,2,FALSE),XMLSheet!$2:$2,0)-1),3) -> 9.578111338 | AF13: =MAX(OFFSET(XMLSheet!$A$6:$A$29,,MATCH(VLOOKUP($S13,Calcs!$G:$H,2,FALSE),XMLSheet!$2:$2,0)-1)) -> 11.01549053 | AI13: =IF($W13<MIN('0-5 Dashboard'!$L13:$N13),$V13,NA()) ->  | AJ13: =IF(AND(ISNA(AI13),ISNA(AK13)),V13,NA()) -> 0.5042296505 | AK13: =IF(MAX('0-5 Dashboard'!$L13:$N13)<$W13,$V13,NA()) ->  | AL13: =NA() ->  | AM13: =NA() ->  | AN13: =NA() ->  | AO13: better/worse | AR13: 7
A14: Lye and Stourbridge North | B14: =INDEX(XMLSheet!$A:$CIJ,MATCH($A14,XMLSheet!$A:$A,0),MATCH($A$2,XMLSheet!$2:$2,0)) -> 958 | C14: =INDEX(XMLSheet!$A:$CIJ,MATCH($A14,XMLSheet!$A:$A,0),MATCH($A$2,XMLSheet!$2:$2,0)+6) -> 0 | D14: =INDEX(XMLSheet!$A:$CIJ,MATCH($A14,XMLSheet!$A:$A,0),MATCH($A$2,XMLSheet!$2:$2,0)+8) -> 0 | E14: =IF(C14=0,"",B14-C14) ->  | F14: =IF(D14=0,"",D14-B14) ->  | G14: Caesarean Section (%) | H14: Caesarean Section (%) 2017/18 | I14: 2017/18 | M14: Under 18 Conception Rates (rate per 1,000) | N14: In Dudley the 2013-15 under 18 conception rate (rate per 1,000) is 28.2 per 1,000. 1 ward was significantly worse than the Dudley average and 4 wards were significantly better. | S14: Percentage initiating breastfeeding | T14: ='0-5 Dashboard'!$L14 -> 61.03896104 | U14: 11.5 | V14: 0.7726938871 | W14: =AVERAGE(OFFSET(XMLSheet!$A$6:$A$29,,MATCH(VLOOKUP($S14,Calcs!$G:$H,2,FALSE),XMLSheet!$2:$2,0)-1)) -> 55.11372464 | X14: 0 | Y14: 0.5556945465 | Z14: 0.5 | AA14: 0.7442241033 | AB14: 1 | AC14: =MIN(OFFSET(XMLSheet!$A$6:$A$29,,MATCH(VLOOKUP($S14,Calcs!$G:$H,2,FALSE),XMLSheet!$2:$2,0)-1)) -> 28.08988764 | AD14: =_xlfn.QUARTILE.INC(OFFSET(XMLSheet!$A$6:$A$29,,MATCH(VLOOKUP($S14,Calcs!$G:$H,2,FALSE),XMLSheet!$2:$2,0)-1),1) -> 51.78571429 | AE14: =_xlfn.QUARTILE.INC(OFFSET(XMLSheet!$A$6:$A$29,,MATCH(VLOOKUP($S14,Calcs!$G:$H,2,FALSE),XMLSheet!$2:$2,0)-1),3) -> 59.82495765 | AF14: =MAX(OFFSET(XMLSheet!$A$6:$A$29,,MATCH(VLOOKUP($S14,Calcs!$G:$H,2,FALSE),XMLSheet!$2:$2,0)-1)) -> 70.73170732 | AI14: =IF($W14<MIN('0-5 Dashboard'!$L14:$N14),$V14,NA()) ->  | AJ14: 0.7726938871 | AK14: =IF(MAX('0-5 Dashboard'!$L14:$N14)<$W14,$V14,NA()) ->  | AL14: =NA() ->  | AM14: =NA() ->  | AN14: =NA() ->  | AO14: better/worse | AR14: 4
A15: Upper Gornal and Woodsetton | B15: =INDEX(XMLSheet!$A:$CIJ,MATCH($A15,XMLSheet!$A:$A,0),MATCH($A$2,XMLSheet!$2:$2,0)) -> 944 | C15: =INDEX(XMLSheet!$A:$CIJ,MATCH($A15,XMLSheet!$A:$A,0),MATCH($A$2,XMLSheet!$2:$2,0)+6) -> 0 | D15: =INDEX(XMLSheet!$A:$CIJ,MATCH($A15,XMLSheet!$A:$A,0),MATCH($A$2,XMLSheet!$2:$2,0)+8) -> 0 | E15: =IF(C15=0,"",B15-C15) ->  | F15: =IF(D15=0,"",D15-B15) ->  | G15: Emergency admissions for unintentional injuries in children aged under five years (3 year crude rate per 10,000 population) | H15: Emergency admissions for unintentional injuries in children aged under five years (3 year crude rate per 10,000 population) 2015/16-2017/18 | I15: 2015/16-2017/18 | M15: Mothers Smoking at Time of Delivery (%) | N15: In Dudley the 2017/18 percentage of mothers smoking at time of delivery is 14.9%. 2 wards were significantly worse than the Dudley average and 1 ward was significantly better. The ward with the highest percentage is Brockmoor and Pensnett (24.6%) and the lowest percentage is seen in Halesowen South (2.4%). The Dudley trend is decreasing. | S15: Percentage totally or partially breastfed at 6 to 8 weeks | T15: ='0-5 Dashboard'!$L15 -> 22.64150943 | U15: 12.5 | V15: 0.1381047192 | W15: =AVERAGE(OFFSET(XMLSheet!$A$6:$A$29,,MATCH(VLOOKUP($S15,Calcs!$G:$H,2,FALSE),XMLSheet!$2:$2,0)-1)) -> 30.99245283 | X15: 0 | Y15: 0.1902591471 | Z15: 0.5 | AA15: 0.6108842282 | AB15: 1 | AC15: =MIN(OFFSET(XMLSheet!$A$6:$A$29,,MATCH(VLOOKUP($S15,Calcs!$G:$H,2,FALSE),XMLSheet!$2:$2,0)-1)) -> 18.47826087 | AD15: =_xlfn.QUARTILE.INC(OFFSET(XMLSheet!$A$6:$A$29,,MATCH(VLOOKUP($S15,Calcs!$G:$H,2,FALSE),XMLSheet!$2:$2,0)-1),1) -> 24.21373556 | AE15: =_xlfn.QUARTILE.INC(OFFSET(XMLSheet!$A$6:$A$29,,MATCH(VLOOKUP($S15,Calcs!$G:$H,2,FALSE),XMLSheet!$2:$2,0)-1),3) -> 36.89372778 | AF15: =MAX(OFFSET(XMLSheet!$A$6:$A$29,,MATCH(VLOOKUP($S15,Calcs!$G:$H,2,FALSE),XMLSheet!$2:$2,0)-1)) -> 48.62385321 | AI15: =IF($W15<MIN('0-5 Dashboard'!$L15:$N15),$V15,NA()) ->  | AJ15: 0.1381047192 | AK15: =IF(MAX('0-5 Dashboard'!$L15:$N15)<$W15,$V15,NA()) ->  | AL15: =NA() ->  | AM15: =NA() ->  | AN15: =NA() ->  | AO15: better/worse | AR15: 3
A16: Halesowen North | B16: =INDEX(XMLSheet!$A:$CIJ,MATCH($A16,XMLSheet!$A:$A,0),MATCH($A$2,XMLSheet!$2:$2,0)) -> 930 | C16: =INDEX(XMLSheet!$A:$CIJ,MATCH($A16,XMLSheet!$A:$A,0),MATCH($A$2,XMLSheet!$2:$2,0)+6) -> 0 | D16: =INDEX(XMLSheet!$A:$CIJ,MATCH($A16,XMLSheet!$A:$A,0),MATCH($A$2,XMLSheet!$2:$2,0)+8) -> 0 | E16: =IF(C16=0,"",B16-C16) ->  | F16: =IF(D16=0,"",D16-B16) ->  | G16: Emergency admissions rate per 1,000 population aged 0-4 years (crude rate per 1,000 population) | H16: Emergency admissions rate per 1,000 population aged 0-4 years (crude rate per 1,000 population) 2017/18 | I16: 2017/18 | M16: Babies reported as living in a Smoke Free Home (%) | N16: In Dudley the 2015/16 percentage of babies reported as living in a Smoke Free Home is 67.3%. 2 wards were significantly worse than the Dudley average and 4 wards were significantly better. The ward with the highest percentage is Norton (85.7%) and the lowest percentage is seen in Brockmoor and Pensnett (57.8%). The Dudley trend is increasing. | S16: Under 18 Conception Rates (rate per 1,000) | T16: ='0-5 Dashboard'!$L16 -> Better | U16: 13.5 | Z16: 0.5 | AR16: 4
A17: Coseley East | B17: =INDEX(XMLSheet!$A:$CIJ,MATCH($A17,XMLSheet!$A:$A,0),MATCH($A$2,XMLSheet!$2:$2,0)) -> 910 | C17: =INDEX(XMLSheet!$A:$CIJ,MATCH($A17,XMLSheet!$A:$A,0),MATCH($A$2,XMLSheet!$2:$2,0)+6) -> 0 | D17: =INDEX(XMLSheet!$A:$CIJ,MATCH($A17,XMLSheet!$A:$A,0),MATCH($A$2,XMLSheet!$2:$2,0)+8) -> 0 | E17: =IF(C17=0,"",B17-C17) ->  | F17: =IF(D17=0,"",D17-B17) ->  | G17: General Fertility Rate (total births per 1,000 mothers aged 15-44) | H17: General Fertility Rate (total births per 1,000 mothers aged 15-44) 2017 | I17: 2017 | M17: Population vaccination coverage - MMR for one dose (2 years old) | N17: In Dudley the 2015/16 percentage of eligible children who have received one dose of MMR vaccine on or after their 1st birthday and anytime up to their 2nd birthday is 97.0%. No ward was significantly worse than the Dudley average and no ward was significantly better. The ward with the highest percentage is Sedgley (100.0%) and the lowest percentage is seen in St. James's (94.4%). The Dudley trend is increasing. | S17: Mothers Smoking at Time of Delivery (%) | T17: ='0-5 Dashboard'!$L17 -> 7.792207792 | U17: 14.5 | V17: 0.2413073115 | W17: =AVERAGE(OFFSET(XMLSheet!$A$6:$A$29,,MATCH(VLOOKUP($S17,Calcs!$G:$H,2,FALSE),XMLSheet!$2:$2,0)-1)) -> 13.55897827 | X17: 0 | Y17: 0.2873716178 | Z17: 0.5 | AA17: 0.6485599496 | AB17: 1 | AC17: =MIN(OFFSET(XMLSheet!$A$6:$A$29,,MATCH(VLOOKUP($S17,Calcs!$G:$H,2,FALSE),XMLSheet!$2:$2,0)-1)) -> 2.43902439 | AD17: =_xlfn.QUARTILE.INC(OFFSET(XMLSheet!$A$6:$A$29,,MATCH(VLOOKUP($S17,Calcs!$G:$H,2,FALSE),XMLSheet!$2:$2,0)-1),1) -> 8.814102564 | AE17: =_xlfn.QUARTILE.INC(OFFSET(XMLSheet!$A$6:$A$29,,MATCH(VLOOKUP($S17,Calcs!$G:$H,2,FALSE),XMLSheet!$2:$2,0)-1),3) -> 16.82673745 | AF17: =MAX(OFFSET(XMLSheet!$A$6:$A$29,,MATCH(VLOOKUP($S17,Calcs!$G:$H,2,FALSE),XMLSheet!$2:$2,0)-1)) -> 24.62311558 | AI17: =IF($W17<MIN('0-5 Dashboard'!$L17:$N17),$V17,NA()) ->  | AJ17: =IF(AND(ISNA(AI17),ISNA(AK17)),V17,NA()) -> 0.2413073115 | AK17: =IF(MAX('0-5 Dashboard'!$L17:$N17)<$W17,$V17,NA()) ->  | AL17: =NA() ->  | AM17: =NA() ->  | AN17: =NA() ->  | AO17: better/worse | AR17: 5
A18: Amblecote | B18: =INDEX(XMLSheet!$A:$CIJ,MATCH($A18,XMLSheet!$A:$A,0),MATCH($A$2,XMLSheet!$2:$2,0)) -> 907 | C18: =INDEX(XMLSheet!$A:$CIJ,MATCH($A18,XMLSheet!$A:$A,0),MATCH($A$2,XMLSheet!$2:$2,0)+6) -> 0 | D18: =INDEX(XMLSheet!$A:$CIJ,MATCH($A18,XMLSheet!$A:$A,0),MATCH($A$2,XMLSheet!$2:$2,0)+8) -> 0 | E18: =IF(C18=0,"",B18-C18) ->  | F18: =IF(D18=0,"",D18-B18) ->  | G18: Income Deprivation Affecting Children Index (IDACI) Decile (1= most deprived, 10= least deprived) | H18: Income Deprivation Affecting Children Index (IDACI) Decile (1= most deprived, 10= least deprived) 2015 | I18: 2015 | M18: Population vaccination coverage - MMR for one dose (5 years old) | N18: In Dudley the 2015/16 percentage of eligible children who have received one dose of MMR vaccine on or after their 1st birthday and at any time up to their 5th birthday is 97.0%. No ward was significantly worse than the Dudley average and no ward was significantly better. The ward with the highest percentage is Brockmoor and Pensnett (99.1%) and the lowest percentage is seen in Coseley East (93.5%). The Dudley trend is increasing. | S18: Babies reported as living in a Smoke Free Home (%) | T18: ='0-5 Dashboard'!$L18 -> 76 | U18: 15.5 | V18: 0.65184 | W18: =AVERAGE(OFFSET(XMLSheet!$A$6:$A$29,,MATCH(VLOOKUP($S18,Calcs!$G:$H,2,FALSE),XMLSheet!$2:$2,0)-1)) -> 70.37728148 | X18: 0 | Y18: 0.2302150579 | Z18: 0.5 | AA18: 0.6321858065 | AB18: 1 | AC18: =MIN(OFFSET(XMLSheet!$A$6:$A$29,,MATCH(VLOOKUP($S18,Calcs!$G:$H,2,FALSE),XMLSheet!$2:$2,0)-1)) -> 57.8125 | AD18: =_xlfn.QUARTILE.INC(OFFSET(XMLSheet!$A$6:$A$29,,MATCH(VLOOKUP($S18,Calcs!$G:$H,2,FALSE),XMLSheet!$2:$2,0)-1),1) -> 64.23591121 | AE18: =_xlfn.QUARTILE.INC(OFFSET(XMLSheet!$A$6:$A$29,,MATCH(VLOOKUP($S18,Calcs!$G:$H,2,FALSE),XMLSheet!$2:$2,0)-1),3) -> 75.4516129 | AF18: =MAX(OFFSET(XMLSheet!$A$6:$A$29,,MATCH(VLOOKUP($S18,Calcs!$G:$H,2,FALSE),XMLSheet!$2:$2,0)-1)) -> 85.71428571 | AI18: =IF($W18<MIN('0-5 Dashboard'!$L18:$N18),$V18,NA()) ->  | AJ18: 0.65184 | AK18: =IF(MAX('0-5 Dashboard'!$L18:$N18)<$W18,$V18,NA()) ->  | AL18: =NA() ->  | AM18: =NA() ->  | AN18: =NA() ->  | AO18: better/worse | AR18: 4
A19: Hayley Green and Cradley South | B19: =INDEX(XMLSheet!$A:$CIJ,MATCH($A19,XMLSheet!$A:$A,0),MATCH($A$2,XMLSheet!$2:$2,0)) -> 887 | C19: =INDEX(XMLSheet!$A:$CIJ,MATCH($A19,XMLSheet!$A:$A,0),MATCH($A$2,XMLSheet!$2:$2,0)+6) -> 0 | D19: =INDEX(XMLSheet!$A:$CIJ,MATCH($A19,XMLSheet!$A:$A,0),MATCH($A$2,XMLSheet!$2:$2,0)+8) -> 0 | E19: =IF(C19=0,"",B19-C19) ->  | F19: =IF(D19=0,"",D19-B19) ->  | G19: Infant mortality (10-year rate per 1,000 live births) | H19: Infant mortality (10-year rate per 1,000 live births) 2008-2017 | I19: 2008-2017 | M19: Population vaccination coverage - MMR for two doses (5 years old) | N19: In Dudley the 2015/16 percentage of eligible children who have received two doses of MMR vaccine on or after their 1st birthday and at any time up to their 5th birthday is 92.8%. 1 ward was significantly worse than the Dudley average and 1 ward was significantly better. The ward with the highest percentage is Brierley Hill (97.9%) and the lowest percentage is seen in Coseley East (84.1%). The Dudley trend is increasing. | S19: Vaccinations | U19: 16.5 | Z19: 0.5
A20: Wollaston and Stourbridge Town | B20: =INDEX(XMLSheet!$A:$CIJ,MATCH($A20,XMLSheet!$A:$A,0),MATCH($A$2,XMLSheet!$2:$2,0)) -> 815 | C20: =INDEX(XMLSheet!$A:$CIJ,MATCH($A20,XMLSheet!$A:$A,0),MATCH($A$2,XMLSheet!$2:$2,0)+6) -> 0 | D20: =INDEX(XMLSheet!$A:$CIJ,MATCH($A20,XMLSheet!$A:$A,0),MATCH($A$2,XMLSheet!$2:$2,0)+8) -> 0 | E20: =IF(C20=0,"",B20-C20) ->  | F20: =IF(D20=0,"",D20-B20) ->  | G20: Life Expectancy at birth (Female) | H20: Life Expectancy at birth (Female) 2015-2017 | I20: 2015-2017 | M20: Population vaccination coverage - PCV (1 year old) | N20: In Dudley the 2015/16 percentage of eligible children who have received the complete course of PCV vaccine by their 1st birthday is 96.3%. 3 wards were significantly worse than the Dudley average and 2 wards were significantly better. The ward with the highest percentage is Amblecote (100.0%) and the lowest percentage is seen in Halesowen North (90.1%). The Dudley trend is decreasing. | S20: Population vaccination coverage - MMR for one dose (2 years old) | T20: ='0-5 Dashboard'!$L20 -> 100 | U20: 17.5 | V20: 1 | W20: =AVERAGE(OFFSET(XMLSheet!$A$6:$A$29,,MATCH(VLOOKUP($S20,Calcs!$G:$H,2,FALSE),XMLSheet!$2:$2,0)-1)) -> 97.08548297 | X20: 0 | Y20: 0.3279738278 | Z20: 0.5 | AA20: 0.6587710084 | AB20: 1 | AC20: =MIN(OFFSET(XMLSheet!$A$6:$A$29,,MATCH(VLOOKUP($S20,Calcs!$G:$H,2,FALSE),XMLSheet!$2:$2,0)-1)) -> 94.38202247 | AD20: =_xlfn.QUARTILE.INC(OFFSET(XMLSheet!$A$6:$A$29,,MATCH(VLOOKUP($S20,Calcs!$G:$H,2,FALSE),XMLSheet!$2:$2,0)-1),1) -> 96.22457207 | AE20: =_xlfn.QUARTILE.INC(OFFSET(XMLSheet!$A$6:$A$29,,MATCH(VLOOKUP($S20,Calcs!$G:$H,2,FALSE),XMLSheet!$2:$2,0)-1),3) -> 98.08298319 | AF20: =MAX(OFFSET(XMLSheet!$A$6:$A$29,,MATCH(VLOOKUP($S20,Calcs!$G:$H,2,FALSE),XMLSheet!$2:$2,0)-1)) -> 100 | AI20: =IF($W20<MIN('0-5 Dashboard'!$L20:$N20),$V20,NA()) ->  | AJ20: =IF(AND(ISNA(AI20),ISNA(AK20)),V20,NA()) -> 1 | AK20: =IF(MAX('0-5 Dashboard'!$L20:$N20)<$W20,$V20,NA()) ->  | AL20: =NA() ->  | AM20: =NA() ->  | AN20: =NA() ->  | AO20: better/worse | AR20: 4
A21: Wordsley | B21: =INDEX(XMLSheet!$A:$CIJ,MATCH($A21,XMLSheet!$A:$A,0),MATCH($A$2,XMLSheet!$2:$2,0)) -> 799 | C21: =INDEX(XMLSheet!$A:$CIJ,MATCH($A21,XMLSheet!$A:$A,0),MATCH($A$2,XMLSheet!$2:$2,0)+6) -> 0 | D21: =INDEX(XMLSheet!$A:$CIJ,MATCH($A21,XMLSheet!$A:$A,0),MATCH($A$2,XMLSheet!$2:$2,0)+8) -> 0 | E21: =IF(C21=0,"",B21-C21) ->  | F21: =IF(D21=0,"",D21-B21) ->  | G21: Life Expectancy at birth (Male) | H21: Life Expectancy at birth (Male) 2015-2017 | I21: 2015-2017 | M21: Prevalence of Healthy Weight, Reception Year (%), 3 year rate | N21: In Dudley the 2015/16-2017/18 prevalence of healthy weight, Reception Year (%), 3 year rate is 73.1%. No ward was significantly worse than the Dudley average and no ward was significantly better. The ward with the highest percentage is Kingswinford South (81.4%) and the lowest percentage is seen in Coseley East (67.4%). The Dudley trend is decreasing. | S21: Population vaccination coverage - MMR for one dose (5 years old) | T21: ='0-5 Dashboard'!$L21 -> 95.6043956 | U21: 18.5 | V21: 0.3824873809 | W21: =AVERAGE(OFFSET(XMLSheet!$A$6:$A$29,,MATCH(VLOOKUP($S21,Calcs!$G:$H,2,FALSE),XMLSheet!$2:$2,0)-1)) -> 96.93683941 | X21: 0 | Y21: 0.4315615073 | Z21: 0.5 | AA21: 0.76828521 | AB21: 1 | AC21: =MIN(OFFSET(XMLSheet!$A$6:$A$29,,MATCH(VLOOKUP($S21,Calcs!$G:$H,2,FALSE),XMLSheet!$2:$2,0)-1)) -> 93.45794393 | AD21: =_xlfn.QUARTILE.INC(OFFSET(XMLSheet!$A$6:$A$29,,MATCH(VLOOKUP($S21,Calcs!$G:$H,2,FALSE),XMLSheet!$2:$2,0)-1),1) -> 95.87979094 | AE21: =_xlfn.QUARTILE.INC(OFFSET(XMLSheet!$A$6:$A$29,,MATCH(VLOOKUP($S21,Calcs!$G:$H,2,FALSE),XMLSheet!$2:$2,0)-1),3) -> 97.76942493 | AF21: =MAX(OFFSET(XMLSheet!$A$6:$A$29,,MATCH(VLOOKUP($S21,Calcs!$G:$H,2,FALSE),XMLSheet!$2:$2,0)-1)) -> 99.06976744 | AI21: =IF($W21<MIN('0-5 Dashboard'!$L21:$N21),$V21,NA()) ->  | AJ21: 0.3824873809 | AK21: =IF(MAX('0-5 Dashboard'!$L21:$N21)<$W21,$V21,NA()) ->  | AL21: =NA() ->  | AM21: =NA() ->  | AN21: =NA() ->  | AO21: better/worse | AR21: 4
A22: Norton | B22: =INDEX(XMLSheet!$A:$CIJ,MATCH($A22,XMLSheet!$A:$A,0),MATCH($A$2,XMLSheet!$2:$2,0)) -> 757 | C22: =INDEX(XMLSheet!$A:$CIJ,MATCH($A22,XMLSheet!$A:$A,0),MATCH($A$2,XMLSheet!$2:$2,0)+6) -> 0 | D22: =INDEX(XMLSheet!$A:$CIJ,MATCH($A22,XMLSheet!$A:$A,0),MATCH($A$2,XMLSheet!$2:$2,0)+8) -> 0 | E22: =IF(C22=0,"",B22-C22) ->  | F22: =IF(D22=0,"",D22-B22) ->  | G22: Looked after children aged 0-5 (5 year rate per 10,000 population) | H22: Looked after children aged 0-5 (5 year rate per 10,000 population) 2013/14-2017/18 | I22: 2013/14-2017/18 | M22: Prevalence of Excess Weight, Reception Year (%), 3 year rate | N22: In Dudley the 2015/16-2017/18 prevalence of excess weight, Reception Year (%), 3 year rate is 25.6%. 1 ward was significantly worse than the Dudley average and 2 wards were significantly better. The ward with the highest percentage is Coseley East (32.4%) and the lowest percentage is seen in Kingswinford South (15.7%). The Dudley trend is increasing. | S22: Population vaccination coverage - MMR for two doses (5 years old) | T22: ='0-5 Dashboard'!$L22 -> 93.40659341 | U22: 19.5 | V22: 0.6732900386 | W22: =AVERAGE(OFFSET(XMLSheet!$A$6:$A$29,,MATCH(VLOOKUP($S22,Calcs!$G:$H,2,FALSE),XMLSheet!$2:$2,0)-1)) -> 92.9108676 | X22: 0 | Y22: 0.4768273169 | Z22: 0.5 | AA22: 0.8489869371 | AB22: 1 | AC22: =MIN(OFFSET(XMLSheet!$A$6:$A$29,,MATCH(VLOOKUP($S22,Calcs!$G:$H,2,FALSE),XMLSheet!$2:$2,0)-1)) -> 84.11214953 | AD22: =_xlfn.QUARTILE.INC(OFFSET(XMLSheet!$A$6:$A$29,,MATCH(VLOOKUP($S22,Calcs!$G:$H,2,FALSE),XMLSheet!$2:$2,0)-1),1) -> 90.6945204 | AE22: =_xlfn.QUARTILE.INC(OFFSET(XMLSheet!$A$6:$A$29,,MATCH(VLOOKUP($S22,Calcs!$G:$H,2,FALSE),XMLSheet!$2:$2,0)-1),3) -> 95.83200425 | AF22: =MAX(OFFSET(XMLSheet!$A$6:$A$29,,MATCH(VLOOKUP($S22,Calcs!$G:$H,2,FALSE),XMLSheet!$2:$2,0)-1)) -> 97.91666667 | AI22: =IF($W22<MIN('0-5 Dashboard'!$L22:$N22),$V22,NA()) ->  | AJ22: 0.6732900386 | AK22: =IF(MAX('0-5 Dashboard'!$L22:$N22)<$W22,$V22,NA()) ->  | AL22: =NA() ->  | AM22: =NA() ->  | AN22: =NA() ->  | AO22: better/worse | AR22: 4
A23: Pedmore and Stourbridge East | B23: =INDEX(XMLSheet!$A:$CIJ,MATCH($A23,XMLSheet!$A:$A,0),MATCH($A$2,XMLSheet!$2:$2,0)) -> 730 | C23: =INDEX(XMLSheet!$A:$CIJ,MATCH($A23,XMLSheet!$A:$A,0),MATCH($A$2,XMLSheet!$2:$2,0)+6) -> 0 | D23: =INDEX(XMLSheet!$A:$CIJ,MATCH($A23,XMLSheet!$A:$A,0),MATCH($A$2,XMLSheet!$2:$2,0)+8) -> 0 | E23: =IF(C23=0,"",B23-C23) ->  | F23: =IF(D23=0,"",D23-B23) ->  | G23: Low birthweight (3 year rate) | H23: Low birthweight (3 year rate) 2014-16 | I23: 2014-16 | M23: Obesity Prevalence, Reception Year (%), 3 year rate | N23: In Dudley the 2015/16-2017/18 prevalence of obesity, Reception Year (%), 3 year rate is 11.3%. 2 wards were significantly worse than the Dudley average and 1 ward was significantly better. The ward with the highest percentage is St. Thomas's (14.9%) and the lowest percentage is seen in Kingswinford South (6.6%). The Dudley trend is increasing. | S23: Population vaccination coverage - PCV (1 year old) | T23: ='0-5 Dashboard'!$L23 -> 98.98989899 | U23: 20.5 | V23: 0.8978675645 | W23: =AVERAGE(OFFSET(XMLSheet!$A$6:$A$29,,MATCH(VLOOKUP($S23,Calcs!$G:$H,2,FALSE),XMLSheet!$2:$2,0)-1)) -> 96.57629163 | X23: 0 | Y23: 0.5591739766 | Z23: 0.5 | AA23: 0.8981228956 | AB23: 1 | AC23: =MIN(OFFSET(XMLSheet!$A$6:$A$29,,MATCH(VLOOKUP($S23,Calcs!$G:$H,2,FALSE),XMLSheet!$2:$2,0)-1)) -> 90.10989011 | AD23: =_xlfn.QUARTILE.INC(OFFSET(XMLSheet!$A$6:$A$29,,MATCH(VLOOKUP($S23,Calcs!$G:$H,2,FALSE),XMLSheet!$2:$2,0)-1),1) -> 95.64018219 | AE23: =_xlfn.QUARTILE.INC(OFFSET(XMLSheet!$A$6:$A$29,,MATCH(VLOOKUP($S23,Calcs!$G:$H,2,FALSE),XMLSheet!$2:$2,0)-1),3) -> 98.99242424 | AF23: =MAX(OFFSET(XMLSheet!$A$6:$A$29,,MATCH(VLOOKUP($S23,Calcs!$G:$H,2,FALSE),XMLSheet!$2:$2,0)-1)) -> 100 | AI23: =IF($W23<MIN('0-5 Dashboard'!$L23:$N23),$V23,NA()) ->  | AJ23: 0.8978675645 | AK23: =IF(MAX('0-5 Dashboard'!$L23:$N23)<$W23,$V23,NA()) ->  | AL23: =NA() ->  | AM23: =NA() ->  | AN23: =NA() ->  | AO23: better/worse | AR23: 4
A24: Kingswinford South | B24: =INDEX(XMLSheet!$A:$CIJ,MATCH($A24,XMLSheet!$A:$A,0),MATCH($A$2,XMLSheet!$2:$2,0)) -> 697 | C24: =INDEX(XMLSheet!$A:$CIJ,MATCH($A24,XMLSheet!$A:$A,0),MATCH($A$2,XMLSheet!$2:$2,0)+6) -> 0 | D24: =INDEX(XMLSheet!$A:$CIJ,MATCH($A24,XMLSheet!$A:$A,0),MATCH($A$2,XMLSheet!$2:$2,0)+8) -> 0 | E24: =IF(C24=0,"",B24-C24) ->  | F24: =IF(D24=0,"",D24-B24) ->  | G24: Mothers Smoking at Time of Delivery (%) | H24: Mothers Smoking at Time of Delivery (%) 2017/18 | I24: 2017/18 | M24: A&E attendance rate per 1,000 population aged 0-4 years (crude rate per 1,000 population) | N24: In Dudley the 2017/18 A&E attendance rate per 1,000 population aged 0-4 years (crude rate per 1,000 population) is 426.7 per 1,000 population. 7 wards were significantly worse than the Dudley average and 5 wards were significantly better. The ward with the highest rate is Coseley East (736.1 attendances per 1,000 population) and the lowest rate is seen in Norton (291.6 attendances per 1,000 population). The Dudley trend is decreasing. | S24: National Child Measurement Programme | U24: 21.5 | Z24: 0.5
A25: Halesowen South | B25: =INDEX(XMLSheet!$A:$CIJ,MATCH($A25,XMLSheet!$A:$A,0),MATCH($A$2,XMLSheet!$2:$2,0)) -> 676 | C25: =INDEX(XMLSheet!$A:$CIJ,MATCH($A25,XMLSheet!$A:$A,0),MATCH($A$2,XMLSheet!$2:$2,0)+6) -> 0 | D25: =INDEX(XMLSheet!$A:$CIJ,MATCH($A25,XMLSheet!$A:$A,0),MATCH($A$2,XMLSheet!$2:$2,0)+8) -> 0 | E25: =IF(C25=0,"",B25-C25) ->  | F25: =IF(D25=0,"",D25-B25) ->  | G25: Number of births (live births to mothers resident in Dudley) | H25: Number of births (live births to mothers resident in Dudley) 2017 | I25: 2017 | M25: Emergency admissions rate per 1,000 population aged 0-4 years (crude rate per 1,000 population) | N25: In Dudley the 2017/18 rate of emergency admissions rate per 1,000 population aged 0-4 years (crude rate per 1,000 population) is 148.7 per 1,000 population. 3 wards were significantly worse than the Dudley average and 2 wards were significantly better. The ward with the highest rate is Kingswinford North and Wall Heath (223.8 admissions per 1,000 population) and the lowest rate is seen in Halesowen South (86.1 admissions per 1,000 population). The Dudley trend is decreasing. | S25: Prevalence of Healthy Weight, Reception Year (%), 3 year rate | T25: ='0-5 Dashboard'!$L25 -> 71.33105802 | U25: 22.5 | V25: 0.2812591054 | W25: =AVERAGE(OFFSET(XMLSheet!$A$6:$A$29,,MATCH(VLOOKUP($S25,Calcs!$G:$H,2,FALSE),XMLSheet!$2:$2,0)-1)) -> 73.42322477 | X25: 0 | Y25: 0.2697402794 | Z25: 0.5 | AA25: 0.60183607 | AB25: 1 | AC25: =MIN(OFFSET(XMLSheet!$A$6:$A$29,,MATCH(VLOOKUP($S25,Calcs!$G:$H,2,FALSE),XMLSheet!$2:$2,0)-1)) -> 67.37967914 | AD25: =_xlfn.QUARTILE.INC(OFFSET(XMLSheet!$A$6:$A$29,,MATCH(VLOOKUP($S25,Calcs!$G:$H,2,FALSE),XMLSheet!$2:$2,0)-1),1) -> 71.16923127 | AE25: =_xlfn.QUARTILE.INC(OFFSET(XMLSheet!$A$6:$A$29,,MATCH(VLOOKUP($S25,Calcs!$G:$H,2,FALSE),XMLSheet!$2:$2,0)-1),3) -> 75.83480926 | AF25: =MAX(OFFSET(XMLSheet!$A$6:$A$29,,MATCH(VLOOKUP($S25,Calcs!$G:$H,2,FALSE),XMLSheet!$2:$2,0)-1)) -> 81.42857143 | AI25: =IF($W25<MIN('0-5 Dashboard'!$L25:$N25),$V25,NA()) ->  | AJ25: =IF(AND(ISNA(AI25),ISNA(AK25)),V25,NA()) -> 0.2812591054 | AK25: =IF(MAX('0-5 Dashboard'!$L25:$N25)<$W25,$V25,NA()) ->  | AL25: =NA() ->  | AM25: =NA() ->  | AN25: =NA() ->  | AO25: better/worse | AR25: 7
A26: Sedgley | B26: =INDEX(XMLSheet!$A:$CIJ,MATCH($A26,XMLSheet!$A:$A,0),MATCH($A$2,XMLSheet!$2:$2,0)) -> 646 | C26: =INDEX(XMLSheet!$A:$CIJ,MATCH($A26,XMLSheet!$A:$A,0),MATCH($A$2,XMLSheet!$2:$2,0)+6) -> 0 | D26: =INDEX(XMLSheet!$A:$CIJ,MATCH($A26,XMLSheet!$A:$A,0),MATCH($A$2,XMLSheet!$2:$2,0)+8) -> 0 | E26: =IF(C26=0,"",B26-C26) ->  | F26: =IF(D26=0,"",D26-B26) ->  | G26: Obesity Prevalence, Reception Year (%), 3 year rate | H26: Obesity Prevalence, Reception Year (%), 3 year rate 2015/16-2017/18 | I26: 2015/16-2017/18 | M26: Emergency admissions for unintentional injuries in children aged under five years (3 year crude rate per 10,000 population) | N26: In Dudley the 2015/16-2017/18 rate of emergency admissions for unintentional injuries in children aged under five years (3 year crude rate per 10,000 population) is 145.2 per 10,000 population. 1 ward was significantly worse than the Dudley average and no ward was significantly better. The ward with the highest rate is Quarry Bank and Dudley Wood (186.6 admissions per 10,000 population) and the lowest rate is seen in Sedgley (78.5 admissions per 10,000 population). The Dudley trend is increasing. | S26: Prevalence of Excess Weight, Reception Year (%), 3 year rate | T26: ='0-5 Dashboard'!$L26 -> 27.64505119 | U26: 23.5 | V26: 0.7170510566 | W26: =AVERAGE(OFFSET(XMLSheet!$A$6:$A$29,,MATCH(VLOOKUP($S26,Calcs!$G:$H,2,FALSE),XMLSheet!$2:$2,0)-1)) -> 25.27246591 | X26: 0 | Y26: 0.4413191494 | Z26: 0.5 | AA26: 0.7193527237 | AB26: 1 | AC26: =MIN(OFFSET(XMLSheet!$A$6:$A$29,,MATCH(VLOOKUP($S26,Calcs!$G:$H,2,FALSE),XMLSheet!$2:$2,0)-1)) -> 15.71428571 | AD26: =_xlfn.QUARTILE.INC(OFFSET(XMLSheet!$A$6:$A$29,,MATCH(VLOOKUP($S26,Calcs!$G:$H,2,FALSE),XMLSheet!$2:$2,0)-1),1) -> 23.05724299 | AE26: =_xlfn.QUARTILE.INC(OFFSET(XMLSheet!$A$6:$A$29,,MATCH(VLOOKUP($S26,Calcs!$G:$H,2,FALSE),XMLSheet!$2:$2,0)-1),3) -> 27.68334784 | AF26: =MAX(OFFSET(XMLSheet!$A$6:$A$29,,MATCH(VLOOKUP($S26,Calcs!$G:$H,2,FALSE),XMLSheet!$2:$2,0)-1)) -> 32.35294118 | AI26: =IF($W26<MIN('0-5 Dashboard'!$L26:$N26),$V26,NA()) ->  | AJ26: 0.7170510566 | AK26: =IF(MAX('0-5 Dashboard'!$L26:$N26)<$W26,$V26,NA()) ->  | AL26: =NA() ->  | AM26: =NA() ->  | AN26: =NA() ->  | AO26: better/worse | AR26: 7
A27: Kingswinford North and Wall Heath | B27: =INDEX(XMLSheet!$A:$CIJ,MATCH($A27,XMLSheet!$A:$A,0),MATCH($A$2,XMLSheet!$2:$2,0)) -> 596 | C27: =INDEX(XMLSheet!$A:$CIJ,MATCH($A27,XMLSheet!$A:$A,0),MATCH($A$2,XMLSheet!$2:$2,0)+6) -> 0 | D27: =INDEX(XMLSheet!$A:$CIJ,MATCH($A27,XMLSheet!$A:$A,0),MATCH($A$2,XMLSheet!$2:$2,0)+8) -> 0 | E27: =IF(C27=0,"",B27-C27) ->  | F27: =IF(D27=0,"",D27-B27) ->  | G27: Percentage initiating breastfeeding | H27: Percentage initiating breastfeeding 2017/18 | I27: 2017/18 | M27: Admissions for gastroenteritis in infants aged under one year (3 year crude rate per 10,000 population) | N27: In Dudley the 2015/16-2017/18 admission rate for gastroenteritis in infants aged under one year (3 year crude rate per 10,000 population) is 305.4 per 10,000 population. 1 ward was significantly worse than the Dudley average and 1 ward was significantly better. The ward with the highest rate is Sedgley (696.2 admissions per 10,000 population) and the lowest rate is seen in Norton (90.1 admissions per 10,000 population). The Dudley trend is decreasing. | S27: Obesity Prevalence, Reception Year (%), 3 year rate | T27: ='0-5 Dashboard'!$L27 -> 10.23890785 | U27: 24.5 | V27: 0.4406868819 | W27: =AVERAGE(OFFSET(XMLSheet!$A$6:$A$29,,MATCH(VLOOKUP($S27,Calcs!$G:$H,2,FALSE),XMLSheet!$2:$2,0)-1)) -> 10.92357501 | X27: 0 | Y27: 0.3703854582 | Z27: 0.5 | AA27: 0.7484438693 | AB27: 1 | AC27: =MIN(OFFSET(XMLSheet!$A$6:$A$29,,MATCH(VLOOKUP($S27,Calcs!$G:$H,2,FALSE),XMLSheet!$2:$2,0)-1)) -> 6.571428571 | AD27: =_xlfn.QUARTILE.INC(OFFSET(XMLSheet!$A$6:$A$29,,MATCH(VLOOKUP($S27,Calcs!$G:$H,2,FALSE),XMLSheet!$2:$2,0)-1),1) -> 9.653846154 | AE27: =_xlfn.QUARTILE.INC(OFFSET(XMLSheet!$A$6:$A$29,,MATCH(VLOOKUP($S27,Calcs!$G:$H,2,FALSE),XMLSheet!$2:$2,0)-1),3) -> 12.8001195 | AF27: =MAX(OFFSET(XMLSheet!$A$6:$A$29,,MATCH(VLOOKUP($S27,Calcs!$G:$H,2,FALSE),XMLSheet!$2:$2,0)-1)) -> 14.89361702 | AI27: =IF($W27<MIN('0-5 Dashboard'!$L27:$N27),$V27,NA()) ->  | AJ27: 0.4406868819 | AK27: =IF(MAX('0-5 Dashboard'!$L27:$N27)<$W27,$V27,NA()) ->  | AL27: =NA() ->  | AM27: =NA() ->  | AN27: =NA() ->  | AO27: better/worse | AR27: 7
A28: Dudley | B28: =INDEX(XMLSheet!$A:$CIJ,MATCH($A28,XMLSheet!$A:$A,0),MATCH($A$2,XMLSheet!$2:$2,0)) -> 23457 | C28: =INDEX(XMLSheet!$A:$CIJ,MATCH($A28,XMLSheet!$A:$A,0),MATCH($A$2,XMLSheet!$2:$2,0)+6) -> 0 | D28: =INDEX(XMLSheet!$A:$CIJ,MATCH($A28,XMLSheet!$A:$A,0),MATCH($A$2,XMLSheet!$2:$2,0)+8) -> 0 | G28: Percentage totally or partially breastfed at 6 to 8 weeks | H28: Percentage totally or partially breastfed at 6 to 8 weeks 2015/16 | I28: 2015/16 | M28: Admissions for gastroenteritis in infants aged one year (3 year crude rate per 10,000 population) | N28: In Dudley the 2015/16-2017/18 admission rate for gastroenteritis in infants aged one year (3 year crude rate per 10,000 population) is 168.8 per 10,000 population. No ward was significantly worse than the Dudley average and no ward was significantly better. The ward with the highest rate is Wordsley (314.0 admissions per 10,000 population) and the lowest rate is seen in Pedmore and Stourbridge East (31.3 admissions per 10,000 population). The Dudley trend is decreasing. | S28: Hospital Admissions | U28: 25.5 | Z28: 0.5
G29: Population vaccination coverage - MMR for one dose (2 years old) | H29: Population vaccination coverage - MMR for one dose (2 years old) 2015/16 | I29: 2015/16 | M29: Admissions for gastroenteritis in children aged 2, 3 and 4 years (3 year crude rate per 10,000 population) | N29: In Dudley the 2015/16-2017/18 admission rate for gastroenteritis in children aged 2, 3 and 4 years (3 year crude rate per 10,000 population) is 69.6 per 10,000 population. No ward was significantly worse than the Dudley average and no ward was significantly better. The ward with the highest rate is St. Thomas's (111.0 admissions per 10,000 population) and the lowest rate is seen in Coseley East (22.1 admissions per 10,000 population). The Dudley trend is increasing. | S29: A&E attendance rate per 1,000 population aged 0-4 years (crude rate per 1,000 population) | T29: ='0-5 Dashboard'!$L29 -> 578.9473684 | U29: 26.5 | V29: 0.6464067791 | W29: =AVERAGE(OFFSET(XMLSheet!$A$6:$A$29,,MATCH(VLOOKUP($S29,Calcs!$G:$H,2,FALSE),XMLSheet!$2:$2,0)-1)) -> 423.5587095 | X29: 0 | Y29: 0.1830403088 | Z29: 0.5 | AA29: 0.3934831994 | AB29: 1 | AC29: =MIN(OFFSET(XMLSheet!$A$6:$A$29,,MATCH(VLOOKUP($S29,Calcs!$G:$H,2,FALSE),XMLSheet!$2:$2,0)-1)) -> 291.6006339 | AD29: =_xlfn.QUARTILE.INC(OFFSET(XMLSheet!$A$6:$A$29,,MATCH(VLOOKUP($S29,Calcs!$G:$H,2,FALSE),XMLSheet!$2:$2,0)-1),1) -> 372.967409 | AE29: =_xlfn.QUARTILE.INC(OFFSET(XMLSheet!$A$6:$A$29,,MATCH(VLOOKUP($S29,Calcs!$G:$H,2,FALSE),XMLSheet!$2:$2,0)-1),3) -> 466.5154338 | AF29: =MAX(OFFSET(XMLSheet!$A$6:$A$29,,MATCH(VLOOKUP($S29,Calcs!$G:$H,2,FALSE),XMLSheet!$2:$2,0)-1)) -> 736.1299053 | AI29: =IF($W29>MAX('0-5 Dashboard'!$L29:$N29),$V29,NA()) ->  | AJ29: =IF(AND(ISNA(AI29),ISNA(AK29)),V29,NA()) ->  | AK29: =IF(MIN('0-5 Dashboard'!$L29:$N29)>$W29,$V29,NA()) -> 0.6464067791 | AL29: =NA() ->  | AM29: =NA() ->  | AN29: =NA() ->  | AO29: better/worse | AR29: 6
A30: Xs | B30: =B28 -> 23457 | C30: =B28 -> 23457 | G30: Population vaccination coverage - MMR for one dose (5 years old) | H30: Population vaccination coverage - MMR for one dose (5 years old) 2015/16 | I30: 2015/16 | M30: Admissions for gastroenteritis in children aged under five years (3 year crude rate per 10,000 population) | N30: In Dudley the 2015/16-2017/18 admission rate for gastroenteritis in children aged under five years (3 year crude rate per 10,000 population) is 134.2 per 10,000 population. 1 ward was significantly worse than the Dudley average and 1 ward was significantly better. The ward with the highest rate is Sedgley (205.3 admissions per 10,000 population) and the lowest rate is seen in Gornal (79.5 admissions per 10,000 population). The Dudley trend is decreasing. | S30: Emergency admissions rate per 1,000 population aged 0-4 years (crude rate per 1,000 population) | T30: ='0-5 Dashboard'!$L30 -> 129.6992481 | U30: 27.5 | V30: 0.3166768457 | W30: =AVERAGE(OFFSET(XMLSheet!$A$6:$A$29,,MATCH(VLOOKUP($S30,Calcs!$G:$H,2,FALSE),XMLSheet!$2:$2,0)-1)) -> 148.4673225 | X30: 0 | Y30: 0.3126212894 | Z30: 0.5 | AA30: 0.573508708 | AB30: 1 | AC30: =MIN(OFFSET(XMLSheet!$A$6:$A$29,,MATCH(VLOOKUP($S30,Calcs!$G:$H,2,FALSE),XMLSheet!$2:$2,0)-1)) -> 86.08058608 | AD30: =_xlfn.QUARTILE.INC(OFFSET(XMLSheet!$A$6:$A$29,,MATCH(VLOOKUP($S30,Calcs!$G:$H,2,FALSE),XMLSheet!$2:$2,0)-1),1) -> 129.140641 | AE30: =_xlfn.QUARTILE.INC(OFFSET(XMLSheet!$A$6:$A$29,,MATCH(VLOOKUP($S30,Calcs!$G:$H,2,FALSE),XMLSheet!$2:$2,0)-1),3) -> 165.074939 | AF30: =MAX(OFFSET(XMLSheet!$A$6:$A$29,,MATCH(VLOOKUP($S30,Calcs!$G:$H,2,FALSE),XMLSheet!$2:$2,0)-1)) -> 223.8193018 | AI30: =IF($W30>MAX('0-5 Dashboard'!$L30:$N30),$V30,NA()) ->  | AJ30: 0.3166768457 | AK30: =IF(MIN('0-5 Dashboard'!$L30:$N30)>$W30,$V30,NA()) ->  | AL30: =NA() ->  | AM30: =NA() ->  | AN30: =NA() ->  | AO30: better/worse | AR30: 6
A31: Ys | B31: 1 | C31: 24 | G31: Population vaccination coverage - MMR for two doses (5 years old) | H31: Population vaccination coverage - MMR for two doses (5 years old) 2015/16 | I31: 2015/16 | M31: Admissions for respiratory tract infections in infants aged under one year (3 year crude rate per 10,000 population) | N31: In Dudley the 2015/16-2017/18 admission rate for respiratory tract infections in infants aged under one year (3 year crude rate per 10,000 population) is 942.0 per 10,000 population. No ward was significantly worse than the Dudley average and 1 ward was significantly better. The ward with the highest rate is Kingswinford North and Wall Heath (1349.5 admissions per 10,000 population) and the lowest rate is seen in Norton (570.6 admissions per 10,000 population). The Dudley trend is increasing. | S31: Emergency admissions for unintentional injuries in children aged under five years (3 year crude rate per 10,000 population) | T31: ='0-5 Dashboard'!$L31 -> 78.50241546 | U31: 28.5 | V31: 0 | W31: =AVERAGE(OFFSET(XMLSheet!$A$6:$A$29,,MATCH(VLOOKUP($S31,Calcs!$G:$H,2,FALSE),XMLSheet!$2:$2,0)-1)) -> 142.6538956 | X31: 0 | Y31: 0.4380446884 | Z31: 0.5 | AA31: 0.7656943302 | AB31: 1 | AC31: =MIN(OFFSET(XMLSheet!$A$6:$A$29,,MATCH(VLOOKUP($S31,Calcs!$G:$H,2,FALSE),XMLSheet!$2:$2,0)-1)) -> 78.50241546 | AD31: =_xlfn.QUARTILE.INC(OFFSET(XMLSheet!$A$6:$A$29,,MATCH(VLOOKUP($S31,Calcs!$G:$H,2,FALSE),XMLSheet!$2:$2,0)-1),1) -> 125.8575464 | AE31: =_xlfn.QUARTILE.INC(OFFSET(XMLSheet!$A$6:$A$29,,MATCH(VLOOKUP($S31,Calcs!$G:$H,2,FALSE),XMLSheet!$2:$2,0)-1),3) -> 161.2783427 | AF31: =MAX(OFFSET(XMLSheet!$A$6:$A$29,,MATCH(VLOOKUP($S31,Calcs!$G:$H,2,FALSE),XMLSheet!$2:$2,0)-1)) -> 186.6081229 | AI31: =IF($W31>MAX('0-5 Dashboard'!$L31:$N31),$V31,NA()) -> 0 | AK31: =IF(MIN('0-5 Dashboard'!$L31:$N31)>$W31,$V31,NA()) ->  | AL31: =NA() ->  | AM31: =NA() ->  | AN31: =NA() ->  | AO31: better/worse | AR31: 4
G32: Population vaccination coverage - PCV (1 year old) | H32: Population vaccination coverage - PCV (1 year old) 2015/16 | I32: 2015/16 | M32: Admissions for respiratory tract infections in infants aged one year (3 year crude rate per 10,000 population) | N32: In Dudley the 2015/16-2017/18 admission rate for respiratory tract infections in infants aged one year (3 year crude rate per 10,000 population) is 124.8 per 10,000 population. No ward was significantly worse than the Dudley average and no ward was significantly better. The ward with the highest rate is Kingswinford South (251.6 admissions per 10,000 population) and the lowest rate is seen in Gornal (19.8 admissions per 10,000 population). The Dudley trend is increasing. | S32: Admissions for gastroenteritis in infants aged under one year (3 year crude rate per 10,000 population) | T32: ='0-5 Dashboard'!$L32 -> 696.2025316 | U32: 29.5 | V32: 1 | W32: =AVERAGE(OFFSET(XMLSheet!$A$6:$A$29,,MATCH(VLOOKUP($S32,Calcs!$G:$H,2,FALSE),XMLSheet!$2:$2,0)-1)) -> 299.0001406 | X32: 0 | Y32: 0.187904393 | Z32: 0.5 | AA32: 0.4657023557 | AB32: 1 | AC32: =MIN(OFFSET(XMLSheet!$A$6:$A$29,,MATCH(VLOOKUP($S32,Calcs!$G:$H,2,FALSE),XMLSheet!$2:$2,0)-1)) -> 90.09009009 | AD32: =_xlfn.QUARTILE.INC(OFFSET(XMLSheet!$A$6:$A$29,,MATCH(VLOOKUP($S32,Calcs!$G:$H,2,FALSE),XMLSheet!$2:$2,0)-1),1) -> 203.9812805 | AE32: =_xlfn.QUARTILE.INC(OFFSET(XMLSheet!$A$6:$A$29,,MATCH(VLOOKUP($S32,Calcs!$G:$H,2,FALSE),XMLSheet!$2:$2,0)-1),3) -> 372.3580819 | AF32: =MAX(OFFSET(XMLSheet!$A$6:$A$29,,MATCH(VLOOKUP($S32,Calcs!$G:$H,2,FALSE),XMLSheet!$2:$2,0)-1)) -> 696.2025316 | AI32: =IF($W32>MAX('0-5 Dashboard'!$L32:$N32),$V32,NA()) ->  | AK32: =IF(MIN('0-5 Dashboard'!$L32:$N32)>$W32,$V32,NA()) -> 1 | AL32: =NA() ->  | AM32: =NA() ->  | AN32: =NA() ->  | AO32: better/worse | AR32: 4
G33: Prevalence of Excess Weight, Reception Year (%), 3 year rate | H33: Prevalence of Excess Weight, Reception Year (%), 3 year rate 2015/16-2017/18 | I33: 2015/16-2017/18 | M33: Admissions for respiratory tract infections in children aged 2, 3 and 4 years (3 year crude rate per 10,000 population) | N33: In Dudley the 2015/16-2017/18 admission rate for respiratory tract infections in children aged 2, 3 and 4 years (3 year crude rate per 10,000 population) is 30.2 per 10,000 population. No ward was significantly worse than the Dudley average and 1 ward was significantly better. The ward with the highest rate is Belle Vale (70.9 admissions per 10,000 population) and the lowest rate is seen in Halesowen South (0.0 admissions per 10,000 population). The Dudley trend is decreasing. | S33: Admissions for gastroenteritis in infants aged one year (3 year crude rate per 10,000 population) | T33: ='0-5 Dashboard'!$L33 -> 207.7151335 | U33: 30.5 | V33: 0.6240817109 | W33: =AVERAGE(OFFSET(XMLSheet!$A$6:$A$29,,MATCH(VLOOKUP($S33,Calcs!$G:$H,2,FALSE),XMLSheet!$2:$2,0)-1)) -> 167.7852113 | X33: 0 | Y33: 0.3383891375 | Z33: 0.5 | AA33: 0.6336646004 | AB33: 1 | AC33: =MIN(OFFSET(XMLSheet!$A$6:$A$29,,MATCH(VLOOKUP($S33,Calcs!$G:$H,2,FALSE),XMLSheet!$2:$2,0)-1)) -> 31.25 | AD33: =_xlfn.QUARTILE.INC(OFFSET(XMLSheet!$A$6:$A$29,,MATCH(VLOOKUP($S33,Calcs!$G:$H,2,FALSE),XMLSheet!$2:$2,0)-1),1) -> 126.9327981 | AE33: =_xlfn.QUARTILE.INC(OFFSET(XMLSheet!$A$6:$A$29,,MATCH(VLOOKUP($S33,Calcs!$G:$H,2,FALSE),XMLSheet!$2:$2,0)-1),3) -> 210.4247881 | AF33: =MAX(OFFSET(XMLSheet!$A$6:$A$29,,MATCH(VLOOKUP($S33,Calcs!$G:$H,2,FALSE),XMLSheet!$2:$2,0)-1)) -> 314.0096618 | AI33: =IF($W33>MAX('0-5 Dashboard'!$L33:$N33),$V33,NA()) ->  | AJ33: 0.6240817109 | AK33: =IF(MIN('0-5 Dashboard'!$L33:$N33)>$W33,$V33,NA()) ->  | AL33: =NA() ->  | AM33: =NA() ->  | AN33: =NA() ->  | AO33: better/worse | AR33: 4
G34: Prevalence of Healthy Weight, Reception Year (%), 3 year rate | H34: Prevalence of Healthy Weight, Reception Year (%), 3 year rate 2015/16-2017/18 | I34: 2015/16-2017/18 | M34: Admissions for respiratory tract infections in children aged under five years (3 year crude rate per 10,000 population) | N34: In Dudley the 2015/16-2017/18 admission rate for respiratory tract infections in children aged under five years (3 year crude rate per 10,000 population) is 223.7 per 10,000 population. No ward was significantly worse than the Dudley average and no ward was significantly better. The ward with the highest rate is Kingswinford North and Wall Heath (310.3 admissions per 10,000 population) and the lowest rate is seen in Halesowen South (143.7 admissions per 10,000 population). The Dudley trend is increasing. | S34: Admissions for gastroenteritis in children aged 2, 3 and 4 years (3 year crude rate per 10,000 population) | T34: ='0-5 Dashboard'!$L34 -> 49.85044865 | U34: 31.5 | V34: 0.3124149821 | W34: =AVERAGE(OFFSET(XMLSheet!$A$6:$A$29,,MATCH(VLOOKUP($S34,Calcs!$G:$H,2,FALSE),XMLSheet!$2:$2,0)-1)) -> 68.59785856 | X34: 0 | Y34: 0.3417791884 | Z34: 0.5 | AA34: 0.7365645915 | AB34: 1 | AC34: =MIN(OFFSET(XMLSheet!$A$6:$A$29,,MATCH(VLOOKUP($S34,Calcs!$G:$H,2,FALSE),XMLSheet!$2:$2,0)-1)) -> 22.05882353 | AD34: =_xlfn.QUARTILE.INC(OFFSET(XMLSheet!$A$6:$A$29,,MATCH(VLOOKUP($S34,Calcs!$G:$H,2,FALSE),XMLSheet!$2:$2,0)-1),1) -> 52.46261216 | AE34: =_xlfn.QUARTILE.INC(OFFSET(XMLSheet!$A$6:$A$29,,MATCH(VLOOKUP($S34,Calcs!$G:$H,2,FALSE),XMLSheet!$2:$2,0)-1),3) -> 87.58169593 | AF34: =MAX(OFFSET(XMLSheet!$A$6:$A$29,,MATCH(VLOOKUP($S34,Calcs!$G:$H,2,FALSE),XMLSheet!$2:$2,0)-1)) -> 111.0162254 | AI34: =IF($W34>MAX('0-5 Dashboard'!$L34:$N34),$V34,NA()) ->  | AJ34: 0.3124149821 | AK34: =IF(MIN('0-5 Dashboard'!$L34:$N34)>$W34,$V34,NA()) ->  | AL34: =NA() ->  | AM34: =NA() ->  | AN34: =NA() ->  | AO34: better/worse | AR34: 4
G35: School Readiness: The percentage of children achieving a good level of development at the end of reception | H35: School Readiness: The percentage of children achieving a good level of development at the end of reception 2017/18 | I35: 2017/18 | M35: 5 year olds with tooth decay experience (%) | N35: In Dudley the 2016/17 percentage of 5 year olds with an experience of tooth decay is 22.9%. The ward with the highest percentage is Sedgley (60.0%) and the lowest percentage is seen in Amblecote (0.0%). The Dudley trend is increasing. | S35: Admissions for gastroenteritis in children aged under five years (3 year crude rate per 10,000 population) | T35: ='0-5 Dashboard'!$L35 -> 205.3140097 | U35: 32.5 | V35: 1 | W35: =AVERAGE(OFFSET(XMLSheet!$A$6:$A$29,,MATCH(VLOOKUP($S35,Calcs!$G:$H,2,FALSE),XMLSheet!$2:$2,0)-1)) -> 132.2215643 | X35: 0 | Y35: 0.1686846703 | Z35: 0.5 | AA35: 0.652154461 | AB35: 1 | AC35: =MIN(OFFSET(XMLSheet!$A$6:$A$29,,MATCH(VLOOKUP($S35,Calcs!$G:$H,2,FALSE),XMLSheet!$2:$2,0)-1)) -> 79.52286282 | AD35: =_xlfn.QUARTILE.INC(OFFSET(XMLSheet!$A$6:$A$29,,MATCH(VLOOKUP($S35,Calcs!$G:$H,2,FALSE),XMLSheet!$2:$2,0)-1),1) -> 100.741901 | AE35: =_xlfn.QUARTILE.INC(OFFSET(XMLSheet!$A$6:$A$29,,MATCH(VLOOKUP($S35,Calcs!$G:$H,2,FALSE),XMLSheet!$2:$2,0)-1),3) -> 161.5581204 | AF35: =MAX(OFFSET(XMLSheet!$A$6:$A$29,,MATCH(VLOOKUP($S35,Calcs!$G:$H,2,FALSE),XMLSheet!$2:$2,0)-1)) -> 205.3140097 | AI35: =IF($W35>MAX('0-5 Dashboard'!$L35:$N35),$V35,NA()) ->  | AK35: =IF(MIN('0-5 Dashboard'!$L35:$N35)>$W35,$V35,NA()) -> 1 | AL35: =NA() ->  | AM35: =NA() ->  | AN35: =NA() ->  | AO35: better/worse | AR35: 4
G36: School Readiness: The percentage of children with free school meal status achieving a good level of development at the end of reception | H36: School Readiness: The percentage of children with free school meal status achieving a good level of development at the end of reception 2017/18 | I36: 2017/18 | M36: Tooth decay in children aged 5 | N36: In Dudley the 2016/17 mean severity of tooth decay in children aged five years (based on the mean number of teeth per child sampled which were either actively decayed or had been filled or extracted) is 0.6. The ward with the highest mean value is Sedgley (3.4) and the lowest mean value is seen in Amblecote (0.0). The Dudley trend is decreasing. | S36: Admissions for respiratory tract infections in infants aged under one year (3 year crude rate per 10,000 population) | T36: ='0-5 Dashboard'!$L36 -> 1107.594937 | U36: 33.5 | V36: 0.6894558955 | W36: =AVERAGE(OFFSET(XMLSheet!$A$6:$A$29,,MATCH(VLOOKUP($S36,Calcs!$G:$H,2,FALSE),XMLSheet!$2:$2,0)-1)) -> 934.314003 | X36: 0 | Y36: 0.3706938723 | Z36: 0.5 | AA36: 0.5852122098 | AB36: 1 | AC36: =MIN(OFFSET(XMLSheet!$A$6:$A$29,,MATCH(VLOOKUP($S36,Calcs!$G:$H,2,FALSE),XMLSheet!$2:$2,0)-1)) -> 570.5705706 | AD36: =_xlfn.QUARTILE.INC(OFFSET(XMLSheet!$A$6:$A$29,,MATCH(VLOOKUP($S36,Calcs!$G:$H,2,FALSE),XMLSheet!$2:$2,0)-1),1) -> 859.3078823 | AE36: =_xlfn.QUARTILE.INC(OFFSET(XMLSheet!$A$6:$A$29,,MATCH(VLOOKUP($S36,Calcs!$G:$H,2,FALSE),XMLSheet!$2:$2,0)-1),3) -> 1026.398446 | AF36: =MAX(OFFSET(XMLSheet!$A$6:$A$29,,MATCH(VLOOKUP($S36,Calcs!$G:$H,2,FALSE),XMLSheet!$2:$2,0)-1)) -> 1349.480969 | AI36: =IF($W36>MAX('0-5 Dashboard'!$L36:$N36),$V36,NA()) ->  | AJ36: 0.6894558955 | AK36: =IF(MIN('0-5 Dashboard'!$L36:$N36)>$W36,$V36,NA()) ->  | AL36: =NA() ->  | AM36: =NA() ->  | AN36: =NA() ->  | AO36: better/worse | AR36: 4
G37: School Readiness: The percentage of Year 1 pupils achieving the expected level in the phonics screening check | H37: School Readiness: The percentage of Year 1 pupils achieving the expected level in the phonics screening check 2017/18 | I37: 2017/18 | M37: School Readiness: The percentage of children achieving a good level of development at the end of reception | N37: In Dudley the 2017/18 percentage of children achieving a good level of development at the end of reception is 66.6%. No ward was significantly worse than the Dudley average and no ward was significantly better. The ward with the highest percentage is Halesowen South (83.5%) and the lowest percentage is seen in St. Thomas's (57.5%). The Dudley trend is increasing. | S37: Admissions for respiratory tract infections in infants aged one year (3 year crude rate per 10,000 population) | T37: ='0-5 Dashboard'!$L37 -> 89.02077151 | U37: 34.5 | V37: 0.2987708928 | W37: =AVERAGE(OFFSET(XMLSheet!$A$6:$A$29,,MATCH(VLOOKUP($S37,Calcs!$G:$H,2,FALSE),XMLSheet!$2:$2,0)-1)) -> 124.4255729 | X37: 0 | Y37: 0.2979937991 | Z37: 0.5 | AA37: 0.6064693471 | AB37: 1 | AC37: =MIN(OFFSET(XMLSheet!$A$6:$A$29,,MATCH(VLOOKUP($S37,Calcs!$G:$H,2,FALSE),XMLSheet!$2:$2,0)-1)) -> 19.76284585 | AD37: =_xlfn.QUARTILE.INC(OFFSET(XMLSheet!$A$6:$A$29,,MATCH(VLOOKUP($S37,Calcs!$G:$H,2,FALSE),XMLSheet!$2:$2,0)-1),1) -> 88.84063382 | AE37: =_xlfn.QUARTILE.INC(OFFSET(XMLSheet!$A$6:$A$29,,MATCH(VLOOKUP($S37,Calcs!$G:$H,2,FALSE),XMLSheet!$2:$2,0)-1),3) -> 160.3481906 | AF37: =MAX(OFFSET(XMLSheet!$A$6:$A$29,,MATCH(VLOOKUP($S37,Calcs!$G:$H,2,FALSE),XMLSheet!$2:$2,0)-1)) -> 251.572327 | AI37: =IF($W37>MAX('0-5 Dashboard'!$L37:$N37),$V37,NA()) ->  | AJ37: 0.2987708928 | AK37: =IF(MIN('0-5 Dashboard'!$L37:$N37)>$W37,$V37,NA()) ->  | AL37: =NA() ->  | AM37: =NA() ->  | AN37: =NA() ->  | AO37: better/worse | AR37: 4
G38: School Readiness: The percentage of Year 1 pupils with free school meal status achieving the expected level in the phonics screening check | H38: School Readiness: The percentage of Year 1 pupils with free school meal status achieving the expected level in the phonics screening check 2017/18 | I38: 2017/18 | M38: School Readiness: The percentage of children with free school meal status achieving a good level of development at the end of reception | N38: In Dudley the 2017/18 percentage of children with free school meal status achieving a good level of development at the end of reception is 51.5%. 1 ward was significantly worse than the Dudley average and no ward was significantly better. The ward with the highest percentage is Halesowen South (66.7%) and the lowest percentage is seen in Kingswinford South (0.0%). The Dudley trend is increasing. | S38: Admissions for respiratory tract infections in children aged 2, 3 and 4 years (3 year crude rate per 10,000 population) | T38: ='0-5 Dashboard'!$L38 -> 19.94017946 | U38: 35.5 | V38: 0.2811565304 | W38: =AVERAGE(OFFSET(XMLSheet!$A$6:$A$29,,MATCH(VLOOKUP($S38,Calcs!$G:$H,2,FALSE),XMLSheet!$2:$2,0)-1)) -> 29.65744601 | X38: 0 | Y38: 0.2405196712 | Z38: 0.5 | AA38: 0.5779110772 | AB38: 1 | AC38: =MIN(OFFSET(XMLSheet!$A$6:$A$29,,MATCH(VLOOKUP($S38,Calcs!$G:$H,2,FALSE),XMLSheet!$2:$2,0)-1)) -> 0 | AD38: =_xlfn.QUARTILE.INC(OFFSET(XMLSheet!$A$6:$A$29,,MATCH(VLOOKUP($S38,Calcs!$G:$H,2,FALSE),XMLSheet!$2:$2,0)-1),1) -> 17.05813271 | AE38: =_xlfn.QUARTILE.INC(OFFSET(XMLSheet!$A$6:$A$29,,MATCH(VLOOKUP($S38,Calcs!$G:$H,2,FALSE),XMLSheet!$2:$2,0)-1),3) -> 40.98660122 | AF38: =MAX(OFFSET(XMLSheet!$A$6:$A$29,,MATCH(VLOOKUP($S38,Calcs!$G:$H,2,FALSE),XMLSheet!$2:$2,0)-1)) -> 70.92198582 | AI38: =IF($W38>MAX('0-5 Dashboard'!$L38:$N38),$V38,NA()) ->  | AJ38: 0.2811565304 | AK38: =IF(MIN('0-5 Dashboard'!$L38:$N38)>$W38,$V38,NA()) ->  | AL38: =NA() ->  | AM38: =NA() ->  | AN38: =NA() ->  | AO38: better/worse | AR38: 4
G39: Tooth decay in children aged 5 | H39: Tooth decay in children aged 5 2016/17 | I39: 2016/17 | M39: School Readiness: The percentage of Year 1 pupils achieving the expected level in the phonics screening check | N39: In Dudley the 2017/18 percentage of Year 1 pupils achieving the expected level in the phonics screening check is 80.0%. No ward was significantly worse than the Dudley average and no ward was significantly better. The ward with the highest percentage is Wollaston and Stourbridge Town (90.6%) and the lowest percentage is seen in St. James's (72.2%). The Dudley trend is increasing. | S39: Admissions for respiratory tract infections in children aged under five years (3 year crude rate per 10,000 population) | T39: ='0-5 Dashboard'!$L39 -> 241.5458937 | U39: 36.5 | V39: 0.5871211441 | W39: =AVERAGE(OFFSET(XMLSheet!$A$6:$A$29,,MATCH(VLOOKUP($S39,Calcs!$G:$H,2,FALSE),XMLSheet!$2:$2,0)-1)) -> 220.9860748 | X39: 0 | Y39: 0.3891649463 | Z39: 0.5 | AA39: 0.5361635455 | AB39: 1 | AC39: =MIN(OFFSET(XMLSheet!$A$6:$A$29,,MATCH(VLOOKUP($S39,Calcs!$G:$H,2,FALSE),XMLSheet!$2:$2,0)-1)) -> 143.7125749 | AD39: =_xlfn.QUARTILE.INC(OFFSET(XMLSheet!$A$6:$A$29,,MATCH(VLOOKUP($S39,Calcs!$G:$H,2,FALSE),XMLSheet!$2:$2,0)-1),1) -> 208.5600065 | AE39: =_xlfn.QUARTILE.INC(OFFSET(XMLSheet!$A$6:$A$29,,MATCH(VLOOKUP($S39,Calcs!$G:$H,2,FALSE),XMLSheet!$2:$2,0)-1),3) -> 233.0547143 | AF39: =MAX(OFFSET(XMLSheet!$A$6:$A$29,,MATCH(VLOOKUP($S39,Calcs!$G:$H,2,FALSE),XMLSheet!$2:$2,0)-1)) -> 310.3448276 | AI39: =IF($W39>MAX('0-5 Dashboard'!$L39:$N39),$V39,NA()) ->  | AJ39: 0.5871211441 | AK39: =IF(MIN('0-5 Dashboard'!$L39:$N39)>$W39,$V39,NA()) ->  | AL39: =NA() ->  | AM39: =NA() ->  | AN39: =NA() ->  | AO39: better/worse | AR39: 4
G40: Under 18 Conception Rates (rate per 1,000) | H40: Under 18 Conception Rates (rate per 1,000) 2013-15 | I40: 2013-15 | M40: School Readiness: The percentage of Year 1 pupils with free school meal status achieving the expected level in the phonics screening check | N40: In Dudley the 2017/18 percentage of Year 1 pupils with free school meal status achieving the expected level in the phonics screening check is 69.6%. No ward was significantly worse than the Dudley average and no ward was significantly better. The ward with the highest percentage is Kingswinford South (87.5%) and the lowest percentage is seen in Sedgley (33.3%). The Dudley trend is increasing. | S40: Oral Health | U40: 37.5 | Z40: 0.5
G41: Mid-year population estimates 0-5 | H41: Mid-year population estimates 0-5 2017 | I41: 2017 | M41: Looked after children aged 0-5 (5 year rate per 10,000 population) | N41: In Dudley the 2013/14-2017/18 rate of looked after children aged 0-5 (5 year rate per 10,000 population) is 36.6 per 10,000 population. 9 wards were significantly lower than the Dudley average and 3 wards were significantly higher. The ward with the highest rate is St. Thomas's (75.8 per 10,000 population) and the lowest rate is seen in Coseley East (0.0 per 10,000 population). The Dudley trend is decreasing. | S41: 5 year olds with tooth decay experience (%) | T41: ='0-5 Dashboard'!$L41 -> 60 | U41: 38.5 | V41: 1 | W41: =AVERAGE(OFFSET(XMLSheet!$A$6:$A$29,,MATCH(VLOOKUP($S41,Calcs!$G:$H,2,FALSE),XMLSheet!$2:$2,0)-1)) -> 19.49008737 | Y41: 0 | Z41: 0.5 | AA41: 0.5753968254 | AB41: 1 | AC41: =MIN(OFFSET(XMLSheet!$A$6:$A$29,,MATCH(VLOOKUP($S41,Calcs!$G:$H,2,FALSE),XMLSheet!$2:$2,0)-1)) -> 0 | AD41: =_xlfn.QUARTILE.INC(OFFSET(XMLSheet!$A$6:$A$29,,MATCH(VLOOKUP($S41,Calcs!$G:$H,2,FALSE),XMLSheet!$2:$2,0)-1),1) -> 0 | AE41: =_xlfn.QUARTILE.INC(OFFSET(XMLSheet!$A$6:$A$29,,MATCH(VLOOKUP($S41,Calcs!$G:$H,2,FALSE),XMLSheet!$2:$2,0)-1),3) -> 34.52380952 | AF41: =MAX(OFFSET(XMLSheet!$A$6:$A$29,,MATCH(VLOOKUP($S41,Calcs!$G:$H,2,FALSE),XMLSheet!$2:$2,0)-1)) -> 60 | AI41: =NA() ->  | AJ41: =NA() ->  | AK41: =NA() ->  | AL41: =V41 -> 1 | AM41: =NA() ->  | AN41: =NA() ->  | AR41: 3
S42: Tooth decay in children aged 5 | T42: ='0-5 Dashboard'!$L42 -> 3.4 | U42: 39.5 | V42: 1 | W42: =AVERAGE(OFFSET(XMLSheet!$A$6:$A$29,,MATCH(VLOOKUP($S42,Calcs!$G:$H,2,FALSE),XMLSheet!$2:$2,0)-1)) -> 0.5486168863 | Y42: 0 | Z42: 0.5 | AA42: 0.1890756303 | AB42: 1 | AC42: =MIN(OFFSET(XMLSheet!$A$6:$A$29,,MATCH(VLOOKUP($S42,Calcs!$G:$H,2,FALSE),XMLSheet!$2:$2,0)-1)) -> 0 | AD42: =_xlfn.QUARTILE.INC(OFFSET(XMLSheet!$A$6:$A$29,,MATCH(VLOOKUP($S42,Calcs!$G:$H,2,FALSE),XMLSheet!$2:$2,0)-1),1) -> 0 | AE42: =_xlfn.QUARTILE.INC(OFFSET(XMLSheet!$A$6:$A$29,,MATCH(VLOOKUP($S42,Calcs!$G:$H,2,FALSE),XMLSheet!$2:$2,0)-1),3) -> 0.6428571429 | AF42: =MAX(OFFSET(XMLSheet!$A$6:$A$29,,MATCH(VLOOKUP($S42,Calcs!$G:$H,2,FALSE),XMLSheet!$2:$2,0)-1)) -> 3.4 | AI42: =NA() ->  | AJ42: =NA() ->  | AK42: =NA() ->  | AL42: =V42 -> 1 | AM42: =NA() ->  | AN42: =NA() ->  | AR42: 3
S43: Development | U43: 40.5 | Z43: 0.5
S44: School Readiness: The percentage of children achieving a good level of development at the end of reception | T44: ='0-5 Dashboard'!$L44 -> 69.30693069 | U44: 41.5 | V44: 0.4540227065 | W44: =AVERAGE(OFFSET(XMLSheet!$A$6:$A$29,,MATCH(VLOOKUP($S44,Calcs!$G:$H,2,FALSE),XMLSheet!$2:$2,0)-1)) -> 67.7642613 | X44: 0 | Y44: 0.1664895901 | Z44: 0.5 | AA44: 0.5686934473 | AB44: 1 | AC44: =MIN(OFFSET(XMLSheet!$A$6:$A$29,,MATCH(VLOOKUP($S44,Calcs!$G:$H,2,FALSE),XMLSheet!$2:$2,0)-1)) -> 57.5 | AD44: =_xlfn.QUARTILE.INC(OFFSET(XMLSheet!$A$6:$A$29,,MATCH(VLOOKUP($S44,Calcs!$G:$H,2,FALSE),XMLSheet!$2:$2,0)-1),1) -> 61.82958754 | AE44: =_xlfn.QUARTILE.INC(OFFSET(XMLSheet!$A$6:$A$29,,MATCH(VLOOKUP($S44,Calcs!$G:$H,2,FALSE),XMLSheet!$2:$2,0)-1),3) -> 72.28896104 | AF44: =MAX(OFFSET(XMLSheet!$A$6:$A$29,,MATCH(VLOOKUP($S44,Calcs!$G:$H,2,FALSE),XMLSheet!$2:$2,0)-1)) -> 83.50515464 | AI44: =IF($W44<MIN('0-5 Dashboard'!$L44:$N44),$V44,NA()) ->  | AJ44: =IF(AND(ISNA(AI44),ISNA(AK44)),V44,NA()) -> 0.4540227065 | AK44: =IF(MAX('0-5 Dashboard'!$L44:$N44)<$W44,$V44,NA()) ->  | AL44: =NA() ->  | AM44: =NA() ->  | AN44: =NA() ->  | AO44: better/worse | AR44: 3
S45: School Readiness: The percentage of children with free school meal status achieving a good level of development at the end of reception | T45: ='0-5 Dashboard'!$L45 -> 28.57142857 | U45: 42.5 | V45: 0.4285714286 | W45: =AVERAGE(OFFSET(XMLSheet!$A$6:$A$29,,MATCH(VLOOKUP($S45,Calcs!$G:$H,2,FALSE),XMLSheet!$2:$2,0)-1)) -> 49.02893429 | X45: 0 | Y45: 0.6787743506 | Z45: 0.5 | AA45: 0.8581349206 | AB45: 1 | AC45: =MIN(OFFSET(XMLSheet!$A$6:$A$29,,MATCH(VLOOKUP($S45,Calcs!$G:$H,2,FALSE),XMLSheet!$2:$2,0)-1)) -> 0 | AD45: =_xlfn.QUARTILE.INC(OFFSET(XMLSheet!$A$6:$A$29,,MATCH(VLOOKUP($S45,Calcs!$G:$H,2,FALSE),XMLSheet!$2:$2,0)-1),1) -> 45.25162338 | AE45: =_xlfn.QUARTILE.INC(OFFSET(XMLSheet!$A$6:$A$29,,MATCH(VLOOKUP($S45,Calcs!$G:$H,2,FALSE),XMLSheet!$2:$2,0)-1),3) -> 57.20899471 | AF45: =MAX(OFFSET(XMLSheet!$A$6:$A$29,,MATCH(VLOOKUP($S45,Calcs!$G:$H,2,FALSE),XMLSheet!$2:$2,0)-1)) -> 66.66666667 | AI45: =IF($W45<MIN('0-5 Dashboard'!$L45:$N45),$V45,NA()) ->  | AJ45: 0.4285714286 | AK45: =IF(MAX('0-5 Dashboard'!$L45:$N45)<$W45,$V45,NA()) ->  | AL45: =NA() ->  | AM45: =NA() ->  | AN45: =NA() ->  | AO45: better/worse | AR45: 2
S46: School Readiness: The percentage of Year 1 pupils achieving the expected level in the phonics screening check | T46: ='0-5 Dashboard'!$L46 -> 77.98 | U46: 43.5 | V46: 0.3139913232 | W46: =AVERAGE(OFFSET(XMLSheet!$A$6:$A$29,,MATCH(VLOOKUP($S46,Calcs!$G:$H,2,FALSE),XMLSheet!$2:$2,0)-1)) -> 80.50291667 | X46: 0 | Y46: 0.2672180043 | Z46: 0.5 | AA46: 0.6080531453 | AB46: 1 | AC46: =MIN(OFFSET(XMLSheet!$A$6:$A$29,,MATCH(VLOOKUP($S46,Calcs!$G:$H,2,FALSE),XMLSheet!$2:$2,0)-1)) -> 72.19 | AD46: =_xlfn.QUARTILE.INC(OFFSET(XMLSheet!$A$6:$A$29,,MATCH(VLOOKUP($S46,Calcs!$G:$H,2,FALSE),XMLSheet!$2:$2,0)-1),1) -> 77.1175 | AE46: =_xlfn.QUARTILE.INC(OFFSET(XMLSheet!$A$6:$A$29,,MATCH(VLOOKUP($S46,Calcs!$G:$H,2,FALSE),XMLSheet!$2:$2,0)-1),3) -> 83.4025 | AF46: =MAX(OFFSET(XMLSheet!$A$6:$A$29,,MATCH(VLOOKUP($S46,Calcs!$G:$H,2,FALSE),XMLSheet!$2:$2,0)-1)) -> 90.63 | AI46: =IF($W46<MIN('0-5 Dashboard'!$L46:$N46),$V46,NA()) ->  | AJ46: 0.3139913232 | AK46: =IF(MAX('0-5 Dashboard'!$L46:$N46)<$W46,$V46,NA()) ->  | AL46: =NA() ->  | AM46: =NA() ->  | AN46: =NA() ->  | AO46: better/worse | AR46: 3
S47: School Readiness: The percentage of Year 1 pupils with free school meal status achieving the expected level in the phonics screening check | T47: ='0-5 Dashboard'!$L47 -> 33.33 | U47: 44.5 | V47: 0 | W47: =AVERAGE(OFFSET(XMLSheet!$A$6:$A$29,,MATCH(VLOOKUP($S47,Calcs!$G:$H,2,FALSE),XMLSheet!$2:$2,0)-1)) -> 69.41083333 | X47: 0 | Y47: 0.5928558243 | Z47: 0.5 | AA47: 0.7997046336 | AB47: 1 | AC47: =MIN(OFFSET(XMLSheet!$A$6:$A$29,,MATCH(VLOOKUP($S47,Calcs!$G:$H,2,FALSE),XMLSheet!$2:$2,0)-1)) -> 33.33 | AD47: =_xlfn.QUARTILE.INC(OFFSET(XMLSheet!$A$6:$A$29,,MATCH(VLOOKUP($S47,Calcs!$G:$H,2,FALSE),XMLSheet!$2:$2,0)-1),1) -> 65.445 | AE47: =_xlfn.QUARTILE.INC(OFFSET(XMLSheet!$A$6:$A$29,,MATCH(VLOOKUP($S47,Calcs!$G:$H,2,FALSE),XMLSheet!$2:$2,0)-1),3) -> 76.65 | AF47: =MAX(OFFSET(XMLSheet!$A$6:$A$29,,MATCH(VLOOKUP($S47,Calcs!$G:$H,2,FALSE),XMLSheet!$2:$2,0)-1)) -> 87.5 | AI47: =IF($W47<MIN('0-5 Dashboard'!$L47:$N47),$V47,NA()) ->  | AJ47: 0 | AK47: =IF(MAX('0-5 Dashboard'!$L47:$N47)<$W47,$V47,NA()) ->  | AL47: =NA() ->  | AM47: =NA() ->  | AN47: =NA() ->  | AO47: better/worse | AR47: 2
S48: Looked After Children | U48: 45.5 | Z48: 0.5
S49: Looked after children aged 0-5 (5 year rate per 10,000 population) | T49: ='0-5 Dashboard'!$L49 -> 0 | U49: 46.5 | V49: 0 | W49: =AVERAGE(OFFSET(XMLSheet!$A$6:$A$29,,MATCH(VLOOKUP($S49,Calcs!$G:$H,2,FALSE),XMLSheet!$2:$2,0)-1)) -> 32.14939216 | X49: 0 | Y49: 0.1196109239 | Z49: 0.5 | AA49: 0.6184899332 | AB49: 1 | AC49: =MIN(OFFSET(XMLSheet!$A$6:$A$29,,MATCH(VLOOKUP($S49,Calcs!$G:$H,2,FALSE),XMLSheet!$2:$2,0)-1)) -> 0 | AD49: =_xlfn.QUARTILE.INC(OFFSET(XMLSheet!$A$6:$A$29,,MATCH(VLOOKUP($S49,Calcs!$G:$H,2,FALSE),XMLSheet!$2:$2,0)-1),1) -> 9.063761248 | AE49: =_xlfn.QUARTILE.INC(OFFSET(XMLSheet!$A$6:$A$29,,MATCH(VLOOKUP($S49,Calcs!$G:$H,2,FALSE),XMLSheet!$2:$2,0)-1),3) -> 46.86733375 | AF49: =MAX(OFFSET(XMLSheet!$A$6:$A$29,,MATCH(VLOOKUP($S49,Calcs!$G:$H,2,FALSE),XMLSheet!$2:$2,0)-1)) -> 75.77703571 | AI49: =NA() ->  | AJ49: =IF(AND(ISNA(AM49),ISNA(AN49)),V49,NA()) ->  | AK49: =NA() ->  | AL49: =NA() ->  | AM49: =IF($W49>MAX('0-5 Dashboard'!$L49:$N49),$V49,NA()) -> 0 | AN49: =IF(MIN('0-5 Dashboard'!$L49:$N49)>$W49,$V49,NA()) ->  | AO49: lower/higher | AR49: 3
AR51: Chart Series

Sheet XMLSheet (hidden)
C1: Mid-year population estimates 0-5 | FG1: Number of births (live births to mothers resident in Dudley) | IS1: General Fertility Rate (total births per 1,000 mothers aged 15-44) | OW1: BME Population aged 0-4 Years (%) | PG1: Income Deprivation Affecting Children Index (IDACI) Decile (1= most deprived, 10= least deprived) | PQ1: Life Expectancy at birth (Female) | TM1: Life Expectancy at birth (Male) | XI1: Infant mortality (10-year rate per 1,000 live births) | YW1: Caesarean Section (%) | ABO1: Low birthweight (3 year rate) | AEG1: Percentage initiating breastfeeding | AGE1: Percentage totally or partially breastfed at 6 to 8 weeks | AHS1: Under 18 Conception Rates (rate per 1,000) | AJG1: Mothers Smoking at Time of Delivery (%) | ALO1: Babies reported as living in a Smoke Free Home (%) | ANC1: Population vaccination coverage - MMR for one dose (2 years old) | AOQ1: Population vaccination coverage - MMR for one dose (5 years old) | AQE1: Population vaccination coverage - MMR for two doses (5 years old) | ARS1: Population vaccination coverage - PCV (1 year old) | ATG1: Prevalence of Healthy Weight, Reception Year (%), 3 year rate | AWI1: Prevalence of Excess Weight, Reception Year (%), 3 year rate | AZK1: Obesity Prevalence, Reception Year (%), 3 year rate | BCM1: A&E attendance rate per 1,000 population aged 0-4 years (crude rate per 1,000 population) | BFE1: Emergency admissions rate per 1,000 population aged 0-4 years (crude rate per 1,000 population) | BHW1: Emergency admissions for unintentional injuries in children aged under five years (3 year crude rate per 10,000 population) | BJU1: Admissions for gastroenteritis in infants aged under one year (3 year crude rate per 10,000 population) | BLS1: Admissions for gastroenteritis in infants aged one year (3 year crude rate per 10,000 population) | BNQ1: Admissions for gastroenteritis in children aged 2, 3 and 4 years (3 year crude rate per 10,000 population) | BPO1: Admissions for gastroenteritis in children aged under five years (3 year crude rate per 10,000 population) | BRM1: Admissions for respiratory tract infections in infants aged under one year (3 year crude rate per 10,000 population) | BTK1: Admissions for respiratory tract infections in infants aged one year (3 year crude rate per 10,000 population) | BVI1: Admissions for respiratory tract infections in children aged 2, 3 and 4 years (3 year crude rate per 10,000 population) | BXG1: Admissions for respiratory tract infections in children aged under five years (3 year crude rate per 10,000 population) | BZE1: 5 year olds with tooth decay experience (%) | CAI1: Tooth decay in children aged 5 | CBM1: School Readiness: The percentage of children achieving a good level of development at the end of reception | CDA1: School Readiness: The percentage of children with free school meal status achieving a good level of development at the end of reception | CEE1: School Readiness: The percentage of Year 1 pupils achieving the expected level in the phonics screening check | CFS1: School Readiness: The percentage of Year 1 pupils with free school meal status achieving the expected level in the phonics screening check | CGW1: Looked after children aged 0-5 (5 year rate per 10,000 population)
C2: Mid-year population estimates 0-5 2002 | M2: Mid-year population estimates 0-5 2003 | W2: Mid-year population estimates 0-5 2004 | AG2: Mid-year population estimates 0-5 2005 | AQ2: Mid-year population estimates 0-5 2006 | BA2: Mid-year population estimates 0-5 2007 | BK2: Mid-year population estimates 0-5 2008 | BU2: Mid-year population estimates 0-5 2009 | CE2: Mid-year population estimates 0-5 2010 | CO2: Mid-year population estimates 0-5 2011 | CY2: Mid-year population estimates 0-5 2012 | DI2: Mid-year population estimates 0-5 2013 | DS2: Mid-year population estimates 0-5 2014 | EC2: Mid-year population estimates 0-5 2015 | EM2: Mid-year population estimates 0-5 2016 | EW2: Mid-year population estimates 0-5 2017 | FG2: Number of births (live births to mothers resident in Dudley) 2009 | FQ2: Number of births (live births to mothers resident in Dudley) 2010 | GA2: Number of births (live births to mothers resident in Dudley) 2011 | GK2: Number of births (live births to mothers resident in Dudley) 2012 | GU2: Number of births (live births to mothers resident in Dudley) 2013 | HE2: Number of births (live births to mothers resident in Dudley) 2014 | HO2: Number of births (live births to mothers resident in Dudley) 2015 | HY2: Number of births (live births to mothers resident in Dudley) 2016 | II2: Number of births (live births to mothers resident in Dudley) 2017 | IS2: General Fertility Rate (total births per 1,000 mothers aged 15-44) 2002 | JC2: General Fertility Rate (total births per 1,000 mothers aged 15-44) 2003 | JM2: General Fertility Rate (total births per 1,000 mothers aged 15-44) 2004 | JW2: General Fertility Rate (total births per 1,000 mothers aged 15-44) 2005 | KG2: General Fertility Rate (total births per 1,000 mothers aged 15-44) 2006 | KQ2: General Fertility Rate (total births per 1,000 mothers aged 15-44) 2007 | LA2: General Fertility Rate (total births per 1,000 mothers aged 15-44) 2008 | LK2: General Fertility Rate (total births per 1,000 mothers aged 15-44) 2009 | LU2: General Fertility Rate (total births per 1,000 mothers aged 15-44) 2010 | ME2: General Fertility Rate (total births per 1,000 mothers aged 15-44) 2011 | MO2: General Fertility Rate (total births per 1,000 mothers aged 15-44) 2012 | MY2: General Fertility Rate (total births per 1,000 mothers aged 15-44) 2013 | NI2: General Fertility Rate (total births per 1,000 mothers aged 15-44) 2014 | NS2: General Fertility Rate (total births per 1,000 mothers aged 15-44) 2015 | OC2: General Fertility Rate (total births per 1,000 mothers aged 15-44) 2016 | OM2: General Fertility Rate (total births per 1,000 mothers aged 15-44) 2017 | OW2: BME Population aged 0-4 Years (%) 2011 | PG2: Income Deprivation Affecting Children Index (IDACI) Decile (1= most deprived, 10= least deprived) 2015 | PQ2: Life Expectancy at birth (Female) 2006-2008 | QA2: Life Expectancy at birth (Female) 2007-2009 | QK2: Life Expectancy at birth (Female) 2008-2010 | QU2: Life Expectancy at birth (Female) 2009-2011 | RE2: Life Expectancy at birth (Female) 2010-2012 | RO2: Life Expectancy at birth (Female) 2011-2013 | RY2: Life Expectancy at birth (Female) 2012-2014 | SI2: Life Expectancy at birth (Female) 2013-2015 | SS2: Life Expectancy at birth (Female) 2014-2016 | TC2: Life Expectancy at birth (Female) 2015-2017 | TM2: Life Expectancy at birth (Male) 2006-2008 | TW2: Life Expectancy at birth (Male) 2007-2009 | UG2: Life Expectancy at birth (Male) 2008-2010 | UQ2: Life Expectancy at birth (Male) 2009-2011 | VA2: Life Expectancy at birth (Male) 2010-2012 | VK2: Life Expectancy at birth (Male) 2011-2013 | VU2: Life Expectancy at birth (Male) 2012-2014 | WE2: Life Expectancy at birth (Male) 2013-2015 | WO2: Life Expectancy at birth (Male) 2014-2016 | WY2: Life Expectancy at birth (Male) 2015-2017 | XI2: Infant mortality (10-year rate per 1,000 live births) 2005-2014 | XS2: Infant mortality (10-year rate per 1,000 live births) 2006-2015 | YC2: Infant mortality (10-year rate per 1,000 live births) 2007-2016 | YM2: Infant mortality (10-year rate per 1,000 live births) 2008-2017 | YW2: Caesarean Section (%) 2011/12 | ZG2: Caesarean Section (%) 2012/13 | ZQ2: Caesarean Section (%) 2013/14 | AAA2: Caesarean Section (%) 2014/15 | AAK2: Caesarean Section (%) 2015/16 | AAU2: Caesarean Section (%) 2016/17 | ABE2: Caesarean Section (%) 2017/18 | ABO2: Low birthweight (3 year rate) 2008-10 | ABY2: Low birthweight (3 year rate) 2009-11 | ACI2: Low birthweight (3 year rate) 2010-12 | ACS2: Low birthweight (3 year rate) 2011-13 | ADC2: Low birthweight (3 year rate) 2012-14 | ADM2: Low birthweight (3 year rate) 2013-15 | ADW2: Low birthweight (3 year rate) 2014-16 | AEG2: Percentage initiating breastfeeding 2013/14 | AEQ2: Percentage initiating breastfeeding 2014/15 | AFA2: Percentage initiating breastfeeding 2015/16 | AFK2: Percentage initiating breastfeeding 2016/17 | AFU2: Percentage initiating breastfeeding 2017/18 | AGE2: Percentage totally or partially breastfed at 6 to 8 weeks 2013/14 | AGO2: Percentage totally or partially breastfed at 6 to 8 weeks 2014/15 | AGY2: Percentage totally or partially breastfed at 6 to 8 weeks 2015/16 | AHI2: Percentage totally or partially breastfed at 6 to 8 weeks 2016/17 | AHS2: Under 18 Conception Rates (rate per 1,000) 2010-12 | AIC2: Under 18 Conception Rates (rate per 1,000) 2011-13 | AIM2: Under 18 Conception Rates (rate per 1,000) 2012-14 | AIW2: Under 18 Conception Rates (rate per 1,000) 2013-15 | AJG2: Mothers Smoking at Time of Delivery (%) 2012/13 | AJQ2: Mothers Smoking at Time of Delivery (%) 2013/14 | AKA2: Mothers Smoking at Time of Delivery (%) 2014/15 | AKK2: Mothers Smoking at Time of Delivery (%) 2015/16 | AKU2: Mothers Smoking at Time of Delivery (%) 2016/17 | ALE2: Mothers Smoking at Time of Delivery (%) 2017/18 | ALO2: Babies reported as living in a Smoke Free Home (%) 2012/13 | ALY2: Babies reported as living in a Smoke Free Home (%) 2013/14 | AMI2: Babies reported as living in a Smoke Free Home (%) 2014/15 | AMS2: Babies reported as living in a Smoke Free Home (%) 2015/16 | ANC2: Population vaccination coverage - MMR for one dose (2 years old) 2012/13 | ANM2: Population vaccination coverage - MMR for one dose (2 years old) 2013/14 | ANW2: Population vaccination coverage - MMR for one dose (2 years old) 2014/15 | AOG2: Population vaccination coverage - MMR for one dose (2 years old) 2015/16 | AOQ2: Population vaccination coverage - MMR for one dose (5 years old) 2012/13 | APA2: Population vaccination coverage - MMR for one dose (5 years old) 2013/14 | APK2: Population vaccination coverage - MMR for one dose (5 years old) 2014/15 | APU2: Population vaccination coverage - MMR for one dose (5 years old) 2015/16 | AQE2: Population vaccination coverage - MMR for two doses (5 years old) 2012/13 | AQO2: Population vaccination coverage - MMR for two doses (5 years old) 2013/14 | AQY2: Population vaccination coverage - MMR for two doses (5 years old) 2014/15 | ARI2: Population vaccination coverage - MMR for two doses (5 years old) 2015/16 | ARS2: Population vaccination coverage - PCV (1 year old) 2012/13 | ASC2: Population vaccination coverage - PCV (1 year old) 2013/14 | ASM2: Population vaccination coverage - PCV (1 year old) 2014/15 | ASW2: Population vaccination coverage - PCV (1 year old) 2015/16 | ATG2: Prevalence of Healthy Weight, Reception Year (%), 3 year rate 2008/09-2010/11 | ATQ2: Prevalence of Healthy Weight, Reception Year (%), 3 year rate 2009/10-2011/12 | AUA2: Prevalence of Healthy Weight, Reception Year (%), 3 year rate 2010/11-2012/13 | AUK2: Prevalence of Healthy Weight, Reception Year (%), 3 year rate 2011/12-2013/14 | AUU2: Prevalence of Healthy Weight, Reception Year (%), 3 year rate 2012/13-2014/15 | AVE2: Prevalence of Healthy Weight, Reception Year (%), 3 year rate 2013/14-2015/16 | AVO2: Prevalence of Healthy Weight, Reception Year (%), 3 year rate 2014/15-2016/17 | AVY2: Prevalence of Healthy Weight, Reception Year (%), 3 year rate 2015/16-2017/18 | AWI2: Prevalence of Excess Weight, Reception Year (%), 3 year rate 2008/09-2010/11 | AWS2: Prevalence of Excess Weight, Reception Year (%), 3 year rate 2009/10-2011/12 | AXC2: Prevalence of Excess Weight, Reception Year (%), 3 year rate 2010/11-2012/13 | AXM2: Prevalence of Excess Weight, Reception Year (%), 3 year rate 2011/12-2013/14 | AXW2: Prevalence of Excess Weight, Reception Year (%), 3 year rate 2012/13-2014/15 | AYG2: Prevalence of Excess Weight, Reception Year (%), 3 year rate 2013/14-2015/16 | AYQ2: Prevalence of Excess Weight, Reception Year (%), 3 year rate 2014/15-2016/17 | AZA2: Prevalence of Excess Weight, Reception Year (%), 3 year rate 2015/16-2017/18 | AZK2: Obesity Prevalence, Reception Year (%), 3 year rate 2008/09-2010/11 | AZU2: Obesity Prevalence, Reception Year (%), 3 year rate 2009/10-2011/12 | BAE2: Obesity Prevalence, Reception Year (%), 3 year rate 2010/11-2012/13 | BAO2: Obesity Prevalence, Reception Year (%), 3 year rate 2011/12-2013/14 | BAY2: Obesity Prevalence, Reception Year (%), 3 year rate 2012/13-2014/15 | BBI2: Obesity Prevalence, Reception Year (%), 3 year rate 2013/14-2015/16 | BBS2: Obesity Prevalence, Reception Year (%), 3 year rate 2014/15-2016/17 | BCC2: Obesity Prevalence, Reception Year (%), 3 year rate 2015/16-2017/18 | BCM2: A&E attendance rate per 1,000 population aged 0-4 years (crude rate per 1,000 population) 2011/12 | BCW2: A&E attendance rate per 1,000 population aged 0-4 years (crude rate per 1,000 population) 2012/13 | BDG2: A&E attendance rate per 1,000 population aged 0-4 years (crude rate per 1,000 population) 2013/14 | BDQ2: A&E attendance rate per 1,000 population aged 0-4 years (crude rate per 1,000 population) 2014/15 | BEA2: A&E attendance rate per 1,000 population aged 0-4 years (crude rate per 1,000 population) 2015/16 | BEK2: A&E attendance rate per 1,000 population aged 0-4 years (crude rate per 1,000 population) 2016/17 | BEU2: A&E attendance rate per 1,000 population aged 0-4 years (crude rate per 1,000 population) 2017/18 | BFE2: Emergency admissions rate per 1,000 population aged 0-4 years (crude rate per 1,000 population) 2011/12 | BFO2: Emergency admissions rate per 1,000 population aged 0-4 years (crude rate per 1,000 population) 2012/13 | BFY2: Emergency admissions rate per 1,000 population aged 0-4 years (crude rate per 1,000 population) 2013/14 | BGI2: Emergency admissions rate per 1,000 population aged 0-4 years (crude rate per 1,000 population) 2014/15 | BGS2: Emergency admissions rate per 1,000 population aged 0-4 years (crude rate per 1,000 population) 2015/16 | BHC2: Emergency admissions rate per 1,000 population aged 0-4 years (crude rate per 1,000 population) 2016/17 | BHM2: Emergency admissions rate per 1,000 population aged 0-4 years (crude rate per 1,000 population) 2017/18 | BHW2: Emergency admissions for unintentional injuries in children aged under five years (3 year crude rate per 10,000 population) 2011/12-2013/14 | BIG2: Emergency admissions for unintentional injuries in children aged under five years (3 year crude rate per 10,000 population) 2012/13-2014/15 | BIQ2: Emergency admissions for unintentional injuries in children aged under five years (3 year crude rate per 10,000 population) 2013/14-2015/16 | BJA2: Emergency admissions for unintentional injuries in children aged under five years (3 year crude rate per 10,000 population) 2014/15-2016/17 | BJK2: Emergency admissions for unintentional injuries in children aged under five years (3 year crude rate per 10,000 population) 2015/16-2017/18 | BJU2: Admissions for gastroenteritis in infants aged under one year (3 year crude rate per 10,000 population) 2011/12-2013/14 | BKE2: Admissions for gastroenteritis in infants aged under one year (3 year crude rate per 10,000 population) 2012/13-2014/15 | BKO2: Admissions for gastroenteritis in infants aged under one year (3 year crude rate per 10,000 population) 2013/14-2015/16 | BKY2: Admissions for gastroenteritis in infants aged under one year (3 year crude rate per 10,000 population) 2014/15-2016/17 | BLI2: Admissions for gastroenteritis in infants aged under one year (3 year crude rate per 10,000 population) 2015/16-2017/18 | BLS2: Admissions for gastroenteritis in infants aged one year (3 year crude rate per 10,000 population) 2011/12-2013/14 | BMC2: Admissions for gastroenteritis in infants aged one year (3 year crude rate per 10,000 population) 2012/13-2014/15 | BMM2: Admissions for gastroenteritis in infants aged one year (3 year crude rate per 10,000 population) 2013/14-2015/16 | BMW2: Admissions for gastroenteritis in infants aged one year (3 year crude rate per 10,000 population) 2014/15-2016/17 | BNG2: Admissions for gastroenteritis in infants aged one year (3 year crude rate per 10,000 population) 2015/16-2017/18 | BNQ2: Admissions for gastroenteritis in children aged 2, 3 and 4 years (3 year crude rate per 10,000 population) 2011/12-2013/14 | BOA2: Admissions for gastroenteritis in children aged 2, 3 and 4 years (3 year crude rate per 10,000 population) 2012/13-2014/15 | BOK2: Admissions for gastroenteritis in children aged 2, 3 and 4 years (3 year crude rate per 10,000 population) 2013/14-2015/16 | BOU2: Admissions for gastroenteritis in children aged 2, 3 and 4 years (3 year crude rate per 10,000 population) 2014/15-2016/17 | BPE2: Admissions for gastroenteritis in children aged 2, 3 and 4 years (3 year crude rate per 10,000 population) 2015/16-2017/18 | BPO2: Admissions for gastroenteritis in children aged under five years (3 year crude rate per 10,000 population) 2011/12-2013/14 | BPY2: Admissions for gastroenteritis in children aged under five years (3 year crude rate per 10,000 population) 2012/13-2014/15 | BQI2: Admissions for gastroenteritis in children aged under five years (3 year crude rate per 10,000 population) 2013/14-2015/16 | BQS2: Admissions for gastroenteritis in children aged under five years (3 year crude rate per 10,000 population) 2014/15-2016/17 | BRC2: Admissions for gastroenteritis in children aged under five years (3 year crude rate per 10,000 population) 2015/16-2017/18 | BRM2: Admissions for respiratory tract infections in infants aged under one year (3 year crude rate per 10,000 population) 2011/12-2013/14 | BRW2: Admissions for respiratory tract infections in infants aged under one year (3 year crude rate per 10,000 population) 2012/13-2014/15 | BSG2: Admissions for respiratory tract infections in infants aged under one year (3 year crude rate per 10,000 population) 2013/14-2015/16 | BSQ2: Admissions for respiratory tract infections in infants aged under one year (3 year crude rate per 10,000 population) 2014/15-2016/17 | BTA2: Admissions for respiratory tract infections in infants aged under one year (3 year crude rate per 10,000 population) 2015/16-2017/18 | BTK2: Admissions for respiratory tract infections in infants aged one year (3 year crude rate per 10,000 population) 2011/12-2013/14 | BTU2: Admissions for respiratory tract infections in infants aged one year (3 year crude rate per 10,000 population) 2012/13-2014/15 | BUE2: Admissions for respiratory tract infections in infants aged one year (3 year crude rate per 10,000 population) 2013/14-2015/16 | BUO2: Admissions for respiratory tract infections in infants aged one year (3 year crude rate per 10,000 population) 2014/15-2016/17 | BUY2: Admissions for respiratory tract infections in infants aged one year (3 year crude rate per 10,000 population) 2015/16-2017/18 | BVI2: Admissions for respiratory tract infections in children aged 2, 3 and 4 years (3 year crude rate per 10,000 population) 2011/12-2013/14 | BVS2: Admissions for respiratory tract infections in children aged 2, 3 and 4 years (3 year crude rate per 10,000 population) 2012/13-2014/15 | BWC2: Admissions for respiratory tract infections in children aged 2, 3 and 4 years (3 year crude rate per 10,000 population) 2013/14-2015/16 | BWM2: Admissions for respiratory tract infections in children aged 2, 3 and 4 years (3 year crude rate per 10,000 population) 2014/15-2016/17 | BWW2: Admissions for respiratory tract infections in children aged 2, 3 and 4 years (3 year crude rate per 10,000 population) 2015/16-2017/18 | BXG2: Admissions for respiratory tract infections in children aged under five years (3 year crude rate per 10,000 population) 2011/12-2013/14 | BXQ2: Admissions for respiratory tract infections in children aged under five years (3 year crude rate per 10,000 population) 2012/13-2014/15 | BYA2: Admissions for respiratory tract infections in children aged under five years (3 year crude rate per 10,000 population) 2013/14-2015/16 | BYK2: Admissions for respiratory tract infections in children aged under five years (3 year crude rate per 10,000 population) 2014/15-2016/17 | BYU2: Admissions for respiratory tract infections in children aged under five years (3 year crude rate per 10,000 population) 2015/16-2017/18 | BZE2: 5 year olds with tooth decay experience (%) 2011/12 | BZO2: 5 year olds with tooth decay experience (%) 2014/15 | BZY2: 5 year olds with tooth decay experience (%) 2016/17 | CAI2: Tooth decay in children aged 5 2011/12 | CAS2: Tooth decay in children aged 5 2014/15 | CBC2: Tooth decay in children aged 5 2016/17 | CBM2: School Readiness: The percentage of children achieving a good level of development at the end of reception 2014/15 | CBW2: School Readiness: The percentage of children achieving a good level of development at the end of reception 2015/16 | CCG2: School Readiness: The percentage of children achieving a good level of development at the end of reception 2016/17 | CCQ2: School Readiness: The percentage of children achieving a good level of development at the end of reception 2017/18 | CDA2: School Readiness: The percentage of children with free school meal status achieving a good level of development at the end of reception 2014/15-2015/16 | CDK2: School Readiness: The percentage of children with free school meal status achieving a good level of development at the end of reception 2016/17 | CDU2: School Readiness: The percentage of children with free school meal status achieving a good level of development at the end of reception 2017/18 | CEE2: School Readiness: The percentage of Year 1 pupils achieving the expected level in the phonics screening check 2014/15 | CEO2: School Readiness: The percentage of Year 1 pupils achieving the expected level in the phonics screening check 2015/16 | CEY2: School Readiness: The percentage of Year 1 pupils achieving the expected level in the phonics screening check 2016/17 | CFI2: School Readiness: The percentage of Year 1 pupils achieving the expected level in the phonics screening check 2017/18 | CFS2: School Readiness: The percentage of Year 1 pupils with free school meal status achieving the expected level in the phonics screening check 2014/15-2015/16 | CGC2: School Readiness: The percentage of Year 1 pupils with free school meal status achieving the expected level in the phonics screening check 2016/17 | CGM2: School Readiness: The percentage of Year 1 pupils with free school meal status achieving the expected level in the phonics screening check 2017/18 | CGW2: Looked after children aged 0-5 (5 year rate per 10,000 population) 2010/11-2014/15 | CHG2: Looked after children aged 0-5 (5 year rate per 10,000 population) 2011/12-2015/16 | CHQ2: Looked after children aged 0-5 (5 year rate per 10,000 population) 2012/13-2016/17 | CIA2: Looked after children aged 0-5 (5 year rate per 10,000 population) 2013/14-2017/18
C3: MYE.htm | M3: MYE.htm | W3: MYE.htm | AG3: MYE.htm | AQ3: MYE.htm | BA3: MYE.htm | BK3: MYE.htm | BU3: MYE.htm | CE3: MYE.htm | CO3: MYE.htm | CY3: MYE.htm | DI3: MYE.htm | DS3: MYE.htm | EC3: MYE.htm | EM3: MYE.htm | EW3: MYE.htm | FG3: Births.htm | FQ3: Births.htm | GA3: Births.htm | GK3: Births.htm | GU3: Births.htm | HE3: Births.htm | HO3: Births.htm | HY3: Births.htm | II3: Births.htm | IS3: GFR.htm | JC3: GFR.htm | JM3: GFR.htm | JW3: GFR.htm | KG3: GFR.htm | KQ3: GFR.htm | LA3: GFR.htm | LK3: GFR.htm | LU3: GFR.htm | ME3: GFR.htm | MO3: GFR.htm | MY3: GFR.htm | NI3: GFR.htm | NS3: GFR.htm | OC3: GFR.htm | OM3: GFR.htm | OW3: BME.htm | PG3: IDACI.htm | PQ3: LEFemale.htm | QA3: LEFemale.htm | QK3: LEFemale.htm | QU3: LEFemale.htm | RE3: LEFemale.htm | RO3: LEFemale.htm | RY3: LEFemale.htm | SI3: LEFemale.htm | SS3: LEFemale.htm | TC3: LEFemale.htm | TM3: LEMale.htm | TW3: LEMale.htm | UG3: LEMale.htm | UQ3: LEMale.htm | VA3: LEMale.htm | VK3: LEMale.htm | VU3: LEMale.htm | WE3: LEMale.htm | WO3: LEMale.htm | WY3: LEMale.htm | XI3: InfantMortality.htm | XS3: InfantMortality.htm | YC3: InfantMortality.htm | YM3: InfantMortality.htm | YW3: C-Section.htm | ZG3: C-Section.htm | ZQ3: C-Section.htm | AAA3: C-Section.htm | AAK3: C-Section.htm | AAU3: C-Section.htm | ABE3: C-Section.htm | ABO3: LBW.htm | ABY3: LBW.htm | ACI3: LBW.htm | ACS3: LBW.htm | ADC3: LBW.htm | ADM3: LBW.htm | ADW3: LBW.htm | AEG3: BFInit.htm | AEQ3: BFInit.htm | AFA3: BFInit.htm | AFK3: BFInit.htm | AFU3: BFInit.htm | AGE3: BF6-8weeks.htm | AGO3: BF6-8weeks.htm | AGY3: BF6-8weeks.htm | AHI3: BF6-8weeks.htm | AHS3: U18Conceptions.htm | AIC3: U18Conceptions.htm | AIM3: U18Conceptions.htm | AIW3: U18Conceptions.htm | AJG3: SATOD.htm | AJQ3: SATOD.htm | AKA3: SATOD.htm | AKK3: SATOD.htm | AKU3: SATOD.htm | ALE3: SATOD.htm | ALO3: SFH.htm | ALY3: SFH.htm | AMI3: SFH.htm | AMS3: SFH.htm | ANC3: MMR1D2YRS.htm | ANM3: MMR1D2YRS.htm | ANW3: MMR1D2YRS.htm | AOG3: MMR1D2YRS.htm | AOQ3: MMR1D5YRS.htm | APA3: MMR1D5YRS.htm | APK3: MMR1D5YRS.htm | APU3: MMR1D5YRS.htm | AQE3: MMR2D5YRS.htm | AQO3: MMR2D5YRS.htm | AQY3: MMR2D5YRS.htm | ARI3: MMR2D5YRS.htm | ARS3: PCV.htm | ASC3: PCV.htm | ASM3: PCV.htm | ASW3: PCV.htm | ATG3: HealthyWeight.htm | ATQ3: HealthyWeight.htm | AUA3: HealthyWeight.htm | AUK3: HealthyWeight.htm | AUU3: HealthyWeight.htm | AVE3: HealthyWeight.htm | AVO3: HealthyWeight.htm | AVY3: HealthyWeight.htm | AWI3: ExcessWeight.htm | AWS3: ExcessWeight.htm | AXC3: ExcessWeight.htm | AXM3: ExcessWeight.htm | AXW3: ExcessWeight.htm | AYG3: ExcessWeight.htm | AYQ3: ExcessWeight.htm | AZA3: ExcessWeight.htm | AZK3: Obesity.htm | AZU3: Obesity.htm | BAE3: Obesity.htm | BAO3: Obesity.htm | BAY3: Obesity.htm | BBI3: Obesity.htm | BBS3: Obesity.htm | BCC3: Obesity.htm | BCM3: A&E.htm | BCW3: A&E.htm | BDG3: A&E.htm | BDQ3: A&E.htm | BEA3: A&E.htm | BEK3: A&E.htm | BEU3: A&E.htm | BFE3: Emergency0-4.htm | BFO3: Emergency0-4.htm | BFY3: Emergency0-4.htm | BGI3: Emergency0-4.htm | BGS3: Emergency0-4.htm | BHC3: Emergency0-4.htm | BHM3: Emergency0-4.htm | BHW3: EmergencyUninUnder5.htm | BIG3: EmergencyUninUnder5.htm | BIQ3: EmergencyUninUnder5.htm | BJA3: EmergencyUninUnder5.htm | BJK3: EmergencyUninUnder5.htm | BJU3: GastroUnder1.htm | BKE3: GastroUnder1.htm | BKO3: GastroUnder1.htm | BKY3: GastroUnder1.htm | BLI3: GastroUnder1.htm | BLS3: Gastro1.htm | BMC3: Gastro1.htm | BMM3: Gastro1.htm | BMW3: Gastro1.htm | BNG3: Gastro1.htm | BNQ3: Gastro2-4.htm | BOA3: Gastro2-4.htm | BOK3: Gastro2-4.htm | BOU3: Gastro2-4.htm | BPE3: Gastro2-4.htm | BPO3: GastroUnder5.htm | BPY3: GastroUnder5.htm | BQI3: GastroUnder5.htm | BQS3: GastroUnder5.htm | BRC3: GastroUnder5.htm | BRM3: RespUnder1.htm | BRW3: RespUnder1.htm | BSG3: RespUnder1.htm | BSQ3: RespUnder1.htm | BTA3: RespUnder1.htm | BTK3: Resp1.htm | BTU3: Resp1.htm | BUE3: Resp1.htm | BUO3: Resp1.htm | BUY3: Resp1.htm | BVI3: Resp2-4.htm | BVS3: Resp2-4.htm | BWC3: Resp2-4.htm | BWM3: Resp2-4.htm | BWW3: Resp2-4.htm | BXG3: RespUnder5.htm | BXQ3: RespUnder5.htm | BYA3: RespUnder5.htm | BYK3: RespUnder5.htm | BYU3: RespUnder5.htm | BZE3: ToothDecay%.htm | BZO3: ToothDecay%.htm | BZY3: ToothDecay%.htm | CAI3: ToothDecay.htm | CAS3: ToothDecay.htm | CBC3: ToothDecay.htm | CBM3: SRReception.htm | CBW3: SRReception.htm | CCG3: SRReception.htm | CCQ3: SRReception.htm | CDA3: SRReceptionFSM.htm | CDK3: SRReceptionFSM.htm | CDU3: SRReceptionFSM.htm | CEE3: SRYr1.htm | CEO3: SRYr1.htm | CEY3: SRYr1.htm | CFI3: SRYr1.htm | CFS3: SRYr1FSM.htm | CGC3: SRYr1FSM.htm | CGM3: SRYr1FSM.htm | CGW3: LAC.htm | CHG3: LAC.htm | CHQ3: LAC.htm | CIA3: LAC.htm
C4: numeric | D4: categoric | F4: numeric | M4: numeric | N4: categoric | P4: numeric | W4: numeric | X4: categoric | Z4: numeric | AG4: numeric | AH4: categoric | AJ4: numeric | AQ4: numeric | AR4: categoric | AT4: numeric | BA4: numeric | BB4: categoric | BD4: numeric | BK4: numeric | BL4: categoric | BN4: numeric | BU4: numeric | BV4: categoric | BX4: numeric | CE4: numeric | CF4: categoric | CH4: numeric | CO4: numeric | CP4: categoric | CR4: numeric | CY4: numeric | CZ4: categoric | DB4: numeric | DI4: numeric | DJ4: categoric | DL4: numeric | DS4: numeric | DT4: categoric | DV4: numeric | EC4: numeric | ED4: categoric | EF4: numeric | EM4: numeric | EN4: categoric | EP4: numeric | EW4: numeric | EX4: categoric | EZ4: numeric | FG4: numeric | FQ4: numeric | GA4: numeric | GK4: numeric | GU4: numeric | HE4: numeric | HO4: numeric | HY4: numeric | II4: numeric | IS4: numeric | JC4: numeric | JM4: numeric | JW4: numeric | KG4: numeric | KQ4: numeric | LA4: numeric | LK4: numeric | LU4: numeric | ME4: numeric | MO4: numeric | MY4: numeric | NI4: numeric | NS4: numeric | OC4: numeric | OM4: numeric | OW4: numeric | PG4: numeric | PQ4: numeric | QA4: numeric | QK4: numeric | QU4: numeric | RE4: numeric | RO4: numeric | RY4: numeric | SI4: numeric | SS4: numeric | TC4: numeric | TM4: numeric | TW4: numeric | UG4: numeric | UQ4: numeric | VA4: numeric | VK4: numeric | VU4: numeric | WE4: numeric | WO4: numeric | WY4: numeric | XI4: numeric | XJ4: categoric | XL4: numeric | XS4: numeric | YC4: numeric | YM4: numeric | YW4: numeric | ZG4: numeric | ZQ4: numeric | AAA4: numeric | AAK4: numeric | AAU4: numeric | ABE4: numeric | ABO4: numeric | ABY4: numeric | ACI4: numeric | ACS4: numeric | ADC4: numeric | ADM4: numeric | ADW4: numeric | AEG4: numeric | AEQ4: numeric | AFA4: numeric | AFK4: numeric | AFU4: numeric | AGE4: numeric | AGO4: numeric | AGY4: numeric | AHI4: numeric | AHS4: numeric | AIC4: numeric | AIM4: numeric | AIW4: numeric | AJQ4: numeric | AKA4: numeric | AKK4: numeric | AKU4: numeric | ALE4: numeric | ALO4: numeric | ALY4: numeric | AMI4: numeric | AMS4: numeric | ANC4: numeric | ANM4: numeric | ANW4: numeric | AOG4: numeric | AOQ4: numeric | APA4: numeric | APK4: numeric | APU4: numeric | AQE4: numeric | AQO4: numeric | AQY4: numeric | ARI4: numeric | ARS4: numeric | ASC4: numeric | ASM4: numeric | ASW4: numeric | ATG4: numeric | ATQ4: numeric | AUA4: numeric | AUK4: numeric | AUU4: numeric | AVE4: numeric | AVO4: numeric | AVY4: numeric | AWI4: numeric | AWS4: numeric | AXC4: numeric | AXM4: numeric | AXW4: numeric | AYG4: numeric | AYQ4: numeric | AZA4: numeric | AZK4: numeric | AZU4: numeric | BAE4: numeric | BAO4: numeric | BAY4: numeric | BBI4: numeric | BBS4: numeric | BCC4: numeric | BCM4: numeric | BCW4: numeric | BDG4: numeric | BDQ4: numeric | BEA4: numeric | BEK4: numeric | BEU4: numeric | BFE4: numeric | BFO4: numeric | BFY4: numeric | BGI4: numeric | BGS4: numeric | BHC4: numeric | BHM4: numeric | BHW4: numeric | BIG4: numeric | BIQ4: numeric | BJA4: numeric | BJK4: numeric | BJU4: numeric | BKE4: numeric | BKO4: numeric | BKY4: numeric | BLI4: numeric | BLS4: numeric | BMC4: numeric | BMM4: numeric | BMW4: numeric | BNG4: numeric | BNQ4: numeric | BOK4: numeric | BOU4: numeric | BPE4: numeric | BPO4: numeric | BPY4: numeric | BQI4: numeric | BQS4: numeric | BRC4: numeric | BRW4: numeric | BSG4: numeric | BSQ4: numeric | BTA4: numeric | BTK4: numeric | BTU4: numeric | BUE4: numeric | BUO4: numeric | BUY4: numeric | BVI4: numeric | BVS4: numeric | BWC4: numeric | BWM4: numeric | BWW4: numeric | BXG4: numeric | BXQ4: numeric | BYA4: numeric | BYK4: numeric | BYU4: numeric | BZE4: numeric | BZO4: numeric | BZY4: numeric | CAI4: numeric | CAS4: numeric | CBC4: numeric | CBM4: numeric | CBW4: numeric | CCG4: numeric | CCQ4: numeric | CDA4: numeric | CDK4: numeric | CDU4: numeric | CEE4: numeric | CEO4: numeric | CEY4: numeric | CFI4: numeric | CFS4: numeric | CGC4: numeric | CGM4: numeric | CGW4: numeric | CHG4: numeric | CHQ4: numeric | CIA4: numeric
A5: Codes | B5: Names | C5: 2002 | D5: Year | E5: significance | F5: Dudley Value | G5: regional average | H5: ul | I5: UCI | J5: ll | K5: LCI | L5: count | M5: 2003 | N5: Year | O5: significance | P5: Dudley Value | Q5: regional average | R5: ul | S5: UCI | T5: ll | U5: LCI | V5: count | W5: 2004 | X5: Year | Y5: significance | Z5: Dudley avg | AA5: regional average | AB5: ul | AC5: UCI | AD5: ll | AE5: LCI | AF5: count | AG5: 2005 | AH5: Year | AI5: significance | AJ5: Dudley avg | AK5: regional average | AL5: ul | AM5: UCI | AN5: ll | AO5: LCI | AP5: count | AQ5: 2006 | AR5: Year | AS5: significance | AT5: Dudley avg | AU5: regional average | AV5: ul | AW5: UCI | AX5: ll | AY5: LCI | AZ5: count | BA5: 2007 | BB5: Year | BC5: significance | BD5: Dudley avg | BE5: regional average | BF5: ul | BG5: UCI | BH5: ll | BI5: LCI | BJ5: count | BK5: 2008 | BL5: Year | BM5: significance | BN5: Dudley avg | BO5: regional average | BP5: ul | BQ5: UCI | BR5: ll | BS5: LCI | BT5: count | BU5: 2009 | BV5: Year | BW5: significance | BX5: Dudley avg | BY5: regional average | BZ5: ul | CA5: UCI | CB5: ll | CC5: LCI | CD5: count | CE5: 2010 | CF5: Year | CG5: significance | CH5: Dudley avg | CI5: regional average | CJ5: ul | CK5: UCI | CL5: ll | CM5: LCI | CN5: count | CO5: 2011 | CP5: Year | CQ5: significance | CR5: Dudley avg | CS5: regional average | CT5: ul | CU5: UCI | CV5: ll | CW5: LCI | CX5: count | CY5: 2012 | CZ5: Year | DA5: significance | DB5: Dudley avg | DC5: regional average | DD5: ul | DE5: UCI | DF5: ll | DG5: LCI | DH5: count | DI5: 2013 | DJ5: Year | DK5: significance | DL5: Dudley avg | DM5: regional average | DN5: ul | DO5: UCI | DP5: ll | DQ5: LCI | DR5: count | DS5: 2014 | DT5: Year | DU5: significance | DV5: Dudley avg | DW5: regional average | DX5: ul | DY5: UCI | DZ5: ll | EA5: LCI | EB5: count | EC5: 2015 | ED5: Year | EE5: significance | EF5: Dudley avg | EG5: regional average | EH5: ul | EI5: UCI | EJ5: ll | EK5: LCI | EL5: count | EM5: 2016 | EN5: Year | EO5: significance | EP5: Dudley avg | EQ5: regional average | ER5: ul | ES5: UCI | ET5: ll | EU5: LCI | EV5: count | EW5: 2017 | EX5: Year | EY5: significance | EZ5: Dudley avg | FA5: regional average | FB5: ul | FC5: UCI | FD5: ll | FE5: LCI | FF5: count | FG5: 2009 | FH5: Year | FI5: significance | FJ5: Dudley avg | FK5: regional average | FL5: ll | FM5: LCI | FN5: ul | FO5: UCI | FP5: count | FQ5: 2010 | FR5: Year | FS5: significance | FT5: Dudley avg | FU5: regional average | FV5: ll | FW5: LCI | FX5: ul | FY5: UCI | FZ5: count | GA5: 2011 | GB5: Year | GC5: significance | GD5: Dudley avg | GE5: regional average | GF5: ll | GG5: LCI | GH5: ul | GI5: UCI | GJ5: count | GK5: 2012 | GL5: Year | GM5: significance | GN5: Dudley avg | GO5: regional average | GP5: ll | GQ5: LCI | GR5: ul | GS5: UCI | GT5: count | GU5: 2013 | GV5: Year | GW5: significance | GX5: Dudley avg | GY5: regional average | GZ5: ll | HA5: LCI | HB5: ul | HC5: UCI | HD5: count | HE5: 2014 | HF5: Year | HG5: significance | HH5: Dudley avg | HI5: regional average | HJ5: ll | HK5: LCI | HL5: ul | HM5: UCI | HN5: count | HO5: 2015 | HP5: Year | HQ5: significance | HR5: Dudley avg | HS5: regional average | HT5: ll | HU5: LCI | HV5: ul | HW5: UCI | HX5: count | HY5: 2016 | HZ5: Year | IA5: significance | IB5: Dudley avg | IC5: regional average | ID5: ll | IE5: LCI | IF5: ul | IG5: UCI | IH5: count | II5: 2017 | IJ5: Year | IK5: significance | IL5: Dudley avg | IM5: regional average | IN5: ll | IO5: LCI | IP5: ul | IQ5: UCI | IR5: count | IS5: 2002 | IT5: Year | IU5: significance | IV5: Dudley avg | IW5: regional average | IX5: ll | IY5: LCI | IZ5: ul | JA5: UCI | JB5: count | JC5: 2003 | JD5: Year | JE5: significance | JF5: Dudley avg | JG5: regional average | JH5: ll | JI5: LCI | JJ5: ul | JK5: UCI | JL5: count | JM5: 2004 | JN5: Year | JO5: significance | JP5: Dudley avg | JQ5: regional average | JR5: ll | JS5: LCI | JT5: ul | JU5: UCI | JV5: count | JW5: 2005 | JX5: Year | JY5: significance | JZ5: Dudley avg | KA5: regional average | KB5: ll | KC5: LCI | KD5: ul | KE5: UCI | KF5: count | KG5: 2006 | KH5: Year | KI5: significance | KJ5: Dudley avg | KK5: regional average | KL5: ll | KM5: LCI | KN5: ul | KO5: UCI | KP5: count | KQ5: 2007 | KR5: Year | KS5: significance | KT5: Dudley avg | KU5: regional average | KV5: ll | KW5: LCI | KX5: ul | KY5: UCI | KZ5: count | LA5: 2008 | LB5: Year | LC5: significance | LD5: Dudley avg | LE5: regional average | LF5: ll | LG5: LCI | LH5: ul | LI5: UCI | LJ5: count | LK5: 2009 | LL5: Year | LM5: significance | LN5: Dudley avg | LO5: regional average | LP5: ll | LQ5: LCI | LR5: ul | LS5: UCI | LT5: count | LU5: 2010 | LV5: Year | LW5: significance | LX5: Dudley avg | LY5: regional average | LZ5: ll | MA5: LCI | MB5: ul | MC5: UCI | MD5: count | ME5: 2011 | MF5: Year | MG5: significance | MH5: Dudley avg | MI5: regional average | MJ5: ll | MK5: LCI | ML5: ul | MM5: UCI | MN5: count | MO5: 2012 | MP5: Year | MQ5: significance | MR5: Dudley avg | MS5: regional average | MT5: ll | MU5: LCI | MV5: ul | MW5: UCI | MX5: count | MY5: 2013 | MZ5: Year | NA5: significance | NB5: Dudley avg | NC5: regional average | ND5: ll | NE5: LCI | NF5: ul | NG5: UCI | NH5: count | NI5: 2014 | NJ5: Year | NK5: significance | NL5: Dudley avg | NM5: regional average | NN5: ll | NO5: LCI | NP5: ul | NQ5: UCI | NR5: count | NS5: 2015 | NT5: Year | NU5: significance | NV5: Dudley avg | NW5: regional average | NX5: ll | NY5: LCI | NZ5: ul | OA5: UCI | OB5: count | OC5: 2016 | OD5: Year | OE5: significance | OF5: Dudley avg | OG5: regional average | OH5: ll | OI5: LCI | OJ5: ul | OK5: UCI | OL5: count | OM5: 2017 | ON5: Year | OO5: significance | OP5: Dudley avg | OQ5: regional average | OR5: ll | OS5: LCI | OT5: ul | OU5: UCI | OV5: count | OW5: 2011 | OX5: Year | OY5: significance | OZ5: Dudley avg | PA5: regional average | PB5: ll | PC5: LCI | PD5: ul | PE5: UCI | PF5: count | PG5: 2015 | PH5: Year | PI5: significance | PJ5: Dudley avg | PK5: regional average | PL5: ll | PM5: LCI | PN5: ul | PO5: UCI | PP5: count | PQ5: 2006-2008 | PR5: Year | PS5: significance | PT5: Dudley avg | PU5: regional average | PV5: ll | PW5: LCI | PX5: ul | PY5: UCI | PZ5: count | QA5: 2007-2009 | QB5: Year | QC5: significance | QD5: Dudley avg | QE5: regional average | QF5: ll | QG5: LCI | QH5: ul | QI5: UCI | QJ5: count | QK5: 2008-2010 | QL5: Year | QM5: significance | QN5: Dudley avg | QO5: regional average | QP5: ll | QQ5: LCI | QR5: ul | QS5: UCI | QT5: count | QU5: 2009-2011 | QV5: Year | QW5: significance | QX5: Dudley avg | QY5: regional average | QZ5: ll | RA5: LCI | RB5: ul | RC5: UCI | RD5: count | RE5: 2010-2012 | RF5: Year | RG5: significance | RH5: Dudley avg | RI5: regional average | RJ5: ll | RK5: LCI | RL5: ul | RM5: UCI | RN5: count | RO5: 2011-2013 | RP5: Year | RQ5: significance | RR5: Dudley avg | RS5: regional average | RT5: ll | RU5: LCI | RV5: ul | RW5: UCI | RX5: count | RY5: 2012-2014 | RZ5: Year | SA5: significance | SB5: Dudley avg | SC5: regional average | SD5: ll | SE5: LCI | SF5: ul | SG5: UCI | SH5: count | SI5: 2013-2015 | SJ5: Year | SK5: significance | SL5: Dudley avg | SM5: regional average | SN5: ll | SO5: LCI | SP5: ul | SQ5: UCI | SR5: count | SS5: 2014-2016 | ST5: Year | SU5: significance | SV5: Dudley avg | SW5: regional average | SX5: ll | SY5: LCI | SZ5: ul | TA5: UCI | TB5: count | TC5: 2015-2017 | TD5: Year | TE5: significance | TF5: Dudley avg | TG5: regional average | TH5: ll | TI5: LCI | TJ5: ul | TK5: UCI | TL5: count | TM5: 2006-2008 | TN5: Year | TO5: significance | TP5: Dudley avg | TQ5: regional average | TR5: ll | TS5: LCI | TT5: ul | TU5: UCI | TV5: count | TW5: 2007-2009 | TX5: Year | TY5: significance | TZ5: Dudley avg | UA5: regional average | UB5: ll | UC5: LCI | UD5: ul | UE5: UCI | UF5: count | UG5: 2008-2010 | UH5: Year | UI5: significance | UJ5: Dudley avg | UK5: regional average | UL5: ll | UM5: LCI | UN5: ul | UO5: UCI | UP5: count | UQ5: 2009-2011 | UR5: Year | US5: significance | UT5: Dudley avg | UU5: regional average | UV5: ll | UW5: LCI | UX5: ul | UY5: UCI | UZ5: count | VA5: 2010-2012 | VB5: Year | VC5: significance | VD5: Dudley avg | VE5: regional average | VF5: ll | VG5: LCI | VH5: ul | VI5: UCI | VJ5: count | VK5: 2011-2013 | VL5: Year | VM5: significance | VN5: Dudley avg | VO5: regional average | VP5: ll | VQ5: LCI | VR5: ul | VS5: UCI | VT5: count | VU5: 2012-2014 | VV5: Year | VW5: significance | VX5: Dudley avg | VY5: regional average | VZ5: ll | WA5: LCI | WB5: ul | WC5: UCI | WD5: count | WE5: 2013-2015 | WF5: Year | WG5: significance | WH5: Dudley avg | WI5: regional average | WJ5: ll | WK5: LCI | WL5: ul | WM5: UCI | WN5: count | WO5: 2014-2016 | WP5: Year | WQ5: significance | WR5: Dudley avg | WS5: regional average | WT5: ll | WU5: LCI | WV5: ul | WW5: UCI | WX5: count | WY5: 2015-2017 | WZ5: Year | XA5: significance | XB5: Dudley avg | XC5: regional average | XD5: ll | XE5: LCI | XF5: ul | XG5: UCI | XH5: count | XI5: 2005-2014 | XJ5: Year | XK5: significance | XL5: Dudley avg | XM5: regional average | XN5: ll | XO5: LCI | XP5: ul | XQ5: UCI | XR5: count | XS5: 2006-2015 | XT5: Year | XU5: significance | XV5: Dudley avg | XW5: regional average | XX5: ll | XY5: LCI | XZ5: ul | YA5: UCI | YB5: count | YC5: 2007-2016 | YD5: Year | YE5: significance | YF5: Dudley avg | YG5: regional average | YH5: ll | YI5: LCI | YJ5: ul | YK5: UCI | YL5: count | YM5: 2008-2017 | YN5: Year | YO5: significance | YP5: Dudley avg | YQ5: regional average | YR5: ll | YS5: LCI | YT5: ul | YU5: UCI | YV5: count | YW5: 2011/12 | YX5: Year | YY5: significance | YZ5: Dudley avg | ZA5: regional average | ZB5: ll | ZC5: LCI | ZD5: ul | ZE5: UCI | ZF5: count | ZG5: 2012/13 | ZH5: Year | ZI5: significance | ZJ5: Dudley avg | ZK5: regional average | ZL5: ll | ZM5: LCI | ZN5: ul | ZO5: UCI | ZP5: count | ZQ5: 2013/14 | ZR5: Year | ZS5: significance | ZT5: Dudley avg | ZU5: regional average | ZV5: ll | ZW5: LCI | ZX5: ul | ZY5: UCI | ZZ5: count | AAA5: 2014/15 | AAB5: Year | AAC5: significance | AAD5: Dudley avg | AAE5: regional average | AAF5: ll | AAG5: LCI | AAH5: ul | AAI5: UCI | AAJ5: count | AAK5: 2015/16 | AAL5: Year | AAM5: significance | AAN5: Dudley avg | AAO5: regional average | AAP5: ll | AAQ5: LCI | AAR5: ul | AAS5: UCI | AAT5: count | AAU5: 2016/17 | AAV5: Year | AAW5: significance | AAX5: Dudley avg | AAY5: regional average | AAZ5: ll | ABA5: LCI | ABB5: ul | ABC5: UCI | ABD5: count | ABE5: 2017/18 | ABF5: Year | ABG5: significance | ABH5: Dudley avg | ABI5: regional average | ABJ5: ll | ABK5: LCI | ABL5: ul | ABM5: UCI | ABN5: count | ABO5: 2008-10 | ABP5: Year | ABQ5: significance | ABR5: Dudley avg | ABS5: regional average | ABT5: ll | ABU5: LCI | ABV5: ul | ABW5: UCI | ABX5: count | ABY5: 2009-11 | ABZ5: Year | ACA5: significance | ACB5: Dudley avg | ACC5: regional average | ACD5: ll | ACE5: LCI | ACF5: ul | ACG5: UCI | ACH5: count | ACI5: 2010-12 | ACJ5: Year | ACK5: significance | ACL5: Dudley avg | ACM5: regional average | ACN5: ll | ACO5: LCI | ACP5: ul | ACQ5: UCI | ACR5: count | ACS5: 2011-13 | ACT5: Year | ACU5: significance | ACV5: Dudley avg | ACW5: regional average | ACX5: ll | ACY5: LCI | ACZ5: ul | ADA5: UCI | ADB5: count | ADC5: 2012-14 | ADD5: Year | ADE5: significance | ADF5: Dudley avg | ADG5: regional average | ADH5: ll | ADI5: LCI | ADJ5: ul | ADK5: UCI | ADL5: count | ADM5: 2013-15 | ADN5: Year | ADO5: significance | ADP5: Dudley avg | ADQ5: regional average | ADR5: ll | ADS5: LCI | ADT5: ul | ADU5: UCI | ADV5: count | ADW5: 2014-16 | ADX5: Year | ADY5: significance | ADZ5: Dudley avg | AEA5: regional average | AEB5: ll | AEC5: LCI | AED5: ul | AEE5: UCI | AEF5: count | AEG5: 2013/14 | AEH5: Year | AEI5: significance | AEJ5: Dudley avg | AEK5: regional average | AEL5: ll | AEM5: LCI | AEN5: ul | AEO5: UCI | AEP5: count | AEQ5: 2014/15 | AER5: Year | AES5: significance | AET5: Dudley avg | AEU5: regional average | AEV5: ll | AEW5: LCI | AEX5: ul | AEY5: UCI | AEZ5: count | AFA5: 2015/16 | AFB5: Year | AFC5: significance | AFD5: Dudley avg | AFE5: regional average | AFF5: ll | AFG5: LCI | AFH5: ul | AFI5: UCI | AFJ5: count | AFK5: 2016/17 | AFL5: Year | AFM5: significance | AFN5: Dudley avg | AFO5: regional average | AFP5: ll | AFQ5: LCI | AFR5: ul | AFS5: UCI | AFT5: count | AFU5: 2017/18 | AFV5: Year | AFW5: significance | AFX5: Dudley avg | AFY5: regional average | AFZ5: ll | AGA5: LCI | AGB5: ul | AGC5: UCI | AGD5: count | AGE5: 2013/14 | AGF5: Year | AGG5: significance | AGH5: Dudley avg | AGI5: regional average | AGJ5: ll | AGK5: LCI | AGL5: ul | AGM5: UCI | AGN5: count | AGO5: 2014/15 | AGP5: Year | AGQ5: significance | AGR5: Dudley avg | AGS5: regional average | AGT5: ll | AGU5: LCI | AGV5: ul | AGW5: UCI | AGX5: count | AGY5: 2015/16 | AGZ5: Year | AHA5: significance | AHB5: Dudley avg | AHC5: regional average | AHD5: ll | AHE5: LCI | AHF5: ul | AHG5: UCI | AHH5: count | AHJ5: Year | AHK5: significance | AHL5: Dudley avg | AHM5: regional average | AHN5: ll | AHO5: LCI | AHP5: ul | AHQ5: UCI | AHR5: count | AHS5: 2010-12 | AHT5: Year | AHU5: significance | AHV5: Dudley avg | AHW5: regional average | AHX5: ll | AHY5: LCI | AHZ5: ul | AIA5: UCI | AIB5: count | AIC5: 2011-13 | AID5: Year | AIE5: significance | AIF5: Dudley avg | AIG5: regional average | AIH5: ll | AII5: LCI | AIJ5: ul | AIK5: UCI | AIL5: count | AIM5: 2012-14 | AIN5: Year | AIO5: significance | AIP5: Dudley avg | AIQ5: regional average | AIR5: ll | AIS5: LCI | AIT5: ul | AIU5: UCI | AIV5: count | AIW5: 2013-15 | AIX5: Year | AIY5: significance | AIZ5: Dudley avg | AJA5: regional average | AJB5: ll | AJC5: LCI | AJD5: ul | AJE5: UCI | AJF5: count | AJG5: 2012/13 | AJH5: Year | AJI5: significance | AJJ5: Dudley avg | AJK5: regional average | AJL5: ll | AJM5: LCI | AJN5: ul | AJO5: UCI | AJP5: count | AJQ5: 2013/14 | AJR5: Year | AJS5: significance | AJT5: Dudley avg | AJU5: regional average | AJV5: ll | AJW5: LCI | AJX5: ul | AJY5: UCI | AJZ5: count | AKA5: 2014/15 | AKB5: Year | AKC5: significance | AKD5: Dudley avg | AKE5: regional average | AKF5: ll | AKG5: LCI | AKH5: ul | AKI5: UCI | AKJ5: count | AKK5: 2015/16 | AKL5: Year | AKM5: significance | AKN5: Dudley avg | AKO5: regional average | AKP5: ll | AKQ5: LCI | AKR5: ul | AKS5: UCI | AKT5: count | AKU5: 2016/17 | AKV5: Year | AKW5: significance | AKX5: Dudley avg | AKY5: regional average | AKZ5: ll | ALA5: LCI | ALB5: ul | ALC5: UCI | ALD5: count | ALE5: 2017/18 | ALF5: Year | ALG5: significance | ALH5: Dudley avg | ALI5: regional average | ALJ5: ll | ALK5: LCI | ALL5: ul | ALM5: UCI | ALN5: count | ALO5: 2012/13 | ALP5: Year | ALQ5: significance | ALR5: Dudley avg | ALS5: regional average | ALT5: ll | ALU5: LCI | ALV5: ul | ALW5: UCI | ALX5: count | ALY5: 2013/14 | ALZ5: Year | AMA5: significance | AMB5: Dudley avg | AMC5: regional average | AMD5: ll | AME5: LCI | AMF5: ul | AMG5: UCI | AMH5: count | AMI5: 2014/15 | AMJ5: Year | AMK5: significance | AML5: Dudley avg | AMM5: regional average | AMN5: ll | AMO5: LCI | AMP5: ul | AMQ5: UCI | AMR5: count | AMS5: 2015/16 | AMT5: Year | AMU5: significance | AMV5: Dudley avg | AMW5: regional average | AMX5: ll | AMY5: LCI | AMZ5: ul | ANA5: UCI | ANB5: count | ANC5: 2012/13 | AND5: Year | ANE5: significance | ANF5: Dudley avg | ANG5: regional average | ANH5: ll | ANI5: LCI | ANJ5: ul | ANK5: UCI | ANL5: count | ANM5: 2013/14 | ANN5: Year | ANO5: significance | ANP5: Dudley avg | ANQ5: regional average | ANR5: ll | ANS5: LCI | ANT5: ul | ANU5: UCI | ANV5: count | ANW5: 2014/15 | ANX5: Year | ANY5: significance | ANZ5: Dudley avg | AOA5: regional average | AOB5: ll | AOC5: LCI | AOD5: ul | AOE5: UCI | AOF5: count | AOG5: 2015/16 | AOH5: Year | AOI5: significance | AOJ5: Dudley avg | AOK5: regional average | AOL5: ll | AOM5: LCI | AON5: ul | AOO5: UCI | AOP5: count | AOQ5: 2012/13 | AOR5: Year | AOS5: significance | AOT5: Dudley avg | AOU5: regional average | AOV5: ll | AOW5: LCI | AOX5: ul | AOY5: UCI | AOZ5: count | APA5: 2013/14 | APB5: Year | APC5: significance | APD5: Dudley avg | APE5: regional average | APF5: ll | APG5: LCI | APH5: ul | API5: UCI | APJ5: count | APK5: 2014/15 | APL5: Year | APM5: significance | APN5: Dudley avg | APO5: regional average | APP5: ll | APQ5: LCI | APR5: ul | APS5: UCI | APT5: count | APU5: 2015/16 | APV5: Year | APW5: significance | APX5: Dudley avg | APY5: regional average | APZ5: ll | AQA5: LCI | AQB5: ul | AQC5: UCI | AQD5: count | AQE5: 2012/13 | AQF5: Year | AQG5: significance | AQH5: Dudley avg | AQI5: regional average | AQJ5: ll | AQK5: LCI | AQL5: ul | AQM5: UCI | AQN5: count | AQO5: 2013/14 | AQP5: Year | AQQ5: significance | AQR5: Dudley avg | AQS5: regional average | AQT5: ll | AQU5: LCI | AQV5: ul | AQW5: UCI | AQX5: count | AQY5: 2014/15 | AQZ5: Year | ARA5: significance | ARB5: Dudley avg | ARC5: regional average | ARD5: ll | ARE5: LCI | ARF5: ul | ARG5: UCI | ARH5: count | ARI5: 2015/16 | ARJ5: Year | ARK5: significance | ARL5: Dudley avg | ARM5: regional average | ARN5: ll | ARO5: LCI | ARP5: ul | ARQ5: UCI | ARR5: count | ARS5: 2012/13 | ART5: Year | ARU5: significance | ARV5: Dudley avg | ARW5: regional average | ARX5: ll | ARY5: LCI | ARZ5: ul | ASA5: UCI | ASB5: count | ASC5: 2013/14 | ASD5: Year | ASE5: significance | ASF5: Dudley avg | ASG5: regional average | ASH5: ll | ASI5: LCI | ASJ5: ul | ASK5: UCI | ASL5: count | ASM5: 2014/15 | ASN5: Year | ASO5: significance | ASP5: Dudley avg | ASQ5: regional average | ASR5: ll | ASS5: LCI | AST5: ul | ASU5: UCI | ASV5: count | ASW5: 2015/16 | ASX5: Year | ASY5: significance | ASZ5: Dudley avg | ATA5: regional average | ATB5: ll | ATC5: LCI | ATD5: ul | ATE5: UCI | ATF5: count | ATG5: 2008/09-2010/11 | ATH5: Year | ATI5: significance | ATJ5: Dudley avg | ATK5: regional average | ATL5: ll | ATM5: LCI | ATN5: ul | ATO5: UCI | ATP5: count | ATQ5: 2009/10-2011/12 | ATR5: Year | ATS5: significance | ATT5: Dudley avg | ATU5: regional average | ATV5: ll | ATW5: LCI | ATX5: ul | ATY5: UCI | ATZ5: count | AUA5: 2010/11-2012/13 | AUB5: Year | AUC5: significance | AUD5: Dudley avg | AUE5: regional average | AUF5: ll | AUG5: LCI | AUH5: ul | AUI5: UCI | AUJ5: count | AUK5: 2011/12-2013/14 | AUL5: Year | AUM5: significance | AUN5: Dudley avg | AUO5: regional average | AUP5: ll | AUQ5: LCI | AUR5: ul | AUS5: UCI | AUT5: count | AUU5: 2012/13-2014/15 | AUV5: Year | AUW5: significance | AUX5: Dudley avg | AUY5: regional average | AUZ5: ll | AVA5: LCI | AVB5: ul | AVC5: UCI | AVD5: count | AVE5: 2013/14-2015/16 | AVF5: Year | AVG5: significance | AVH5: Dudley avg | AVI5: regional average | AVJ5: ll | AVK5: LCI | AVL5: ul | AVM5: UCI | AVN5: count | AVO5: 2014/15-2016/17 | AVP5: Year | AVQ5: significance | AVR5: Dudley avg | AVS5: regional average | AVT5: ll | AVU5: LCI | AVV5: ul | AVW5: UCI | AVX5: count | AVY5: 2015/16-2017/18 | AVZ5: Year | AWA5: significance | AWB5: Dudley avg | AWC5: regional average | AWD5: ll | AWE5: LCI | AWF5: ul | AWG5: UCI | AWH5: count | AWI5: 2008/09-2010/11 | AWJ5: Year | AWK5: significance | AWL5: Dudley avg | AWM5: regional average | AWN5: ll | AWO5: LCI | AWP5: ul | AWQ5: UCI | AWR5: count | AWS5: 2009/10-2011/12 | AWT5: Year | AWU5: significance | AWV5: Dudley avg | AWW5: regional average | AWX5: ll | AWY5: LCI | AWZ5: ul | AXA5: UCI | AXB5: count | AXC5: 2010/11-2012/13 | AXD5: Year | AXE5: significance | AXF5: Dudley avg | AXG5: regional average | AXH5: ll | AXI5: LCI | AXJ5: ul | AXK5: UCI | AXL5: count | AXM5: 2011/12-2013/14 | AXN5: Year | AXO5: significance | AXP5: Dudley avg | AXQ5: regional average | AXR5: ll | AXS5: LCI | AXT5: ul | AXU5: UCI | AXV5: count | AXW5: 2012/13-2014/15 | AXX5: Year | AXY5: significance | AXZ5: Dudley avg | AYA5: regional average | AYB5: ll | AYC5: LCI | AYD5: ul | AYE5: UCI | AYF5: count | AYG5: 2013/14-2015/16 | AYH5: Year | AYI5: significance | AYJ5: Dudley avg | AYK5: regional average | AYL5: ll | AYM5: LCI | AYN5: ul | AYO5: UCI | AYP5: count | AYQ5: 2014/15-2016/17 | AYR5: Year | AYS5: significance | AYT5: Dudley avg | AYU5: regional average | AYV5: ll | AYW5: LCI | AYX5: ul | AYY5: UCI | AYZ5: count | AZA5: 2015/16-2017/18 | AZB5: Year | AZC5: significance | AZD5: Dudley avg | AZE5: regional average | AZF5: ll | AZG5: LCI | AZH5: ul | AZI5: UCI | AZJ5: count | AZK5: 2008/09-2010/11 | AZL5: Year | AZM5: significance | AZN5: Dudley avg | AZO5: regional average | AZP5: ll | AZQ5: LCI | AZR5: ul | AZS5: UCI | AZT5: count | AZU5: 2009/10-2011/12 | AZV5: Year | AZW5: significance | AZX5: Dudley avg | AZY5: regional average | AZZ5: ll | BAA5: LCI | BAB5: ul | BAC5: UCI | BAD5: count | BAE5: 2010/11-2012/13 | BAF5: Year | BAG5: significance | BAH5: Dudley avg | BAI5: regional average | BAJ5: ll | BAK5: LCI | BAL5: ul | BAM5: UCI | BAN5: count | BAO5: 2011/12-2013/14 | BAP5: Year | BAQ5: significance | BAR5: Dudley avg | BAS5: regional average | BAT5: ll | BAU5: LCI | BAV5: ul | BAW5: UCI | BAX5: count | BAY5: 2012/13-2014/15 | BAZ5: Year | BBA5: significance | BBB5: Dudley avg | BBC5: regional average | BBD5: ll | BBE5: LCI | BBF5: ul | BBG5: UCI | BBH5: count | BBI5: 2013/14-2015/16 | BBJ5: Year | BBK5: significance | BBL5: Dudley avg | BBM5: regional average | BBN5: ll | BBO5: LCI | BBP5: ul | BBQ5: UCI | BBR5: count | BBS5: 2014/15-2016/17 | BBT5: Year | BBU5: significance | BBV5: Dudley avg | BBW5: regional average | BBX5: ll | BBY5: LCI | BBZ5: ul | BCA5: UCI | BCB5: count | BCC5: 2015/16-2017/18 | BCD5: Year | BCE5: significance | BCF5: Dudley avg | BCG5: regional average | BCH5: ll | BCI5: LCI | BCJ5: ul | BCK5: UCI | BCL5: count | BCM5: 2011/12 | BCN5: Year | BCO5: significance | BCP5: Dudley avg | BCQ5: regional average | BCR5: ll | BCS5: LCI | BCT5: ul | BCU5: UCI | BCV5: count | BCW5: 2012/13 | BCX5: Year | BCY5: significance | BCZ5: Dudley avg | BDA5: regional average | BDB5: ll | BDC5: LCI | BDD5: ul | BDE5: UCI | BDF5: count | BDG5: 2013/14 | BDH5: Year | BDI5: significance | BDJ5: Dudley avg | BDK5: regional average | BDL5: ll | BDM5: LCI | BDN5: ul | BDO5: UCI | BDP5: count | BDQ5: 2014/15 | BDR5: Year | BDS5: significance | BDT5: Dudley avg | BDU5: regional average | BDV5: ll | BDW5: LCI | BDX5: ul | BDY5: UCI | BDZ5: count | BEA5: 2015/16 | BEB5: Year | BEC5: significance | BED5: Dudley avg | BEE5: regional average | BEF5: ll | BEG5: LCI | BEH5: ul | BEI5: UCI | BEJ5: count | BEK5: 2016/17 | BEL5: Year | BEM5: significance | BEN5: Dudley avg | BEO5: regional average | BEP5: ll | BEQ5: LCI | BER5: ul | BES5: UCI | BET5: count | BEU5: 2017/18 | BEV5: Year | BEW5: significance | BEX5: Dudley avg | BEY5: regional average | BEZ5: ll | BFA5: LCI | BFB5: ul | BFC5: UCI | BFD5: count | BFE5: 2011/12 | BFF5: Year | BFG5: significance | BFH5: Dudley avg | BFI5: regional average | BFJ5: ll | BFK5: LCI | BFL5: ul | BFM5: UCI | BFN5: count | BFO5: 2012/13 | BFP5: Year | BFQ5: significance | BFR5: Dudley avg | BFS5: regional average | BFT5: ll | BFU5: LCI | BFV5: ul | BFW5: UCI | BFX5: count | BFY5: 2013/14 | BFZ5: Year | BGA5: significance | BGB5: Dudley avg | BGC5: regional average | BGD5: ll | BGE5: LCI | BGF5: ul | BGG5: UCI | BGH5: count | BGI5: 2014/15 | BGJ5: Year | BGK5: significance | BGL5: Dudley avg | BGM5: regional average | BGN5: ll | BGO5: LCI | BGP5: ul | BGQ5: UCI | BGR5: count | BGS5: 2015/16 | BGT5: Year | BGU5: significance | BGV5: Dudley avg | BGW5: regional average | BGX5: ll | BGY5: LCI | BGZ5: ul | BHA5: UCI | BHB5: count | BHC5: 2016/17 | BHD5: Year | BHE5: significance | BHF5: Dudley avg | BHG5: regional average | BHH5: ll | BHI5: LCI | BHJ5: ul | BHK5: UCI | BHL5: count | BHM5: 2017/18 | BHN5: Year | BHO5: significance | BHP5: Dudley avg | BHQ5: regional average | BHR5: ll | BHS5: LCI | BHT5: ul | BHU5: UCI | BHV5: count | BHW5: 2011/12-2013/14 | BHX5: Year | BHY5: significance | BHZ5: Dudley avg | BIA5: regional average | BIB5: ll | BIC5: LCI | BID5: ul | BIE5: UCI | BIF5: count | BIG5: 2012/13-2014/15 | BIH5: Year | BII5: significance | BIJ5: Dudley avg | BIK5: regional average | BIL5: ll | BIM5: LCI | BIN5: ul | BIO5: UCI | BIP5: count | BIQ5: 2013/14-2015/16 | BIR5: Year | BIS5: significance | BIT5: Dudley avg | BIU5: regional average | BIV5: ll | BIW5: LCI | BIX5: ul | BIY5: UCI | BIZ5: count | BJA5: 2014/15-2016/17 | BJB5: Year | BJC5: significance | BJD5: Dudley avg | BJE5: regional average | BJF5: ll | BJG5: LCI | BJH5: ul | BJI5: UCI | BJJ5: count | BJK5: 2015/16-2017/18 | BJL5: Year | BJM5: significance | BJN5: Dudley avg | BJO5: regional average | BJP5: ll | BJQ5: LCI | BJR5: ul | BJS5: UCI | BJT5: count | BJU5: 2011/12-2013/14 | BJV5: Year | BJW5: significance | BJX5: Dudley avg | BJY5: regional average | BJZ5: ll | BKA5: LCI | BKB5: ul | BKC5: UCI | BKD5: count | BKE5: 2012/13-2014/15 | BKF5: Year | BKG5: significance | BKH5: Dudley avg | BKI5: regional average | BKJ5: ll | BKK5: LCI | BKL5: ul | BKM5: UCI | BKN5: count | BKO5: 2013/14-2015/16 | BKP5: Year | BKQ5: significance | BKR5: Dudley avg | BKS5: regional average | BKT5: ll | BKU5: LCI | BKV5: ul | BKW5: UCI | BKX5: count | BKY5: 2014/15-2016/17 | BKZ5: Year | BLA5: significance | BLB5: Dudley avg | BLC5: regional average | BLD5: ll | BLE5: LCI | BLF5: ul | BLG5: UCI | BLH5: count | BLI5: 2015/16-2017/18 | BLJ5: Year | BLK5: significance | BLL5: Dudley avg | BLM5: regional average | BLN5: ll | BLO5: LCI | BLP5: ul | BLQ5: UCI | BLR5: count | BLS5: 2011/12-2013/14 | BLT5: Year | BLU5: significance | BLV5: Dudley avg | BLW5: regional average | BLX5: ll | BLY5: LCI | BLZ5: ul | BMA5: UCI | BMB5: count | BMC5: 2012/13-2014/15 | BMD5: Year | BME5: significance | BMF5: Dudley avg | BMG5: regional average | BMH5: ll | BMI5: LCI | BMJ5: ul | BMK5: UCI | BML5: count | BMM5: 2013/14-2015/16 | BMN5: Year | BMO5: significance | BMP5: Dudley avg | BMQ5: regional average | BMR5: ll | BMS5: LCI | BMT5: ul | BMU5: UCI | BMV5: count | BMW5: 2014/15-2016/17 | BMX5: Year | BMY5: significance | BMZ5: Dudley avg | BNA5: regional average | BNB5: ll | BNC5: LCI | BND5: ul | BNE5: UCI | BNF5: count | BNG5: 2015/16-2017/18 | BNH5: Year | BNI5: significance | BNJ5: Dudley avg | BNK5: regional average | BNL5: ll | BNM5: LCI | BNN5: ul | BNO5: UCI | BNP5: count | BNQ5: 2011/12-2013/14 | BNR5: Year | BNS5: significance | BNT5: Dudley avg | BNU5: regional average | BNV5: ll | BNW5: LCI | BNX5: ul | BNY5: UCI | BNZ5: count | BOA5: 2012/13-2014/15 | BOB5: Year | BOC5: significance | BOD5: Dudley avg | BOE5: regional average | BOF5: ll | BOG5: LCI | BOH5: ul | BOI5: UCI | BOJ5: count | BOK5: 2013/14-2015/16 | BOL5: Year | BOM5: significance | BON5: Dudley avg | BOO5: regional average | BOP5: ll | BOQ5: LCI | BOR5: ul | BOS5: UCI | BOT5: count | BOU5: 2014/15-2016/17 | BOV5: Year | BOW5: significance | BOX5: Dudley avg | BOY5: regional average | BOZ5: ll | BPA5: LCI | BPB5: ul | BPC5: UCI | BPD5: count | BPE5: 2015/16-2017/18 | BPF5: Year | BPG5: significance | BPH5: Dudley avg | BPI5: regional average | BPJ5: ll | BPK5: LCI | BPL5: ul | BPM5: UCI | BPN5: count | BPO5: 2011/12-2013/14 | BPP5: Year | BPQ5: significance | BPR5: Dudley avg | BPS5: regional average | BPT5: ll | BPU5: LCI | BPV5: ul | BPW5: UCI | BPX5: count | BPY5: 2012/13-2014/15 | BPZ5: Year | BQA5: significance | BQB5: Dudley avg | BQC5: regional average | BQD5: ll | BQE5: LCI | BQF5: ul | BQG5: UCI | BQH5: count | BQI5: 2013/14-2015/16 | BQJ5: Year | BQK5: significance | BQL5: Dudley avg | BQM5: regional average | BQN5: ll | BQO5: LCI | BQP5: ul | BQQ5: UCI | BQR5: count | BQS5: 2014/15-2016/17 | BQT5: Year | BQU5: significance | BQV5: Dudley avg | BQW5: regional average | BQX5: ll | BQY5: LCI | BQZ5: ul | BRA5: UCI | BRB5: count | BRC5: 2015/16-2017/18 | BRD5: Year | BRE5: significance | BRF5: Dudley avg | BRG5: regional average | BRH5: ll | BRI5: LCI | BRJ5: ul | BRK5: UCI | BRL5: count | BRM5: 2011/12-2013/14 | BRN5: Year | BRO5: significance | BRP5: Dudley avg | BRQ5: regional average | BRR5: ll | BRS5: LCI | BRT5: ul | BRU5: UCI | BRV5: count | BRW5: 2012/13-2014/15 | BRX5: Year | BRY5: significance | BRZ5: Dudley avg | BSA5: regional average | BSB5: ll | BSC5: LCI | BSD5: ul | BSE5: UCI | BSF5: count | BSG5: 2015/16 | BSH5: Year | BSI5: significance | BSJ5: Dudley avg | BSK5: regional average | BSL5: ll | BSM5: LCI | BSN5: ul | BSO5: UCI | BSP5: count | BSQ5: 2015/16 | BSR5: Year | BSS5: significance | BST5: Dudley avg | BSU5: regional average | BSV5: ll | BSW5: LCI | BSX5: ul | BSY5: UCI | BSZ5: count | BTA5: 2015/16-2017/18 | BTB5: Year | BTC5: significance | BTD5: Dudley avg | BTE5: regional average | BTF5: ll | BTG5: LCI | BTH5: ul | BTI5: UCI | BTJ5: count | BTK5: 2011/12-2013/14 | BTL5: Year | BTM5: significance | BTN5: Dudley avg | BTO5: regional average | BTP5: ll | BTQ5: LCI | BTR5: ul | BTS5: UCI | BTT5: count | BTU5: 2012/13-2014/15 | BTV5: Year | BTW5: significance | BTX5: Dudley avg | BTY5: regional average | BTZ5: ll | BUA5: LCI | BUB5: ul | BUC5: UCI | BUD5: count | BUE5: 2013/14-2015/16 | BUF5: Year | BUG5: significance | BUH5: Dudley avg | BUI5: regional average | BUJ5: ll | BUK5: LCI | BUL5: ul | BUM5: UCI | BUN5: count | BUO5: 2014/15-2016/17 | BUP5: Year | BUQ5: significance | BUR5: Dudley avg | BUS5: regional average | BUT5: ll | BUU5: LCI | BUV5: ul | BUW5: UCI | BUX5: count | BUY5: 2015/16-2017/18 | BUZ5: Year | BVA5: significance | BVB5: Dudley avg | BVC5: regional average | BVD5: ll | BVE5: LCI | BVF5: ul | BVG5: UCI | BVH5: count | BVI5: 2011/12-2013/14 | BVJ5: Year | BVK5: significance | BVL5: Dudley avg | BVM5: regional average | BVN5: ll | BVO5: LCI | BVP5: ul | BVQ5: UCI | BVR5: count | BVS5: 2012/13-2014/15 | BVT5: Year | BVU5: significance | BVV5: Dudley avg | BVW5: regional average | BVX5: ll | BVY5: LCI | BVZ5: ul | BWA5: UCI | BWB5: count | BWC5: 2013/14-2015/16 | BWD5: Year | BWE5: significance | BWF5: Dudley avg | BWG5: regional average | BWH5: ll | BWI5: LCI | BWJ5: ul | BWK5: UCI | BWL5: count | BWM5: 2014/15-2016/17 | BWN5: Year | BWO5: significance | BWP5: Dudley avg | BWQ5: regional average | BWR5: ll | BWS5: LCI | BWT5: ul | BWU5: UCI | BWV5: count | BWW5: 2015/16-2017/18 | BWX5: Year | BWY5: significance | BWZ5: Dudley avg | BXA5: regional average | BXB5: ll | BXC5: LCI | BXD5: ul | BXE5: UCI | BXF5: count | BXG5: 2011/12-2013/14 | BXH5: Year | BXI5: significance | BXJ5: Dudley avg | BXK5: regional average | BXL5: ll | BXM5: LCI | BXN5: ul | BXO5: UCI | BXP5: count | BXQ5: 2012/13-2014/15 | BXR5: Year | BXS5: significance | BXT5: Dudley avg | BXU5: regional average | BXV5: ll | BXW5: LCI | BXX5: ul | BXY5: UCI | BXZ5: count | BYA5: 2013/14-2015/16 | BYB5: Year | BYC5: significance | BYD5: Dudley avg | BYE5: regional average | BYF5: ll | BYG5: LCI | BYH5: ul | BYI5: UCI | BYJ5: count | BYK5: 2014/15-2016/17 | BYL5: Year | BYM5: significance | BYN5: Dudley avg | BYO5: regional average | BYP5: ll | BYQ5: LCI | BYR5: ul | BYS5: UCI | BYT5: count | BYU5: 2015/16-2017/18 | BYV5: Year | BYW5: significance | BYX5: Dudley avg | BYY5: regional average | BYZ5: ll | BZA5: LCI | BZB5: ul | BZC5: UCI | BZD5: count | BZE5: 2011/12 | BZF5: Year | BZG5: significance | BZH5: Dudley avg | BZI5: regional average | BZJ5: ll | BZK5: LCI | BZL5: ul | BZM5: UCI | BZN5: count | BZO5: 2014/15 | BZP5: Year | BZQ5: significance | BZR5: Dudley avg | BZS5: regional average | BZT5: ll | BZU5: LCI | BZV5: ul | BZW5: UCI | BZX5: count | BZY5: 2016/17 | BZZ5: Year | CAA5: significance | CAB5: Dudley avg | CAC5: regional average | CAD5: ll | CAE5: LCI | CAF5: ul | CAG5: UCI | CAH5: count | CAI5: 2011/12 | CAJ5: Year | CAK5: significance | CAL5: Dudley avg | CAM5: regional average | CAN5: ll | CAO5: LCI | CAP5: ul | CAQ5: UCI | CAR5: count | CAS5: 2014/15 | CAT5: Year | CAU5: significance | CAV5: Dudley avg | CAW5: regional average | CAX5: ll | CAY5: LCI | CAZ5: ul | CBA5: UCI | CBB5: count | CBC5: 2016/17 | CBD5: Year | CBE5: significance | CBF5: Dudley avg | CBG5: regional average | CBH5: ll | CBI5: LCI | CBJ5: ul | CBK5: UCI | CBL5: count | CBM5: 2014/15 | CBN5: Year | CBO5: significance | CBP5: Dudley avg | CBQ5: regional average | CBR5: ll | CBS5: LCI | CBT5: ul | CBU5: UCI | CBV5: count | CBW5: 2015/16 | CBX5: Year | CBY5: significance | CBZ5: Dudley avg | CCA5: regional average | CCB5: ll | CCC5: LCI | CCD5: ul | CCE5: UCI | CCF5: count | CCG5: 2016/17 | CCH5: Year | CCI5: significance | CCJ5: Dudley avg | CCK5: regional average | CCL5: ll | CCM5: LCI | CCN5: ul | CCO5: UCI | CCP5: count | CCQ5: 2017/18 | CCR5: Year | CCS5: significance | CCT5: Dudley avg | CCU5: regional average | CCV5: ll | CCW5: LCI | CCX5: ul | CCY5: UCI | CCZ5: count | CDA5: 2014/15-2015/16 | CDB5: Year | CDC5: significance | CDD5: Dudley avg | CDE5: regional average | CDF5: ll | CDG5: LCI | CDH5: ul | CDI5: UCI | CDJ5: count | CDK5: 2016/17 | CDL5: Year | CDM5: significance | CDN5: Dudley avg | CDO5: regional average | CDP5: ll | CDQ5: LCI | CDR5: ul | CDS5: UCI | CDT5: count | CDU5: 2017/18 | CDV5: Year | CDW5: significance | CDX5: Dudley avg | CDY5: regional average | CDZ5: ll | CEA5: LCI | CEB5: ul | CEC5: UCI | CED5: count | CEE5: 2014/15 | CEF5: Year | CEG5: significance | CEH5: Dudley avg | CEI5: regional average | CEJ5: ll | CEK5: LCI | CEL5: ul | CEM5: UCI | CEN5: count | CEO5: 2015/16 | CEP5: Year | CEQ5: significance | CER5: Dudley avg | CES5: regional average | CET5: ll | CEU5: LCI | CEV5: ul | CEW5: UCI | CEX5: count | CEY5: 2016/17 | CEZ5: Year | CFA5: significance | CFB5: Dudley avg | CFC5: regional average | CFD5: ll | CFE5: LCI | CFF5: ul | CFG5: UCI | CFH5: count | CFI5: 2017/18 | CFJ5: Year | CFK5: significance | CFL5: Dudley avg | CFM5: regional average | CFN5: ll | CFO5: LCI | CFP5: ul | CFQ5: UCI | CFR5: count | CFS5: 2014/15-2015/16 | CFT5: Year | CFU5: significance | CFV5: Dudley avg | CFW5: regional average | CFX5: ll | CFY5: LCI | CFZ5: ul | CGA5: UCI | CGB5: count | CGC5: 2016/17 | CGD5: Year | CGE5: significance | CGF5: Dudley avg | CGG5: regional average | CGH5: ll | CGI5: LCI | CGJ5: ul | CGK5: UCI | CGL5: count | CGM5: 2017/18 | CGN5: Year | CGO5: significance | CGP5: Dudley avg | CGQ5: regional average | CGR5: ll | CGS5: LCI | CGT5: ul | CGU5: UCI | CGV5: count | CGW5: 2010/11-2014/15 | CGX5: Year | CGY5: significance | CGZ5: Dudley avg | CHA5: regional average | CHB5: ll | CHC5: LCI | CHD5: ul | CHE5: UCI | CHF5: count | CHG5: 2011/12-2015/16 | CHH5: Year | CHI5: significance | CHJ5: Dudley avg | CHK5: regional average | CHL5: ll | CHM5: LCI | CHN5: ul | CHO5: UCI | CHP5: count | CHQ5: 2012/13-2016/17 | CHR5: Year | CHS5: significance | CHT5: Dudley avg | CHU5: regional average | CHV5: ll | CHW5: LCI | CHX5: ul | CHY5: UCI | CHZ5: count | CIA5: 2013/14-2017/18 | CIB5: Year | CIC5: significance | CID5: Dudley avg | CIE5: regional average | CIF5: ll | CIG5: LCI | CIH5: ul | CII5: UCI | CIJ5: count
A6: Amblecote | B6: E05001236 | C6: 979 | D6: 2002 | E6: NotSig | F6: 20926 | L6: 979 | M6: 939 | N6: 2003 | O6: NotSig | P6: 20696 | V6: 939 | W6: 912 | X6: 2004 | Y6: NotSig | Z6: 20659 | AF6: 912 | AG6: 929 | AH6: 2005 | AI6: NotSig | AJ6: 20780 | AP6: 929 | AQ6: 924 | AR6: 2006 | AS6: NotSig | AT6: 21108 | AZ6: 924 | BA6: 934 | BB6: 2007 | BC6: NotSig | BD6: 21307 | BJ6: 934 | BK6: 951 | BL6: 2008 | BM6: NotSig | BN6: 21672 | BT6: 951 | BU6: 955 | BV6: 2009 | BW6: NotSig | BX6: 21983 | CD6: 955 | CE6: 971 | CF6: 2010 | CG6: NotSig | CH6: 22453 | CN6: 971 | CO6: 934 | CP6: 2011 | CQ6: NotSig | CR6: 22695 | CX6: 934 | CY6: 901 | CZ6: 2012 | DA6: NotSig | DB6: 22744 | DH6: 901 | DI6: 926 | DJ6: 2013 | DK6: NotSig | DL6: 23185 | DR6: 926 | DS6: 905 | DT6: 2014 | DU6: NotSig | DV6: 23432 | EB6: 905 | EC6: 891 | ED6: 2015 | EE6: NotSig | EF6: 23482 | EL6: 891 | EM6: 894 | EO6: NotSig | EP6: 23377 | EV6: 894 | EW6: 907 | EX6: 2017 | EY6: NotSig | EZ6: 23457 | FF6: 907 | FG6: 147 | FH6: 2009 | FI6: None | FJ6: 3623 | FP6: 147 | FQ6: 142 | FR6: 2010 | FS6: None | FT6: 3779 | FZ6: 142 | GA6: 136 | GB6: 2011 | GC6: None | GD6: 3712 | GJ6: 136 | GK6: 156 | GL6: 2012 | GM6: None | GN6: 3966 | GT6: 156 | GU6: 168 | GV6: 2013 | GW6: None | GX6: 3853 | HD6: 168 | HE6: 155 | HF6: 2014 | HG6: None | HH6: 3758 | HN6: 155 | HO6: 150 | HP6: 2015 | HQ6: None | HR6: 3672 | HX6: 150 | HY6: 165 | HZ6: 2016 | IA6: None | IB6: 3833 | IH6: 165 | II6: 143 | IJ6: 2017 | IK6: None | IL6: 3821 | IR6: 143 | IS6: 50.29781602 | IT6: 2002 | IU6: NotSig | IV6: 57.47644819 | IX6: 43.06042133 | IY6: 43.06042133 | IZ6: 58.67705005 | JA6: 58.67705005 | JB6: 152 | JC6: 44.3101712 | JD6: 2003 | JE6: Lower | JF6: 56.21865597 | JH6: 37.48887479 | JI6: 37.48887479 | JJ6: 52.30518986 | JK6: 52.30518986 | JL6: 132 | JM6: 49.62354552 | JN6: 2004 | JO6: NotSig | JP6: 58.99443953 | JR6: 42.32376989 | JS6: 42.32376989 | JT6: 58.10595707 | JU6: 58.10595707 | JV6: 145 | JW6: 54.28769018 | JX6: 2005 | JY6: NotSig | JZ6: 59.50715951 | KB6: 46.60519163 | KC6: 46.60519163 | KD6: 63.15270201 | KE6: 63.15270201 | KF6: 157 | KG6: 52.44755245 | KH6: 2006 | KI6: NotSig | KJ6: 59.28374473 | KL6: 44.86118794 | KM6: 44.86118794 | KN6: 61.23458 | KO6: 61.23458 | KP6: 150 | KQ6: 59.88660524 | KR6: 2007 | KS6: NotSig | KT6: 59.92229528 | KV6: 51.71605195 | KW6: 51.71605195 | KX6: 69.25374194 | KY6: 69.25374194 | KZ6: 169 | LA6: 49.87619385 | LB6: 2008 | LC6: Lower | LD6: 61.89859977 | LF6: 42.44465688 | LG6: 42.44465688 | LH6: 58.52936903 | LI6: 58.52936903 | LJ6: 141 | LK6: 52.70604881 | LL6: 2009 | LM6: NotSig | LN6: 60.40546818 | LP6: 45.0594827 | LQ6: 45.0594827 | LR6: 61.56657291 | LS6: 61.56657291 | LT6: 149 | LU6: 50.62388592 | LV6: 2010 | LW6: Lower | LX6: 63.90061026 | LZ6: 43.10781024 | MA6: 43.10781024 | MB6: 59.36912306 | MC6: 59.36912306 | MD6: 142 | ME6: 49.54462659 | MF6: 2011 | MG6: Lower | MH6: 62.83429227 | MJ6: 42.03756575 | MK6: 42.03756575 | ML6: 58.31069477 | MM6: 58.31069477 | MN6: 136 | MO6: 58.58054825 | MP6: 2012 | MQ6: NotSig | MR6: 68.03127561 | MT6: 50.28086582 | MU6: 50.28086582 | MV6: 68.15191832 | MW6: 68.15191832 | MX6: 156 | MY6: 64.11229135 | MZ6: 2013 | NA6: NotSig | NB6: 66.44683738 | ND6: 55.38089439 | NE6: 55.38089439 | NF6: 74.11228319 | NG6: 74.11228319 | NH6: 169 | NI6: 59.97693195 | NJ6: 2014 | NK6: NotSig | NL6: 65.26366799 | NN6: 51.48438562 | NO6: 51.48438562 | NP6: 69.7673158 | NQ6: 69.7673158 | NR6: 156 | NS6: 58.05459439 | NT6: 2015 | NU6: NotSig | NV6: 63.86182309 | NX6: 49.7024745 | NY6: 49.7024745 | NZ6: 67.71022169 | OA6: 67.71022169 | OB6: 151 | OC6: 67.76180698 | OD6: 2016 | OE6: NotSig | OF6: 67.48595877 | OH6: 58.44444032 | OI6: 58.44444032 | OJ6: 78.44082445 | OK6: 78.44082445 | OL6: 165 | OM6: 59.70772443 | ON6: 2017 | OO6: NotSig | OP6: 67.3209063 | OR6: 50.904751 | OS6: 50.904751 | OT6: 69.9208491 | OU6: 69.9208491 | OV6: 143 | OW6: 9.173126615 | OX6: 2011 | OY6: Lower | OZ6: 20.02438119 | PB6: 7.336289355 | PC6: 7.336289355 | PD6: 11.41322022 | PE6: 11.41322022 | PF6: 71 | PG6: 6 | PH6: 2015 | PI6: None | PJ6: 5 | PQ6: 80.647381 | PR6: 2006-2008 | PS6: NotSig | PT6: 81.7 | PV6: 78.61655978 | PW6: 78.61655978 | PX6: 82.67820222 | PY6: 82.67820222 | QA6: 80.84092214 | QB6: 2007-2009 | QC6: NotSig | QD6: 82 | QF6: 78.97206185 | QG6: 78.97206185 | QH6: 82.70978243 | QI6: 82.70978243 | QK6: 81.10347827 | QL6: 2008-2010 | QM6: NotSig | QN6: 82.2 | QP6: 79.31018745 | QQ6: 79.31018745 | QR6: 82.89676908 | QS6: 82.89676908 | QU6: 81.99938236 | QV6: 2009-2011 | QW6: NotSig | QX6: 82.6 | QZ6: 80.30508476 | RA6: 80.30508476 | RB6: 83.69367997 | RC6: 83.69367997 | RE6: 82.92330508 | RF6: 2010-2012 | RG6: NotSig | RH6: 82.8 | RJ6: 81.19013075 | RK6: 81.19013075 | RL6: 84.65647942 | RM6: 84.65647942 | RO6: 82.4601472 | RP6: 2011-2013 | RQ6: NotSig | RR6: 83 | RT6: 80.81164147 | RU6: 80.81164147 | RV6: 84.10865294 | RW6: 84.10865294 | RY6: 81.2550311 | RZ6: 2012-2014 | SA6: NotSig | SB6: 83.1 | SD6: 79.6482126 | SE6: 79.6482126 | SF6: 82.86184961 | SG6: 82.86184961 | SI6: 82.28117242 | SJ6: 2013-2015 | SK6: NotSig | SL6: 82.9 | SN6: 80.8763936 | SO6: 80.8763936 | SP6: 83.68595125 | SQ6: 83.68595125 | SS6: 82.7 | ST6: 2014-2016 | SU6: NotSig | SV6: 83.01 | SX6: 81.24860157 | SY6: 81.24860157 | SZ6: 84.14962552 | TA6: 84.14962552 | TC6: 83.62900819 | TD6: 2015-2017 | TE6: NotSig | TF6: 83.21603064 | TH6: 82.12538246 | TI6: 82.12538246 | TJ6: 85.13263392 | TK6: 85.13263392 | TM6: 78.35542907 | TN6: 2006-2008 | TO6: NotSig | TP6: 77.2 | TR6: 76.72659981 | TS6: 76.72659981 | TT6: 79.98425833 | TU6: 79.98425833 | TW6: 79.14413257 | TX6: 2007-2009 | TY6: NotSig | TZ6: 77.6 | UB6: 77.28379342 | UC6: 77.28379342 | UD6: 81.00447172 | UE6: 81.00447172 | UG6: 79.21602099 | UH6: 2008-2010 | UI6: NotSig | UJ6: 78 | UL6: 77.25180466 | UM6: 77.25180466 | UN6: 81.18023733 | UO6: 81.18023733 | UQ6: 78.93444081 | UR6: 2009-2011 | US6: NotSig | UT6: 78.6 | UV6: 76.94823444 | UW6: 76.94823444 | UX6: 80.92064718 | UY6: 80.92064718 | VA6: 80.84010889 | VB6: 2010-2012 | VC6: NotSig | VD6: 78.8 | VF6: 79.05758753 | VG6: 79.05758753 | VH6: 82.62263025 | VI6: 82.62263025 | VK6: 80.57103083 | VL6: 2011-2013 | VM6: NotSig | VN6: 79.1 | VP6: 79.08473717 | VQ6: 79.08473717 | VR6: 82.05732449 | VS6: 82.05732449 | VU6: 80.24230414 | VV6: 2012-2014 | VW6: NotSig | VX6: 79.1 | VZ6: 78.54697941 | WA6: 78.54697941 | WB6: 81.93762887 | WC6: 81.93762887 | WE6: 78.13811566 | WF6: 2013-2015 | WG6: NotSig | WH6: 78.9 | WJ6: 76.25452388 | WK6: 76.25452388 | WL6: 80.02170743 | WM6: 80.02170743 | WO6: 78.39 | WP6: 2014-2016 | WQ6: NotSig | WR6: 78.75 | WT6: 76.45952304 | WU6: 76.45952304 | WV6: 80.31075633 | WW6: 80.31075633 | WY6: 79.1963635 | WZ6: 2015-2017 | XA6: NotSig | XB6: 79.04621584 | XD6: 77.37155556 | XE6: 77.37155556 | XF6: 81.02117144 | XG6: 81.02117144 | XI6: 5.928853755 | XJ6: 2005-2014 | XK6: NotSig | XL6: 4.745982095 | XN6: 2.711049483 | XO6: 2.711049483 | XP6: 11.25481123 | XQ6: 11.25481123 | XR6: 9 | XS6: 6.613756614 | XT6: 2006-2015 | XU6: NotSig | XV6: 4.783660306 | XX6: 3.17155341 | XY6: 3.17155341 | XZ6: 12.16293389 | YA6: 12.16293389 | YB6: 10 | YC6: 3.931847969 | YD6: 2007-2016 | YE6: NotSig | YF6: 4.507147429 | YH6: 1.803209205 | YI6: 1.803209205 | YJ6: 8.551758449 | YK6: 8.551758449 | YL6: 6 | YM6: 3.886010363 | YN6: 2008-2017 | YO6: NotSig | YP6: 4.348273555 | YR6: 1.782173396 | YS6: 1.782173396 | YT6: 8.452375324 | YU6: 8.452375324 | YV6: 6 | YW6: 31.75675676 | YX6: 2011/12 | YY6: NotSig | YZ6: 24.93847416 | ZB6: 24.79933851 | ZC6: 24.79933851 | ZD6: 39.63725186 | ZE6: 39.63725186 | ZF6: 47 | ZG6: 30.76923077 | ZH6: 2012/13 | ZI6: NotSig | ZJ6: 26.87176695 | ZL6: 23.79035448 | ZM6: 23.79035448 | ZN6: 38.75428349 | ZO6: 38.75428349 | ZP6: 44 | ZQ6: 20.75471698 | ZR6: 2013/14 | ZS6: NotSig | ZT6: 25.0350042 | ZV6: 15.17763789 | ZW6: 15.17763789 | ZX6: 27.71159887 | ZY6: 27.71159887 | ZZ6: 33 | AAA6: 25.89928058 | AAB6: 2014/15 | AAC6: NotSig | AAD6: 25.93444508 | AAF6: 19.33408678 | AAG6: 19.33408678 | AAH6: 33.76076358 | AAI6: 33.76076358 | AAJ6: 36 | AAK6: 30.57324841 | AAL6: 2015/16 | AAM6: NotSig | AAN6: 29.79033197 | AAP6: 23.90207157 | AAQ6: 23.90207157 | AAR6: 38.17238334 | AAS6: 38.17238334 | AAT6: 48 | AAU6: 32.62411348 | AAV6: 2016/17 | AAW6: NotSig | AAX6: 31.56572704 | AAZ6: 25.43580895 | ABA6: 25.43580895 | ABB6: 40.7340982 | ABC6: 40.7340982 | ABD6: 46 | ABE6: 19.27272727 | ABF6: 2017/18 | ABG6: Lower | ABH6: 32.88619645 | ABJ6: 15.0470471 | ABK6: 15.0470471 | ABL6: 24.34503587 | ABM6: 24.34503587 | ABN6: 53 | ABO6: 7.87037037 | ABP6: 2008-10 | ABQ6: NotSig | ABR6: 8.610042066 | ABT6: 5.686547649 | ABU6: 5.686547649 | ABV6: 10.79684496 | ABW6: 10.79684496 | ABX6: 34 | ABY6: 6.791569087 | ABZ6: 2009-11 | ACA6: NotSig | ACB6: 8.310943937 | ACD6: 4.770032365 | ACE6: 4.770032365 | ACF6: 9.583613867 | ACG6: 9.583613867 | ACH6: 29 | ACI6: 6.912442396 | ACJ6: 2010-12 | ACK6: NotSig | ACL6: 8.140747176 | ACN6: 4.884565087 | ACO6: 4.884565087 | ACP6: 9.696388255 | ACQ6: 9.696388255 | ACR6: 30 | ACS6: 6.94143167 | ACT6: 2011-13 | ACU6: NotSig | ACV6: 7.842459838 | ACX6: 4.959568088 | ACY6: 4.959568088 | ACZ6: 9.634968938 | ADA6: 9.634968938 | ADB6: 32 | ADC6: 7.9002079 | ADD6: 2012-14 | ADE6: NotSig | ADF6: 7.767741935 | ADH6: 5.809684831 | ADI6: 5.809684831 | ADJ6: 10.65785468 | ADK6: 10.65785468 | ADL6: 38 | ADM6: 6.512605042 | ADN6: 2013-15 | ADO6: NotSig | ADP6: 7.917034422 | ADR6: 4.6257037 | ADS6: 4.6257037 | ADT6: 9.095799019 | ADU6: 9.095799019 | ADV6: 31 | ADW6: 7.264957265 | ADX6: 2014-16 | ADY6: NotSig | ADZ6: 8.553971487 | AEB6: 5.24517001 | AEC6: 5.24517001 | AED6: 9.980592262 | AEE6: 9.980592262 | AEF6: 34 | AEG6: 71.79487179 | AEH6: 2013/14 | AEI6: Better | AEJ6: 58.52782765 | AEL6: 64.27531756 | AEM6: 64.27531756 | AEN6: 78.26683671 | AEO6: 78.26683671 | AEP6: 112 | AEQ6: 63.63636364 | AER6: 2014/15 | AES6: NotSig | AET6: 58.84887658 | AEV6: 55.15211883 | AEW6: 55.15211883 | AEX6: 71.34936335 | AEY6: 71.34936335 | AEZ6: 84 | AFA6: 58.68263473 | AFB6: 2015/16 | AFC6: NotSig | AFD6: 52.27765727 | AFF6: 51.10114561 | AFG6: 51.10114561 | AFH6: 65.87365676 | AFI6: 65.87365676 | AFJ6: 98 | AFK6: 41.61073826 | AFL6: 2016/17 | AFM6: NotSig | AFN6: 44.26973087 | AFP6: 34.00432738 | AFQ6: 34.00432738 | AFR6: 49.63885413 | AFS6: 49.63885413 | AFT6: 62 | AFU6: 56.61764706 | AFV6: 2017/18 | AFW6: NotSig | AFX6: 53.46092504 | AFZ6: 48.21969928 | AGA6: 48.21969928 | AGB6: 64.65201999 | AGC6: 64.65201999 | AGD6: 77 | AGE6: 33.79310345 | AGF6: 2013/14 | AGG6: NotSig | AGH6: 29.90702479 | AGJ6: 26.60096619 | AGK6: 26.60096619 | AGL6: 41.82181038 | AGM6: 41.82181038 | AGN6: 49 | AGO6: 27.06766917 | AGP6: 2014/15 | AGQ6: NotSig | AGR6: 29.39739414 | AGT6: 20.23933491 | AGU6: 20.23933491 | AGV6: 35.18353143 | AGW6: 35.18353143 | AGX6: 36 | AGY6: 39.85507246 | AGZ6: 2015/16 | AHA6: Better | AHB6: 29.11982451 | AHD6: 32.06787413 | AHE6: 32.06787413 | AHF6: 48.19177616 | AHG6: 48.19177616 | AHH6: 55 | AHI6: 0 | AHK6: NotSig | AHL6: 0 | AHN6: 0 | AHO6: 0 | AHP6: 0 | AHQ6: 0 | AHR6: 0 | AHS6: Better | AHT6: 2010-12 | AHU6: Better | AHV6: 36.4 | AIC6: Similar | AID6: 2011-13 | AIE6: Similar | AIF6: 33.6 | AIM6: Similar | AIN6: 2012-14 | AIO6: Similar | AIP6: 31.59 | AIW6: Similar | AIX6: 2013-15 | AIY6: Similar | AIZ6: 28.2 | AJG6: 8.904109589 | AJH6: 2012/13 | AJI6: NotSig | AJJ6: 14.95067818 | AJL6: 5.277427149 | AJM6: 5.277427149 | AJN6: 14.63792809 | AJO6: 14.63792809 | AJP6: 13 | AJQ6: 9.036144578 | AJR6: 2013/14 | AJS6: Worse | AJT6: 16.92258477 | AJV6: 5.552501705 | AJW6: 5.552501705 | AJX6: 14.37282104 | AJY6: 14.37282104 | AJZ6: 15 | AKA6: 14.70588235 | AKB6: 2014/15 | AKC6: NotSig | AKD6: 16.1078238 | AKF6: 9.725925047 | AKG6: 9.725925047 | AKH6: 21.62490552 | AKI6: 21.62490552 | AKJ6: 20 | AKK6: 8.982035928 | AKL6: 2015/16 | AKM6: NotSig | AKN6: 13.70495842 | AKP6: 5.518782731 | AKQ6: 5.518782731 | AKR6: 14.28990952 | AKS6: 14.28990952 | AKT6: 15 | AKU6: 9.395973154 | AKV6: 2016/17 | AKW6: NotSig | AKX6: 14.12156033 | AKZ6: 5.679617444 | ALA6: 5.679617444 | ALB6: 15.15338105 | ALC6: 15.15338105 | ALD6: 14 | ALE6: 6.617647059 | ALF6: 2017/18 | ALG6: Worse | ALH6: 14.89633174 | ALJ6: 3.520317151 | ALK6: 3.520317151 | ALL6: 12.09841209 | ALM6: 12.09841209 | ALN6: 9 | ALO6: 69.17808219 | ALP6: 2012/13 | ALQ6: Better | ALR6: 59.50935761 | ALT6: 61.27665352 | ALU6: 61.27665352 | ALV6: 76.0961807 | ALW6: 76.0961807 | ALX6: 101 | ALY6: 72.36842105 | ALZ6: 2013/14 | AMA6: Better | AMB6: 57.58441558 | AMD6: 64.7746685 | AME6: 64.7746685 | AMF6: 78.85941996 | AMG6: 78.85941996 | AMH6: 110 | AMI6: 70.46979866 | AMJ6: 2014/15 | AMK6: NotSig | AML6: 61.27043688 | AMN6: 62.70497854 | AMO6: 62.70497854 | AMP6: 77.20565858 | AMQ6: 77.20565858 | AMR6: 105 | AMS6: 73.24840764 | AMT6: 2015/16 | AMU6: NotSig | AMV6: 67.31789004 | AMX6: 65.82960372 | AMY6: 65.82960372 | AMZ6: 79.55670435 | ANA6: 79.55670435 | ANB6: 115 | ANC6: 96.21212121 | AND6: 2012/13 | ANE6: NotSig | ANF6: 95.05681818 | ANH6: 91.43919641 | ANI6: 91.43919641 | ANJ6: 98.37138209 | ANK6: 98.37138209 | ANL6: 127 | ANM6: 95.97315436 | ANN6: 2013/14 | ANO6: NotSig | ANP6: 96.26011722 | ANR6: 91.49375713 | ANS6: 91.49375713 | ANT6: 98.1416082 | ANU6: 98.1416082 | ANV6: 143 | ANW6: 98.63013699 | ANX6: 2014/15 | ANY6: NotSig | ANZ6: 96.62703898 | AOB6: 95.14330288 | AOC6: 95.14330288 | AOD6: 99.62352675 | AOE6: 99.62352675 | AOF6: 144 | AOG6: 98.02631579 | AOH6: 2015/16 | AOI6: NotSig | AOJ6: 97.02549575 | AOL6: 94.35841982 | AOM6: 94.35841982 | AON6: 99.32653481 | AOO6: 99.32653481 | AOP6: 149 | AOQ6: 96.25 | AOR6: 2012/13 | AOS6: NotSig | AOT6: 94.91725768 | AOV6: 92.06101926 | AOW6: 92.06101926 | AOX6: 98.27020768 | AOY6: 98.27020768 | AOZ6: 154 | APA6: 96.42857143 | APB6: 2013/14 | APC6: NotSig | APD6: 97.01135684 | APF6: 91.91225296 | APG6: 91.91225296 | APH6: 98.46502844 | API6: 98.46502844 | APJ6: 135 | APK6: 96.79487179 | APL6: 2014/15 | APM6: NotSig | APN6: 97.57004002 | APP6: 92.71716368 | APQ6: 92.71716368 | APR6: 98.62334402 | APS6: 98.62334402 | APT6: 151 | APU6: 97.76119403 | APV6: 2015/16 | APW6: NotSig | APX6: 97.00987306 | APZ6: 93.62457955 | AQA6: 93.62457955 | AQB6: 99.23572612 | AQC6: 99.23572612 | AQD6: 131 | AQE6: 91.875 | AQF6: 2012/13 | AQG6: NotSig | AQH6: 88.62293144 | AQJ6: 86.59596262 | AQK6: 86.59596262 | AQL6: 95.19041853 | AQM6: 95.19041853 | AQN6: 147 | AQO6: 96.42857143 | AQP6: 2013/14 | AQQ6: NotSig | AQR6: 92.34678625 | AQT6: 91.91225296 | AQU6: 91.91225296 | AQV6: 98.46502844 | AQW6: 98.46502844 | AQX6: 135 | AQY6: 94.87179487 | AQZ6: 2014/15 | ARA6: NotSig | ARB6: 93.05317324 | ARD6: 90.20793755 | ARE6: 90.20793755 | ARF6: 97.37885065 | ARG6: 97.37885065 | ARH6: 148 | ARI6: 96.26865672 | ARJ6: 2015/16 | ARK6: NotSig | ARL6: 92.83497884 | ARN6: 91.56257225 | ARO6: 91.56257225 | ARP6: 98.39584887 | ARQ6: 98.39584887 | ARR6: 129 | ARS6: 98.65771812 | ART6: 2012/13 | ARU6: NotSig | ARV6: 96.54017857 | ARX6: 95.23842451 | ARY6: 95.23842451 | ARZ6: 99.63112275 | ASA6: 99.63112275 | ASB6: 147 | ASC6: 100 | ASD6: 2013/14 | ASE6: NotSig | ASF6: 97.06939453 | ASH6: 97.43631779 | ASI6: 97.43631779 | ASJ6: 100 | ASK6: 100 | ASL6: 146 | ASM6: 99.33333333 | ASN6: 2014/15 | ASO6: NotSig | ASP6: 97.15585893 | ASR6: 96.32071602 | ASS6: 96.32071602 | AST6: 99.88221987 | ASU6: 99.88221987 | ASV6: 149 | ASW6: 100 | ASX6: 2015/16 | ASY6: Better | ASZ6: 96.33967789 | ATB6: 97.25299003 | ATC6: 97.25299003 | ATD6: 100 | ATE6: 100 | ATF6: 136 | ATG6: 78.02690583 | ATH6: 2008/09-2010/11 | ATI6: NotSig | ATJ6: 75.25375558 | ATL6: 73.95372689 | ATM6: 73.95372689 | ATN6: 81.62140855 | ATO6: 81.62140855 | ATP6: 348 | ATQ6: 77.21238938 | ATR6: 2009/10-2011/12 | ATS6: NotSig | ATT6: 75.01257419 | ATV6: 73.12559281 | ATW6: 73.12559281 | ATX6: 80.84053845 | ATY6: 80.84053845 | ATZ6: 349 | AUA6: 76.28635347 | AUB6: 2010/11-2012/13 | AUC6: NotSig | AUD6: 74.90332176 | AUF6: 72.1299167 | AUG6: 72.1299167 | AUH6: 79.99483701 | AUI6: 79.99483701 | AUJ6: 341 | AUK6: 73.84259259 | AUL6: 2011/12-2013/14 | AUM6: NotSig | AUN6: 74.0590734 | AUP6: 69.5010471 | AUQ6: 69.5010471 | AUR6: 77.76384609 | AUS6: 77.76384609 | AUT6: 319 | AUU6: 70.72599532 | AUV6: 2012/13-2014/15 | AUW6: NotSig | AUX6: 73.51580571 | AUZ6: 66.24067562 | AVA6: 66.24067562 | AVB6: 74.84172172 | AVC6: 74.84172172 | AVD6: 302 | AVE6: 70.64676617 | AVF6: 2013/14-2015/16 | AVG6: NotSig | AVH6: 72.77697842 | AVJ6: 66.01661679 | AVK6: 66.01661679 | AVL6: 74.88605503 | AVM6: 74.88605503 | AVN6: 284 | AVO6: 72.74939173 | AVP6: 2014/15-2016/17 | AVQ6: NotSig | AVR6: 72.61826079 | AVT6: 68.24896001 | AVU6: 68.24896001 | AVV6: 76.82850176 | AVW6: 76.82850176 | AVX6: 299 | AVY6: 74.75728155 | AVZ6: 2015/16-2017/18 | AWA6: NotSig | AWB6: 73.07728337 | AWD6: 66.6406542 | AWE6: 66.6406542 | AWF6: 83.58984923 | AWG6: 83.58984923 | AWH6: 308 | AWI6: 21.30044843 | AWJ6: 2008/09-2010/11 | AWK6: NotSig | AWL6: 23.76167276 | AWN6: 17.7540567 | AWO6: 17.7540567 | AWP6: 25.33700461 | AWQ6: 25.33700461 | AWR6: 95 | AWS6: 22.12389381 | AWT6: 2009/10-2011/12 | AWU6: NotSig | AWV6: 24.0418469 | AWX6: 18.54114546 | AWY6: 18.54114546 | AWZ6: 26.17647617 | AXA6: 26.17647617 | AXB6: 100 | AXC6: 22.81879195 | AXD6: 2010/11-2012/13 | AXE6: NotSig | AXF6: 24.20426376 | AXH6: 19.1696665 | AXI6: 19.1696665 | AXJ6: 26.9311201 | AXK6: 26.9311201 | AXL6: 102 | AXM6: 23.84259259 | AXN6: 2011/12-2013/14 | AXO6: NotSig | AXP6: 24.93332016 | AXR6: 20.06598166 | AXS6: 20.06598166 | AXT6: 28.08030057 | AXU6: 28.08030057 | AXV6: 103 | AXW6: 26.93208431 | AXX6: 2012/13-2014/15 | AXY6: NotSig | AXZ6: 25.47224364 | AYB6: 22.94393405 | AYC6: 22.94393405 | AYD6: 31.33158982 | AYE6: 31.33158982 | AYF6: 115 | AYG6: 27.11442786 | AYH6: 2013/14-2015/16 | AYI6: NotSig | AYJ6: 26.14868106 | AYL6: 23.00058037 | AYM6: 23.00058037 | AYN6: 31.66151834 | AYO6: 31.66151834 | AYP6: 109 | AYQ6: 26.52068127 | AYR6: 2014/15-2016/17 | AYS6: NotSig | AYT6: 26.29591162 | AYV6: 22.4845663 | AYW6: 22.4845663 | AYX6: 30.99163626 | AYY6: 30.99163626 | AYZ6: 109 | AZA6: 24.27184466 | AZB6: 2015/16-2017/18 | AZC6: NotSig | AZD6: 25.59250585 | AZF6: 19.74854157 | AZG6: 19.74854157 | AZH6: 29.52106645 | AZI6: 29.52106645 | AZJ6: 100 | AZK6: 10.53811659 | AZL6: 2008/09-2010/11 | AZM6: NotSig | AZN6: 10.06902152 | AZP6: 8.017774275 | AZQ6: 8.017774275 | AZR6: 13.73243503 | AZS6: 13.73243503 | AZT6: 47 | AZU6: 9.955752212 | AZV6: 2009/10-2011/12 | AZW6: NotSig | AZX6: 10.73332663 | AZZ6: 7.524007481 | BAA6: 7.524007481 | BAB6: 13.06241725 | BAC6: 13.06241725 | BAD6: 45 | BAE6: 10.51454139 | BAF6: 2010/11-2012/13 | BAG6: NotSig | BAH6: 10.59990084 | BAJ6: 7.999623015 | BAK6: 7.999623015 | BAL6: 13.7023427 | BAM6: 13.7023427 | BAN6: 47 | BAO6: 9.490740741 | BAP6: 2011/12-2013/14 | BAQ6: NotSig | BAR6: 10.92561494 | BAT6: 7.073147712 | BAU6: 7.073147712 | BAV6: 12.62242211 | BAW6: 12.62242211 | BAX6: 41 | BAY6: 9.601873536 | BAZ6: 2012/13-2014/15 | BBA6: NotSig | BBB6: 11.26638396 | BBD6: 7.156913219 | BBE6: 7.156913219 | BBF6: 12.76722757 | BBG6: 12.76722757 | BBH6: 41 | BBI6: 9.452736318 | BBJ6: 2013/14-2015/16 | BBK6: NotSig | BBL6: 11.92326139 | BBN6: 6.964437266 | BBO6: 6.964437266 | BBP6: 12.70862892 | BBQ6: 12.70862892 | BBR6: 38 | BBS6: 9.489051095 | BBT6: 2014/15-2016/17 | BBU6: NotSig | BBV6: 11.92521953 | BBX6: 7.019215374 | BBY6: 7.019215374 | BBZ6: 12.70915485 | BCA6: 12.70915485 | BCB6: 39 | BCC6: 9.708737864 | BCD6: 2015/16-2017/18 | BCE6: NotSig | BCF6: 11.30679157 | BCH6: 6.93606467 | BCI6: 6.93606467 | BCJ6: 13.22054538 | BCK6: 13.22054538 | BCL6: 40 | BCM6: 348.1095176 | BCN6: 2011/12 | BCO6: Worse | BCP6: 446.7419543 | BCR6: 315.2291822 | BCS6: 315.2291822 | BCT6: 382.5037338 | BCU6: 382.5037338 | BCV6: 267 | BCW6: 404.7936085 | BCX6: 2012/13 | BCY6: Worse | BCZ6: 449.0469208 | BDB6: 370.2584241 | BDC6: 370.2584241 | BDD6: 440.2978215 | BDE6: 440.2978215 | BDF6: 304 | BDG6: 406.25 | BDH6: 2013/14 | BDI6: NotSig | BDJ6: 447.9064231 | BDL6: 372.0651042 | BDM6: 372.0651042 | BDN6: 441.3680842 | BDO6: 441.3680842 | BDP6: 312 | BDQ6: 367.1875 | BDR6: 2014/15 | BDS6: Worse | BDT6: 457.8955541 | BDV6: 333.8353052 | BDW6: 333.8353052 | BDX6: 401.8617118 | BDY6: 401.8617118 | BDZ6: 282 | BEA6: 422.626788 | BEB6: 2015/16 | BEC6: Worse | BED6: 465.7541217 | BEF6: 388.1827628 | BEG6: 388.1827628 | BEH6: 457.8399905 | BEI6: 457.8399905 | BEJ6: 325 | BEK6: 370.5179283 | BEL6: 2016/17 | BEM6: Worse | BEN6: 459.2699526 | BEP6: 328.312541 | BEQ6: 328.312541 | BER6: 416.644237 | BES6: 416.644237 | BET6: 279 | BEU6: 371.2021136 | BEV6: 2017/18 | BEW6: Worse | BEX6: 426.694151 | BEZ6: 329.0649644 | BFA6: 329.0649644 | BFB6: 417.2391948 | BFC6: 417.2391948 | BFD6: 281 | BFE6: 168.1877445 | BFF6: 2011/12 | BFG6: NotSig | BFH6: 173.9568422 | BFJ6: 143.3852468 | BFK6: 143.3852468 | BFL6: 196.2973894 | BFM6: 196.2973894 | BFN6: 129 | BFO6: 185.0865513 | BFP6: 2012/13 | BFQ6: NotSig | BFR6: 202.1889401 | BFT6: 158.9375277 | BFU6: 158.9375277 | BFV6: 214.4408229 | BFW6: 214.4408229 | BFX6: 139 | BFY6: 145.8333333 | BFZ6: 2013/14 | BGA6: Worse | BGB6: 180.5289581 | BGD6: 122.6346015 | BGE6: 122.6346015 | BGF6: 172.5574437 | BGG6: 172.5574437 | BGH6: 112 | BGI6: 153.6458333 | BGJ6: 2014/15 | BGK6: Worse | BGL6: 191.139175 | BGN6: 129.871106 | BGO6: 129.871106 | BGP6: 180.8681736 | BGQ6: 180.8681736 | BGR6: 118 | BGS6: 210.663199 | BGT6: 2015/16 | BGU6: NotSig | BGV6: 203.9995929 | BGX6: 183.3160428 | BGY6: 183.3160428 | BGZ6: 240.8866899 | BHA6: 240.8866899 | BHB6: 162 | BHC6: 204.5152722 | BHD6: 2016/17 | BHE6: NotSig | BHF6: 218.3955455 | BHH6: 173.4900867 | BHI6: 173.4900867 | BHJ6: 239.4877463 | BHK6: 239.4877463 | BHL6: 154 | BHM6: 169.0885073 | BHN6: 2017/18 | BHO6: NotSig | BHP6: 148.7245555 | BHR6: 141.0664911 | BHS6: 141.0664911 | BHT6: 201.0467879 | BHU6: 201.0467879 | BHV6: 128 | BHW6: 118.1102362 | BHX6: 2011/12-2013/14 | BHY6: NotSig | BHZ6: 146.6531653 | BIB6: 81.2990293 | BIC6: 81.2990293 | BID6: 171.3012483 | BIE6: 171.3012483 | BIF6: 27 | BIG6: 126.8036729 | BIH6: 2012/13-2014/15 | BII6: NotSig | BIJ6: 147.3899338 | BIL6: 88.4334412 | BIM6: 88.4334412 | BIN6: 181.5174041 | BIO6: 181.5174041 | BIP6: 29 | BIQ6: 130.0954033 | BIR6: 2013/14-2015/16 | BIS6: NotSig | BIT6: 148.7420043 | BIV6: 91.27919306 | BIW6: 91.27919306 | BIX6: 185.1097278 | BIY6: 185.1097278 | BIZ6: 30 | BJA6: 154.3209877 | BJB6: 2014/15-2016/17 | BJC6: NotSig | BJD6: 158.8655871 | BJF6: 107.4902222 | BJG6: 107.4902222 | BJH6: 214.6231365 | BJI6: 214.6231365 | BJJ6: 35 | BJK6: 147.0588235 | BJL6: 2015/16-2017/18 | BJM6: NotSig | BJN6: 145.1784306 | BJP6: 101.2285275 | BJQ6: 101.2285275 | BJR6: 206.5252641 | BJS6: 206.5252641 | BJT6: 33 | BJU6: 237.0689655 | BJV6: 2011/12-2013/14 | BJW6: NotSig | BJX6: 381.0763889 | BJZ6: 132.8813166 | BKA6: 132.8813166 | BKB6: 419.4737245 | BKC6: 419.4737245 | BKD6: 11 | BKE6: 225.8726899 | BKF6: 2012/13-2014/15 | BKG6: NotSig | BKH6: 326.9148481 | BKJ6: 126.5828537 | BKK6: 126.5828537 | BKL6: 399.8897651 | BKM6: 399.8897651 | BKN6: 11 | BKO6: 228.6902287 | BKP6: 2013/14-2015/16 | BKQ6: NotSig | BKR6: 254.6197735 | BKT6: 128.1676453 | BKU6: 128.1676453 | BKV6: 404.8201665 | BKW6: 404.8201665 | BKX6: 11 | BKY6: 425.5319149 | BKZ6: 2014/15-2016/17 | BLA6: NotSig | BLB6: 364.3116102 | BLD6: 259.9259486 | BLE6: 259.9259486 | BLF6: 657.1995298 | BLG6: 657.1995298 | BLH6: 20 | BLI6: 302.3758099 | BLJ6: 2015/16-2017/18 | BLK6: NotSig | BLL6: 305.3844093 | BLN6: 165.311669 | BLO6: 165.311669 | BLP6: 507.3352294 | BLQ6: 507.3352294 | BLR6: 14 | BLS6: 309.7345133 | BLT6: 2011/12-2013/14 | BLU6: NotSig | BLV6: 250.6265664 | BLX6: 185.3831228 | BLY6: 185.3831228 | BLZ6: 513.1373432 | BMA6: 513.1373432 | BMB6: 14 | BMC6: 218.3406114 | BMD6: 2012/13-2014/15 | BME6: NotSig | BMF6: 213.4067636 | BMH6: 119.0222751 | BMI6: 119.0222751 | BMJ6: 397.2037667 | BMK6: 397.2037667 | BML6: 10 | BMM6: 133.9285714 | BMN6: 2013/14-2015/16 | BMO6: NotSig | BMP6: 162.3953311 | BMR6: 61.52134107 | BMS6: 61.52134107 | BMT6: 289.0763854 | BMU6: 289.0763854 | BMV6: 6 | BMW6: 136.9863014 | BMX6: 2014/15-2016/17 | BMY6: NotSig | BMZ6: 208.2613204 | BNB6: 50.2715583 | BNC6: 50.2715583 | BND6: 298.1615074 | BNE6: 298.1615074 | BNF6: 6 | BNG6: 176.6004415 | BNH6: 2015/16-2017/18 | BNI6: NotSig | BNJ6: 168.7763713 | BNL6: 76.24353591 | BNM6: 76.24353591 | BNN6: 347.973272 | BNO6: 347.973272 | BNP6: 8 | BNQ6: 51.09489051 | BNR6: 2011/12-2013/14 | BNS6: NotSig | BNT6: 61.42685816 | BNV6: 24.77215128 | BNW6: 24.77215128 | BNX6: 105.0933343 | BNY6: 105.0933343 | BNZ6: 7 | BOA6: 52.1609538 | BOB6: 2012/13-2014/15 | BOC6: NotSig | BOD6: 59.53763941 | BOF6: 25.28946193 | BOG6: 25.28946193 | BOH6: 107.2778528 | BOI6: 107.2778528 | BOJ6: 7 | BOK6: 50.83514887 | BOL6: 2013/14-2015/16 | BOM6: NotSig | BON6: 61.03996121 | BOP6: 24.64611364 | BOQ6: 24.64611364 | BOR6: 104.5610354 | BOS6: 104.5610354 | BOT6: 7 | BOU6: 80.88235294 | BOV6: 2014/15-2016/17 | BOW6: NotSig | BOX6: 78.94294832 | BOZ6: 40.37617917 | BPA6: 40.37617917 | BPB6: 144.7208714 | BPC6: 144.7208714 | BPD6: 11 | BPE6: 90.36144578 | BPF6: 2015/16-2017/18 | BPG6: NotSig | BPH6: 69.61724495 | BPJ6: 46.69107763 | BPK6: 46.69107763 | BPL6: 157.8432609 | BPM6: 157.8432609 | BPN6: 12 | BPO6: 139.9825022 | BPP6: 2011/12-2013/14 | BPQ6: NotSig | BPR6: 163.9372883 | BPT6: 99.33037311 | BPU6: 99.33037311 | BPV6: 196.9410502 | BPW6: 196.9410502 | BPX6: 32 | BPY6: 122.4311325 | BPZ6: 2012/13-2014/15 | BQA6: NotSig | BQB6: 144.6187952 | BQD6: 84.84143409 | BQE6: 84.84143409 | BQF6: 176.3789947 | BQG6: 176.3789947 | BQH6: 28 | BQI6: 104.0763226 | BQJ6: 2013/14-2015/16 | BQK6: NotSig | BQL6: 120.2558635 | BQN6: 70.03857141 | BQO6: 70.03857141 | BQP6: 154.398732 | BQQ6: 154.398732 | BQR6: 24 | BQS6: 163.1393298 | BQT6: 2014/15-2016/17 | BQU6: NotSig | BQV6: 159.548146 | BQX6: 114.8651436 | BQY6: 114.8651436 | BQZ6: 224.8660765 | BRA6: 224.8660765 | BRB6: 37 | BRC6: 151.5151515 | BRD6: 2015/16-2017/18 | BRE6: NotSig | BRF6: 134.2086319 | BRH6: 104.928647 | BRI6: 104.928647 | BRJ6: 211.7272375 | BRK6: 211.7272375 | BRL6: 34 | BRM6: 474.137931 | BRN6: 2011/12-2013/14 | BRO6: NotSig | BRP6: 598.9583333 | BRR6: 315.1705839 | BRS6: 315.1705839 | BRT6: 707.4292289 | BRU6: 707.4292289 | BRV6: 22 | BRW6: 472.2792608 | BRX6: 2012/13-2014/15 | BRY6: NotSig | BRZ6: 687.2058194 | BSB6: 316.738312 | BSC6: 316.738312 | BSD6: 698.6905587 | BSE6: 698.6905587 | BSF6: 23 | BSG6: 623.7006237 | BSH6: 2013/14-2015/16 | BSI6: NotSig | BSJ6: 750.2341821 | BSL6: 440.3453655 | BSM6: 440.3453655 | BSN6: 876.403804 | BSO6: 876.403804 | BSP6: 30 | BSQ6: 808.5106383 | BSR6: 2014/15-2016/17 | BSS6: NotSig | BST6: 1000.972677 | BSV6: 572.1502478 | BSW6: 572.1502478 | BSX6: 1109.74402 | BSY6: 1109.74402 | BSZ6: 38 | BTA6: 907.1274298 | BTB6: 2015/16-2017/18 | BTC6: NotSig | BTD6: 942.0483972 | BTF6: 653.7776616 | BTG6: 653.7776616 | BTH6: 1226.17276 | BTI6: 1226.17276 | BTJ6: 42 | BTK6: 110.619469 | BTL6: 2011/12-2013/14 | BTM6: NotSig | BTN6: 109.7571515 | BTP6: 47.34002117 | BTQ6: 47.34002117 | BTR6: 256.3063136 | BTS6: 256.3063136 | BTT6: 5 | BTU6: 87.33624454 | BTV6: 2012/13-2014/15 | BTW6: NotSig | BTX6: 89.49315894 | BTZ6: 34.01428126 | BUA6: 34.01428126 | BUB6: 222.382337 | BUC6: 222.382337 | BUD6: 0 | BUE6: 133.9285714 | BUF6: 2013/14-2015/16 | BUG6: NotSig | BUH6: 92.19318278 | BUJ6: 61.52134107 | BUK6: 61.52134107 | BUL6: 289.0763854 | BUM6: 289.0763854 | BUN6: 6 | BUO6: 114.1552511 | BUP6: 2014/15-2016/17 | BUQ6: NotSig | BUR6: 133.9440028 | BUT6: 37.06589932 | BUU6: 37.06589932 | BUV6: 266.4002758 | BUW6: 266.4002758 | BUX6: 5 | BUY6: 88.30022075 | BUZ6: 2015/16-2017/18 | BVA6: NotSig | BVB6: 124.8241913 | BVD6: 24.05883827 | BVE6: 24.05883827 | BVF6: 226.0836352 | BVG6: 226.0836352 | BVH6: 0 | BVI6: 29.19708029 | BVJ6: 2011/12-2013/14 | BVK6: NotSig | BVL6: 36.8561149 | BVN6: 11.35985299 | BVO6: 11.35985299 | BVP6: 74.83247106 | BVQ6: 74.83247106 | BVR6: 0 | BVS6: 29.80625931 | BVT6: 2012/13-2014/15 | BVU6: NotSig | BVV6: 29.91403346 | BVX6: 11.59699038 | BVY6: 11.59699038 | BVZ6: 76.38855014 | BWA6: 76.38855014 | BWB6: 0 | BWC6: 36.31082062 | BWD6: 2013/14-2015/16 | BWE6: NotSig | BWF6: 23.38914401 | BWH6: 15.51948152 | BWI6: 15.51948152 | BWJ6: 84.71982353 | BWK6: 84.71982353 | BWL6: 5 | BWM6: 44.11764706 | BWN6: 2014/15-2016/17 | BWO6: NotSig | BWP6: 31.07328817 | BWR6: 16.19039892 | BWS6: 16.19039892 | BWT6: 96.02554428 | BWU6: 96.02554428 | BWV6: 6 | BWW6: 37.65060241 | BWX6: 2015/16-2017/18 | BWY6: NotSig | BWZ6: 30.19543154 | BXB6: 12.22504812 | BXC6: 12.22504812 | BXD6: 87.86394638 | BXE6: 87.86394638 | BXF6: 5 | BXG6: 135.608049 | BXH6: 2011/12-2013/14 | BXI6: NotSig | BXJ6: 164.6356367 | BXL6: 95.69867903 | BXM6: 95.69867903 | BXN6: 191.8385152 | BXO6: 191.8385152 | BXP6: 31 | BXQ6: 135.5487538 | BXR6: 2012/13-2014/15 | BXS6: NotSig | BXT6: 174.9281236 | BXV6: 95.65676455 | BXW6: 95.65676455 | BXX6: 191.7549137 | BXY6: 191.7549137 | BXZ6: 31 | BYA6: 177.7970512 | BYB6: 2013/14-2015/16 | BYC6: NotSig | BYD6: 182.8571429 | BYF6: 131.3314017 | BYG6: 131.3314017 | BYH6: 240.3021513 | BYI6: 240.3021513 | BYJ6: 41 | BYK6: 216.0493827 | BYL6: 2014/15-2016/17 | BYM6: NotSig | BYN6: 238.5543402 | BYP6: 159.8345227 | BYQ6: 159.8345227 | BYR6: 285.6287416 | BYS6: 285.6287416 | BYT6: 49 | BYU6: 227.2727273 | BYV6: 2015/16-2017/18 | BYW6: NotSig | BYX6: 223.6810531 | BYZ6: 169.2194734 | BZA6: 169.2194734 | BZB6: 298.8216639 | BZC6: 298.8216639 | BZD6: 51 | BZE6: 18.47826087 | BZF6: 2011/12 | BZG6: None | BZH6: 22.19178082 | BZO6: 13.1147541 | BZP6: 2014/15 | BZQ6: None | BZR6: 18.29634073 | BZY6: 0 | BZZ6: 2016/17 | CAA6: None | CAB6: 22.88401254 | CAI6: 0.4565217391 | CAJ6: 2011/12 | CAK6: None | CAL6: 0.6196347032 | CAS6: 0.262295082 | CAT6: 2014/15 | CAU6: None | CAV6: 0.4559088182 | CBC6: 0 | CBD6: 2016/17 | CBE6: None | CBF6: 0.5799373041 | CBM6: 77.85714286 | CBN6: 2014/15 | CBO6: Better | CBP6: 60.19283747 | CBR6: 70.28717398 | CBS6: 70.28717398 | CBT6: 83.93919486 | CBU6: 83.93919486 | CBV6: 109 | CBW6: 68.18181818 | CBX6: 2015/16 | CBY6: NotSig | CBZ6: 63.98899587 | CCB6: 59.81823407 | CCC6: 59.81823407 | CCD6: 75.5170755 | CCE6: 75.5170755 | CCF6: 90 | CCG6: 75.81699346 | CCH6: 2016/17 | CCI6: Better | CCJ6: 65.15431285 | CCL6: 68.45364673 | CCM6: 68.45364673 | CCN6: 81.91568839 | CCO6: 81.91568839 | CCP6: 116 | CCQ6: 72.14285714 | CCR6: 2017/18 | CCS6: NotSig | CCT6: 66.56025539 | CCV6: 58.761542 | CCW6: 58.761542 | CCX6: 87.66011122 | CCY6: 87.66011122 | CCZ6: 101 | CDA6: 73.68421053 | CDB6: 2014/15-2015/16 | CDC6: Better | CDD6: 43.16037736 | CDF6: 51.2084491 | CDG6: 51.2084491 | CDH6: 88.19358765 | CDI6: 88.19358765 | CDJ6: 14 | CDK6: 41.66666667 | CDL6: 2016/17 | CDM6: NotSig | CDN6: 49.18300654 | CDP6: 19.32603137 | CDQ6: 19.32603137 | CDR6: 68.04886875 | CDS6: 68.04886875 | CDT6: 5 | CDU6: 50 | CDV6: 2017/18 | CDW6: NotSig | CDX6: 51.53153153 | CDZ6: 18.34911878 | CEA6: 18.34911878 | CEB6: 108.8289502 | CEC6: 108.8289502 | CED6: 6 | CEE6: 72.72727273 | CEF6: 2014/15 | CEG6: NotSig | CEH6: 77.4676259 | CEJ6: 64.90483259 | CEK6: 64.90483259 | CEL6: 79.36059526 | CEM6: 79.36059526 | CEN6: 104 | CEO6: 91.17647059 | CEP6: 2015/16 | CEQ6: Better | CER6: 78.47891981 | CET6: 85.21015658 | CEU6: 85.21015658 | CEV6: 94.88054109 | CEW6: 94.88054109 | CEX6: 124 | CEY6: 85.49618321 | CEZ6: 2016/17 | CFA6: NotSig | CFB6: 78.42653509 | CFD6: 78.45591295 | CFE6: 78.45591295 | CFF6: 90.51397274 | CFG6: 90.51397274 | CFH6: 112 | CFI6: 86.67 | CFJ6: 2017/18 | CFK6: NotSig | CFL6: 79.96339023 | CFN6: 72.40977247 | CFO6: 72.40977247 | CFP6: 102.909629 | CFQ6: 102.909629 | CFR6: 130.005 | CFS6: 54.54545455 | CFT6: 2014/15-2015/16 | CFU6: NotSig | CFV6: 64.35294118 | CFX6: 34.65979532 | CFY6: 34.65979532 | CFZ6: 73.07970582 | CGA6: 73.07970582 | CGB6: 12 | CGC6: 70 | CGD6: 2016/17 | CGE6: NotSig | CGF6: 66.48351648 | CGH6: 39.67781475 | CGI6: 39.67781475 | CGJ6: 89.22087326 | CGK6: 89.22087326 | CGL6: 7 | CGM6: 86.67 | CGN6: 2017/18 | CGO6: NotSig | CGP6: 69.58030252 | CGR6: 46.14634994 | CGS6: 46.14634994 | CGT6: 148.2026395 | CGU6: 148.2026395 | CGV6: 13.0005 | CGW6: 58.22730214 | CGX6: 2010/11-2014/15 | CGY6: NotSig | CGZ6: 42.52940817 | CHB6: 38.37215936 | CHC6: 38.37215936 | CHD6: 84.71766766 | CHE6: 84.71766766 | CHF6: 27 | CHG6: 53.91416864 | CHH6: 2011/12-2015/16 | CHI6: NotSig | CHJ6: 41.0448087 | CHL6: 36.54598705 | CHM6: 36.54598705 | CHN6: 79.47060024 | CHO6: 79.47060024 | CHP6: 25 | CHQ6: 39.8494576 | CHR6: 2012/13-2016/17 | CHS6: NotSig | CHT6: 36.74066426 | CHV6: 25.22211553 | CHW6: 25.22211553 | CHX6: 62.90629858 | CHY6: 62.90629858 | CHZ6: 18 | CIA6: 40.03558719 | CIB6: 2013/14-2017/18 | CIC6: NotSig | CID6: 36.62408119 | CIF6: 23.72762629 | CIG6: 23.72762629 | CIH6: 63.27348814 | CII6: 63.27348814 | CIJ6: 18
A7: Belle Vale | B7: E05001237 | C7: 831 | D7: 2002 | E7: NotSig | F7: 20926 | L7: 831 | M7: 873 | N7: 2003 | O7: NotSig | P7: 20696 | V7: 873 | W7: 890 | X7: 2004 | Y7: NotSig | Z7: 20659 | AF7: 890 | AG7: 865 | AH7: 2005 | AI7: NotSig | AJ7: 20780 | AP7: 865 | AQ7: 920 | AR7: 2006 | AS7: NotSig | AT7: 21108 | AZ7: 920 | BA7: 933 | BB7: 2007 | BC7: NotSig | BD7: 21307 | BJ7: 933 | BK7: 936 | BL7: 2008 | BM7: NotSig | BN7: 21672 | BT7: 936 | BU7: 974 | BV7: 2009 | BW7: NotSig | BX7: 21983 | CD7: 974 | CE7: 1011 | CF7: 2010 | CG7: NotSig | CH7: 22453 | CN7: 1011 | CO7: 1062 | CP7: 2011 | CQ7: NotSig | CR7: 22695 | CX7: 1062 | CY7: 1046 | CZ7: 2012 | DA7: NotSig | DB7: 22744 | DH7: 1046 | DI7: 1052 | DJ7: 2013 | DK7: NotSig | DL7: 23185 | DR7: 1052 | DS7: 1096 | DT7: 2014 | DU7: NotSig | DV7: 23432 | EB7: 1096 | EC7: 1151 | ED7: 2015 | EE7: NotSig | EF7: 23482 | EL7: 1151 | EM7: 1139 | EN7: 2016 | EO7: NotSig | EP7: 23377 | EV7: 1139 | EW7: 1097 | EX7: 2017 | EY7: NotSig | EZ7: 23457 | FF7: 1097 | FG7: 162 | FH7: 2009 | FI7: None | FJ7: 3623 | FP7: 162 | FQ7: 186 | FR7: 2010 | FS7: None | FT7: 3779 | FZ7: 186 | GA7: 183 | GB7: 2011 | GC7: None | GD7: 3712 | GJ7: 183 | GK7: 183 | GL7: 2012 | GM7: None | GN7: 3966 | GT7: 183 | GU7: 179 | GV7: 2013 | GW7: None | GX7: 3853 | HD7: 179 | HE7: 176 | HF7: 2014 | HG7: None | HH7: 3758 | HN7: 176 | HO7: 195 | HP7: 2015 | HQ7: None | HR7: 3672 | HX7: 195 | HY7: 187 | HZ7: 2016 | IA7: None | IB7: 3833 | IH7: 187 | II7: 193 | IJ7: 2017 | IK7: None | IL7: 3821 | IR7: 193 | IS7: 63.57172731 | IT7: 2002 | IU7: NotSig | IV7: 57.47644819 | IX7: 54.47483972 | IY7: 54.47483972 | IZ7: 74.06872532 | JA7: 74.06872532 | JB7: 152 | JC7: 65.47865727 | JD7: 2003 | JE7: NotSig | JF7: 56.21865597 | JH7: 56.28307547 | JI7: 56.28307547 | JJ7: 76.05554263 | JK7: 76.05554263 | JL7: 158 | JM7: 66.69394435 | JN7: 2004 | JO7: NotSig | JP7: 58.99443953 | JR7: 57.46705662 | JS7: 57.46705662 | JT7: 77.28082815 | JU7: 77.28082815 | JV7: 163 | JW7: 65.20841931 | JX7: 2005 | JY7: NotSig | JZ7: 59.50715951 | KB7: 56.0497422 | KC7: 56.0497422 | KD7: 75.74356373 | KE7: 75.74356373 | KF7: 158 | KG7: 65.12944984 | KH7: 2006 | KI7: NotSig | KJ7: 59.28374473 | KL7: 56.06113219 | KM7: 56.06113219 | KN7: 75.54723783 | KO7: 75.54723783 | KP7: 161 | KQ7: 66.77393403 | KR7: 2007 | KS7: NotSig | KT7: 59.92229528 | KV7: 57.61432168 | KW7: 57.61432168 | KX7: 77.27035447 | KY7: 77.27035447 | KZ7: 166 | LA7: 57.77601899 | LB7: 2008 | LC7: NotSig | LD7: 61.89859977 | LF7: 49.33244837 | LG7: 49.33244837 | LH7: 67.56205634 | LI7: 67.56205634 | LJ7: 146 | LK7: 64.10763751 | LL7: 2009 | LM7: NotSig | LN7: 60.40546818 | LP7: 55.2033846 | LQ7: 55.2033846 | LR7: 74.33513615 | LS7: 74.33513615 | LT7: 162 | LU7: 71.23707392 | LV7: 2010 | LW7: NotSig | LX7: 63.90061026 | LZ7: 61.98791212 | MA7: 61.98791212 | MB7: 81.74602539 | MC7: 81.74602539 | MD7: 186 | ME7: 68.95266493 | MF7: 2011 | MG7: NotSig | MH7: 62.83429227 | MJ7: 59.9686385 | MK7: 59.9686385 | ML7: 79.16925428 | MM7: 79.16925428 | MN7: 185 | MO7: 69.6969697 | MP7: 2012 | MQ7: NotSig | MR7: 68.03127561 | MT7: 60.59586998 | MU7: 60.59586998 | MV7: 80.04851608 | MW7: 80.04851608 | MX7: 184 | MY7: 67.56252333 | MZ7: 2013 | NA7: NotSig | NB7: 66.44683738 | ND7: 58.66396249 | NE7: 58.66396249 | NF7: 77.69946578 | NG7: 77.69946578 | NH7: 181 | NI7: 67.30038023 | NJ7: 2014 | NK7: NotSig | NL7: 65.26366799 | NN7: 58.34242366 | NO7: 58.34242366 | NP7: 77.52052193 | NQ7: 77.52052193 | NR7: 177 | NS7: 74.14448669 | NT7: 2015 | NU7: NotSig | NV7: 63.86182309 | NX7: 64.74025053 | NY7: 64.74025053 | NZ7: 84.79094373 | OA7: 84.79094373 | OB7: 195 | OC7: 70.56603774 | OD7: 2016 | OE7: NotSig | OF7: 67.48595877 | OH7: 61.42427723 | OI7: 61.42427723 | OJ7: 80.95101711 | OK7: 80.95101711 | OL7: 187 | OM7: 71.9076006 | ON7: 2017 | OO7: NotSig | OP7: 67.3209063 | OR7: 62.73400141 | OS7: 62.73400141 | OT7: 82.30485776 | OU7: 82.30485776 | OV7: 193 | OW7: 22.76785714 | OX7: 2011 | OY7: NotSig | OZ7: 20.02438119 | PB7: 20.14180685 | PC7: 20.14180685 | PD7: 25.62641763 | PE7: 25.62641763 | PF7: 204 | PG7: 2 | PH7: 2015 | PI7: None | PJ7: 5 | PQ7: 83.64469702 | PR7: 2006-2008 | PS7: NotSig | PT7: 81.7 | PV7: 81.78347533 | PW7: 81.78347533 | PX7: 85.50591871 | PY7: 85.50591871 | QA7: 83.77540917 | QB7: 2007-2009 | QC7: NotSig | QD7: 82 | QF7: 81.8864109 | QG7: 81.8864109 | QH7: 85.66440744 | QI7: 85.66440744 | QK7: 86.31866398 | QL7: 2008-2010 | QM7: Better | QN7: 82.2 | QP7: 84.43160659 | QQ7: 84.43160659 | QR7: 88.20572137 | QS7: 88.20572137 | QU7: 88.30039912 | QV7: 2009-2011 | QW7: Better | QX7: 82.6 | QZ7: 86.28465451 | RA7: 86.28465451 | RB7: 90.31614373 | RC7: 90.31614373 | RE7: 87.74669724 | RF7: 2010-2012 | RG7: Better | RH7: 82.8 | RJ7: 85.91935111 | RK7: 85.91935111 | RL7: 89.57404338 | RM7: 89.57404338 | RO7: 86.79281015 | RP7: 2011-2013 | RQ7: Better | RR7: 83 | RT7: 84.87221183 | RU7: 84.87221183 | RV7: 88.71340846 | RW7: 88.71340846 | RY7: 85.13925314 | RZ7: 2012-2014 | SA7: NotSig | SB7: 83.1 | SD7: 83.38921127 | SE7: 83.38921127 | SF7: 86.88929501 | SG7: 86.88929501 | SI7: 84.07161243 | SJ7: 2013-2015 | SK7: NotSig | SL7: 82.9 | SN7: 82.26625992 | SO7: 82.26625992 | SP7: 85.87696495 | SQ7: 85.87696495 | SS7: 84.98 | ST7: 2014-2016 | SU7: NotSig | SV7: 83.01 | SX7: 83.2579882 | SY7: 83.2579882 | SZ7: 86.69897145 | TA7: 86.69897145 | TC7: 84.73557237 | TD7: 2015-2017 | TE7: NotSig | TF7: 83.21603064 | TH7: 82.63609753 | TI7: 82.63609753 | TJ7: 86.83504722 | TK7: 86.83504722 | TM7: 79.71717756 | TN7: 2006-2008 | TO7: Better | TP7: 77.2 | TR7: 78.17752956 | TS7: 78.17752956 | TT7: 81.25682556 | TU7: 81.25682556 | TW7: 80.26347801 | TX7: 2007-2009 | TY7: Better | TZ7: 77.6 | UB7: 78.70216132 | UC7: 78.70216132 | UD7: 81.82479471 | UE7: 81.82479471 | UG7: 81.09328063 | UH7: 2008-2010 | UI7: Better | UJ7: 78 | UL7: 79.5363435 | UM7: 79.5363435 | UN7: 82.65021775 | UO7: 82.65021775 | UQ7: 79.24465631 | UR7: 2009-2011 | US7: NotSig | UT7: 78.6 | UV7: 77.50527134 | UW7: 77.50527134 | UX7: 80.98404129 | UY7: 80.98404129 | VA7: 78.40047056 | VB7: 2010-2012 | VC7: NotSig | VD7: 78.8 | VF7: 76.60831726 | VG7: 76.60831726 | VH7: 80.19262386 | VI7: 80.19262386 | VK7: 76.71591737 | VL7: 2011-2013 | VM7: Worse | VN7: 79.1 | VP7: 74.89057365 | VQ7: 74.89057365 | VR7: 78.5412611 | VS7: 78.5412611 | VU7: 78.76571637 | VV7: 2012-2014 | VW7: NotSig | VX7: 79.1 | VZ7: 77.01079652 | WA7: 77.01079652 | WB7: 80.52063622 | WC7: 80.52063622 | WE7: 78.34896727 | WF7: 2013-2015 | WG7: NotSig | WH7: 78.9 | WJ7: 76.66280252 | WK7: 76.66280252 | WL7: 80.03513202 | WM7: 80.03513202 | WO7: 78.84 | WP7: 2014-2016 | WQ7: NotSig | WR7: 78.75 | WT7: 77.02129475 | WU7: 77.02129475 | WV7: 80.65815614 | WW7: 80.65815614 | WY7: 78.13646131 | WZ7: 2015-2017 | XA7: NotSig | XB7: 79.04621584 | XD7: 76.05875768 | XE7: 76.05875768 | XF7: 80.21416495 | XG7: 80.21416495 | XI7: 2.948113208 | XJ7: 2005-2014 | XK7: NotSig | XL7: 4.745982095 | XN7: 0.9572443362 | XO7: 0.9572443362 | XP7: 6.879912783 | XQ7: 6.879912783 | XR7: 5 | XS7: 2.88184438 | XT7: 2006-2015 | XU7: NotSig | XV7: 4.783660306 | XX7: 0.9357270284 | XY7: 0.9357270284 | XZ7: 6.725263446 | YA7: 6.725263446 | YB7: 5 | YC7: 2.83446712 | YD7: 2007-2016 | YE7: NotSig | YF7: 4.507147429 | YH7: 1.211303957 | YI7: 1.211303957 | YJ7: 6.618277565 | YK7: 6.618277565 | YL7: 5 | YM7: 3.282275711 | YN7: 2008-2017 | YO7: NotSig | YP7: 4.348273555 | YR7: 1.505138026 | YS7: 1.505138026 | YT7: 7.142694866 | YU7: 7.142694866 | YV7: 6 | YW7: 28.48484848 | YX7: 2011/12 | YY7: NotSig | YZ7: 24.93847416 | ZB7: 22.1488611 | ZC7: 22.1488611 | ZD7: 35.7998557 | ZE7: 35.7998557 | ZF7: 47 | ZG7: 26.34730539 | ZH7: 2012/13 | ZI7: NotSig | ZJ7: 26.87176695 | ZL7: 20.25214832 | ZM7: 20.25214832 | ZN7: 33.50614867 | ZO7: 33.50614867 | ZP7: 44 | ZQ7: 21.60493827 | ZR7: 2013/14 | ZS7: NotSig | ZT7: 25.0350042 | ZV7: 15.96465011 | ZW7: 15.96465011 | ZX7: 28.5606811 | ZY7: 28.5606811 | ZZ7: 35 | AAA7: 30 | AAB7: 2014/15 | AAC7: NotSig | AAD7: 25.93444508 | AAF7: 23.43636395 | AAG7: 23.43636395 | AAH7: 37.50148386 | AAI7: 37.50148386 | AAJ7: 48 | AAK7: 29.58579882 | AAL7: 2015/16 | AAM7: NotSig | AAN7: 29.79033197 | AAP7: 23.21990647 | AAQ7: 23.21990647 | AAR7: 36.85911597 | AAS7: 36.85911597 | AAT7: 50 | AAU7: 29.54545455 | AAV7: 2016/17 | AAW7: NotSig | AAX7: 31.56572704 | AAZ7: 23.29995597 | ABA7: 23.29995597 | ABB7: 36.6647816 | ABC7: 36.6647816 | ABD7: 52 | ABE7: 30.63583815 | ABF7: 2017/18 | ABG7: NotSig | ABH7: 32.88619645 | ABJ7: 26.01325883 | ABK7: 26.01325883 | ABL7: 35.68367656 | ABM7: 35.68367656 | ABN7: 106 | ABO7: 8.906882591 | ABP7: 2008-10 | ABQ7: NotSig | ABR7: 8.610042066 | ABT7: 6.701834709 | ABU7: 6.701834709 | ABV7: 11.7460983 | ABW7: 11.7460983 | ABX7: 44 | ABY7: 9.943714822 | ABZ7: 2009-11 | ACA7: NotSig | ACB7: 8.310943937 | ACD7: 7.682793755 | ACE7: 7.682793755 | ACF7: 12.77789478 | ACG7: 12.77789478 | ACH7: 53 | ACI7: 8.288288288 | ACJ7: 2010-12 | ACK7: NotSig | ACL7: 8.140747176 | ACN7: 6.271246257 | ACO7: 6.271246257 | ACP7: 10.87878034 | ACQ7: 10.87878034 | ACR7: 46 | ACS7: 9.818181818 | ACT7: 2011-13 | ACU7: NotSig | ACV7: 7.842459838 | ACX7: 7.603095386 | ACY7: 7.603095386 | ACZ7: 12.59067253 | ADA7: 12.59067253 | ADB7: 54 | ADC7: 8.671586716 | ADD7: 2012-14 | ADE7: NotSig | ADF7: 7.767741935 | ADH7: 6.583750848 | ADI7: 6.583750848 | ADJ7: 11.34113508 | ADK7: 11.34113508 | ADL7: 47 | ADM7: 10.12658228 | ADN7: 2013-15 | ADO7: NotSig | ADP7: 7.917034422 | ADR7: 7.88090016 | ADS7: 7.88090016 | ADT7: 12.92241055 | ADU7: 12.92241055 | ADV7: 56 | ADW7: 10.99099099 | ADX7: 2014-16 | ADY7: NotSig | ADZ7: 8.553971487 | AEB7: 8.652091999 | AEC7: 8.652091999 | AED7: 13.86618341 | AEE7: 13.86618341 | AEF7: 61 | AEG7: 62.85714286 | AEH7: 2013/14 | AEI7: NotSig | AEJ7: 58.52782765 | AEL7: 54.61006296 | AEM7: 54.61006296 | AEN7: 70.41749189 | AEO7: 70.41749189 | AEP7: 88 | AEQ7: 62.40601504 | AER7: 2014/15 | AES7: NotSig | AET7: 58.84887658 | AEV7: 53.93484782 | AEW7: 53.93484782 | AEX7: 70.18065071 | AEY7: 70.18065071 | AEZ7: 83 | AFA7: 46.04316547 | AFB7: 2015/16 | AFC7: NotSig | AFD7: 52.27765727 | AFF7: 37.97503261 | AFG7: 37.97503261 | AFH7: 54.32412192 | AFI7: 54.32412192 | AFJ7: 64 | AFK7: 45.09803922 | AFL7: 2016/17 | AFM7: NotSig | AFN7: 44.26973087 | AFP7: 37.42981275 | AFQ7: 37.42981275 | AFR7: 53.00638944 | AFS7: 53.00638944 | AFT7: 69 | AFU7: 58.51851852 | AFV7: 2017/18 | AFW7: NotSig | AFX7: 53.46092504 | AFZ7: 50.0841884 | AGA7: 50.0841884 | AGB7: 66.48146872 | AGC7: 66.48146872 | AGD7: 79 | AGE7: 28.47222222 | AGF7: 2013/14 | AGG7: NotSig | AGH7: 29.90702479 | AGJ7: 21.73570326 | AGK7: 21.73570326 | AGL7: 36.32748112 | AGM7: 36.32748112 | AGN7: 41 | AGO7: 33.95061728 | AGP7: 2014/15 | AGQ7: NotSig | AGR7: 29.39739414 | AGT7: 27.10570762 | AGU7: 27.10570762 | AGV7: 41.5390448 | AGW7: 41.5390448 | AGX7: 55 | AGY7: 36.31284916 | AGZ7: 2015/16 | AHA7: NotSig | AHB7: 29.11982451 | AHD7: 29.62393766 | AHE7: 29.62393766 | AHF7: 43.57688872 | AHG7: 43.57688872 | AHH7: 65 | AHI7: 0 | AHK7: NotSig | AHL7: 0 | AHN7: 0 | AHO7: 0 | AHP7: 0 | AHQ7: 0 | AHR7: 0 | AHS7: Similar | AHT7: 2010-12 | AHU7: Similar | AHV7: 36.4 | AIC7: Similar | AID7: 2011-13 | AIE7: Similar | AIF7: 33.6 | AIM7: Similar | AIN7: 2012-14 | AIO7: Similar | AIP7: 31.59 | AIW7: Similar | AIX7: 2013-15 | AIY7: Similar | AIZ7: 28.2 | AJG7: 12.03007519 | AJH7: 2012/13 | AJI7: NotSig | AJJ7: 14.95067818 | AJL7: 7.542181331 | AJM7: 7.542181331 | AJN7: 18.64977769 | AJO7: 18.64977769 | AJP7: 16 | AJQ7: 13.27433628 | AJR7: 2013/14 | AJS7: NotSig | AJT7: 16.92258477 | AJV7: 8.212224799 | AJW7: 8.212224799 | AJX7: 20.75134615 | AJY7: 20.75134615 | AJZ7: 15 | AKA7: 16.12903226 | AKB7: 2014/15 | AKC7: NotSig | AKD7: 16.1078238 | AKF7: 10.69046544 | AKG7: 10.69046544 | AKH7: 23.60315044 | AKI7: 23.60315044 | AKJ7: 20 | AKK7: 12.23021583 | AKL7: 2015/16 | AKM7: NotSig | AKN7: 13.70495842 | AKP7: 7.777872313 | AKQ7: 7.777872313 | AKR7: 18.71405736 | AKS7: 18.71405736 | AKT7: 17 | AKU7: 15.68627451 | AKV7: 2016/17 | AKW7: NotSig | AKX7: 14.12156033 | AKZ7: 10.77349169 | ALA7: 10.77349169 | ALB7: 22.27992365 | ALC7: 22.27992365 | ALD7: 24 | ALE7: 19.25925926 | ALF7: 2017/18 | ALG7: NotSig | ALH7: 14.89633174 | ALJ7: 13.49562129 | ALK7: 13.49562129 | ALL7: 26.72396391 | ALM7: 26.72396391 | ALN7: 26 | ALO7: 58.65921788 | ALP7: 2012/13 | ALQ7: NotSig | ALR7: 59.50935761 | ALT7: 51.33710815 | ALU7: 51.33710815 | ALV7: 65.61747108 | ALW7: 65.61747108 | ALX7: 105 | ALY7: 57.06214689 | ALZ7: 2013/14 | AMA7: NotSig | AMB7: 57.58441558 | AMD7: 49.69628706 | AME7: 49.69628706 | AMF7: 64.12797656 | AMG7: 64.12797656 | AMH7: 101 | AMI7: 58.42696629 | AMJ7: 2014/15 | AMK7: NotSig | AML7: 61.27043688 | AMN7: 51.08341528 | AMO7: 51.08341528 | AMP7: 65.41447261 | AMQ7: 65.41447261 | AMR7: 104 | AMS7: 72.67759563 | AMT7: 2015/16 | AMU7: NotSig | AMV7: 67.31789004 | AMX7: 65.80479207 | AMY7: 65.80479207 | AMZ7: 78.61789684 | ANA7: 78.61789684 | ANB7: 133 | ANC7: 95.51282051 | AND7: 2012/13 | ANE7: NotSig | ANF7: 95.05681818 | ANH7: 91.02836179 | ANI7: 91.02836179 | ANJ7: 97.80966625 | ANK7: 97.80966625 | ANL7: 149 | ANM7: 95.85798817 | ANN7: 2013/14 | ANO7: NotSig | ANP7: 96.26011722 | ANR7: 91.69819923 | ANS7: 91.69819923 | ANT7: 97.97935907 | ANU7: 97.97935907 | ANV7: 162 | ANW7: 97.56097561 | ANX7: 2014/15 | ANY7: NotSig | ANZ7: 96.62703898 | AOB7: 93.89733851 | AOC7: 93.89733851 | AOD7: 99.04751618 | AOE7: 99.04751618 | AOF7: 160 | AOG7: 98.02631579 | AOH7: 2015/16 | AOI7: NotSig | AOJ7: 97.02549575 | AOL7: 94.35841982 | AOM7: 94.35841982 | AON7: 99.32653481 | AOO7: 99.32653481 | AOP7: 149 | AOQ7: 97.41935484 | AOR7: 2012/13 | AOS7: NotSig | AOT7: 94.91725768 | AOV7: 93.5531454 | AOW7: 93.5531454 | AOX7: 98.99196284 | AOY7: 98.99196284 | AOZ7: 151 | APA7: 97.98657718 | APB7: 2013/14 | APC7: NotSig | APD7: 97.01135684 | APF7: 94.24807289 | APG7: 94.24807289 | APH7: 99.31292888 | API7: 99.31292888 | APJ7: 146 | APK7: 98.65771812 | APL7: 2014/15 | APM7: NotSig | APN7: 97.57004002 | APP7: 95.23842451 | APQ7: 95.23842451 | APR7: 99.63112275 | APS7: 99.63112275 | APT7: 147 | APU7: 95.09202454 | APV7: 2015/16 | APW7: NotSig | APX7: 97.00987306 | APZ7: 90.61523602 | AQA7: 90.61523602 | AQB7: 97.49236088 | AQC7: 97.49236088 | AQD7: 155 | AQE7: 89.03225806 | AQF7: 2012/13 | AQG7: NotSig | AQH7: 88.62293144 | AQJ7: 83.13788292 | AQK7: 83.13788292 | AQL7: 93.03870277 | AQM7: 93.03870277 | AQN7: 138 | AQO7: 90.60402685 | AQP7: 2013/14 | AQQ7: NotSig | AQR7: 92.34678625 | AQT7: 84.84661895 | AQU7: 84.84661895 | AQV7: 94.32038256 | AQW7: 94.32038256 | AQX7: 135 | AQY7: 93.2885906 | AQZ7: 2014/15 | ARA7: NotSig | ARB7: 93.05317324 | ARD7: 88.08721748 | ARE7: 88.08721748 | ARF7: 96.31396594 | ARG7: 96.31396594 | ARH7: 139 | ARI7: 92.02453988 | ARJ7: 2015/16 | ARK7: NotSig | ARL7: 92.83497884 | ARN7: 86.83380502 | ARO7: 86.83380502 | ARP7: 95.28007781 | ARQ7: 95.28007781 | ARR7: 150 | ARS7: 97.04142012 | ART7: 2012/13 | ARU7: NotSig | ARV7: 96.54017857 | ARX7: 93.26203019 | ARY7: 93.26203019 | ARZ7: 98.72978768 | ASA7: 98.72978768 | ASB7: 164 | ASC7: 97.54601227 | ASD7: 2013/14 | ASE7: NotSig | ASF7: 97.06939453 | ASH7: 93.86092033 | ASI7: 93.86092033 | ASJ7: 99.04164783 | ASK7: 99.04164783 | ASL7: 159 | ASM7: 98.69281046 | ASN7: 2014/15 | ASO7: NotSig | ASP7: 97.15585893 | ASR7: 95.35960514 | ASS7: 95.35960514 | AST7: 99.64078642 | ASU7: 99.64078642 | ASV7: 151 | ASW7: 98.11320755 | ASX7: 2015/16 | ASY7: NotSig | ASZ7: 96.33967789 | ATB7: 94.60013804 | ATC7: 94.60013804 | ATD7: 99.3562789 | ATE7: 99.3562789 | ATF7: 156 | ATG7: 74.83296214 | ATH7: 2008/09-2010/11 | ATI7: NotSig | ATJ7: 75.25375558 | ATL7: 70.61972544 | ATM7: 70.61972544 | ATN7: 78.62488228 | ATO7: 78.62488228 | ATP7: 336 | ATQ7: 75.50561798 | ATR7: 2009/10-2011/12 | ATS7: NotSig | ATT7: 75.01257419 | ATV7: 71.30279435 | ATW7: 71.30279435 | ATX7: 79.27185636 | ATY7: 79.27185636 | ATZ7: 336 | AUA7: 75.81395349 | AUB7: 2010/11-2012/13 | AUC7: NotSig | AUD7: 74.90332176 | AUF7: 71.54951301 | AUG7: 71.54951301 | AUH7: 79.62125351 | AUI7: 79.62125351 | AUJ7: 326 | AUK7: 75.44247788 | AUL7: 2011/12-2013/14 | AUM7: NotSig | AUN7: 74.0590734 | AUP7: 71.27094367 | AUQ7: 71.27094367 | AUR7: 79.18519531 | AUS7: 79.18519531 | AUT7: 341 | AUU7: 74.39293598 | AUV7: 2012/13-2014/15 | AUW7: NotSig | AUX7: 73.51580571 | AUZ7: 70.1802565 | AVA7: 70.1802565 | AVB7: 78.19538799 | AVC7: 78.19538799 | AVD7: 337 | AVE7: 72.67206478 | AVF7: 2013/14-2015/16 | AVG7: NotSig | AVH7: 72.77697842 | AVJ7: 68.57859383 | AVK7: 68.57859383 | AVL7: 76.41565003 | AVM7: 76.41565003 | AVN7: 359 | AVO7: 72.67206478 | AVP7: 2014/15-2016/17 | AVQ7: NotSig | AVR7: 72.61826079 | AVT7: 68.57859383 | AVU7: 68.57859383 | AVV7: 76.41565003 | AVW7: 76.41565003 | AVX7: 359 | AVY7: 72.00811359 | AVZ7: 2015/16-2017/18 | AWA7: NotSig | AWB7: 73.07728337 | AWD7: 64.71146684 | AWE7: 64.71146684 | AWF7: 79.90230814 | AWG7: 79.90230814 | AWH7: 355 | AWI7: 24.05345212 | AWJ7: 2008/09-2010/11 | AWK7: NotSig | AWL7: 23.76167276 | AWN7: 20.33084069 | AWO7: 20.33084069 | AWP7: 28.21627322 | AWQ7: 28.21627322 | AWR7: 108 | AWS7: 24.04494382 | AWT7: 2009/10-2011/12 | AWU7: NotSig | AWV7: 24.0418469 | AWX7: 20.30725542 | AWY7: 20.30725542 | AWZ7: 28.22691061 | AXA7: 28.22691061 | AXB7: 107 | AXC7: 23.72093023 | AXD7: 2010/11-2012/13 | AXE7: NotSig | AXF7: 24.20426376 | AXH7: 19.94417881 | AXI7: 19.94417881 | AXJ7: 27.96305887 | AXK7: 27.96305887 | AXL7: 102 | AXM7: 23.89380531 | AXN7: 2011/12-2013/14 | AXO7: NotSig | AXP7: 24.93332016 | AXR7: 20.19297168 | AXS7: 20.19297168 | AXT7: 28.03464223 | AXU7: 28.03464223 | AXV7: 108 | AXW7: 24.94481236 | AXX7: 2012/13-2014/15 | AXY7: NotSig | AXZ7: 25.47224364 | AYB7: 21.18214144 | AYC7: 21.18214144 | AYD7: 29.12884816 | AYE7: 29.12884816 | AYF7: 113 | AYG7: 26.72064777 | AYH7: 2013/14-2015/16 | AYI7: NotSig | AYJ7: 26.14868106 | AYL7: 23.00910748 | AYM7: 23.00910748 | AYN7: 30.79144571 | AYO7: 30.79144571 | AYP7: 132 | AYQ7: 27.12550607 | AYR7: 2014/15-2016/17 | AYS7: NotSig | AYT7: 26.29591162 | AYV7: 23.39250094 | AYW7: 23.39250094 | AYX7: 31.21152088 | AYY7: 31.21152088 | AYZ7: 134 | AZA7: 27.78904665 | AZB7: 2015/16-2017/18 | AZC7: NotSig | AZD7: 25.59250585 | AZF7: 23.33073721 | AZG7: 23.33073721 | AZH7: 32.85119771 | AZI7: 32.85119771 | AZJ7: 137 | AZK7: 8.46325167 | AZL7: 2008/09-2010/11 | AZM7: NotSig | AZN7: 10.06902152 | AZP7: 6.227958633 | AZQ7: 6.227958633 | AZR7: 11.40325805 | AZS7: 11.40325805 | AZT7: 38 | AZU7: 10.33707865 | AZV7: 2009/10-2011/12 | AZW7: NotSig | AZX7: 10.73332663 | AZZ7: 7.839673136 | BAA7: 7.839673136 | BAB7: 13.51340309 | BAC7: 13.51340309 | BAD7: 46 | BAE7: 9.302325581 | BAF7: 2010/11-2012/13 | BAG7: NotSig | BAH7: 10.59990084 | BAJ7: 6.905799504 | BAK7: 6.905799504 | BAL7: 12.41956858 | BAM7: 12.41956858 | BAN7: 40 | BAO7: 9.513274336 | BAP7: 2011/12-2013/14 | BAQ7: NotSig | BAR7: 10.92561494 | BAT7: 7.139552829 | BAU7: 7.139552829 | BAV7: 12.56937383 | BAW7: 12.56937383 | BAX7: 43 | BAY7: 8.830022075 | BAZ7: 2012/13-2014/15 | BBA7: NotSig | BBB7: 11.26638396 | BBD7: 6.55148966 | BBE7: 6.55148966 | BBF7: 11.80092937 | BBG7: 11.80092937 | BBH7: 40 | BBI7: 9.71659919 | BBJ7: 2013/14-2015/16 | BBK7: NotSig | BBL7: 11.92326139 | BBN7: 7.407194179 | BBO7: 7.407194179 | BBP7: 12.64767611 | BBQ7: 12.64767611 | BBR7: 48 | BBS7: 9.71659919 | BBT7: 2014/15-2016/17 | BBU7: NotSig | BBV7: 11.92521953 | BBX7: 7.407194179 | BBY7: 7.407194179 | BBZ7: 12.64767611 | BCA7: 12.64767611 | BCB7: 48 | BCC7: 9.736308316 | BCD7: 2015/16-2017/18 | BCE7: NotSig | BCF7: 11.30679157 | BCH7: 7.178785157 | BCI7: 7.178785157 | BCJ7: 12.90893229 | BCK7: 12.90893229 | BCL7: 48 | BCM7: 426.1744966 | BCN7: 2011/12 | BCO7: NotSig | BCP7: 446.7419543 | BCR7: 394.1419765 | BCS7: 394.1419765 | BCT7: 458.8387489 | BCU7: 458.8387489 | BCV7: 381 | BCW7: 430.3652968 | BCX7: 2012/13 | BCY7: NotSig | BCZ7: 449.0469208 | BDB7: 397.9517249 | BDC7: 397.9517249 | BDD7: 463.3869302 | BDE7: 463.3869302 | BDF7: 377 | BDG7: 434.9726776 | BDH7: 2013/14 | BDI7: NotSig | BDJ7: 447.9064231 | BDL7: 403.188556 | BDM7: 403.188556 | BDN7: 467.3005269 | BDO7: 467.3005269 | BDP7: 398 | BDQ7: 392.3497268 | BDR7: 2014/15 | BDS7: Worse | BDT7: 457.8955541 | BDV7: 361.2253622 | BDW7: 361.2253622 | BDX7: 424.374212 | BDY7: 424.374212 | BDZ7: 359 | BEA7: 409.6256684 | BEB7: 2015/16 | BEC7: Worse | BED7: 465.7541217 | BEF7: 378.5368611 | BEG7: 378.5368611 | BEH7: 441.4540453 | BEI7: 441.4540453 | BEJ7: 383 | BEK7: 436.1924686 | BEL7: 2016/17 | BEM7: NotSig | BEN7: 459.2699526 | BEP7: 395.3252864 | BEQ7: 395.3252864 | BER7: 480.1368183 | BES7: 480.1368183 | BET7: 417 | BEU7: 406.8891281 | BEV7: 2017/18 | BEW7: NotSig | BEX7: 426.694151 | BEZ7: 366.8996314 | BFA7: 366.8996314 | BFB7: 450.0479777 | BFC7: 450.0479777 | BFD7: 378 | BFE7: 176.7337808 | BFF7: 2011/12 | BFG7: NotSig | BFH7: 173.9568422 | BFJ7: 153.1281455 | BFK7: 153.1281455 | BFL7: 203.1056369 | BFM7: 203.1056369 | BFN7: 158 | BFO7: 171.2328767 | BFP7: 2012/13 | BFQ7: NotSig | BFR7: 202.1889401 | BFT7: 147.7351806 | BFU7: 147.7351806 | BFV7: 197.6014204 | BFW7: 197.6014204 | BFX7: 150 | BFY7: 197.8142077 | BFZ7: 2013/14 | BGA7: NotSig | BGB7: 180.5289581 | BGD7: 173.2896842 | BGE7: 173.2896842 | BGF7: 224.8654658 | BGG7: 224.8654658 | BGH7: 181 | BGI7: 166.1202186 | BGJ7: 2014/15 | BGK7: NotSig | BGL7: 191.139175 | BGN7: 143.4103705 | BGO7: 143.4103705 | BGP7: 191.6218115 | BGQ7: 191.6218115 | BGR7: 152 | BGS7: 187.1657754 | BGT7: 2015/16 | BGU7: NotSig | BGV7: 203.9995929 | BGX7: 163.4632375 | BGY7: 163.4632375 | BGZ7: 213.4283617 | BHA7: 213.4283617 | BHB7: 175 | BHC7: 238.4937238 | BHD7: 2016/17 | BHE7: NotSig | BHF7: 218.3955455 | BHH7: 208.5391475 | BHI7: 208.5391475 | BHJ7: 271.543032 | BHK7: 271.543032 | BHL7: 228 | BHM7: 128.0947255 | BHN7: 2017/18 | BHO7: NotSig | BHP7: 148.7245555 | BHR7: 106.1158592 | BHS7: 106.1158592 | BHT7: 153.2844369 | BHU7: 153.2844369 | BHV7: 119 | BHW7: 126.6294227 | BHX7: 2011/12-2013/14 | BHY7: NotSig | BHZ7: 146.6531653 | BIB7: 90.75868933 | BIC7: 90.75868933 | BID7: 176.4250027 | BIE7: 176.4250027 | BIF7: 34 | BIG7: 118.255728 | BIH7: 2012/13-2014/15 | BII7: NotSig | BIJ7: 147.3899338 | BIL7: 83.89102528 | BIM7: 83.89102528 | BIN7: 166.4611073 | BIO7: 166.4611073 | BIP7: 32 | BIQ7: 129.2639138 | BIR7: 2013/14-2015/16 | BIS7: NotSig | BIT7: 148.7420043 | BIV7: 93.51686363 | BIW7: 93.51686363 | BIX7: 178.4292471 | BIY7: 178.4292471 | BIZ7: 36 | BJA7: 164.7966339 | BJB7: 2014/15-2016/17 | BJC7: NotSig | BJD7: 158.8655871 | BJF7: 121.086368 | BJG7: 121.086368 | BJH7: 219.1445874 | BJI7: 219.1445874 | BJJ7: 47 | BJK7: 158.8422167 | BJL7: 2015/16-2017/18 | BJM7: NotSig | BJN7: 145.1784306 | BJP7: 115.8606029 | BJQ7: 115.8606029 | BJR7: 212.5433833 | BJS7: 212.5433833 | BJT7: 45 | BJU7: 316.9014085 | BJV7: 2011/12-2013/14 | BJW7: NotSig | BJX7: 381.0763889 | BJZ7: 201.3795693 | BKA7: 201.3795693 | BKB7: 495.3425414 | BKC7: 495.3425414 | BKD7: 18 | BKE7: 293.1034483 | BKF7: 2012/13-2014/15 | BKG7: NotSig | BKH7: 326.9148481 | BKJ7: 183.7912939 | BKK7: 183.7912939 | BKL7: 464.3548466 | BKM7: 464.3548466 | BKN7: 17 | BKO7: 363.6363636 | BKP7: 2013/14-2015/16 | BKQ7: NotSig | BKR7: 254.6197735 | BKT7: 236.6123764 | BKU7: 236.6123764 | BKV7: 554.9762294 | BKW7: 554.9762294 | BKX7: 20 | BKY7: 555.5555556 | BKZ7: 2014/15-2016/17 | BLA7: NotSig | BLB7: 364.3116102 | BLD7: 377.4730462 | BLE7: 377.4730462 | BLF7: 788.5667653 | BLG7: 788.5667653 | BLH7: 31 | BLI7: 450.6065858 | BLJ7: 2015/16-2017/18 | BLK7: NotSig | BLL7: 305.3844093 | BLN7: 294.3511822 | BLO7: 294.3511822 | BLP7: 660.2430517 | BLQ7: 660.2430517 | BLR7: 26 | BLS7: 167.2862454 | BLT7: 2011/12-2013/14 | BLU7: NotSig | BLV7: 250.6265664 | BLX7: 88.25464109 | BLY7: 88.25464109 | BLZ7: 314.8422144 | BMA7: 314.8422144 | BMB7: 9 | BMC7: 201.0968921 | BMD7: 2012/13-2014/15 | BME7: NotSig | BMF7: 213.4067636 | BMH7: 112.6533154 | BMI7: 112.6533154 | BMJ7: 356.4736613 | BMK7: 356.4736613 | BML7: 11 | BMM7: 138.4083045 | BMN7: 2013/14-2015/16 | BMO7: NotSig | BMP7: 162.3953311 | BMR7: 70.29684129 | BMS7: 70.29684129 | BMT7: 270.7145892 | BMU7: 270.7145892 | BMV7: 8 | BMW7: 299.2957746 | BMX7: 2014/15-2016/17 | BMY7: NotSig | BMZ7: 208.2613204 | BNB7: 174.3508181 | BNC7: 174.3508181 | BND7: 479.2015284 | BNE7: 479.2015284 | BNF7: 17 | BNG7: 177.3049645 | BNH7: 2015/16-2017/18 | BNI7: NotSig | BNJ7: 168.7763713 | BNL7: 85.02462227 | BNM7: 85.02462227 | BNN7: 326.0701426 | BNO7: 326.0701426 | BNP7: 10 | BNQ7: 88.66371121 | BNR7: 2011/12-2013/14 | BNS7: NotSig | BNT7: 61.42685816 | BNV7: 52.88825729 | BNW7: 52.88825729 | BNX7: 148.278187 | BNY7: 148.278187 | BNZ7: 14 | BOA7: 63.33122229 | BOB7: 2012/13-2014/15 | BOC7: NotSig | BOD7: 59.53763941 | BOF7: 34.43655001 | BOG7: 34.43655001 | BOH7: 116.1878773 | BOI7: 116.1878773 | BOJ7: 10 | BOK7: 66.38503319 | BOL7: 2013/14-2015/16 | BOM7: NotSig | BON7: 61.03996121 | BOP7: 37.10866507 | BOQ7: 37.10866507 | BOR7: 118.4839033 | BOS7: 118.4839033 | BOT7: 11 | BOU7: 46.34994206 | BOV7: 2014/15-2016/17 | BOW7: NotSig | BOX7: 78.94294832 | BOZ7: 20.01061516 | BPA7: 20.01061516 | BPB7: 91.32786338 | BPC7: 91.32786338 | BPD7: 8 | BPE7: 41.37115839 | BPF7: 2015/16-2017/18 | BPG7: NotSig | BPH7: 69.61724495 | BPJ7: 16.63335137 | BPK7: 16.63335137 | BPL7: 85.24039812 | BPM7: 85.24039812 | BPN7: 7 | BPO7: 152.7001862 | BPP7: 2011/12-2013/14 | BPQ7: NotSig | BPR7: 163.9372883 | BPT7: 112.7614923 | BPU7: 112.7614923 | BPV7: 206.4892339 | BPW7: 206.4892339 | BPX7: 41 | BPY7: 140.428677 | BPZ7: 2012/13-2014/15 | BQA7: NotSig | BQB7: 144.6187952 | BQD7: 102.4821927 | BQE7: 102.4821927 | BQF7: 192.1529734 | BQG7: 192.1529734 | BQH7: 38 | BQI7: 140.0359066 | BQJ7: 2013/14-2015/16 | BQK7: NotSig | BQL7: 120.2558635 | BQN7: 102.6086606 | BQO7: 102.6086606 | BQP7: 190.8517602 | BQQ7: 190.8517602 | BQR7: 39 | BQS7: 196.3534362 | BQT7: 2014/15-2016/17 | BQU7: NotSig | BQV7: 159.548146 | BQX7: 148.3232755 | BQY7: 148.3232755 | BQZ7: 254.9812693 | BRA7: 254.9812693 | BRB7: 56 | BRC7: 151.7825627 | BRD7: 2015/16-2017/18 | BRE7: NotSig | BRF7: 134.2086319 | BRH7: 109.8457932 | BRI7: 109.8457932 | BRJ7: 204.4501158 | BRK7: 204.4501158 | BRL7: 43 | BRM7: 686.6197183 | BRN7: 2011/12-2013/14 | BRO7: NotSig | BRP7: 598.9583333 | BRR7: 506.3169053 | BRS7: 506.3169053 | BRT7: 924.8745125 | BRU7: 924.8745125 | BRV7: 39 | BRW7: 603.4482759 | BRX7: 2012/13-2014/15 | BRY7: NotSig | BRZ7: 687.2058194 | BSB7: 437.0672565 | BSC7: 437.0672565 | BSD7: 827.684633 | BSE7: 827.684633 | BSF7: 35 | BSG7: 672.7272727 | BSH7: 2013/14-2015/16 | BSI7: NotSig | BSJ7: 750.2341821 | BSL7: 491.9751225 | BSM7: 491.9751225 | BSN7: 913.5075762 | BSO7: 913.5075762 | BSP7: 37 | BSQ7: 806.4516129 | BSR7: 2014/15-2016/17 | BSS7: NotSig | BST7: 1000.972677 | BSV7: 588.2313403 | BSW7: 588.2313403 | BSX7: 1079.095708 | BSY7: 1079.095708 | BSZ7: 45 | BTA7: 762.5649913 | BTB7: 2015/16-2017/18 | BTC7: NotSig | BTD7: 942.0483972 | BTF7: 554.0808901 | BTG7: 554.0808901 | BTH7: 1023.707908 | BTI7: 1023.707908 | BTJ7: 44 | BTK7: 92.93680297 | BTL7: 2011/12-2013/14 | BTM7: NotSig | BTN7: 109.7571515 | BTP7: 39.76052776 | BTQ7: 39.76052776 | BTR7: 215.6916639 | BTS7: 215.6916639 | BTT7: 5 | BTU7: 73.1261426 | BTV7: 2012/13-2014/15 | BTW7: NotSig | BTX7: 89.49315894 | BTZ7: 28.47300879 | BUA7: 28.47300879 | BUB7: 186.4973539 | BUC7: 186.4973539 | BUD7: 0 | BUE7: 86.50519031 | BUF7: 2013/14-2015/16 | BUG7: NotSig | BUH7: 92.19318278 | BUJ7: 37.00483149 | BUK7: 37.00483149 | BUL7: 200.8857246 | BUM7: 200.8857246 | BUN7: 5 | BUO7: 88.02816901 | BUP7: 2014/15-2016/17 | BUQ7: NotSig | BUR7: 133.9440028 | BUT7: 28.58250687 | BUU7: 28.58250687 | BUV7: 205.4283817 | BUW7: 205.4283817 | BUX7: 5 | BUY7: 124.1134752 | BUZ7: 2015/16-2017/18 | BVA7: NotSig | BVB7: 124.8241913 | BVD7: 49.9000541 | BVE7: 49.9000541 | BVF7: 255.7211944 | BVG7: 255.7211944 | BVH7: 7 | BVI7: 50.66497783 | BVJ7: 2011/12-2013/14 | BVK7: NotSig | BVL7: 36.8561149 | BVN7: 25.69482564 | BVO7: 25.69482564 | BVP7: 99.65859311 | BVQ7: 99.65859311 | BVR7: 8 | BVS7: 56.99810006 | BVT7: 2012/13-2014/15 | BVU7: NotSig | BVV7: 29.91403346 | BVX7: 30.01578907 | BVY7: 30.01578907 | BVZ7: 107.9731339 | BWA7: 107.9731339 | BWB7: 9 | BWC7: 54.31502716 | BWD7: 2013/14-2015/16 | BWE7: NotSig | BWF7: 23.38914401 | BWH7: 28.6015971 | BWI7: 28.6015971 | BWJ7: 102.9067941 | BWK7: 102.9067941 | BWL7: 9 | BWM7: 75.31865585 | BWN7: 2014/15-2016/17 | BWO7: Better | BWP7: 31.07328817 | BWR7: 40.10401211 | BWS7: 40.10401211 | BWT7: 128.7971954 | BWU7: 128.7971954 | BWV7: 13 | BWW7: 70.92198582 | BWX7: 2015/16-2017/18 | BWY7: Better | BWZ7: 30.19543154 | BXB7: 36.64642499 | BXC7: 36.64642499 | BXD7: 123.8864365 | BXE7: 123.8864365 | BXF7: 12 | BXG7: 193.6685289 | BXH7: 2011/12-2013/14 | BXI7: NotSig | BXJ7: 164.6356367 | BXL7: 147.9952546 | BXM7: 147.9952546 | BXN7: 253.0750966 | BXO7: 253.0750966 | BXP7: 52 | BXQ7: 177.383592 | BXR7: 2012/13-2014/15 | BXS7: NotSig | BXT7: 174.9281236 | BXV7: 134.0532384 | BXW7: 134.0532384 | BXX7: 234.3869835 | BXY7: 234.3869835 | BXZ7: 48 | BYA7: 183.1238779 | BYB7: 2013/14-2015/16 | BYC7: NotSig | BYD7: 182.8571429 | BYF7: 139.5567324 | BYG7: 139.5567324 | BYH7: 239.9609289 | BYI7: 239.9609289 | BYJ7: 51 | BYK7: 220.8976157 | BYL7: 2014/15-2016/17 | BYM7: NotSig | BYN7: 238.5543402 | BYP7: 169.7437931 | BYQ7: 169.7437931 | BYR7: 282.6240087 | BYS7: 282.6240087 | BYT7: 63 | BYU7: 222.3791034 | BYV7: 2015/16-2017/18 | BYW7: NotSig | BYX7: 223.6810531 | BYZ7: 170.8822089 | BZA7: 170.8822089 | BZB7: 284.5194751 | BZC7: 284.5194751 | BZD7: 63 | BZE7: 21.4953271 | BZF7: 2011/12 | BZG7: None | BZH7: 22.19178082 | BZO7: 18.5840708 | BZP7: 2014/15 | BZQ7: None | BZR7: 18.29634073 | BZY7: 38.0952381 | BZZ7: 2016/17 | CAA7: None | CAB7: 22.88401254 | CAI7: 0.6822429907 | CAJ7: 2011/12 | CAK7: None | CAL7: 0.6196347032 | CAS7: 0.5044247788 | CAT7: 2014/15 | CAU7: None | CAV7: 0.4559088182 | CBC7: 0.8095238095 | CBD7: 2016/17 | CBE7: None | CBF7: 0.5799373041 | CBM7: 60.94674556 | CBN7: 2014/15 | CBO7: NotSig | CBP7: 60.19283747 | CBR7: 53.426141 | CBS7: 53.426141 | CBT7: 67.98076001 | CBU7: 67.98076001 | CBV7: 103 | CBW7: 69.76744186 | CBX7: 2015/16 | CBY7: NotSig | CBZ7: 63.98899587 | CCB7: 62.53372899 | CCC7: 62.53372899 | CCD7: 76.13746975 | CCE7: 76.13746975 | CCF7: 120 | CCG7: 66.25 | CCH7: 2016/17 | CCI7: NotSig | CCJ7: 65.15431285 | CCL7: 58.61852427 | CCM7: 58.61852427 | CCN7: 73.11947438 | CCO7: 73.11947438 | CCP7: 106 | CCQ7: 69.6969697 | CCR7: 2017/18 | CCS7: NotSig | CCT7: 66.56025539 | CCV7: 57.54199652 | CCW7: 57.54199652 | CCX7: 83.66065674 | CCY7: 83.66065674 | CCZ7: 115 | CDA7: 42.10526316 | CDB7: 2014/15-2015/16 | CDC7: NotSig | CDD7: 43.16037736 | CDF7: 27.85250116 | CDG7: 27.85250116 | CDH7: 57.80765466 | CDI7: 57.80765466 | CDJ7: 16 | CDK7: 59.25925926 | CDL7: 2016/17 | CDM7: NotSig | CDN7: 49.18300654 | CDP7: 40.72670097 | CDQ7: 40.72670097 | CDR7: 75.48524293 | CDS7: 75.48524293 | CDT7: 16 | CDU7: 53.33333333 | CDV7: 2017/18 | CDW7: NotSig | CDX7: 51.53153153 | CDZ7: 30.48460818 | CEA7: 30.48460818 | CEB7: 86.60999199 | CEC7: 86.60999199 | CED7: 16 | CEE7: 77.64705882 | CEF7: 2014/15 | CEG7: NotSig | CEH7: 77.4676259 | CEJ7: 70.81306517 | CEK7: 70.81306517 | CEL7: 83.25919161 | CEM7: 83.25919161 | CEN7: 132 | CEO7: 84.93975904 | CEP7: 2015/16 | CEQ7: NotSig | CER7: 78.47891981 | CET7: 78.71280017 | CEU7: 78.71280017 | CEV7: 89.58618925 | CEW7: 89.58618925 | CEX7: 141 | CEY7: 75.4491018 | CEZ7: 2016/17 | CFA7: NotSig | CFB7: 78.42653509 | CFD7: 68.3977952 | CFE7: 68.3977952 | CFF7: 81.35593588 | CFG7: 81.35593588 | CFH7: 126 | CFI7: 80.47 | CFJ7: 2017/18 | CFK7: NotSig | CFL7: 79.96339023 | CFN7: 67.24647548 | CFO7: 67.24647548 | CFP7: 94.87032253 | CFQ7: 94.87032253 | CFR7: 135.9943 | CFS7: 64.1025641 | CFT7: 2014/15-2015/16 | CFU7: NotSig | CFV7: 64.35294118 | CFX7: 48.41814856 | CFY7: 48.41814856 | CFZ7: 77.25791454 | CGA7: 77.25791454 | CGB7: 25 | CGC7: 64.70588235 | CGD7: 2016/17 | CGE7: NotSig | CGF7: 66.48351648 | CGH7: 47.91396312 | CGI7: 47.91396312 | CGJ7: 78.51207941 | CGK7: 78.51207941 | CGL7: 22 | CGM7: 75 | CGN7: 2017/18 | CGO7: NotSig | CGP7: 69.58030252 | CGR7: 41.97693066 | CGS7: 41.97693066 | CGT7: 123.7010944 | CGU7: 123.7010944 | CGV7: 15 | CGW7: 32.2764382 | CGX7: 2010/11-2014/15 | CGY7: NotSig | CGZ7: 42.52940817 | CHB7: 18.80221483 | CHC7: 18.80221483 | CHD7: 51.67770418 | CHE7: 51.67770418 | CHF7: 17 | CHG7: 26.58059616 | CHH7: 2011/12-2015/16 | CHI7: NotSig | CHJ7: 41.0448087 | CHL7: 15.84052845 | CHM7: 15.84052845 | CHN7: 44.57005128 | CHO7: 44.57005128 | CHP7: 14 | CHQ7: 27.35229759 | CHR7: 2012/13-2016/17 | CHS7: NotSig | CHT7: 36.74066426 | CHV7: 16.58331562 | CHW7: 16.58331562 | CHX7: 45.08293162 | CHY7: 45.08293162 | CHZ7: 15 | CIA7: 34.62099125 | CIB7: 2013/14-2017/18 | CIC7: NotSig | CID7: 36.62408119 | CIF7: 20.84409833 | CIG7: 20.84409833 | CIH7: 54.06496642 | CII7: 54.06496642 | CIJ7: 19
A8: Brierley Hill | B8: E05001238 | C8: 998 | D8: 2002 | E8: NotSig | F8: 20926 | L8: 998 | M8: 982 | N8: 2003 | O8: NotSig | P8: 20696 | V8: 982 | W8: 982 | X8: 2004 | Y8: NotSig | Z8: 20659 | AF8: 982 | AG8: 980 | AH8: 2005 | AI8: NotSig | AJ8: 20780 | AP8: 980 | AQ8: 1034 | AR8: 2006 | AS8: NotSig | AT8: 21108 | AZ8: 1034 | BA8: 1069 | BB8: 2007 | BC8: NotSig | BD8: 21307 | BJ8: 1069 | BK8: 1105 | BL8: 2008 | BM8: NotSig | BN8: 21672 | BT8: 1105 | BU8: 1137 | BV8: 2009 | BW8: NotSig | BX8: 21983 | CD8: 1137 | CE8: 1200 | CF8: 2010 | CG8: NotSig | CH8: 22453 | CN8: 1200 | CO8: 1298 | CP8: 2011 | CQ8: NotSig | CR8: 22695 | CX8: 1298 | CY8: 1320 | CZ8: 2012 | DA8: NotSig | DB8: 22744 | DH8: 1320 | DI8: 1376 | DJ8: 2013 | DK8: NotSig | DL8: 23185 | DR8: 1376 | DS8: 1348 | DT8: 2014 | DU8: NotSig | DV8: 23432 | EB8: 1348 | EC8: 1330 | ED8: 2015 | EE8: NotSig | EF8: 23482 | EL8: 1330 | EM8: 1367 | EN8: 2016 | EO8: NotSig | EP8: 23377 | EV8: 1367 | EW8: 1338 | EX8: 2017 | EY8: NotSig | EZ8: 23457 | FF8: 1338 | FG8: 212 | FH8: 2009 | FI8: None | FJ8: 3623 | FP8: 212 | FQ8: 226 | FR8: 2010 | FS8: None | FT8: 3779 | FZ8: 226 | GA8: 243 | GB8: 2011 | GC8: None | GD8: 3712 | GJ8: 243 | GK8: 261 | GL8: 2012 | GM8: None | GN8: 3966 | GT8: 261 | GU8: 235 | GV8: 2013 | GW8: None | GX8: 3853 | HD8: 235 | HE8: 235 | HF8: 2014 | HG8: None | HH8: 3758 | HN8: 235 | HO8: 216 | HP8: 2015 | HQ8: None | HR8: 3672 | HX8: 216 | HY8: 224 | HZ8: 2016 | IA8: None | IB8: 3833 | IH8: 224 | II8: 298 | IJ8: 2017 | IK8: None | IL8: 3821 | IR8: 298 | IS8: 75.84760573 | IT8: 2002 | IU8: Higher | IV8: 57.47644819 | IX8: 66.70484494 | IY8: 66.70484494 | IZ8: 86.12785632 | JA8: 86.12785632 | JB8: 217 | JC8: 69.53759266 | JD8: 2003 | JE8: Higher | JF8: 56.21865597 | JH8: 60.74206277 | JI8: 60.74206277 | JJ8: 79.4989287 | JK8: 79.4989287 | JL8: 197 | JM8: 70.44734061 | JN8: 2004 | JO8: Higher | JP8: 58.99443953 | JR8: 61.60311123 | JS8: 61.60311123 | JT8: 80.452457 | JU8: 80.452457 | JV8: 200 | JW8: 64.39393939 | JX8: 2005 | JY8: NotSig | JZ8: 59.50715951 | KB8: 56.02949045 | KC8: 56.02949045 | KD8: 73.90931955 | KE8: 73.90931955 | KF8: 187 | KG8: 68.94243641 | KH8: 2006 | KI8: NotSig | KJ8: 59.28374473 | KL8: 60.400627 | KM8: 60.400627 | KN8: 78.59118274 | KO8: 78.59118274 | KP8: 206 | KQ8: 65.27501657 | KR8: 2007 | KS8: NotSig | KT8: 59.92229528 | KV8: 57.00333719 | KW8: 57.00333719 | KX8: 74.65196777 | KY8: 74.65196777 | KZ8: 197 | LA8: 70.0427491 | LB8: 2008 | LC8: NotSig | LD8: 61.89859977 | LF8: 61.50375033 | LG8: 61.50375033 | LH8: 79.66664053 | LI8: 79.66664053 | LJ8: 213 | LK8: 69.7139099 | LL8: 2009 | LM8: NotSig | LN8: 60.40546818 | LP8: 61.19497196 | LQ8: 61.19497196 | LR8: 79.31857024 | LS8: 79.31857024 | LT8: 212 | LU8: 74.93455497 | LV8: 2010 | LW8: Higher | LX8: 63.90061026 | LZ8: 66.12414679 | MA8: 66.12414679 | MB8: 84.81225467 | MC8: 84.81225467 | MD8: 229 | ME8: 79.63446475 | MF8: 2011 | MG8: Higher | MH8: 62.83429227 | MJ8: 70.56645394 | MK8: 70.56645394 | ML8: 89.75521373 | MM8: 89.75521373 | MN8: 244 | MO8: 86.55434424 | MP8: 2012 | MQ8: Higher | MR8: 68.03127561 | MT8: 77.05424269 | MU8: 77.05424269 | MV8: 97.10249431 | MW8: 97.10249431 | MX8: 262 | MY8: 78.0939775 | MZ8: 2013 | NA8: Higher | NB8: 66.44683738 | ND8: 69.05419279 | NE8: 69.05419279 | NF8: 88.20502429 | NG8: 88.20502429 | NH8: 236 | NI8: 78.24933687 | NJ8: 2014 | NK8: Higher | NL8: 65.26366799 | NN8: 69.19219866 | NO8: 69.19219866 | NP8: 88.37947036 | NQ8: 88.37947036 | NR8: 236 | NS8: 71.94960212 | NT8: 2015 | NU8: NotSig | NV8: 63.86182309 | NX8: 63.26175507 | NY8: 63.26175507 | NZ8: 81.72647189 | OA8: 81.72647189 | OB8: 217 | OC8: 74.19675389 | OD8: 2016 | OE8: NotSig | OF8: 67.48595877 | OH8: 65.37908663 | OI8: 65.37908663 | OJ8: 84.09665167 | OK8: 84.09665167 | OL8: 224 | OM8: 95.23809524 | ON8: 2017 | OO8: Higher | OP8: 67.3209063 | OR8: 85.44342279 | OS8: 85.44342279 | OT8: 106.0253977 | OU8: 106.0253977 | OV8: 298 | OW8: 17.43119266 | OX8: 2011 | OY8: NotSig | OZ8: 20.02438119 | PB8: 15.29442447 | PC8: 15.29442447 | PD8: 19.79671746 | PE8: 19.79671746 | PF8: 190 | PG8: 2 | PH8: 2015 | PI8: None | PJ8: 5 | PQ8: 80.34604213 | PR8: 2006-2008 | PS8: NotSig | PT8: 81.7 | PV8: 78.4717406 | PW8: 78.4717406 | PX8: 82.22034367 | PY8: 82.22034367 | QA8: 80.90547397 | QB8: 2007-2009 | QC8: NotSig | QD8: 82 | QF8: 79.1123121 | QG8: 79.1123121 | QH8: 82.69863585 | QI8: 82.69863585 | QK8: 81.14265257 | QL8: 2008-2010 | QM8: NotSig | QN8: 82.2 | QP8: 79.34369104 | QQ8: 79.34369104 | QR8: 82.9416141 | QS8: 82.9416141 | QU8: 81.53613487 | QV8: 2009-2011 | QW8: NotSig | QX8: 82.6 | QZ8: 79.66220828 | RA8: 79.66220828 | RB8: 83.41006146 | RC8: 83.41006146 | RE8: 82.30998232 | RF8: 2010-2012 | RG8: NotSig | RH8: 82.8 | RJ8: 80.38225359 | RK8: 80.38225359 | RL8: 84.23771105 | RM8: 84.23771105 | RO8: 83.13383394 | RP8: 2011-2013 | RQ8: NotSig | RR8: 83 | RT8: 81.19097516 | RU8: 81.19097516 | RV8: 85.07669273 | RW8: 85.07669273 | RY8: 83.83567593 | RZ8: 2012-2014 | SA8: NotSig | SB8: 83.1 | SD8: 81.86720728 | SE8: 81.86720728 | SF8: 85.80414458 | SG8: 85.80414458 | SI8: 83.52747204 | SJ8: 2013-2015 | SK8: NotSig | SL8: 82.9 | SN8: 81.56458041 | SO8: 81.56458041 | SP8: 85.49036367 | SQ8: 85.49036367 | SS8: 82.33 | ST8: 2014-2016 | SU8: NotSig | SV8: 83.01 | SX8: 80.4117215 | SY8: 80.4117215 | SZ8: 84.25346136 | TA8: 84.25346136 | TC8: 81.24243951 | TD8: 2015-2017 | TE8: NotSig | TF8: 83.21603064 | TH8: 79.26375721 | TI8: 79.26375721 | TJ8: 83.22112182 | TK8: 83.22112182 | TM8: 74.15099851 | TN8: 2006-2008 | TO8: Worse | TP8: 77.2 | TR8: 72.16407115 | TS8: 72.16407115 | TT8: 76.13792587 | TU8: 76.13792587 | TW8: 75.59500417 | TX8: 2007-2009 | TY8: NotSig | TZ8: 77.6 | UB8: 73.65354218 | UC8: 73.65354218 | UD8: 77.53646617 | UE8: 77.53646617 | UG8: 74.77606764 | UH8: 2008-2010 | UI8: Worse | UJ8: 78 | UL8: 72.78545609 | UM8: 72.78545609 | UN8: 76.76667918 | UO8: 76.76667918 | UQ8: 76.23598388 | UR8: 2009-2011 | US8: Worse | UT8: 78.6 | UV8: 74.27892384 | UW8: 74.27892384 | UX8: 78.19304393 | UY8: 78.19304393 | VA8: 76.43460546 | VB8: 2010-2012 | VC8: NotSig | VD8: 78.8 | VF8: 74.32768689 | VG8: 74.32768689 | VH8: 78.54152404 | VI8: 78.54152404 | VK8: 78.02199379 | VL8: 2011-2013 | VM8: NotSig | VN8: 79.1 | VP8: 75.9160535 | VQ8: 75.9160535 | VR8: 80.12793408 | VS8: 80.12793408 | VU8: 76.55020841 | VV8: 2012-2014 | VW8: Worse | VX8: 79.1 | VZ8: 74.53736831 | WA8: 74.53736831 | WB8: 78.56304852 | WC8: 78.56304852 | WE8: 77.50796143 | WF8: 2013-2015 | WG8: NotSig | WH8: 78.9 | WJ8: 75.60119647 | WK8: 75.60119647 | WL8: 79.41472639 | WM8: 79.41472639 | WO8: 76.9 | WP8: 2014-2016 | WQ8: NotSig | WR8: 78.75 | WT8: 75.02722809 | WU8: 75.02722809 | WV8: 78.77757846 | WW8: 78.77757846 | WY8: 76.58771515 | WZ8: 2015-2017 | XA8: NotSig | XB8: 79.04621584 | XD8: 74.66545714 | XE8: 74.66545714 | XF8: 78.50997316 | XG8: 78.50997316 | XI8: 8.141112619 | XJ8: 2005-2014 | XK8: NotSig | XL8: 4.745982095 | XN8: 4.824939365 | XO8: 4.824939365 | XP8: 12.86646777 | XQ8: 12.86646777 | XR8: 18 | XS8: 8.474576271 | XT8: 2006-2015 | XU8: NotSig | XV8: 4.783660306 | XX8: 5.10224855 | XY8: 5.10224855 | XZ8: 13.23410059 | YA8: 13.23410059 | YB8: 19 | YC8: 7.56227758 | YD8: 2007-2016 | YE8: NotSig | YF8: 4.507147429 | YH8: 4.72690816 | YI8: 4.72690816 | YJ8: 12.0777646 | YK8: 12.0777646 | YL8: 17 | YM8: 6.180469716 | YN8: 2008-2017 | YO8: NotSig | YP8: 4.348273555 | YR8: 3.749057365 | YS8: 3.749057365 | YT8: 10.1726481 | YU8: 10.1726481 | YV8: 15 | YW8: 25.94142259 | YX8: 2011/12 | YY8: NotSig | YZ8: 24.93847416 | ZB8: 20.79609171 | ZC8: 20.79609171 | ZD8: 31.8479088 | ZE8: 31.8479088 | ZF8: 62 | ZG8: 27.43362832 | ZH8: 2012/13 | ZI8: NotSig | ZJ8: 26.87176695 | ZL8: 22.03023537 | ZM8: 22.03023537 | ZN8: 33.59134808 | ZO8: 33.59134808 | ZP8: 62 | ZQ8: 28.01724138 | ZR8: 2013/14 | ZS8: NotSig | ZT8: 25.0350042 | ZV8: 22.63267388 | ZW8: 22.63267388 | ZX8: 34.11793285 | ZY8: 34.11793285 | ZZ8: 65 | AAA8: 27.80487805 | AAB8: 2014/15 | AAC8: NotSig | AAD8: 25.93444508 | AAF8: 22.12292969 | AAG8: 22.12292969 | AAH8: 34.30334673 | AAI8: 34.30334673 | AAJ8: 57 | AAK8: 32.87671233 | AAL8: 2015/16 | AAM8: NotSig | AAN8: 29.79033197 | AAP8: 26.99702455 | AAQ8: 26.99702455 | AAR8: 39.34676067 | AAS8: 39.34676067 | AAT8: 72 | AAU8: 30.58252427 | AAV8: 2016/17 | AAW8: NotSig | AAX8: 31.56572704 | AAZ8: 24.69376748 | ABA8: 24.69376748 | ABB8: 37.1822124 | ABC8: 37.1822124 | ABD8: 63 | ABE8: 31.87022901 | ABF8: 2017/18 | ABG8: NotSig | ABH8: 32.88619645 | ABJ8: 28.02479702 | ABK8: 28.02479702 | ABL8: 35.97954617 | ABM8: 35.97954617 | ABN8: 167 | ABO8: 8.409785933 | ABP8: 2008-10 | ABQ8: NotSig | ABR8: 8.610042066 | ABT8: 6.517967758 | ABU8: 6.517967758 | ABV8: 10.78733541 | ABW8: 10.78733541 | ABX8: 55 | ABY8: 8.02919708 | ABZ8: 2009-11 | ACA8: NotSig | ACB8: 8.310943937 | ACD8: 6.220486904 | ACE8: 6.220486904 | ACF8: 10.306024 | ACG8: 10.306024 | ACH8: 55 | ACI8: 8.979591837 | ACJ8: 2010-12 | ACK8: NotSig | ACL8: 8.140747176 | ACN8: 7.120428341 | ACO8: 7.120428341 | ACP8: 11.2653102 | ACQ8: 11.2653102 | ACR8: 66 | ACS8: 8.086253369 | ACT8: 2011-13 | ACU8: NotSig | ACV8: 7.842459838 | ACX8: 6.333716752 | ACY8: 6.333716752 | ACZ8: 10.27054376 | ADA8: 10.27054376 | ADB8: 60 | ADC8: 7.629427793 | ADD8: 2012-14 | ADE8: NotSig | ADF8: 7.767741935 | ADH8: 5.921875465 | ADI8: 5.921875465 | ADJ8: 9.778171942 | ADK8: 9.778171942 | ADL8: 56 | ADM8: 6.966618287 | ADN8: 2013-15 | ADO8: NotSig | ADP8: 7.917034422 | ADR8: 5.294595289 | ADS8: 5.294595289 | ADT8: 9.115838375 | ADU8: 9.115838375 | ADV8: 48 | ADW8: 7.784431138 | ADX8: 2014-16 | ADY8: NotSig | ADZ8: 8.553971487 | AEB8: 5.985525569 | AEC8: 5.985525569 | AED8: 10.06609753 | AEE8: 10.06609753 | AEF8: 52 | AEG8: 50 | AEH8: 2013/14 | AEI8: Worse | AEJ8: 58.52782765 | AEL8: 43.47896907 | AEM8: 43.47896907 | AEN8: 56.52103093 | AEO8: 56.52103093 | AEP8: 111 | AEQ8: 58.85416667 | AER8: 2014/15 | AES8: NotSig | AET8: 58.84887658 | AEV8: 51.78627055 | AEW8: 51.78627055 | AEX8: 65.57471124 | AEY8: 65.57471124 | AEZ8: 113 | AFA8: 46.875 | AFB8: 2015/16 | AFC8: NotSig | AFD8: 52.27765727 | AFF8: 40.44781984 | AFG8: 40.44781984 | AFH8: 53.40755658 | AFI8: 53.40755658 | AFJ8: 105 | AFK8: 49.74093264 | AFL8: 2016/17 | AFM8: NotSig | AFN8: 44.26973087 | AFP8: 42.76118659 | AFQ8: 42.76118659 | AFR8: 56.73079035 | AFS8: 56.73079035 | AFT8: 96 | AFU8: 52.50965251 | AFV8: 2017/18 | AFW8: NotSig | AFX8: 53.46092504 | AFZ8: 46.43583127 | AGA8: 46.43583127 | AGB8: 58.51011602 | AGC8: 58.51011602 | AGD8: 136 | AGE8: 22.5 | AGF8: 2013/14 | AGG8: NotSig | AGH8: 29.90702479 | AGJ8: 17.26236972 | AGK8: 17.26236972 | AGL8: 28.77412324 | AGM8: 28.77412324 | AGN8: 45 | AGO8: 31.25 | AGP8: 2014/15 | AGQ8: NotSig | AGR8: 29.39739414 | AGT8: 25.11569352 | AGU8: 25.11569352 | AGV8: 38.11987446 | AGW8: 38.11987446 | AGX8: 60 | AGY8: 25 | AGZ8: 2015/16 | AHA8: NotSig | AHB8: 29.11982451 | AHD8: 19.55711429 | AHE8: 19.55711429 | AHF8: 31.3670177 | AHG8: 31.3670177 | AHH8: 51 | AHI8: 0 | AHK8: NotSig | AHL8: 0 | AHN8: 0 | AHO8: 0 | AHP8: 0 | AHQ8: 0 | AHR8: 0 | AHS8: Worse | AHT8: 2010-12 | AHU8: Worse | AHV8: 36.4 | AIC8: Worse | AID8: 2011-13 | AIE8: Worse | AIF8: 33.6 | AIM8: Similar | AIN8: 2012-14 | AIO8: Similar | AIP8: 31.59 | AIW8: Similar | AIX8: 2013-15 | AIY8: Similar | AIZ8: 28.2 | AJG8: 19.82378855 | AJH8: 2012/13 | AJI8: NotSig | AJJ8: 14.95067818 | AJL8: 15.15860552 | AJM8: 15.15860552 | AJN8: 25.49330307 | AJO8: 25.49330307 | AJP8: 45 | AJQ8: 21.21212121 | AJR8: 2013/14 | AJS8: NotSig | AJT8: 16.92258477 | AJV8: 16.43329669 | AJW8: 16.43329669 | AJX8: 26.93275092 | AJY8: 26.93275092 | AJZ8: 49 | AKA8: 15.07537688 | AKB8: 2014/15 | AKC8: NotSig | AKD8: 16.1078238 | AKF8: 10.76853543 | AKG8: 10.76853543 | AKH8: 20.70503964 | AKI8: 20.70503964 | AKJ8: 30 | AKK8: 17.35159817 | AKL8: 2015/16 | AKM8: NotSig | AKN8: 13.70495842 | AKP8: 12.91058839 | AKQ8: 12.91058839 | AKR8: 22.91822876 | AKS8: 22.91822876 | AKT8: 38 | AKU8: 17.0984456 | AKV8: 2016/17 | AKW8: NotSig | AKX8: 14.12156033 | AKZ8: 12.44192684 | ALA8: 12.44192684 | ALB8: 23.03914469 | ALC8: 23.03914469 | ALD8: 33 | ALE8: 16.6023166 | ALF8: 2017/18 | ALG8: NotSig | ALH8: 14.89633174 | ALJ8: 12.56557769 | ALK8: 12.56557769 | ALL8: 21.61527765 | ALM8: 21.61527765 | ALN8: 43 | ALO8: 53.77358491 | ALP8: 2012/13 | ALQ8: NotSig | ALR8: 59.50935761 | ALT8: 47.05472809 | ALU8: 47.05472809 | ALV8: 60.35812025 | ALW8: 60.35812025 | ALX8: 114 | ALY8: 51.52838428 | ALZ8: 2013/14 | AMA8: NotSig | AMB8: 57.58441558 | AMD8: 45.08385951 | AME8: 45.08385951 | AMF8: 57.92247795 | AMG8: 57.92247795 | AMH8: 118 | AMI8: 63.41463415 | AMJ8: 2014/15 | AMK8: NotSig | AML8: 61.27043688 | AMN8: 56.63059326 | AMO8: 56.63059326 | AMP8: 69.70517375 | AMQ8: 69.70517375 | AMR8: 130 | AMS8: 65.94827586 | AMT8: 2015/16 | AMU8: NotSig | AMV8: 67.31789004 | AMX8: 59.63496387 | AMY8: 59.63496387 | AMZ8: 71.74204692 | ANA8: 71.74204692 | ANB8: 153 | ANC8: 95.36082474 | AND8: 2012/13 | ANE8: NotSig | ANF8: 95.05681818 | ANH8: 91.41972089 | ANI8: 91.41972089 | ANJ8: 97.54039953 | ANK8: 97.54039953 | ANL8: 185 | ANM8: 95.67307692 | ANN8: 2013/14 | ANO8: NotSig | ANP8: 96.26011722 | ANR8: 91.98256185 | ANS8: 91.98256185 | ANT8: 97.70715283 | ANU8: 97.70715283 | ANV8: 199 | ANW8: 96.69811321 | ANX8: 2014/15 | ANY8: NotSig | ANZ8: 96.62703898 | AOB8: 93.34246402 | AOC8: 93.34246402 | AOD8: 98.39153421 | AOE8: 98.39153421 | AOF8: 205 | AOG8: 98.71794872 | AOH8: 2015/16 | AOI8: NotSig | AOJ8: 97.02549575 | AOL8: 96.2991305 | AOM8: 96.2991305 | AON8: 99.5630464 | AOO8: 99.5630464 | AOP8: 231 | AOQ8: 97.68786127 | AOR8: 2012/13 | AOS8: NotSig | AOT8: 94.91725768 | AOV8: 94.2066464 | AOW8: 94.2066464 | AOX8: 99.09726609 | AOY8: 99.09726609 | AOZ8: 169 | APA8: 97.93814433 | APB8: 2013/14 | APC8: NotSig | APD8: 97.01135684 | APF8: 94.81933892 | APG8: 94.81933892 | APH8: 99.19533379 | API8: 99.19533379 | APJ8: 190 | APK8: 97.36842105 | APL8: 2014/15 | APM8: NotSig | APN8: 97.57004002 | APP8: 93.98856845 | APQ8: 93.98856845 | APR8: 98.8708235 | APS8: 98.8708235 | APT8: 185 | APU8: 98.4375 | APV8: 2015/16 | APW8: NotSig | APX8: 97.00987306 | APZ8: 95.50757206 | AQA8: 95.50757206 | AQB8: 99.46721066 | AQC8: 99.46721066 | AQD8: 189 | AQE8: 94.21965318 | AQF8: 2012/13 | AQG8: Better | AQH8: 88.62293144 | AQJ8: 89.68790937 | AQK8: 89.68790937 | AQL8: 96.83026404 | AQM8: 96.83026404 | AQN8: 163 | AQO8: 96.39175258 | AQP8: 2013/14 | AQQ8: NotSig | AQR8: 92.34678625 | AQT8: 92.740572 | AQU8: 92.740572 | AQV8: 98.24136933 | AQW8: 98.24136933 | AQX8: 187 | AQY8: 94.21052632 | AQZ8: 2014/15 | ARA8: NotSig | ARB8: 93.05317324 | ARD8: 89.93192942 | ARE8: 89.93192942 | ARF8: 96.7368364 | ARG8: 96.7368364 | ARH8: 179 | ARI8: 97.91666667 | ARJ8: 2015/16 | ARK8: Better | ARL8: 92.83497884 | ARN8: 94.7666269 | ARO8: 94.7666269 | ARP8: 99.18692161 | ARQ8: 99.18692161 | ARR8: 188 | ARS8: 94.73684211 | ART8: 2012/13 | ARU8: NotSig | ARV8: 96.54017857 | ARX8: 90.82277774 | ARY8: 90.82277774 | ARZ8: 97.03604499 | ASA8: 97.03604499 | ASB8: 198 | ASC8: 97.16981132 | ASD8: 2013/14 | ASE8: NotSig | ASF8: 97.06939453 | ASH8: 93.96402391 | ASI8: 93.96402391 | ASJ8: 98.69658036 | ASK8: 98.69658036 | ASL8: 206 | ASM8: 98.68421053 | ASN8: 2014/15 | ASO8: NotSig | ASP8: 97.15585893 | ASR8: 96.20356895 | ASS8: 96.20356895 | AST8: 99.5515221 | ASU8: 99.5515221 | ASV8: 225 | ASW8: 96.0199005 | ASX8: 2015/16 | ASY8: NotSig | ASZ8: 96.33967789 | ATB8: 92.34409096 | ATC8: 92.34409096 | ATD8: 97.96965756 | ATE8: 97.96965756 | ATF8: 193 | ATG8: 79.05544148 | ATH8: 2008/09-2010/11 | ATI8: NotSig | ATJ8: 75.25375558 | ATL8: 75.22106578 | ATM8: 75.22106578 | ATN8: 82.43502559 | ATO8: 82.43502559 | ATP8: 385 | ATQ8: 76.00806452 | ATR8: 2009/10-2011/12 | ATS8: NotSig | ATT8: 75.01257419 | ATV8: 72.05920802 | ATW8: 72.05920802 | ATX8: 79.55715862 | ATY8: 79.55715862 | ATZ8: 377 | AUA8: 73.61376673 | AUB8: 2010/11-2012/13 | AUC8: NotSig | AUD8: 74.90332176 | AUF8: 69.67428556 | AUG8: 69.67428556 | AUH8: 77.20888885 | AUI8: 77.20888885 | AUJ8: 385 | AUK8: 71.99211045 | AUL8: 2011/12-2013/14 | AUM8: NotSig | AUN8: 74.0590734 | AUP8: 67.92929671 | AUQ8: 67.92929671 | AUR8: 75.72416879 | AUS8: 75.72416879 | AUT8: 365 | AUU8: 72.08872458 | AUV8: 2012/13-2014/15 | AUW8: NotSig | AUX8: 73.51580571 | AUZ8: 68.16327994 | AVA8: 68.16327994 | AVB8: 75.70269174 | AVC8: 75.70269174 | AVD8: 390 | AVE8: 70.6864564 | AVF8: 2013/14-2015/16 | AVG8: NotSig | AVH8: 72.77697842 | AVJ8: 66.70801881 | AVK8: 66.70801881 | AVL8: 74.37211543 | AVM8: 74.37211543 | AVN8: 381 | AVO8: 70.57793345 | AVP8: 2014/15-2016/17 | AVQ8: NotSig | AVR8: 72.61826079 | AVT8: 66.71271969 | AVU8: 66.71271969 | AVV8: 74.16811734 | AVW8: 74.16811734 | AVX8: 403 | AVY8: 74.22145329 | AVZ8: 2015/16-2017/18 | AWA8: NotSig | AWB8: 73.07728337 | AWD8: 67.36316232 | AWE8: 67.36316232 | AWF8: 81.58858699 | AWG8: 81.58858699 | AWH8: 429 | AWI8: 20.73921971 | AWJ8: 2008/09-2010/11 | AWK8: NotSig | AWL8: 23.76167276 | AWN8: 17.37415505 | AWO8: 17.37415505 | AWP8: 24.56229003 | AWQ8: 24.56229003 | AWR8: 101 | AWS8: 23.18548387 | AWT8: 2009/10-2011/12 | AWU8: NotSig | AWV8: 24.0418469 | AWX8: 19.68616895 | AWY8: 19.68616895 | AWZ8: 27.09695691 | AXA8: 27.09695691 | AXB8: 115 | AXC8: 25.62141491 | AXD8: 2010/11-2012/13 | AXE8: NotSig | AXF8: 24.20426376 | AXH8: 22.06729813 | AXI8: 22.06729813 | AXJ8: 29.53104408 | AXK8: 29.53104408 | AXL8: 134 | AXM8: 26.62721893 | AXN8: 2011/12-2013/14 | AXO8: NotSig | AXP8: 24.93332016 | AXR8: 22.96598151 | AXS8: 22.96598151 | AXT8: 30.63997668 | AXU8: 30.63997668 | AXV8: 135 | AXW8: 26.80221811 | AXX8: 2012/13-2014/15 | AXY8: NotSig | AXZ8: 25.47224364 | AYB8: 23.24300045 | AYC8: 23.24300045 | AYD8: 30.68855231 | AYE8: 30.68855231 | AYF8: 145 | AYG8: 28.20037106 | AYH8: 2013/14-2015/16 | AYI8: NotSig | AYJ8: 26.14868106 | AYL8: 24.56619739 | AYM8: 24.56619739 | AYN8: 32.14307819 | AYO8: 32.14307819 | AYP8: 152 | AYQ8: 28.37127846 | AYR8: 2014/15-2016/17 | AYS8: NotSig | AYT8: 26.29591162 | AYV8: 24.82781566 | AYW8: 24.82781566 | AYX8: 32.2038152 | AYY8: 32.2038152 | AYZ8: 162 | AZA8: 23.70242215 | AZB8: 2015/16-2017/18 | AZC8: NotSig | AZD8: 25.59250585 | AZF8: 19.89974644 | AZG8: 19.89974644 | AZH8: 28.02013922 | AZI8: 28.02013922 | AZJ8: 137 | AZK8: 9.240246407 | AZL8: 2008/09-2010/11 | AZM8: NotSig | AZN8: 10.06902152 | AZP8: 6.977537819 | AZQ8: 6.977537819 | AZR8: 12.14094884 | AZS8: 12.14094884 | AZT8: 45 | AZU8: 10.88709677 | AZV8: 2009/10-2011/12 | AZW8: NotSig | AZX8: 10.73332663 | AZZ8: 8.440596345 | BAA8: 8.440596345 | BAB8: 13.93479026 | BAC8: 13.93479026 | BAD8: 54 | BAE8: 11.66347992 | BAF8: 2010/11-2012/13 | BAG8: NotSig | BAH8: 10.59990084 | BAJ8: 9.187898557 | BAK8: 9.187898557 | BAL8: 14.69812194 | BAM8: 14.69812194 | BAN8: 61 | BAO8: 12.4260355 | BAP8: 2011/12-2013/14 | BAQ8: NotSig | BAR8: 10.92561494 | BAT8: 9.834055178 | BAU8: 9.834055178 | BAV8: 15.58311811 | BAW8: 15.58311811 | BAX8: 63 | BAY8: 12.3844732 | BAZ8: 2012/13-2014/15 | BBA8: NotSig | BBB8: 11.26638396 | BBD8: 9.871062106 | BBE8: 9.871062106 | BBF8: 15.42830831 | BBG8: 15.42830831 | BBH8: 67 | BBI8: 15.39888683 | BBJ8: 2013/14-2015/16 | BBK8: Better | BBL8: 11.92326139 | BBN8: 12.5975899 | BBO8: 12.5975899 | BBP8: 18.68989857 | BBQ8: 18.68989857 | BBR8: 83 | BBS8: 13.83537653 | BBT8: 2014/15-2016/17 | BBU8: NotSig | BBV8: 11.92521953 | BBX8: 11.24422338 | BBY8: 11.24422338 | BBZ8: 16.90988004 | BCA8: 16.90988004 | BCB8: 79 | BCC8: 10.89965398 | BCD8: 2015/16-2017/18 | BCE8: NotSig | BCF8: 11.30679157 | BCH8: 8.37559339 | BCI8: 8.37559339 | BCJ8: 13.94539226 | BCK8: 13.94539226 | BCL8: 63 | BCM8: 471.7488789 | BCN8: 2011/12 | BCO8: NotSig | BCP8: 446.7419543 | BCR8: 442.5948004 | BCS8: 442.5948004 | BCT8: 501.0969537 | BCU8: 501.0969537 | BCV8: 526 | BCW8: 455.8180227 | BCX8: 2012/13 | BCY8: NotSig | BCZ8: 449.0469208 | BDB8: 427.1409728 | BDC8: 427.1409728 | BDD8: 484.7910565 | BDE8: 484.7910565 | BDF8: 521 | BDG8: 439.2764858 | BDH8: 2013/14 | BDI8: NotSig | BDJ8: 447.9064231 | BDL8: 410.9751734 | BDM8: 410.9751734 | BDN8: 467.9783108 | BDO8: 467.9783108 | BDP8: 510 | BDQ8: 484.9267873 | BDR8: 2014/15 | BDS8: NotSig | BDT8: 457.8955541 | BDV8: 456.2760994 | BDW8: 456.2760994 | BDX8: 513.6768931 | BDY8: 513.6768931 | BDZ8: 563 | BEA8: 455.1665243 | BEB8: 2015/16 | BEC8: NotSig | BED8: 465.7541217 | BEF8: 426.83697 | BEG8: 426.83697 | BEH8: 483.7892688 | BEI8: 483.7892688 | BEJ8: 533 | BEK8: 463.5645303 | BEL8: 2016/17 | BEM8: NotSig | BEN8: 459.2699526 | BEP8: 424.8614813 | BEQ8: 424.8614813 | BER8: 504.845755 | BES8: 504.845755 | BET8: 528 | BEU8: 442.9824561 | BEV8: 2017/18 | BEW8: NotSig | BEX8: 426.694151 | BEZ8: 405.183511 | BFA8: 405.183511 | BFB8: 483.3581412 | BFC8: 483.3581412 | BFD8: 505 | BFE8: 186.5470852 | BFF8: 2011/12 | BFG8: NotSig | BFH8: 173.9568422 | BFJ8: 164.7722369 | BFK8: 164.7722369 | BFL8: 210.4743679 | BFM8: 210.4743679 | BFN8: 208 | BFO8: 216.0979878 | BFP8: 2012/13 | BFQ8: NotSig | BFR8: 202.1889401 | BFT8: 193.2093738 | BFU8: 193.2093738 | BFV8: 240.8885174 | BFW8: 240.8885174 | BFX8: 247 | BFY8: 176.5719208 | BFZ8: 2013/14 | BGA8: NotSig | BGB8: 180.5289581 | BGD8: 155.7153847 | BGE8: 155.7153847 | BGF8: 199.5616838 | BGG8: 199.5616838 | BGH8: 205 | BGI8: 230.8354866 | BGJ8: 2014/15 | BGK8: Better | BGL8: 191.139175 | BGN8: 207.5090883 | BGO8: 207.5090883 | BGP8: 255.9372071 | BGQ8: 255.9372071 | BGR8: 268 | BGS8: 203.2450897 | BGT8: 2015/16 | BGU8: NotSig | BGV8: 203.9995929 | BGX8: 181.1842054 | BGY8: 181.1842054 | BGZ8: 227.2466133 | BHA8: 227.2466133 | BHB8: 238 | BHC8: 244.0737489 | BHD8: 2016/17 | BHE8: NotSig | BHF8: 218.3955455 | BHH8: 216.223076 | BHI8: 216.223076 | BHJ8: 274.5166582 | BHK8: 274.5166582 | BHL8: 278 | BHM8: 164.9122807 | BHN8: 2017/18 | BHO8: NotSig | BHP8: 148.7245555 | BHR8: 142.1803912 | BHS8: 142.1803912 | BHT8: 190.2450411 | BHU8: 190.2450411 | BHV8: 188 | BHW8: 163.790582 | BHX8: 2011/12-2013/14 | BHY8: NotSig | BHZ8: 146.6531653 | BIB8: 126.3513209 | BIC8: 126.3513209 | BID8: 212.0852097 | BIE8: 212.0852097 | BIF8: 56 | BIG8: 170.2741703 | BIH8: 2012/13-2014/15 | BII8: NotSig | BIJ8: 147.3899338 | BIL8: 132.238985 | BIM8: 132.238985 | BIN8: 219.00641 | BIO8: 219.00641 | BIP8: 59 | BIQ8: 134.1707108 | BIR8: 2013/14-2015/16 | BIS8: NotSig | BIT8: 148.7420043 | BIV8: 101.0505842 | BIW8: 101.0505842 | BIX8: 177.9510758 | BIY8: 177.9510758 | BIZ8: 47 | BJA8: 162.8853985 | BJB8: 2014/15-2016/17 | BJC8: NotSig | BJD8: 158.8655871 | BJF8: 123.0418795 | BJG8: 123.0418795 | BJH8: 211.5202385 | BJI8: 211.5202385 | BJJ8: 56 | BJK8: 129.8701299 | BJL8: 2015/16-2017/18 | BJM8: NotSig | BJN8: 145.1784306 | BJP8: 94.36383518 | BJQ8: 94.36383518 | BJR8: 174.3445876 | BJS8: 174.3445876 | BJT8: 44 | BJU8: 269.541779 | BJV8: 2011/12-2013/14 | BJW8: NotSig | BJX8: 381.0763889 | BJZ8: 175.1534368 | BKA8: 175.1534368 | BKB8: 412.6586016 | BKC8: 412.6586016 | BKD8: 20 | BKE8: 216.802168 | BKF8: 2012/13-2014/15 | BKG8: NotSig | BKH8: 326.9148481 | BKJ8: 133.8828797 | BKK8: 133.8828797 | BKL8: 349.2588805 | BKM8: 349.2588805 | BKN8: 16 | BKO8: 174.0294511 | BKP8: 2013/14-2015/16 | BKQ8: NotSig | BKR8: 254.6197735 | BKT8: 101.9813791 | BKU8: 101.9813791 | BKV8: 295.4588324 | BKW8: 295.4588324 | BKX8: 13 | BKY8: 310.2961918 | BKZ8: 2014/15-2016/17 | BLA8: NotSig | BLB8: 364.3116102 | BLD8: 194.4609714 | BLE8: 194.4609714 | BLF8: 469.7921634 | BLG8: 469.7921634 | BLH8: 22 | BLI8: 210.3786816 | BLJ8: 2015/16-2017/18 | BLK8: NotSig | BLL8: 305.3844093 | BLN8: 117.7473511 | BLO8: 117.7473511 | BLP8: 346.987642 | BLQ8: 346.987642 | BLR8: 15 | BLS8: 346.2050599 | BLT8: 2011/12-2013/14 | BLU8: NotSig | BLV8: 250.6265664 | BLX8: 237.3381241 | BLY8: 237.3381241 | BLZ8: 502.4391916 | BMA8: 502.4391916 | BMB8: 26 | BMC8: 240.9638554 | BMD8: 2012/13-2014/15 | BME8: NotSig | BMF8: 213.4067636 | BMH8: 152.9555973 | BMI8: 152.9555973 | BMJ8: 377.6685225 | BMK8: 377.6685225 | BML8: 18 | BMM8: 152.7777778 | BMN8: 2013/14-2015/16 | BMO8: NotSig | BMP8: 162.3953311 | BMR8: 85.51909236 | BMS8: 85.51909236 | BMT8: 271.4853111 | BMU8: 271.4853111 | BMV8: 11 | BMW8: 191.1764706 | BMX8: 2014/15-2016/17 | BMY8: NotSig | BMZ8: 208.2613204 | BNB8: 101.793419 | BNC8: 101.793419 | BND8: 326.917587 | BNE8: 326.917587 | BNF8: 13 | BNG8: 135.1351351 | BNH8: 2015/16-2017/18 | BNI8: NotSig | BNJ8: 168.7763713 | BNL8: 61.79238885 | BNM8: 61.79238885 | BNN8: 256.5285804 | BNO8: 256.5285804 | BNP8: 9 | BNQ8: 36.34475597 | BNR8: 2011/12-2013/14 | BNS8: NotSig | BNT8: 61.42685816 | BNV8: 17.61651261 | BNW8: 17.61651261 | BNX8: 74.83387361 | BNY8: 74.83387361 | BNZ8: 7 | BOA8: 45.45454545 | BOB8: 2012/13-2014/15 | BOC8: NotSig | BOD8: 59.53763941 | BOF8: 23.93230586 | BOG8: 23.93230586 | BOH8: 86.16449005 | BOI8: 86.16449005 | BOJ8: 9 | BOK8: 58.93909627 | BOL8: 2013/14-2015/16 | BOM8: NotSig | BON8: 61.03996121 | BOP8: 33.74791168 | BOQ8: 33.74791168 | BOR8: 102.740435 | BOS8: 102.740435 | BOT8: 12 | BOU8: 82.96730112 | BOV8: 2014/15-2016/17 | BOW8: NotSig | BOX8: 78.94294832 | BOZ8: 48.33151034 | BPA8: 48.33151034 | BPB8: 132.8386863 | BPC8: 132.8386863 | BPD8: 17 | BPE8: 54.75360876 | BPF8: 2015/16-2017/18 | BPG8: NotSig | BPH8: 69.61724495 | BPJ8: 27.33280422 | BPK8: 27.33280422 | BPL8: 97.96933058 | BPM8: 97.96933058 | BPN8: 11 | BPO8: 155.0160866 | BPP8: 2011/12-2013/14 | BPQ8: NotSig | BPR8: 163.9372883 | BPT8: 118.7122094 | BPU8: 118.7122094 | BPV8: 202.1950255 | BPW8: 202.1950255 | BPX8: 53 | BPY8: 124.0981241 | BPZ8: 2012/13-2014/15 | BQA8: NotSig | BQB8: 144.6187952 | BQD8: 92.26356685 | BQE8: 92.26356685 | BQF8: 166.7320081 | BQG8: 166.7320081 | BQH8: 43 | BQI8: 102.7690551 | BQJ8: 2013/14-2015/16 | BQK8: NotSig | BQL8: 120.2558635 | BQN8: 74.3258809 | BQO8: 74.3258809 | BQP8: 141.9412635 | BQQ8: 141.9412635 | BQR8: 36 | BQS8: 151.2507272 | BQT8: 2014/15-2016/17 | BQU8: NotSig | BQV8: 159.548146 | BQX8: 112.9612775 | BQY8: 112.9612775 | BQZ8: 198.3452058 | BRA8: 198.3452058 | BRB8: 52 | BRC8: 103.3057851 | BRD8: 2015/16-2017/18 | BRE8: NotSig | BRF8: 134.2086319 | BRH8: 71.95626447 | BRI8: 71.95626447 | BRJ8: 143.6733393 | BRK8: 143.6733393 | BRL8: 35 | BRM8: 539.083558 | BRN8: 2011/12-2013/14 | BRO8: NotSig | BRP8: 598.9583333 | BRR8: 398.3627981 | BRS8: 398.3627981 | BRT8: 725.7562466 | BRU8: 725.7562466 | BRV8: 40 | BRW8: 934.9593496 | BRX8: 2012/13-2014/15 | BRY8: Better | BRZ8: 687.2058194 | BSB8: 745.4593056 | BSC8: 745.4593056 | BSD8: 1166.559187 | BSE8: 1166.559187 | BSF8: 69 | BSG8: 1004.016064 | BSH8: 2013/14-2015/16 | BSI8: Better | BSJ8: 750.2341821 | BSL8: 808.5249145 | BSM8: 808.5249145 | BSN8: 1240.39576 | BSO8: 1240.39576 | BSP8: 75 | BSQ8: 1184.767278 | BSR8: 2014/15-2016/17 | BSS8: NotSig | BST8: 1000.972677 | BSV8: 945.0167805 | BSW8: 945.0167805 | BSX8: 1466.822507 | BSY8: 1466.822507 | BSZ8: 84 | BTA8: 883.5904628 | BTB8: 2015/16-2017/18 | BTC8: NotSig | BTD8: 942.0483972 | BTF8: 678.9751724 | BTG8: 678.9751724 | BTH8: 1130.496035 | BTI8: 1130.496035 | BTJ8: 63 | BTK8: 53.26231691 | BTL8: 2011/12-2013/14 | BTM8: NotSig | BTN8: 109.7571515 | BTP8: 20.73158948 | BTQ8: 20.73158948 | BTR8: 136.1418663 | BTS8: 136.1418663 | BTT8: 0 | BTU8: 66.93440428 | BTV8: 2012/13-2014/15 | BTW8: NotSig | BTX8: 89.49315894 | BTZ8: 28.62327182 | BUA8: 28.62327182 | BUB8: 155.7226864 | BUC8: 155.7226864 | BUD8: 5 | BUE8: 55.55555556 | BUF8: 2013/14-2015/16 | BUG8: NotSig | BUH8: 92.19318278 | BUJ8: 21.62505079 | BUK8: 21.62505079 | BUL8: 141.9668335 | BUM8: 141.9668335 | BUN8: 0 | BUO8: 147.0588235 | BUP8: 2014/15-2016/17 | BUQ8: NotSig | BUR8: 133.9440028 | BUT8: 70.520422 | BUU8: 70.520422 | BUV8: 270.4464124 | BUW8: 270.4464124 | BUX8: 10 | BUY8: 105.1051051 | BUZ8: 2015/16-2017/18 | BVA8: NotSig | BVB8: 124.8241913 | BVD8: 42.25770348 | BVE8: 42.25770348 | BVF8: 216.5566871 | BVG8: 216.5566871 | BVH8: 7 | BVI8: 31.15264798 | BVJ8: 2011/12-2013/14 | BVK8: NotSig | BVL8: 36.8561149 | BVN8: 14.28511908 | BVO8: 14.28511908 | BVP8: 67.80172152 | BVQ8: 67.80172152 | BVR8: 6 | BVS8: 30.3030303 | BVT8: 2012/13-2014/15 | BVU8: NotSig | BVV8: 29.91403346 | BVX8: 13.89532357 | BVY8: 13.89532357 | BVZ8: 65.95712004 | BWA8: 65.95712004 | BWB8: 6 | BWC8: 24.55795678 | BWD8: 2013/14-2015/16 | BWE8: NotSig | BWF8: 23.38914401 | BWH8: 10.49411218 | BWI8: 10.49411218 | BWJ8: 57.36144964 | BWK8: 57.36144964 | BWL8: 5 | BWM8: 43.9238653 | BWN8: 2014/15-2016/17 | BWO8: NotSig | BWP8: 31.07328817 | BWR8: 20.08478818 | BWS8: 20.08478818 | BWT8: 83.38117839 | BWU8: 83.38117839 | BWV8: 9 | BWW8: 39.82080637 | BWX8: 2015/16-2017/18 | BWY8: NotSig | BWZ8: 30.19543154 | BXB8: 17.19179779 | BXC8: 17.19179779 | BXD8: 78.46286322 | BXE8: 78.46286322 | BXF8: 8 | BXG8: 146.2415911 | BXH8: 2011/12-2013/14 | BXI8: NotSig | BXJ8: 164.6356367 | BXL8: 111.1064272 | BXM8: 111.1064272 | BXN8: 192.271512 | BXO8: 192.271512 | BXP8: 50 | BXQ8: 230.8802309 | BXR8: 2012/13-2014/15 | BXS8: NotSig | BXT8: 174.9281236 | BXV8: 185.9055801 | BXW8: 185.9055801 | BXX8: 286.4177036 | BXY8: 286.4177036 | BXZ8: 80 | BYA8: 239.7944619 | BYB8: 2013/14-2015/16 | BYC8: Better | BYD8: 182.8571429 | BYF8: 194.1074561 | BYG8: 194.1074561 | BYH8: 295.9103016 | BYI8: 295.9103016 | BYJ8: 84 | BYK8: 299.5927865 | BYL8: 2014/15-2016/17 | BYM8: NotSig | BYN8: 238.5543402 | BYP8: 244.5373425 | BYQ8: 244.5373425 | BYR8: 363.3433841 | BYS8: 363.3433841 | BYT8: 103 | BYU8: 230.2243211 | BYV8: 2015/16-2017/18 | BYW8: NotSig | BYX8: 223.6810531 | BYZ8: 181.9827722 | BZA8: 181.9827722 | BZB8: 287.3303721 | BZC8: 287.3303721 | BZD8: 78 | BZE8: 25.83333333 | BZF8: 2011/12 | BZG8: None | BZH8: 22.19178082 | BZO8: 16.66666667 | BZP8: 2014/15 | BZQ8: None | BZR8: 18.29634073 | BZY8: 25.71428571 | BZZ8: 2016/17 | CAA8: None | CAB8: 22.88401254 | CAI8: 0.775 | CAJ8: 2011/12 | CAK8: None | CAL8: 0.6196347032 | CAS8: 0.4722222222 | CAT8: 2014/15 | CAU8: None | CAV8: 0.4559088182 | CBC8: 0.6285714286 | CBD8: 2016/17 | CBE8: None | CBF8: 0.5799373041 | CBM8: 51 | CBN8: 2014/15 | CBO8: Worse | CBP8: 60.19283747 | CBR8: 44.11858768 | CBS8: 44.11858768 | CBT8: 57.84372167 | CBU8: 57.84372167 | CBV8: 102 | CBW8: 55.02392344 | CBX8: 2015/16 | CBY8: Worse | CBZ8: 63.98899587 | CCB8: 48.24940231 | CCC8: 48.24940231 | CCD8: 61.6170965 | CCE8: 61.6170965 | CCF8: 115 | CCG8: 64.14141414 | CCH8: 2016/17 | CCI8: NotSig | CCJ8: 65.15431285 | CCL8: 57.25060012 | CCM8: 57.25060012 | CCN8: 70.49394767 | CCO8: 70.49394767 | CCP8: 127 | CCQ8: 62.61682243 | CCR8: 2017/18 | CCS8: NotSig | CCT8: 66.56025539 | CCV8: 52.46413688 | CCW8: 52.46413688 | CCX8: 74.16102462 | CCY8: 74.16102462 | CCZ8: 134 | CDA8: 43.24324324 | CDB8: 2014/15-2015/16 | CDC8: NotSig | CDD8: 43.16037736 | CDF8: 32.56611866 | CDG8: 32.56611866 | CDH8: 54.58725674 | CDI8: 54.58725674 | CDJ8: 32 | CDK8: 56.25 | CDL8: 2016/17 | CDM8: NotSig | CDN8: 49.18300654 | CDP8: 42.27501742 | CDQ8: 42.27501742 | CDR8: 69.29873096 | CDS8: 69.29873096 | CDT8: 27 | CDU8: 50 | CDV8: 2017/18 | CDW8: NotSig | CDX8: 51.53153153 | CDZ8: 32.3573637 | CEA8: 32.3573637 | CEB8: 73.8098634 | CEC8: 73.8098634 | CED8: 25 | CEE8: 74.67532468 | CEF8: 2014/15 | CEG8: NotSig | CEH8: 77.4676259 | CEJ8: 67.2640717 | CEK8: 67.2640717 | CEL8: 80.88550862 | CEM8: 80.88550862 | CEN8: 115 | CEO8: 74 | CEP8: 2015/16 | CEQ8: NotSig | CER8: 78.47891981 | CET8: 67.5092544 | CEU8: 67.5092544 | CEV8: 79.58616994 | CEW8: 79.58616994 | CEX8: 148 | CEY8: 79.60199005 | CEZ8: 2016/17 | CFA8: NotSig | CFB8: 78.42653509 | CFD8: 73.50083149 | CFE8: 73.50083149 | CFF8: 84.59287702 | CFG8: 84.59287702 | CFH8: 160 | CFI8: 77.73 | CFJ8: 2017/18 | CFK8: NotSig | CFL8: 79.96339023 | CFN8: 66.284532 | CFO8: 66.284532 | CFP8: 90.57325196 | CFQ8: 90.57325196 | CFR8: 164.0103 | CFS8: 64.1509434 | CFT8: 2014/15-2015/16 | CFU8: NotSig | CFV8: 64.35294118 | CFX8: 50.69114156 | CFY8: 50.69114156 | CFZ8: 75.69804745 | CGA8: 75.69804745 | CGB8: 34 | CGC8: 68.75 | CGD8: 2016/17 | CGE8: NotSig | CGF8: 66.48351648 | CGH8: 54.66692858 | CGI8: 54.66692858 | CGJ8: 80.05431655 | CGK8: 80.05431655 | CGL8: 33 | CGM8: 77.19 | CGN8: 2017/18 | CGO8: NotSig | CGP8: 69.58030252 | CGR8: 55.34153639 | CGS8: 55.34153639 | CGT8: 102.6219996 | CGU8: 102.6219996 | CGV8: 43.9983 | CGW8: 71.84347294 | CGX8: 2010/11-2014/15 | CGY8: Higher | CGZ8: 42.52940817 | CHB8: 52.78788219 | CHC8: 52.78788219 | CHD8: 95.53658852 | CHE8: 95.53658852 | CHF8: 47 | CHG8: 74.90064201 | CHH8: 2011/12-2015/16 | CHI8: Higher | CHJ8: 41.0448087 | CHL8: 56.70495386 | CHM8: 56.70495386 | CHN8: 98.87696707 | CHO8: 98.87696707 | CHP8: 49 | CHQ8: 51.92107996 | CHR8: 2012/13-2016/17 | CHS8: NotSig | CHT8: 36.74066426 | CHV8: 37.35766965 | CHW8: 37.35766965 | CHX8: 72.12075067 | CHY8: 72.12075067 | CHZ8: 35 | CIA8: 70.3803534 | CIB8: 2013/14-2017/18 | CIC8: Higher | CID8: 36.62408119 | CIF8: 51.71283643 | CIG8: 51.71283643 | CIH8: 93.5909499 | CII8: 93.5909499 | CIJ8: 47
